Workbook

Sheet Notes
B10: USING THE SPREADSHEET - INSTRUCTIONS FOR SETTING UP AND SCORING A QUADKIDS EVENT
B12: To ensure you can use the Spreadsheet properly you will need to make sure that your Excel program trusts Macros. To enable Macros you must click on “trust content from this site/enable macros" when prompted by your computer. If using Excel 2007 please ensure the spreadsheet is saved as an Excel 97-2003 workbook (.XLS).
B16: Before the Event
B17: 1. Click on the CONFIGURATION tab at the bottom of the Spreadsheet and by clicking on the relevant cells enter:
B18: Ø Event Name e.g. Swindon SSP
B19: Ø Event Date
B20: Ø Competition Type - Select the Competition Type from the drop down menu e.g. QuadKids Primary
B21: Ø Number of Teams - Enter the number of teams competing in the event
B22: Ø Relay - If you are not having a relay or the relay is non-scoring ensure that the relay box is changed to NO (you will need to click on the box to be able to do this)
B23: Ø Secure Names – by selecting yes against secure names the athlete’s spreadsheet will only display Christian names and the first two letters of the surname.
B26: 2. Click on the DECLARATION tab at the bottom of the Spreadsheet and enter:
B27: Ø Number – you need to assign each athlete a unique number (this is the number that they will be given to wear on the day) and then enter it in the number column
B28: Ø Name – enter the athlete’s name
B29: Ø Athlete’s Team – enter the name of the team/school/club
B30: Ø Sex – enter the athlete’s gender (M or F) – without this information the row of cells will remain red
B31: Ø Date of Birth – enter if provided
B32: Ø Age Group – use this field to set the age group of the athlete if it is different from the age group of the competition
B33: Ø Disability Group – QuadKids is now fully inclusive allowing disabled athletes to compete alongside non-disabled athetes. For more information on the England Athletics Disability Groups please look in the QuadKids manual or go to the QuadKids website.
B35: 3. Click on the ATHLETES tab at the bottom of the Spreadsheet and in the number column enter the unique athlete’s numbers that you assigned to each athlete on the declaration sheet. The spreadsheet will automatically fill the athlete’s name and team. You need to ensure that all athletes’ numbers in each school/club team are inserted in the same team e.g. team 1
B37: 4. Click on the TEAMSCORES tab and check that all declared teams appear in the table.
B39: On Competition Day
B40: Ø Results only need to be entered on the relevant event sheet; the times and distances and allocated points will automatically feed through to the Athlete Sheet
B42: Ø Enter only the athlete’s number and the time/distance that has been achieved. The spreadsheet automatically calculates the number of points.
B44: Ø If any cells in the Duplicate Count column turn red you need to check that you have not duplicated an athlete’s number.
B46: Ø If PLEASE CHECK appears in the Checkpoint column you need to check the time/distance inputted. An athlete will always score a minimum of 10 points if they record a time/distance even if their time/distance is below the lower end of the points scale.
B48: Ø For the Sprint times need to be entered in seconds and tenths of seconds e.g. 12.3 For the Run times need to be entered in minutes and seconds e.g. 2.36
B50: Ø Team Scores are automatically calculated by the Spreadsheet. Once all the results have been inputted click on the Team Scoresheet tab and the cumulative team points will be displayed plus the ranking of each team.
B52: Version: 9.0 (15-March-2016)

Sheet Configuration
I1: OPEN
A13: Event Name: | C13: Brewer Memorial Games
A15: Event Date: | C15: 2023-05-06
A17: Competition Type: | C17: QuadKids Primary | H17: =+TypeMessage -> <-- Please select the type of QuadKids competition. If you do not then the default option is 'QuadKids Primary'
A19: Venue: | C19: Prince of Wales Stadium, Cheltenham
C20: =IF(ISBLANK(conftype),"*** The default option of "&DefaultComp&" has been selected! ***","") -> 
A21: Number of Teams: | H21: =+SelectMessage -> QuadKids Start = Years 3/4 QuadKids Primary = Years 5/6 QuadKids Secondary = Year 7/8 QuadKids Club U9 - Under 9s QuadKids Club - Under 11s QuadKids Club U13 - Under 13s
A23: Relay? | C23: NO
A25: Secure Names? | C25: NO
A29: Please take a few moments to properly configure the scoring spreadsheet. If you do not select any of the parameters the spreadsheet will assume some defaults. There is no "CONFIGURE" button anymore!
A31: For more information on Quadkids please visit the QuadKids website at | I31: http://www.quadkids.org
A33: UKA Awards information can be found here | I33: http://www.quadkids.org/awards
A37: Statistics
A38: Athletes Declared | C38: =+TotalAthletes -> 36 | E38: Results Entered
A39: Disabled Athletes | C39: =+Declarations!L1 -> 0 | E39: =+'EVENT - SPRNT'!C1 -> SPRINT | F39: =+'EVENT - SPRNT'!F1 -> 0.8888888889
E40: =+'EVENT - RUN'!C1 -> RUN | F40: =+'EVENT - RUN'!F1 -> 0.8333333333
E41: =+'EVENT - JUMP'!C1 -> JUMP | F41: =+'EVENT - JUMP'!F1 -> 0.8055555556
E42: =+'EVENT - THROW'!C1 -> THROW | F42: =+'EVENT - THROW'!F1 -> 0.8611111111
E43: Relay | F43: =+'EVENT-RELAY'!F1 -> 0
A52: Flexing Trigger | C52: 0.75

Sheet Setup (hidden)
A1: Setup
A3: EventName | B3: SPRINT | E3: RUN | H3: JUMP | K3: THROW | N3: RELAY | Q3: Max Scorers | R3: Min Points | S3: Max Points | T3: Inclusive Type
B4: Name | C4: Min | D4: Inc | E4: Name | F4: Min | G4: Inc | H4: Name | I4: Min | J4: Inc | K4: Name | L4: Min | M4: Inc | N4: Name | O4: Min | P4: Inc
A5: Wessex League | B5: 75m | C5: 16 | D5: 0.1 | E5: 600m | F5: 3 | G5: 0.01 | H5: Long_Jump | I5: 2.2 | J5: 0.03 | K5: Howler | L5: 5 | M5: 0.5 | N5: Relay | O5: 94 | P5: 0.5 | Q5: 4 | R5: 10 | S5: 100 | T5: 1
A6: Wessex League (U13) | B6: 70/75mH | C6: 20 | D6: 0.1 | E6: 800m | F6: 3.5 | G6: 0.01 | H6: Long_Jump | I6: 2 | J6: 0.04 | K6: Shot | L6: 2 | M6: 0.1 | N6: Relay | O6: 94 | P6: 0.5 | Q6: 4 | R6: 10 | S6: 100 | T6: 2
A7: QuadKids Secondary | B7: 100m | C7: 19.5 | D7: 0.1 | E7: 800m | F7: 3.5 | G7: 0.01 | H7: Long_Jump | I7: 2 | J7: 0.05 | K7: Howler | L7: 6 | M7: 0.6 | N7: Relay | O7: 94 | P7: 0.5 | Q7: 4 | R7: 10 | S7: 100 | T7: 2
A8: QuadKids Primary | B8: 75m | C8: 16 | D8: 0.1 | E8: 600m | F8: 3 | G8: 0.01 | H8: SLJ | I8: 1.02 | J8: 0.02 | K8: Howler | L8: 5 | M8: 0.5 | N8: Relay | O8: 94 | P8: 0.5 | Q8: 4 | R8: 10 | S8: 100 | T8: 2
A9: QuadKids Start | B9: 50m | C9: 12 | D9: 0.1 | E9: 400m | F9: 2.05 | G9: 0.01 | H9: SLJ | I9: 0.75 | J9: 0.025 | K9: Howler | L9: 2.5 | M9: 0.5 | N9: Relay | O9: 94 | P9: 0.5 | Q9: 4 | R9: 10 | S9: 100 | T9: 1
A10: QuadKids Club | B10: 75m | C10: 16 | D10: 0.1 | E10: 600m | F10: 3 | G10: 0.01 | H10: Long_Jump | I10: 2.2 | J10: 0.03 | K10: Howler | L10: 5 | M10: 0.5 | N10: Relay | O10: 94 | P10: 0.5 | Q10: 4 | R10: 10 | S10: 100 | T10: 2
A11: QuadKids Club U13 | B11: 100m | C11: 19.5 | D11: 0.1 | E11: 800m | F11: 3.5 | G11: 0.01 | H11: Long_Jump | I11: 2 | J11: 0.05 | K11: Howler | L11: 6 | M11: 0.6 | N11: Relay | O11: 94 | P11: 0.5 | Q11: 4 | R11: 10 | S11: 100 | T11: 2
A12: QuadKids Club U9 | B12: 50m | C12: 12 | D12: 0.1 | E12: 400m | F12: 2.1 | G12: 0.01 | H12: SLJ | I12: 0.9 | J12: 0.02 | K12: Howler | L12: 0 | M12: 0.5 | N12: Relay | O12: 94 | P12: 0.5 | Q12: 4 | R12: 10 | S12: 100 | T12: 1
A13: QuadKids Pre-Start | B13: 50m | C13: 13 | D13: 0.1 | E13: 300m | F13: 2.15 | G13: 0.01 | H13: SLJ | I13: 0.5 | J13: 0.03 | K13: Howler | L13: 0 | M13: 0.5 | N13: Relay | O13: 99 | P13: 0.5 | Q13: 4 | R13: 10 | S13: 100 | T13: 1
A27: MatchType | B27: =IF(ISBLANK(+Configuration!C17),DefaultComp,Configuration!C17) -> QuadKids Primary
A28: EventIndex | B28: =MATCH(B27,MatchNames,0) -> 4
A30: Scoring Table | B30: =INDEX(MatchScoreTable,EventIndex,2) -> 75m | C30: =INDEX(MatchScoreTable,EventIndex,5) -> 600m | D30: =INDEX(MatchScoreTable,EventIndex,8) -> SLJ | E30: =INDEX(MatchScoreTable,EventIndex,11) -> Howler | F30: =INDEX(MatchScoreTable,EventIndex,14) -> Relay | I30: MINS | J30: Sprint | K30: Run | L30: Jump | M30: Throw | O30: INC | P30: Sprint | Q30: Run | R30: Jump | S30: Throw
A31: Min | B31: =INDEX(MatchScoreTable,EventIndex,3) -> 16 | C31: =INDEX(MatchScoreTable,EventIndex,6) -> 3 | D31: =INDEX(MatchScoreTable,EventIndex,9) -> 1.02 | E31: =INDEX(MatchScoreTable,EventIndex,12) -> 5 | F31: =INDEX(MatchScoreTable,EventIndex,15) -> 94 | I31: =+A5 -> Wessex League | J31: =+C5 -> 16 | K31: =+F5 -> 3 | L31: =+I5 -> 2.2 | M31: =+L5 -> 5 | O31: =+A5 -> Wessex League | P31: =+D5 -> 0.1 | Q31: =+G5 -> 0.01 | R31: =+J5 -> 0.03 | S31: =+M5 -> 0.5
A32: Max | B32: =+ScorngTable!B97 -> 7 | C32: =+ScorngTable!E97 -> 1.3 | D32: =+ScorngTable!F97 -> 2.82 | E32: =+ScorngTable!G97 -> 50 | F32: =+ScorngTable!H97 -> 49 | I32: =+A6 -> Wessex League (U13) | J32: =+C6 -> 20 | K32: =+F6 -> 3.5 | L32: =+I6 -> 2 | M32: =+L6 -> 2 | O32: =+A6 -> Wessex League (U13) | P32: =+D6 -> 0.1 | Q32: =+G6 -> 0.01 | R32: =+J6 -> 0.04 | S32: =+M6 -> 0.1
A33: Increments | B33: =INDEX(MatchScoreTable,EventIndex,4) -> 0.1 | C33: =INDEX(MatchScoreTable,EventIndex,7) -> 0.01 | D33: =INDEX(MatchScoreTable,EventIndex,10) -> 0.02 | E33: =INDEX(MatchScoreTable,EventIndex,13) -> 0.5 | F33: =INDEX(MatchScoreTable,EventIndex,16) -> 0.5 | I33: QuadKids Secondary | J33: 19.5 | K33: 3.5 | L33: 2 | M33: 6 | O33: QuadKids Secondary | P33: 0.1 | Q33: 0.01 | R33: 0.05 | S33: 0.6
I34: QuadKids Primary | J34: 16 | K34: 3 | L34: 1.02 | M34: 5 | O34: QuadKids Primary | P34: 0.1 | Q34: 0.01 | R34: 0.02 | S34: 0.5
A35: Num of Scorers | B35: =INDEX(MatchScoreTable,EventIndex,17) -> 4 | D35: Flex % | E35: 45 | I35: QuadKids Start | J35: 12 | K35: 2.05 | L35: 0.75 | M35: 2.5 | O35: QuadKids Start | P35: 0.1 | Q35: 0.01 | R35: 0.025 | S35: 0.5
A36: Minimum Points | B36: =INDEX(MatchScoreTable,EventIndex,18) -> 10 | D36: Flexing? | E36: =IF(G36>=FlexTrigger,TRUE,FALSE) -> TRUE | G36: =SUM(Configuration!F39:F42)/4 -> 0.8472222222 | I36: QuadKids Club | J36: 16 | K36: 3 | L36: 2.2 | M36: 5 | O36: QuadKids Club | P36: 0.1 | Q36: 0.01 | R36: 0.03 | S36: 0.5
A37: Maximum Points | B37: =INDEX(MatchScoreTable,EventIndex,19) -> 100 | I37: QuadKids Club U13 | J37: 19.5 | K37: 3.5 | L37: 2 | M37: 6 | O37: QuadKids Club U13 | P37: 0.1 | Q37: 0.01 | R37: 0.05 | S37: 0.6
A38: Number of Teams | B38: 10 | I38: QuadKids Club U9 | J38: 12 | K38: 2.1 | L38: 0.9 | M38: 0 | O38: QuadKids Club U9 | P38: 0.1 | Q38: 0.01 | R38: 0.02 | S38: 0.5
I39: QuadKids Pre-Start | J39: 13 | K39: 2.15 | L39: 0.5 | M39: 0 | O39: QuadKids Pre-Start | P39: 0.1 | Q39: 0.01 | R39: 0.03 | S39: 0.5
A40: Score Multiplier | I40: 0 | J40: 0 | K40: 0 | L40: 0 | M40: 0 | O40: 0 | P40: 0 | Q40: 0 | R40: 0 | S40: 0
A41: Disability Group | B41: =+B30 -> 75m | C41: =+C30 -> 600m | D41: =+D30 -> SLJ | E41: =+E30 -> Howler | I41: 0 | J41: 0 | K41: 0 | L41: 0 | M41: 0 | O41: 0 | P41: 0 | Q41: 0 | R41: 0 | S41: 0
A42: 0 | B42: 1 | C42: 1 | D42: 1 | E42: 1 | I42: 0 | J42: 0 | K42: 0 | L42: 0 | M42: 0 | O42: 0 | P42: 0 | Q42: 0 | R42: 0 | S42: 0
A43: 1 | B43: 0.5 | C43: 0.5 | D43: 2 | E43: 2
A44: 2 | B44: 0.6 | C44: 0.6 | D44: 1.9 | E44: 1.9
A45: 3 | B45: 0.75 | C45: 0.75 | D45: 1.6 | E45: 1.6
A46: 4 | B46: 0.9 | C46: 0.9 | D46: 1.25 | E46: 1.25
B48: Event #1 | I48: Event #2 | P48: Event #3 | W48: Event #4
C49: G2 | D49: G3 | E49: G4 | F49: G2 | G49: G3 | H49: G4 | J49: G2 | K49: G3 | L49: G4 | M49: G2 | N49: G3 | O49: G4 | Q49: G2 | R49: G3 | S49: G4 | T49: G2 | U49: G3 | V49: G4 | X49: G2 | Y49: G3 | Z49: G4 | AA49: G2 | AB49: G3 | AC49: G4
B50: Name | C50: Minimums | F50: Increments | I50: Name | J50: Minimums | M50: Increments | P50: Name | Q50: Minimums | T50: Increments | W50: Name | X50: Minimums | AA50: Increments
A51: Year 3/4 | B51: 50m | C51: 60 | D51: 37 | E51: 34 | F51: 0.5 | G51: 0.3 | H51: 0.3 | I51: 400m | J51: 480 | K51: 450 | L51: 480 | M51: 2 | N51: 3 | O51: 4 | P51: Jump | Q51: 0 | R51: 0.2 | S51: 0.2 | T51: 0 | U51: 0.02 | V51: 0.02 | W51: Vortex | X51: 2 | Y51: 2 | Z51: 2 | AA51: 0.2 | AB51: 0.3 | AC51: 0.2
A52: Year 5/6 | B52: 75m | C52: 60 | D52: 55 | E52: 34 | F52: 0.5 | G52: 0.5 | H52: 0.3 | I52: 600m | J52: 480 | K52: 450 | L52: 480 | M52: 2 | N52: 3 | O52: 4 | P52: Jump | Q52: 0 | R52: 0.2 | S52: 0.2 | T52: 0 | U52: 0.03 | V52: 0.03 | W52: Vortex | X52: 2 | Y52: 2 | Z52: 2 | AA52: 0.2 | AB52: 0.3 | AC52: 0.4
B58: =INDEX(IncScoreTable,IncMatchIdx,2+(7*(1-1))) -> 75m | C58: =INDEX(IncScoreTable,IncMatchIdx,2+(7*(1-1))+1) -> 60 | D58: =INDEX(IncScoreTable,IncMatchIdx,2+(7*(1-1))+2) -> 55 | E58: =INDEX(IncScoreTable,IncMatchIdx,2+(7*(1-1))+3) -> 34 | F58: =INDEX(IncScoreTable,IncMatchIdx,2+(7*(1-1))+4) -> 0.5 | G58: =INDEX(IncScoreTable,IncMatchIdx,2+(7*(1-1))+5) -> 0.5 | H58: =INDEX(IncScoreTable,IncMatchIdx,2+(7*(1-1))+6) -> 0.3 | I58: =INDEX(IncScoreTable,IncMatchIdx,2+(7*(2-1))) -> 600m | J58: =INDEX(IncScoreTable,IncMatchIdx,2+(7*(2-1))+1) -> 480 | K58: =INDEX(IncScoreTable,IncMatchIdx,2+(7*(2-1))+2) -> 450 | L58: =INDEX(IncScoreTable,IncMatchIdx,2+(7*(2-1))+3) -> 480 | M58: =INDEX(IncScoreTable,IncMatchIdx,2+(7*(2-1))+4) -> 2 | N58: =INDEX(IncScoreTable,IncMatchIdx,2+(7*(2-1))+5) -> 3 | O58: =INDEX(IncScoreTable,IncMatchIdx,2+(7*(2-1))+6) -> 4 | P58: =INDEX(IncScoreTable,IncMatchIdx,2+(7*(3-1))) -> Jump | Q58: =INDEX(IncScoreTable,IncMatchIdx,2+(7*(3-1))+1) -> 0 | R58: =INDEX(IncScoreTable,IncMatchIdx,2+(7*(3-1))+2) -> 0.2 | S58: =INDEX(IncScoreTable,IncMatchIdx,2+(7*(3-1))+3) -> 0.2 | T58: =INDEX(IncScoreTable,IncMatchIdx,2+(7*(3-1))+4) -> 0 | U58: =INDEX(IncScoreTable,IncMatchIdx,2+(7*(3-1))+5) -> 0.03 | V58: =INDEX(IncScoreTable,IncMatchIdx,2+(7*(3-1))+6) -> 0.03 | W58: =INDEX(IncScoreTable,IncMatchIdx,2+(7*(4-1))) -> Vortex | X58: =INDEX(IncScoreTable,IncMatchIdx,2+(7*(4-1))+1) -> 2 | Y58: =INDEX(IncScoreTable,IncMatchIdx,2+(7*(4-1))+2) -> 2 | Z58: =INDEX(IncScoreTable,IncMatchIdx,2+(7*(4-1))+3) -> 2 | AA58: =INDEX(IncScoreTable,IncMatchIdx,2+(7*(4-1))+4) -> 0.2 | AB58: =INDEX(IncScoreTable,IncMatchIdx,2+(7*(4-1))+5) -> 0.3 | AC58: =INDEX(IncScoreTable,IncMatchIdx,2+(7*(4-1))+6) -> 0.4
A60: IncMatchIdx | B60: =INDEX(MatchScoreTable,EventIndex,20) -> 2
A62: Year 3/4 | B62: Sprint | E62: Run | H62: Jump | K62: Throw | P62: MINS | Q62: Sprint | R62: Run | S62: Jump | T62: Throw | W62: MINS | X62: Sprint | Y62: Run | Z62: Jump | AA62: Throw
B63: Name | C63: Min | D63: Inc | E63: Name | F63: Min | G63: Inc | H63: Name | I63: Min | J63: Inc | K63: Name | L63: Min | M63: Inc | O63: Younger | P63: G1 | Q63: =+C64 -> 0 | R63: =+F64 -> 0 | S63: =+I64 -> 0 | T63: =+L64 -> 2 | V63: Younger | W63: G1 | X63: =+D64 -> 0 | Y63: =+G64 -> 0 | Z63: =+J64 -> 0 | AA63: =+M64 -> 0.02
A64: G1 | B64: 50m | C64: 0 | D64: 0 | E64: 400m | F64: 0 | G64: 0 | H64: Jump | I64: 0 | J64: 0 | K64: Throw | L64: 2 | M64: 0.02 | P64: G2 | Q64: =+C65 -> 60 | R64: =+F65 -> 480 | S64: =+I65 -> 0 | T64: =+L65 -> 2 | W64: G2 | X64: =+D65 -> 0.5 | Y64: =+G65 -> 2 | Z64: =+J65 -> 0 | AA64: =+M65 -> 0.02
A65: G2 | B65: =+B64 -> 50m | C65: 60 | D65: 0.5 | E65: =+E64 -> 400m | F65: 480 | G65: 2 | H65: =+H64 -> Jump | I65: 0 | J65: 0 | K65: =+K64 -> Throw | L65: 2 | M65: 0.02 | P65: G3 | Q65: =+C66 -> 37 | R65: =+F66 -> 450 | S65: =+I66 -> 0.2 | T65: =+L66 -> 2 | W65: G3 | X65: =+D66 -> 0.3 | Y65: =+G66 -> 3 | Z65: =+J66 -> 0.02 | AA65: =+M66 -> 0.03
A66: G3 | B66: =+B65 -> 50m | C66: 37 | D66: 0.3 | E66: =+E65 -> 400m | F66: 450 | G66: 3 | H66: =+H65 -> Jump | I66: 0.2 | J66: 0.02 | K66: =+K65 -> Throw | L66: 2 | M66: 0.03 | P66: G4 | Q66: =+C67 -> 34 | R66: =+F67 -> 480 | S66: =+I67 -> 0.2 | T66: =+L67 -> 2.5 | W66: G4 | X66: =+D67 -> 0.3 | Y66: =+G67 -> 4 | Z66: =+J67 -> 0.02 | AA66: =+M67 -> 0.5
A67: G4 | B67: =+B66 -> 50m | C67: 34 | D67: 0.3 | E67: =+E66 -> 400m | F67: 480 | G67: 4 | H67: =+H66 -> Jump | I67: 0.2 | J67: 0.02 | K67: =+K66 -> Throw | L67: 2.5 | M67: 0.5 | O67: Older | P67: G1 | Q67: =+C71 -> 0 | R67: =+F71 -> 0 | S67: =+I71 -> 0 | T67: =+L71 -> 2 | V67: Older | W67: G1 | X67: =+D71 -> 0 | Y67: =+G71 -> 0 | Z67: =+J71 -> 0 | AA67: =+M71 -> 0.02
P68: G2 | Q68: =+C72 -> 60 | R68: =+F72 -> 480 | S68: =+I72 -> 0 | T68: =+L72 -> 2 | W68: G2 | X68: =+D72 -> 0.5 | Y68: =+G72 -> 2 | Z68: =+J72 -> 0 | AA68: =+M72 -> 0.02
A69: Year 5/6 | B69: Sprint | E69: Run | H69: Jump | K69: Throw | P69: G3 | Q69: =+C73 -> 55 | R69: =+F73 -> 450 | S69: =+I73 -> 0.2 | T69: =+L73 -> 2 | W69: G3 | X69: =+D73 -> 0.5 | Y69: =+G73 -> 3 | Z69: =+J73 -> 0.03 | AA69: =+M73 -> 0.03
B70: Name | C70: Min | D70: Inc | E70: Name | F70: Min | G70: Inc | H70: Name | I70: Min | J70: Inc | K70: Name | L70: Min | M70: Inc | P70: G4 | Q70: =+C74 -> 34 | R70: =+F74 -> 480 | S70: =+I74 -> 0.2 | T70: =+L74 -> 5 | W70: G4 | X70: =+D74 -> 0.3 | Y70: =+G74 -> 4 | Z70: =+J74 -> 0.03 | AA70: =+M74 -> 0.5
A71: G1 | B71: 75m | C71: 0 | D71: 0 | E71: 600m | F71: 0 | G71: 0 | H71: Jump | I71: 0 | J71: 0 | K71: Throw | L71: 2 | M71: 0.02
A72: G2 | B72: =+B71 -> 75m | C72: 60 | D72: 0.5 | E72: =+E71 -> 600m | F72: 480 | G72: 2 | H72: =+H71 -> Jump | I72: 0 | J72: 0 | K72: =+K71 -> Throw | L72: 2 | M72: 0.02
A73: G3 | B73: =+B72 -> 75m | C73: 55 | D73: 0.5 | E73: =+E72 -> 600m | F73: 450 | G73: 3 | H73: =+H72 -> Jump | I73: 0.2 | J73: 0.03 | K73: =+K72 -> Throw | L73: 2 | M73: 0.03
A74: G4 | B74: =+B73 -> 75m | C74: 34 | D74: 0.3 | E74: =+E73 -> 600m | F74: 480 | G74: 4 | H74: =+H73 -> Jump | I74: 0.2 | J74: 0.03 | K74: =+K73 -> Throw | L74: 5 | M74: 0.5
A76: Year 5/6 | B76: Sprint | E76: Run | H76: Jump | K76: Throw
B77: Name | C77: Min | D77: Inc | E77: Name | F77: Min | G77: Inc | H77: Name | I77: Min | J77: Inc | K77: Name | L77: Min | M77: Inc
A78: G1 | B78: =IF(IncMatchIdx=1,B64,B71) -> 75m | C78: 0 | D78: 0 | E78: 600m | F78: 0 | G78: 0 | H78: Jump | I78: 0 | J78: 0 | K78: Throw | L78: 2 | M78: 0.02
A79: G2 | B79: =IF(IncMatchIdx=1,B65,B72) -> 75m | C79: 60 | D79: 0.5 | E79: 600m | F79: 480 | G79: 2 | H79: Jump | I79: 0 | J79: 0 | K79: Throw | L79: 2 | M79: 0.02
A80: G3 | B80: =IF(IncMatchIdx=1,B66,B73) -> 75m | C80: 55 | D80: 0.5 | E80: 600m | F80: 450 | G80: 3 | H80: Jump | I80: 0.2 | J80: 0.03 | K80: Throw | L80: 2 | M80: 0.03
A81: G4 | B81: =IF(IncMatchIdx=1,B67,B74) -> 75m | C81: 34 | D81: 0.3 | E81: 600m | F81: 480 | G81: 4 | H81: Jump | I81: 0.2 | J81: 0.03 | K81: Throw | L81: 5 | M81: 0.5
A84: Notes Read | B84: FALSE | H84: SCHOOL | J84: =+A8 -> QuadKids Primary | K84: =+A10 -> QuadKids Club | L84: =+A8 -> QuadKids Primary
A85: Relay Visible | B85: =IF(confrelay="YES",TRUE,FALSE) -> FALSE | H85: CLUB | J85: =+A7 -> QuadKids Secondary | K85: =+A11 -> QuadKids Club U13 | L85: =+A7 -> QuadKids Secondary
H86: OPEN | J86: =+A9 -> QuadKids Start | K86: =+A12 -> QuadKids Club U9 | L86: =+A9 -> QuadKids Start
J87: =+A13 -> QuadKids Pre-Start | L87: =+A10 -> QuadKids Club
L88: =+A12 -> QuadKids Club U9
L89: =+A11 -> QuadKids Club U13
J90: QuadKids Start = Years 3/4 QuadKids Primary = Years 5/6 QuadKids Secondary = Year 7/8 QuadKids Pre-Start = Year 1/2 | K90: QuadKids Club U9 - Under 9s QuadKids Club - Under 11s QuadKids Club U13 - Under 13s | L90: QuadKids Start = Years 3/4 QuadKids Primary = Years 5/6 QuadKids Secondary = Year 7/8 QuadKids Club U9 - Under 9s QuadKids Club - Under 11s QuadKids Club U13 - Under 13s
J91: ="<-- Please select the type of QuadKids competition. If you do not then the default option is '"&DefaultComp&"'" -> <-- Please select the type of QuadKids competition. If you do not then the default option is 'QuadKids Primary'
B97: B
B98: G
A100: DefaultComp | B100: QuadKids Primary | H100: =+J84 -> QuadKids Primary
A101: ScoringType | B101: =+confmatchtype -> OPEN | D101: =MATCH(ScoreType,MATCHTYPES,0) -> 3 | H101: =+K84 -> QuadKids Club
B103: =INDEX(edata,1,MatchOffset) -> QuadKids Primary
B104: =INDEX(edata,2,MatchOffset) -> QuadKids Secondary
B105: =INDEX(edata,3,MatchOffset) -> QuadKids Start
B106: =INDEX(edata,4,MatchOffset) -> QuadKids Club
B107: =INDEX(edata,5,MatchOffset) -> QuadKids Club U9
B108: =INDEX(edata,6,MatchOffset) -> QuadKids Club U13
A111: TypeMessage | B111: ="<-- Please select the type of QuadKids competition. If you do not then the default option is '"&DefaultComp&"'" -> <-- Please select the type of QuadKids competition. If you do not then the default option is 'QuadKids Primary'
A112: SelectMessage | B112: =INDEX(edata,7,MatchOffset) -> QuadKids Start = Years 3/4 QuadKids Primary = Years 5/6 QuadKids Secondary = Year 7/8 QuadKids Club U9 - Under 9s QuadKids Club - Under 11s QuadKids Club U13 - Under 13s
A115: AwardsValid | B115: =IF(confmatchtype="SCHOOL",TRUE,TRUE) -> TRUE
A116: AwardsType | B116: =IF(AwardsValid,SUM(C116:G116),6) -> 2 | C116: =IF(MatchType="QuadKids Start", 1, 0) -> 0 | D116: =IF(MatchType="QuadKids Primary",2,0) -> 2 | E116: =IF(OR(MatchType="QuadKids Secondary",MatchType="QuadKids Club"),3,0) -> 0 | F116: =IF(MatchType="QuadKids Pre-Start", 4, 0) -> 0 | G116: =IF(SUM(C116:F116)=0,6,0) -> 0

Sheet Declarations
A1: No | B1: Name | C1: Team / School | D1: Gender | E1: Date of Birth | F1: Age Group | G1: Disability Group | I1: =COUNTA($A$2:$A$1001) -> 36 | J1: No of Athletes | L1: =COUNTIF(G2:G1001,">0") -> 0 | M1: Disabled Athletes
A2: 3 | B2: Jess Bailey | C2: Cheltenham and County Harriers | D2: F | E2: 2014-04-02 | F2: QuadKids Primary | G2: 0
A3: 5 | B3: Poppy Burtwell | C3: Cheltenham and County Harriers | D3: F | E3: 2013-09-02 | F3: QuadKids Primary | G3: 0
A4: 6 | B4: Albie Jack Bussey | C4: Cheltenham and County Harriers | D4: M | E4: 2014-07-10 | F4: QuadKids Primary | G4: 0
A5: 11 | B5: Molly Elizabeth Creek | C5: Cheltenham and County Harriers | D5: F | E5: 2013-12-19 | F5: QuadKids Primary | G5: 0
A6: 13 | B6: Imogen Edwards | C6: Yate & District AC | D6: F | E6: 2013-11-06 | F6: QuadKids Primary | G6: 0
A7: 15 | B7: Ezra Frick | C7: Yate & District AC | D7: M | E7: 2015-02-09 | F7: QuadKids Primary | G7: 0
A8: 16 | B8: Emilia Game | C8: Cheltenham and County Harriers | D8: F | E8: 2014-11-15 | F8: QuadKids Primary | G8: 0
A9: 19 | B9: Charlotte Harvey | C9: Cheltenham and County Harriers | D9: F | E9: 2014-10-22 | F9: QuadKids Primary | G9: 0
A10: 21 | B10: Dylan Jacob Hockin | C10: Cheltenham and County Harriers | D10: M | E10: 2014-03-22 | F10: QuadKids Primary | G10: 0
A11: 24 | B11: Hermione Howard | C11: Cheltenham and County Harriers | D11: F | E11: 2015-03-28 | F11: QuadKids Primary | G11: 0
A12: 26 | B12: Evalyn Humphries | C12: Yate & District AC | D12: F | E12: 2015-01-13 | F12: QuadKids Primary | G12: 0
A13: 28 | B13: William Peter Stuart Johnson | C13: Cheltenham and County Harriers | D13: M | E13: 2013-10-05 | F13: QuadKids Primary | G13: 0
A14: 29 | B14: Ben Jones | C14: Gloucester AC | D14: M | E14: 2013-09-04 | F14: QuadKids Primary | G14: 0
A15: 30 | B15: Olivia Andrea Lilly Jones | C15: Stroud & District AC | D15: F | E15: 2013-09-27 | F15: QuadKids Primary | G15: 0
A16: 31 | B16: Rhys Callen Jones | C16: Cheltenham and County Harriers | D16: M | E16: 2014-12-10 | F16: QuadKids Primary | G16: 0
A17: 33 | B17: Arthur Lawson | C17: Cheltenham and County Harriers | D17: M | E17: 2014-11-28 | F17: QuadKids Primary | G17: 0
A18: 35 | B18: Edward Lewis | D18: F | E18: 2015-03-14 | F18: QuadKids Primary | G18: 0
A19: 37 | B19: Poppy Limb | C19: Cheltenham and County Harriers | D19: F | E19: 2014-08-29 | F19: QuadKids Primary | G19: 0
A20: 41 | B20: Reuben Mann | C20: Cheltenham and County Harriers | D20: M | E20: 2013-12-05 | F20: QuadKids Primary | G20: 0
A21: 42 | B21: Eliza Verity Mason | C21: Cheltenham and County Harriers | D21: F | E21: 2014-02-18 | F21: QuadKids Primary | G21: 0
A22: 47 | B22: Max Papuca | C22: Yate & District AC | D22: M | E22: 2013-09-04 | F22: QuadKids Primary | G22: 0
A23: 49 | B23: Lucy Reeves | C23: Yate & District AC | D23: F | E23: 2013-10-09 | F23: QuadKids Primary | G23: 0
A24: 51 | B24: Albert George Rendell | C24: Stroud & District AC | D24: M | E24: 2015-05-03 | F24: QuadKids Primary | G24: 0
A25: 53 | B25: Amelia Robinson | C25: Stroud & District AC | D25: F | E25: 2014-11-14 | F25: QuadKids Primary | G25: 0
A26: 54 | B26: Laurence Andrew Rowett | C26: Cheltenham and County Harriers | D26: M | E26: 2014-10-16 | F26: QuadKids Primary | G26: 0
A27: 55 | B27: Alfie Edward Seymour | C27: Stroud & District AC | D27: M | E27: 2013-09-24 | F27: QuadKids Primary | G27: 0
A28: 57 | B28: Henry Ronald Simpson | D28: M | E28: 2013-12-01 | F28: QuadKids Primary | G28: 0
A29: 59 | B29: Natalee May Souch | C29: Yate & District AC | D29: F | E29: 2014-01-18 | F29: QuadKids Primary | G29: 0
A30: 60 | B30: Lola Southernwood | D30: F | E30: 2015-02-21 | F30: QuadKids Primary | G30: 0
A31: 63 | B31: Allegra Flora Spicer | C31: Cheltenham and County Harriers | D31: F | E31: 2013-10-17 | F31: QuadKids Primary | G31: 0
A32: 68 | B32: Annabelle Weldon | C32: Cheltenham and County Harriers | D32: F | E32: 2014-05-30 | F32: QuadKids Primary | G32: 0
A33: 72 | B33: Tayla Florence Williams | C33: Carmarthen & District Harriers | D33: F | E33: 2014-03-14 | F33: QuadKids Primary | G33: 0
A34: 73 | B34: Bethan Frances Wilson | C34: Cheltenham and County Harriers | D34: F | E34: 2015-01-02 | F34: QuadKids Primary | G34: 0
A35: 74 | B35: Isla Wright | C35: Cirencester AC | D35: F | E35: 2014-02-15 | F35: QuadKids Primary | G35: 0
A36: 76 | B36: Joshua Young | C36: Cheltenham and County Harriers | D36: M | E36: 2014-09-21 | F36: QuadKids Primary | G36: 0
A37: 77 | B37: Piero Zanca | C37: Cheltenham and County Harriers | D37: M | E37: 2014-11-30 | F37: QuadKids Primary | G37: 0

Sheet Athletes
C1: Event: | D1: =IF(ISBLANK(+Configuration!C13),"QuadKids ",Configuration!C13) -> Brewer Memorial Games
C3: Number | D3: Athlete Name | E3: Team | F3: =+Setup!B30 -> 75m | H3: =+Setup!C30 -> 600m | J3: =+Setup!D30 -> SLJ | L3: =+Setup!E30 -> Howler | N3: Relay | O3: POINTS | R3: Individual Rankings | V3: UKA Awards | Z3: BOYS | AD3: GIRLS | AI3: Non-normalised points
F4: Time | G4: Points | H4: Time | I4: Points | J4: Distance | K4: Points | L4: Distance | M4: Points | O4: Athlete | P4: Team | R4: Boys | S4: Girls | T4: Overall | V4: Quadrathlon | X4: Gender | Z4: Points | AA4: Rank | AB4: T Points | AD4: Points | AE4: Rank | AF4: T Points | AI4: Boys | AJ4: Girls
B5: =IF(OR(ISNA(MATCH(C5&"",AthleteNumbers,0)),ISBLANK(C5)),0,MATCH(C5&"",AthleteNumbers,0)) -> 1 | C5: 3 | D5: =IF($B5>0,INDEX(DB,$B5,8),"") -> Jess Bailey | E5: =IF($B5>0,INDEX(DB,$B5,3),"") -> Cheltenham and County Harriers | F5: =IF($B5>0,INDEX(DB,$B5,13),0) -> 12.3 | G5: =IF($B5>0,INDEX(DB,$B5,17),0) -> 47 | H5: =IF($B5>0,INDEX(DB,$B5,15),0) -> 2.06 | I5: =IF($B5>0,INDEX(DB,$B5,19),0) -> 64 | J5: =IF($B5>0,INDEX(DB,$B5,14),0) -> 1.69 | K5: =IF($B5>0,INDEX(DB,$B5,18),0) -> 43 | L5: =IF($B5>0,INDEX(DB,$B5,16),0) -> 19.11 | M5: =IF($B5>0,INDEX(DB,$B5,20),0) -> 38 | N5: =INDEX(RelayPoints,A20) -> 0 | O5: =+G5+I5+K5+M5 -> 192 | P5: =+AC20+AG20+N5 -> 1558 | Q5: =IF(AB5+AF5>0,"*","") -> * | R5: =IF($AI5>0,RANK($AI5,BoysPoints),0) -> 0 | S5: =IF($AJ5>0,RANK($AJ5,GirlsPoints),0) -> 2 | T5: =IF($O5>0,RANK(O5,AthletePoints),0) -> 8 | V5: =IF(O5>=40,IF(X5="M",VLOOKUP(O5,UKABoysAwards,2),IF(X5="F",VLOOKUP(O5,UKAGirlsAwards,2),"")),"") -> Gold | X5: =INDEX(DB,$B5,4) -> F | Z5: =IF($X5="M",$O5+(ROW()/10000),0) -> 0 | AA5: =IF($Z5>=1,RANK($Z5,$Z5:$Z20),0) -> 0 | AB5: =IF(AA5<=MaxS,INT(Z5),0) -> 0 | AD5: =IF($X5="F",$O5+(ROW()/10000),0) -> 192.0005 | AE5: =IF($AD5>=1,RANK($AD5,$AD5:$AD20),0) -> 2 | AF5: =IF(AE5<=MaxS,INT(AD5),0) -> 192 | AI5: =IF($X5="M",$O5,0) -> 0 | AJ5: =IF($X5="F",$O5,0) -> 192
B6: 2 | C6: 5 | D6: Poppy Burtwell | E6: Cheltenham and County Harriers | F6: 14 | G6: 30 | H6: 2.43 | I6: 27 | J6: 1.44 | K6: 31 | L6: 11.26 | M6: 22 | O6: =+G6+I6+K6+M6 -> 110 | Q6: =IF(AB6+AF6>0,"*","") ->  | R6: 0 | S6: 14 | T6: 27 | V6: Step 6 | X6: F | Z6: 0 | AA6: =IF($Z6>=1,RANK($Z6,$Z5:$Z20),0) -> 0 | AB6: 0 | AD6: 110.0006 | AE6: =IF($AD6>=1,RANK($AD6,$AD5:$AD20),0) -> 6 | AF6: 0 | AI6: =IF($X6="M",$O6,0) -> 0 | AJ6: =IF($X6="F",$O6,0) -> 110
B7: 3 | C7: 6 | D7: Albie Jack Bussey | E7: Cheltenham and County Harriers | F7: 12.2 | G7: 48 | H7: 2.07 | I7: 63 | J7: 1.72 | K7: 45 | L7: 20.6 | M7: 41 | O7: 197 | Q7: * | R7: 6 | S7: 0 | T7: 6 | V7: Step 10 | X7: M | Z7: 197.0007 | AA7: =IF($Z7>=1,RANK($Z7,$Z5:$Z20),0) -> 3 | AB7: 197 | AD7: 0 | AE7: =IF($AD7>=1,RANK($AD7,$AD5:$AD20),0) -> 0 | AF7: 0 | AI7: 197 | AJ7: 0
B8: 4 | C8: 11 | D8: Molly Elizabeth Creek | E8: Cheltenham and County Harriers | F8: 0 | G8: 0 | H8: 0 | I8: 0 | J8: 0 | K8: 0 | L8: 0 | M8: 0 | O8: 0 | R8: 0 | S8: 0 | T8: 0 | X8: F | Z8: 0 | AA8: =IF($Z8>=1,RANK($Z8,$Z5:$Z20),0) -> 0 | AB8: 0 | AD8: 0.0008 | AE8: =IF($AD8>=1,RANK($AD8,$AD5:$AD20),0) -> 0 | AF8: 0 | AI8: 0 | AJ8: 0
B9: 5 | C9: 13 | D9: Imogen Edwards | E9: Yate & District AC | F9: 12.7 | G9: 43 | H9: 2.09 | I9: 61 | J9: 1.56 | K9: 37 | L9: 14.29 | M9: 28 | O9: 169 | Q9: * | R9: 0 | S9: 7 | T9: 16 | V9: Bronze | X9: F | Z9: 0 | AA9: =IF($Z9>=1,RANK($Z9,$Z5:$Z20),0) -> 0 | AB9: 0 | AD9: 169.0009 | AE9: =IF($AD9>=1,RANK($AD9,$AD5:$AD20),0) -> 4 | AF9: 169 | AI9: 0 | AJ9: 169
B10: 6 | C10: 15 | D10: Ezra Frick | E10: Yate & District AC | F10: 0 | G10: 0 | H10: 0 | I10: 0 | J10: 0 | K10: 0 | L10: 0 | M10: 0 | O10: 0 | R10: 0 | S10: 0 | T10: 0 | X10: M | Z10: 0.001 | AA10: =IF($Z10>=1,RANK($Z10,$Z5:$Z20),0) -> 0 | AB10: 0 | AD10: 0 | AE10: =IF($AD10>=1,RANK($AD10,$AD5:$AD20),0) -> 0 | AF10: 0 | AI10: 0 | AJ10: 0
B11: 7 | C11: 16 | D11: Emilia Game | E11: Cheltenham and County Harriers | F11: 14.5 | G11: 25 | H11: 2.27 | I11: 43 | J11: 1.25 | K11: 21 | L11: 8.02 | M11: 16 | O11: 105 | R11: 0 | S11: 15 | T11: 28 | V11: Step 5 | X11: F | Z11: 0 | AA11: =IF($Z11>=1,RANK($Z11,$Z5:$Z20),0) -> 0 | AB11: 0 | AD11: 105.0011 | AE11: =IF($AD11>=1,RANK($AD11,$AD5:$AD20),0) -> 7 | AF11: 0 | AI11: 0 | AJ11: 105
B12: 8 | C12: 19 | D12: Charlotte Harvey | E12: Cheltenham and County Harriers | F12: 14.5 | G12: 25 | H12: 2.32 | I12: 38 | J12: 1.09 | K12: 13 | L12: 9.23 | M12: 18 | O12: 94 | R12: 0 | S12: 16 | T12: 29 | V12: Step 4 | X12: F | Z12: 0 | AA12: =IF($Z12>=1,RANK($Z12,$Z5:$Z20),0) -> 0 | AB12: 0 | AD12: 94.0012 | AE12: =IF($AD12>=1,RANK($AD12,$AD5:$AD20),0) -> 8 | AF12: 0 | AI12: 0 | AJ12: 94
B13: 9 | C13: 21 | D13: Dylan Jacob Hockin | E13: Cheltenham and County Harriers | F13: 11.4 | G13: 56 | H13: 2.22 | I13: 48 | J13: 1.67 | K13: 42 | L13: 22.31 | M13: 44 | O13: 190 | Q13: * | R13: 7 | S13: 0 | T13: 9 | V13: Step 10 | X13: M | Z13: 190.0013 | AA13: =IF($Z13>=1,RANK($Z13,$Z5:$Z20),0) -> 4 | AB13: 190 | AD13: 0 | AE13: =IF($AD13>=1,RANK($AD13,$AD5:$AD20),0) -> 0 | AF13: 0 | AI13: 190 | AJ13: 0
B14: 10 | C14: 24 | D14: Hermione Howard | E14: Cheltenham and County Harriers | F14: 12.2 | G14: 48 | H14: 2.3 | I14: 40 | J14: 1.44 | K14: 31 | L14: 11.24 | M14: 22 | O14: 141 | R14: 0 | S14: 10 | T14: 22 | V14: Step 8 | X14: F | Z14: 0 | AA14: =IF($Z14>=1,RANK($Z14,$Z5:$Z20),0) -> 0 | AB14: 0 | AD14: 141.0014 | AE14: =IF($AD14>=1,RANK($AD14,$AD5:$AD20),0) -> 5 | AF14: 0 | AI14: 0 | AJ14: 141
B15: 11 | C15: 26 | D15: Evalyn Humphries | E15: Yate & District AC | F15: 12.1 | G15: 49 | H15: 2.13 | I15: 57 | J15: 1.79 | K15: 48 | L15: 20.26 | M15: 40 | O15: 194 | Q15: * | R15: 0 | S15: 1 | T15: 7 | V15: Gold | X15: F | Z15: 0 | AA15: =IF($Z15>=1,RANK($Z15,$Z5:$Z20),0) -> 0 | AB15: 0 | AD15: 194.0015 | AE15: =IF($AD15>=1,RANK($AD15,$AD5:$AD20),0) -> 1 | AF15: 194 | AI15: 0 | AJ15: 194
B16: 12 | C16: 28 | D16: William Peter Stuart Johnson | E16: Cheltenham and County Harriers | F16: 11.8 | G16: 52 | H16: 2.04 | I16: 66 | J16: 1.81 | K16: 49 | L16: 27.07 | M16: 54 | O16: 221 | Q16: * | R16: 2 | S16: 0 | T16: 2 | V16: Silver | X16: M | Z16: 221.0016 | AA16: =IF($Z16>=1,RANK($Z16,$Z5:$Z20),0) -> 1 | AB16: 221 | AD16: 0 | AE16: =IF($AD16>=1,RANK($AD16,$AD5:$AD20),0) -> 0 | AF16: 0 | AI16: 221 | AJ16: 0
B17: 13 | C17: 29 | D17: Ben Jones | E17: Gloucester AC | F17: 11.7 | G17: 53 | H17: 1.56 | I17: 74 | J17: 1.65 | K17: 41 | L17: 25.02 | M17: 50 | O17: 218 | Q17: * | R17: 3 | S17: 0 | T17: 3 | V17: Silver | X17: M | Z17: 218.0017 | AA17: =IF($Z17>=1,RANK($Z17,$Z5:$Z20),0) -> 2 | AB17: 218 | AD17: 0 | AE17: =IF($AD17>=1,RANK($AD17,$AD5:$AD20),0) -> 0 | AF17: 0 | AI17: 218 | AJ17: 0
B18: =IF(OR(ISNA(MATCH(C18&"",AthleteNumbers,0)),ISBLANK(C18)),0,MATCH(C18&"",AthleteNumbers,0)) -> 14 | C18: 30 | D18: Olivia Andrea Lilly Jones | E18: Stroud & District AC | F18: 12.2 | G18: 48 | H18: 2.14 | I18: 56 | J18: 1.6 | K18: 39 | L18: 17.39 | M18: 34 | O18: =+G18+I18+K18+M18 -> 177 | Q18: =IF(AB18+AF18>0,"*","") -> * | R18: 0 | S18: 5 | T18: =IF($O18>0,RANK(O18,AthletePoints),0) -> 13 | V18: =IF(O18>=40,IF(X18="M",VLOOKUP(O18,UKABoysAwards,2),IF(X18="F",VLOOKUP(O18,UKAGirlsAwards,2),"")),"") -> Bronze | X18: F | Z18: 0 | AA18: =IF($Z18>=1,RANK($Z18,$Z5:$Z20),0) -> 0 | AB18: =IF(AA18<=MaxS,INT(Z18),0) -> 0 | AD18: 177.0018 | AE18: =IF($AD18>=1,RANK($AD18,$AD5:$AD20),0) -> 3 | AF18: =IF(AE18<=MaxS,INT(AD18),0) -> 177 | AI18: 0 | AJ18: 177
B19: =IF(OR(ISNA(MATCH(C19&"",AthleteNumbers,0)),ISBLANK(C19)),0,MATCH(C19&"",AthleteNumbers,0)) -> 15 | C19: 31 | D19: Rhys Callen Jones | E19: Cheltenham and County Harriers | F19: 12.6 | G19: 44 | H19: 2.25 | I19: 45 | J19: 1.49 | K19: 33 | L19: 18.75 | M19: 37 | O19: =+G19+I19+K19+M19 -> 159 | Q19: =IF(AB19+AF19>0,"*","") ->  | R19: 10 | S19: 0 | T19: =IF($O19>0,RANK(O19,AthletePoints),0) -> 17 | V19: =IF(O19>=40,IF(X19="M",VLOOKUP(O19,UKABoysAwards,2),IF(X19="F",VLOOKUP(O19,UKAGirlsAwards,2),"")),"") -> Step 7 | X19: M | Z19: 159.0019 | AA19: =IF($Z19>=1,RANK($Z19,$Z5:$Z20),0) -> 6 | AB19: =IF(AA19<=MaxS,INT(Z19),0) -> 0 | AD19: 0 | AE19: =IF($AD19>=1,RANK($AD19,$AD5:$AD20),0) -> 0 | AF19: =IF(AE19<=MaxS,INT(AD19),0) -> 0 | AI19: 159 | AJ19: 0
B20: 16 | C20: 33 | D20: Arthur Lawson | E20: Cheltenham and County Harriers | F20: 12.9 | G20: 41 | H20: 2.22 | I20: 48 | J20: 1.52 | K20: 35 | L20: 27.05 | M20: 54 | O20: 178 | R20: 8 | S20: 0 | T20: 12 | V20: Step 9 | X20: M | Z20: 178.002 | AA20: =IF($Z20>=1,RANK($Z20,$Z5:$Z20),0) -> 5 | AB20: 0 | AC20: =SUM(AB5:AB20) -> 826 | AD20: 0 | AE20: =IF($AD20>=1,RANK($AD20,$AD5:$AD20),0) -> 0 | AF20: 0 | AG20: =SUM(AF5:AF20) -> 732 | AI20: 178 | AJ20: 0
B21: 17 | C21: 35 | D21: Edward Lewis | E21: ... | F21: 13.9 | G21: 31 | H21: 2.14 | I21: 56 | J21: 1.37 | K21: 27 | L21: 17.63 | M21: 35 | N21: =INDEX(RelayPoints,A36) -> 0 | O21: =+G21+I21+K21+M21 -> 149 | P21: =+AC36+AG36+N21 -> 1516 | Q21: =IF(AB21+AF21>0,"*","") ->  | R21: 0 | S21: 8 | T21: 19 | V21: Step 9 | X21: F | Z21: 0 | AA21: =IF($Z21>=1,RANK($Z21,$Z21:$Z36),0) -> 0 | AB21: =IF(AA21<=MaxS,INT(Z21),0) -> 0 | AD21: 149.0021 | AE21: =IF($AD21>=1,RANK($AD21,$AD21:$AD36),0) -> 5 | AF21: =IF(AE21<=MaxS,INT(AD21),0) -> 0 | AI21: 0 | AJ21: 149
B22: 18 | C22: 37 | D22: Poppy Limb | E22: Cheltenham and County Harriers | F22: 13 | G22: 40 | H22: 0 | I22: 0 | J22: 0 | K22: 0 | L22: 19.08 | M22: 38 | O22: =+G22+I22+K22+M22 -> 78 | Q22: =IF(AB22+AF22>0,"*","") ->  | R22: 0 | S22: 17 | T22: 30 | V22: Step 3 | X22: F | Z22: 0 | AA22: =IF($Z22>=1,RANK($Z22,$Z21:$Z36),0) -> 0 | AB22: 0 | AD22: 78.0022 | AE22: =IF($AD22>=1,RANK($AD22,$AD21:$AD36),0) -> 8 | AF22: 0 | AI22: 0 | AJ22: 78
B23: 19 | C23: 41 | D23: Reuben Mann | E23: Cheltenham and County Harriers | F23: 11.5 | G23: 55 | H23: 2.08 | I23: 62 | J23: 1.9 | K23: 54 | L23: 22.15 | M23: 44 | O23: 215 | Q23: * | R23: 4 | S23: 0 | T23: 4 | V23: Silver | X23: M | Z23: 215.0023 | AA23: =IF($Z23>=1,RANK($Z23,$Z21:$Z36),0) -> 2 | AB23: 215 | AD23: 0 | AE23: =IF($AD23>=1,RANK($AD23,$AD21:$AD36),0) -> 0 | AF23: 0 | AI23: 215 | AJ23: 0
B24: 20 | C24: 42 | D24: Eliza Verity Mason | E24: Cheltenham and County Harriers | F24: 0 | G24: 0 | H24: 0 | I24: 0 | J24: 0 | K24: 0 | L24: 16.82 | M24: 33 | O24: 33 | R24: 0 | S24: 20 | T24: 34 | X24: F | Z24: 0 | AA24: =IF($Z24>=1,RANK($Z24,$Z21:$Z36),0) -> 0 | AB24: 0 | AD24: 33.0024 | AE24: =IF($AD24>=1,RANK($AD24,$AD21:$AD36),0) -> 10 | AF24: 0 | AI24: 0 | AJ24: 33
B25: 21 | C25: 47 | D25: Max Papuca | E25: Yate & District AC | F25: 11.4 | G25: 56 | H25: 2.04 | I25: 66 | J25: 1.94 | K25: 56 | L25: 34.49 | M25: 68 | O25: 246 | Q25: * | R25: 1 | S25: 0 | T25: 1 | V25: Gold | X25: M | Z25: 246.0025 | AA25: =IF($Z25>=1,RANK($Z25,$Z21:$Z36),0) -> 1 | AB25: 246 | AD25: 0 | AE25: =IF($AD25>=1,RANK($AD25,$AD21:$AD36),0) -> 0 | AF25: 0 | AI25: 246 | AJ25: 0
B26: 22 | C26: 49 | D26: Lucy Reeves | E26: Yate & District AC | F26: 12.8 | G26: 42 | H26: 2.11 | I26: 59 | J26: 1.68 | K26: 43 | L26: 22.06 | M26: 44 | O26: 188 | Q26: * | R26: 0 | S26: 3 | T26: 10 | V26: Silver | X26: F | Z26: 0 | AA26: =IF($Z26>=1,RANK($Z26,$Z21:$Z36),0) -> 0 | AB26: 0 | AD26: 188.0026 | AE26: =IF($AD26>=1,RANK($AD26,$AD21:$AD36),0) -> 1 | AF26: 188 | AI26: 0 | AJ26: 188
B27: 23 | C27: 51 | D27: Albert George Rendell | E27: Stroud & District AC | F27: 0 | G27: 0 | H27: 2.12 | I27: 58 | J27: 0 | K27: 0 | L27: 0 | M27: 0 | O27: 58 | R27: 14 | S27: 0 | T27: 31 | V27: Step 1 | X27: M | Z27: 58.0027 | AA27: =IF($Z27>=1,RANK($Z27,$Z21:$Z36),0) -> 6 | AB27: 0 | AD27: 0 | AE27: =IF($AD27>=1,RANK($AD27,$AD21:$AD36),0) -> 0 | AF27: 0 | AI27: 58 | AJ27: 0
B28: 24 | C28: 53 | D28: Amelia Robinson | E28: Stroud & District AC | F28: 14.4 | G28: 26 | H28: 2.19 | I28: 51 | J28: 1.13 | K28: 15 | L28: 13.9 | M28: 27 | O28: 119 | R28: 0 | S28: 12 | T28: 25 | V28: Step 6 | X28: F | Z28: 0 | AA28: =IF($Z28>=1,RANK($Z28,$Z21:$Z36),0) -> 0 | AB28: 0 | AD28: 119.0028 | AE28: =IF($AD28>=1,RANK($AD28,$AD21:$AD36),0) -> 7 | AF28: 0 | AI28: 0 | AJ28: 119
B29: =IF(OR(ISNA(MATCH(C29&"",AthleteNumbers,0)),ISBLANK(C29)),0,MATCH(C29&"",AthleteNumbers,0)) -> 25 | C29: 54 | D29: Laurence Andrew Rowett | E29: Cheltenham and County Harriers | F29: 14.1 | G29: 29 | H29: 2.19 | I29: 51 | J29: 1.46 | K29: 32 | L29: 22.73 | M29: 45 | O29: =+G29+I29+K29+M29 -> 157 | Q29: =IF(AB29+AF29>0,"*","") -> * | R29: 11 | S29: 0 | T29: =IF($O29>0,RANK(O29,AthletePoints),0) -> 18 | V29: =IF(O29>=40,IF(X29="M",VLOOKUP(O29,UKABoysAwards,2),IF(X29="F",VLOOKUP(O29,UKAGirlsAwards,2),"")),"") -> Step 7 | X29: M | Z29: 157.0029 | AA29: =IF($Z29>=1,RANK($Z29,$Z21:$Z36),0) -> 4 | AB29: =IF(AA29<=MaxS,INT(Z29),0) -> 157 | AD29: 0 | AE29: =IF($AD29>=1,RANK($AD29,$AD21:$AD36),0) -> 0 | AF29: =IF(AE29<=MaxS,INT(AD29),0) -> 0 | AI29: 157 | AJ29: 0
B30: =IF(OR(ISNA(MATCH(C30&"",AthleteNumbers,0)),ISBLANK(C30)),0,MATCH(C30&"",AthleteNumbers,0)) -> 26 | C30: 55 | D30: Alfie Edward Seymour | E30: Stroud & District AC | F30: 13.6 | G30: 34 | H30: 2.34 | I30: 36 | J30: 1.41 | K30: 29 | L30: 17.4 | M30: 34 | O30: =+G30+I30+K30+M30 -> 133 | Q30: =IF(AB30+AF30>0,"*","") ->  | R30: 13 | S30: 0 | T30: =IF($O30>0,RANK(O30,AthletePoints),0) -> 23 | V30: =IF(O30>=40,IF(X30="M",VLOOKUP(O30,UKABoysAwards,2),IF(X30="F",VLOOKUP(O30,UKAGirlsAwards,2),"")),"") -> Step 5 | X30: M | Z30: 133.003 | AA30: =IF($Z30>=1,RANK($Z30,$Z21:$Z36),0) -> 5 | AB30: =IF(AA30<=MaxS,INT(Z30),0) -> 0 | AD30: 0 | AE30: =IF($AD30>=1,RANK($AD30,$AD21:$AD36),0) -> 0 | AF30: =IF(AE30<=MaxS,INT(AD30),0) -> 0 | AI30: 133 | AJ30: 0
B31: 27 | C31: 57 | D31: Henry Ronald Simpson | E31: ... | F31: 11.8 | G31: 52 | H31: 2.07 | I31: 63 | J31: 1.77 | K31: 47 | L31: 22.89 | M31: 45 | O31: 207 | Q31: * | R31: 5 | S31: 0 | T31: 5 | V31: Bronze | X31: M | Z31: 207.0031 | AA31: =IF($Z31>=1,RANK($Z31,$Z21:$Z36),0) -> 3 | AB31: 207 | AD31: 0 | AE31: =IF($AD31>=1,RANK($AD31,$AD21:$AD36),0) -> 0 | AF31: 0 | AI31: 207 | AJ31: 0
B32: 28 | C32: 59 | D32: Natalee May Souch | E32: Yate & District AC | F32: 12.5 | G32: 45 | H32: 2.19 | I32: 51 | J32: 1.78 | K32: 48 | L32: 20.08 | M32: 40 | O32: 184 | Q32: * | R32: 0 | S32: 4 | T32: 11 | V32: Silver | X32: F | Z32: 0 | AA32: =IF($Z32>=1,RANK($Z32,$Z21:$Z36),0) -> 0 | AB32: 0 | AD32: 184.0032 | AE32: =IF($AD32>=1,RANK($AD32,$AD21:$AD36),0) -> 2 | AF32: 184 | AI32: 0 | AJ32: 184
B33: 29 | C33: 60 | D33: Lola Southernwood | E33: ... | F33: 13.7 | G33: 33 | H33: 2.29 | I33: 41 | J33: 1.72 | K33: 45 | L33: 15.39 | M33: 30 | O33: 149 | Q33: * | R33: 0 | S33: 8 | T33: 19 | V33: Step 9 | X33: F | Z33: 0 | AA33: =IF($Z33>=1,RANK($Z33,$Z21:$Z36),0) -> 0 | AB33: 0 | AD33: 149.0033 | AE33: =IF($AD33>=1,RANK($AD33,$AD21:$AD36),0) -> 4 | AF33: 149 | AI33: 0 | AJ33: 149
B34: 30 | C34: 63 | D34: Allegra Flora Spicer | E34: Cheltenham and County Harriers | F34: 13.4 | G34: 36 | H34: 0 | I34: 0 | J34: 0 | K34: 0 | L34: 0 | M34: 0 | O34: 36 | R34: 0 | S34: 19 | T34: 33 | X34: F | Z34: 0 | AA34: =IF($Z34>=1,RANK($Z34,$Z21:$Z36),0) -> 0 | AB34: 0 | AD34: 36.0034 | AE34: =IF($AD34>=1,RANK($AD34,$AD21:$AD36),0) -> 9 | AF34: 0 | AI34: 0 | AJ34: 36
B35: 31 | C35: 68 | D35: Annabelle Weldon | E35: Cheltenham and County Harriers | F35: 12.4 | G35: 46 | H35: 2.36 | I35: 34 | J35: 1.77 | K35: 47 | L35: 21.7 | M35: 43 | O35: 170 | Q35: * | R35: 0 | S35: 6 | T35: 14 | V35: Bronze | X35: F | Z35: 0 | AA35: =IF($Z35>=1,RANK($Z35,$Z21:$Z36),0) -> 0 | AB35: 0 | AD35: 170.0035 | AE35: =IF($AD35>=1,RANK($AD35,$AD21:$AD36),0) -> 3 | AF35: 170 | AI35: 0 | AJ35: 170
B36: 32 | C36: 72 | D36: Tayla Florence Williams | E36: Carmarthen & District Harriers | F36: 14 | G36: 30 | H36: 2.3 | I36: 40 | J36: 1.4 | K36: 29 | L36: 13.09 | M36: 26 | O36: 125 | R36: 0 | S36: 11 | T36: 24 | V36: Step 7 | X36: F | Z36: 0 | AA36: =IF($Z36>=1,RANK($Z36,$Z21:$Z36),0) -> 0 | AB36: 0 | AC36: =SUM(AB21:AB36) -> 825 | AD36: 125.0036 | AE36: =IF($AD36>=1,RANK($AD36,$AD21:$AD36),0) -> 6 | AF36: 0 | AG36: =SUM(AF21:AF36) -> 691 | AI36: 0 | AJ36: 125
B37: 33 | C37: 73 | D37: Bethan Frances Wilson | E37: Cheltenham and County Harriers | F37: 13.6 | G37: 34 | H37: 2.29 | I37: 41 | J37: 1.39 | K37: 28 | L37: 6.38 | M37: 12 | N37: =INDEX(RelayPoints,A52) -> 0 | O37: =+G37+I37+K37+M37 -> 115 | P37: =+AC52+AG52+N37 -> 474 | Q37: =IF(AB37+AF37>0,"*","") -> * | R37: 0 | S37: 13 | T37: 26 | V37: Step 6 | X37: F | Z37: 0 | AA37: =IF($Z37>=1,RANK($Z37,$Z37:$Z52),0) -> 0 | AB37: =IF(AA37<=MaxS,INT(Z37),0) -> 0 | AD37: 115.0037 | AE37: =IF($AD37>=1,RANK($AD37,$AD37:$AD52),0) -> 1 | AF37: =IF(AE37<=MaxS,INT(AD37),0) -> 115 | AI37: 0 | AJ37: 115
B38: 34 | C38: 74 | D38: Isla Wright | E38: Cirencester AC | F38: 12.5 | G38: 45 | H38: 0 | I38: 0 | J38: 0 | K38: 0 | L38: 0 | M38: 0 | O38: =+G38+I38+K38+M38 -> 45 | Q38: =IF(AB38+AF38>0,"*","") -> * | R38: 0 | S38: 18 | T38: 32 | V38: Step 1 | X38: F | Z38: 0 | AA38: =IF($Z38>=1,RANK($Z38,$Z37:$Z52),0) -> 0 | AB38: 0 | AD38: 45.0038 | AE38: =IF($AD38>=1,RANK($AD38,$AD37:$AD52),0) -> 2 | AF38: 45 | AI38: 0 | AJ38: 45
B39: 35 | C39: 76 | D39: Joshua Young | E39: Cheltenham and County Harriers | F39: 13.6 | G39: 34 | H39: 2.16 | I39: 54 | J39: 1.44 | K39: 31 | L39: 12.8 | M39: 25 | O39: 144 | Q39: * | R39: 12 | S39: 0 | T39: 21 | V39: Step 6 | X39: M | Z39: 144.0039 | AA39: =IF($Z39>=1,RANK($Z39,$Z37:$Z52),0) -> 2 | AB39: 144 | AD39: 0 | AE39: =IF($AD39>=1,RANK($AD39,$AD37:$AD52),0) -> 0 | AF39: 0 | AI39: 144 | AJ39: 0
B40: 36 | C40: 77 | D40: Piero Zanca | E40: Cheltenham and County Harriers | F40: 12.7 | G40: 43 | H40: 2.11 | I40: 59 | J40: 1.39 | K40: 28 | L40: 20.4 | M40: 40 | O40: 170 | Q40: * | R40: 9 | S40: 0 | T40: 14 | V40: Step 8 | X40: M | Z40: 170.004 | AA40: =IF($Z40>=1,RANK($Z40,$Z37:$Z52),0) -> 1 | AB40: 170 | AD40: 0 | AE40: =IF($AD40>=1,RANK($AD40,$AD37:$AD52),0) -> 0 | AF40: 0 | AI40: 170 | AJ40: 0
B41: 0 | F41: 0 | G41: 0 | H41: 0 | I41: 0 | J41: 0 | K41: 0 | L41: 0 | M41: 0 | O41: 0 | R41: 0 | S41: 0 | T41: 0 | Z41: 0 | AA41: =IF($Z41>=1,RANK($Z41,$Z37:$Z52),0) -> 0 | AB41: 0 | AD41: 0 | AE41: =IF($AD41>=1,RANK($AD41,$AD37:$AD52),0) -> 0 | AF41: 0 | AI41: 0 | AJ41: 0
B42: 0 | F42: 0 | G42: 0 | H42: 0 | I42: 0 | J42: 0 | K42: 0 | L42: 0 | M42: 0 | O42: 0 | R42: 0 | S42: 0 | T42: 0 | Z42: 0 | AA42: =IF($Z42>=1,RANK($Z42,$Z37:$Z52),0) -> 0 | AB42: 0 | AD42: 0 | AE42: =IF($AD42>=1,RANK($AD42,$AD37:$AD52),0) -> 0 | AF42: 0 | AI42: 0 | AJ42: 0
B43: 0 | F43: 0 | G43: 0 | H43: 0 | I43: 0 | J43: 0 | K43: 0 | L43: 0 | M43: 0 | O43: 0 | R43: 0 | S43: 0 | T43: 0 | Z43: 0 | AA43: =IF($Z43>=1,RANK($Z43,$Z37:$Z52),0) -> 0 | AB43: 0 | AD43: 0 | AE43: =IF($AD43>=1,RANK($AD43,$AD37:$AD52),0) -> 0 | AF43: 0 | AI43: 0 | AJ43: 0
B44: 0 | F44: 0 | G44: 0 | H44: 0 | I44: 0 | J44: 0 | K44: 0 | L44: 0 | M44: 0 | O44: 0 | R44: 0 | S44: 0 | T44: 0 | Z44: 0 | AA44: =IF($Z44>=1,RANK($Z44,$Z37:$Z52),0) -> 0 | AB44: 0 | AD44: 0 | AE44: =IF($AD44>=1,RANK($AD44,$AD37:$AD52),0) -> 0 | AF44: 0 | AI44: 0 | AJ44: 0
B45: =IF(OR(ISNA(MATCH(C45&"",AthleteNumbers,0)),ISBLANK(C45)),0,MATCH(C45&"",AthleteNumbers,0)) -> 0 | F45: 0 | G45: 0 | H45: 0 | I45: 0 | J45: 0 | K45: 0 | L45: 0 | M45: 0 | O45: =+G45+I45+K45+M45 -> 0 | Q45: =IF(AB45+AF45>0,"*","") ->  | R45: 0 | S45: 0 | T45: =IF($O45>0,RANK(O45,AthletePoints),0) -> 0 | V45: =IF(O45>=40,IF(X45="M",VLOOKUP(O45,UKABoysAwards,2),IF(X45="F",VLOOKUP(O45,UKAGirlsAwards,2),"")),"") ->  | Z45: 0 | AA45: =IF($Z45>=1,RANK($Z45,$Z37:$Z52),0) -> 0 | AB45: =IF(AA45<=MaxS,INT(Z45),0) -> 0 | AD45: 0 | AE45: =IF($AD45>=1,RANK($AD45,$AD37:$AD52),0) -> 0 | AF45: =IF(AE45<=MaxS,INT(AD45),0) -> 0 | AI45: 0 | AJ45: 0
B46: =IF(OR(ISNA(MATCH(C46&"",AthleteNumbers,0)),ISBLANK(C46)),0,MATCH(C46&"",AthleteNumbers,0)) -> 0 | F46: 0 | G46: 0 | H46: 0 | I46: 0 | J46: 0 | K46: 0 | L46: 0 | M46: 0 | O46: =+G46+I46+K46+M46 -> 0 | Q46: =IF(AB46+AF46>0,"*","") ->  | R46: 0 | S46: 0 | T46: =IF($O46>0,RANK(O46,AthletePoints),0) -> 0 | V46: =IF(O46>=40,IF(X46="M",VLOOKUP(O46,UKABoysAwards,2),IF(X46="F",VLOOKUP(O46,UKAGirlsAwards,2),"")),"") ->  | Z46: 0 | AA46: =IF($Z46>=1,RANK($Z46,$Z37:$Z52),0) -> 0 | AB46: =IF(AA46<=MaxS,INT(Z46),0) -> 0 | AD46: 0 | AE46: =IF($AD46>=1,RANK($AD46,$AD37:$AD52),0) -> 0 | AF46: =IF(AE46<=MaxS,INT(AD46),0) -> 0 | AI46: 0 | AJ46: 0
B47: 0 | F47: 0 | G47: 0 | H47: 0 | I47: 0 | J47: 0 | K47: 0 | L47: 0 | M47: 0 | O47: 0 | R47: 0 | S47: 0 | T47: 0 | Z47: 0 | AA47: =IF($Z47>=1,RANK($Z47,$Z37:$Z52),0) -> 0 | AB47: 0 | AD47: 0 | AE47: =IF($AD47>=1,RANK($AD47,$AD37:$AD52),0) -> 0 | AF47: 0 | AI47: 0 | AJ47: 0
B48: 0 | F48: 0 | G48: 0 | H48: 0 | I48: 0 | J48: 0 | K48: 0 | L48: 0 | M48: 0 | O48: 0 | R48: 0 | S48: 0 | T48: 0 | Z48: 0 | AA48: =IF($Z48>=1,RANK($Z48,$Z37:$Z52),0) -> 0 | AB48: 0 | AD48: 0 | AE48: =IF($AD48>=1,RANK($AD48,$AD37:$AD52),0) -> 0 | AF48: 0 | AI48: 0 | AJ48: 0
B49: 0 | F49: 0 | G49: 0 | H49: 0 | I49: 0 | J49: 0 | K49: 0 | L49: 0 | M49: 0 | O49: 0 | R49: 0 | S49: 0 | T49: 0 | Z49: 0 | AA49: =IF($Z49>=1,RANK($Z49,$Z37:$Z52),0) -> 0 | AB49: 0 | AD49: 0 | AE49: =IF($AD49>=1,RANK($AD49,$AD37:$AD52),0) -> 0 | AF49: 0 | AI49: 0 | AJ49: 0
B50: 0 | F50: 0 | G50: 0 | H50: 0 | I50: 0 | J50: 0 | K50: 0 | L50: 0 | M50: 0 | O50: 0 | R50: 0 | S50: 0 | T50: 0 | Z50: 0 | AA50: =IF($Z50>=1,RANK($Z50,$Z37:$Z52),0) -> 0 | AB50: 0 | AD50: 0 | AE50: =IF($AD50>=1,RANK($AD50,$AD37:$AD52),0) -> 0 | AF50: 0 | AI50: 0 | AJ50: 0
B51: 0 | F51: 0 | G51: 0 | H51: 0 | I51: 0 | J51: 0 | K51: 0 | L51: 0 | M51: 0 | O51: 0 | R51: 0 | S51: 0 | T51: 0 | Z51: 0 | AA51: =IF($Z51>=1,RANK($Z51,$Z37:$Z52),0) -> 0 | AB51: 0 | AD51: 0 | AE51: =IF($AD51>=1,RANK($AD51,$AD37:$AD52),0) -> 0 | AF51: 0 | AI51: 0 | AJ51: 0
B52: 0 | F52: 0 | G52: 0 | H52: 0 | I52: 0 | J52: 0 | K52: 0 | L52: 0 | M52: 0 | O52: 0 | R52: 0 | S52: 0 | T52: 0 | Z52: 0 | AA52: =IF($Z52>=1,RANK($Z52,$Z37:$Z52),0) -> 0 | AB52: 0 | AC52: =SUM(AB37:AB52) -> 314 | AD52: 0 | AE52: =IF($AD52>=1,RANK($AD52,$AD37:$AD52),0) -> 0 | AF52: 0 | AG52: =SUM(AF37:AF52) -> 160 | AI52: 0 | AJ52: 0
B53: 0 | F53: 0 | G53: 0 | H53: 0 | I53: 0 | J53: 0 | K53: 0 | L53: 0 | M53: 0 | N53: =INDEX(RelayPoints,A68) ->  | O53: =+G53+I53+K53+M53 -> 0 | P53: =+AC68+AG68+N53 ->  | Q53: =IF(AB53+AF53>0,"*","") ->  | R53: 0 | S53: 0 | T53: 0 | Z53: 0 | AA53: =IF($Z53>=1,RANK($Z53,$Z53:$Z68),0) -> 0 | AB53: =IF(AA53<=MaxS,INT(Z53),0) -> 0 | AD53: 0 | AE53: =IF($AD53>=1,RANK($AD53,$AD53:$AD68),0) -> 0 | AF53: =IF(AE53<=MaxS,INT(AD53),0) -> 0 | AI53: 0 | AJ53: 0
B54: 0 | F54: 0 | G54: 0 | H54: 0 | I54: 0 | J54: 0 | K54: 0 | L54: 0 | M54: 0 | O54: =+G54+I54+K54+M54 -> 0 | Q54: =IF(AB54+AF54>0,"*","") ->  | R54: 0 | S54: 0 | T54: 0 | Z54: 0 | AA54: =IF($Z54>=1,RANK($Z54,$Z53:$Z68),0) -> 0 | AB54: 0 | AD54: 0 | AE54: =IF($AD54>=1,RANK($AD54,$AD53:$AD68),0) -> 0 | AF54: 0 | AI54: 0 | AJ54: 0
B55: 0 | F55: 0 | G55: 0 | H55: 0 | I55: 0 | J55: 0 | K55: 0 | L55: 0 | M55: 0 | O55: 0 | R55: 0 | S55: 0 | T55: 0 | Z55: 0 | AA55: =IF($Z55>=1,RANK($Z55,$Z53:$Z68),0) -> 0 | AB55: 0 | AD55: 0 | AE55: =IF($AD55>=1,RANK($AD55,$AD53:$AD68),0) -> 0 | AF55: 0 | AI55: 0 | AJ55: 0
B56: 0 | F56: 0 | G56: 0 | H56: 0 | I56: 0 | J56: 0 | K56: 0 | L56: 0 | M56: 0 | O56: 0 | R56: 0 | S56: 0 | T56: 0 | Z56: 0 | AA56: =IF($Z56>=1,RANK($Z56,$Z53:$Z68),0) -> 0 | AB56: 0 | AD56: 0 | AE56: =IF($AD56>=1,RANK($AD56,$AD53:$AD68),0) -> 0 | AF56: 0 | AI56: 0 | AJ56: 0
B57: 0 | F57: 0 | G57: 0 | H57: 0 | I57: 0 | J57: 0 | K57: 0 | L57: 0 | M57: 0 | O57: 0 | R57: 0 | S57: 0 | T57: 0 | Z57: 0 | AA57: =IF($Z57>=1,RANK($Z57,$Z53:$Z68),0) -> 0 | AB57: 0 | AD57: 0 | AE57: =IF($AD57>=1,RANK($AD57,$AD53:$AD68),0) -> 0 | AF57: 0 | AI57: 0 | AJ57: 0
B58: =IF(OR(ISNA(MATCH(C58&"",AthleteNumbers,0)),ISBLANK(C58)),0,MATCH(C58&"",AthleteNumbers,0)) -> 0 | F58: 0 | G58: 0 | H58: 0 | I58: 0 | J58: 0 | K58: 0 | L58: 0 | M58: 0 | O58: =+G58+I58+K58+M58 -> 0 | Q58: =IF(AB58+AF58>0,"*","") ->  | R58: 0 | S58: 0 | T58: =IF($O58>0,RANK(O58,AthletePoints),0) -> 0 | V58: =IF(O58>=40,IF(X58="M",VLOOKUP(O58,UKABoysAwards,2),IF(X58="F",VLOOKUP(O58,UKAGirlsAwards,2),"")),"") ->  | Z58: 0 | AA58: =IF($Z58>=1,RANK($Z58,$Z53:$Z68),0) -> 0 | AB58: =IF(AA58<=MaxS,INT(Z58),0) -> 0 | AD58: 0 | AE58: =IF($AD58>=1,RANK($AD58,$AD53:$AD68),0) -> 0 | AF58: =IF(AE58<=MaxS,INT(AD58),0) -> 0 | AI58: 0 | AJ58: 0
B59: =IF(OR(ISNA(MATCH(C59&"",AthleteNumbers,0)),ISBLANK(C59)),0,MATCH(C59&"",AthleteNumbers,0)) -> 0 | F59: 0 | G59: 0 | H59: 0 | I59: 0 | J59: 0 | K59: 0 | L59: 0 | M59: 0 | O59: =+G59+I59+K59+M59 -> 0 | Q59: =IF(AB59+AF59>0,"*","") ->  | R59: 0 | S59: 0 | T59: =IF($O59>0,RANK(O59,AthletePoints),0) -> 0 | V59: =IF(O59>=40,IF(X59="M",VLOOKUP(O59,UKABoysAwards,2),IF(X59="F",VLOOKUP(O59,UKAGirlsAwards,2),"")),"") ->  | Z59: 0 | AA59: =IF($Z59>=1,RANK($Z59,$Z53:$Z68),0) -> 0 | AB59: =IF(AA59<=MaxS,INT(Z59),0) -> 0 | AD59: 0 | AE59: =IF($AD59>=1,RANK($AD59,$AD53:$AD68),0) -> 0 | AF59: =IF(AE59<=MaxS,INT(AD59),0) -> 0 | AI59: 0 | AJ59: 0
B60: 0 | F60: 0 | G60: 0 | H60: 0 | I60: 0 | J60: 0 | K60: 0 | L60: 0 | M60: 0 | O60: 0 | R60: 0 | S60: 0 | T60: 0 | Z60: 0 | AA60: =IF($Z60>=1,RANK($Z60,$Z53:$Z68),0) -> 0 | AB60: 0 | AD60: 0 | AE60: =IF($AD60>=1,RANK($AD60,$AD53:$AD68),0) -> 0 | AF60: 0 | AI60: 0 | AJ60: 0
B61: 0 | F61: 0 | G61: 0 | H61: 0 | I61: 0 | J61: 0 | K61: 0 | L61: 0 | M61: 0 | O61: 0 | R61: 0 | S61: 0 | T61: 0 | Z61: 0 | AA61: =IF($Z61>=1,RANK($Z61,$Z53:$Z68),0) -> 0 | AB61: 0 | AD61: 0 | AE61: =IF($AD61>=1,RANK($AD61,$AD53:$AD68),0) -> 0 | AF61: 0 | AI61: 0 | AJ61: 0
B62: 0 | F62: 0 | G62: 0 | H62: 0 | I62: 0 | J62: 0 | K62: 0 | L62: 0 | M62: 0 | O62: 0 | R62: 0 | S62: 0 | T62: 0 | Z62: 0 | AA62: =IF($Z62>=1,RANK($Z62,$Z53:$Z68),0) -> 0 | AB62: 0 | AD62: 0 | AE62: =IF($AD62>=1,RANK($AD62,$AD53:$AD68),0) -> 0 | AF62: 0 | AI62: 0 | AJ62: 0
B63: 0 | F63: 0 | G63: 0 | H63: 0 | I63: 0 | J63: 0 | K63: 0 | L63: 0 | M63: 0 | O63: 0 | R63: 0 | S63: 0 | T63: 0 | Z63: 0 | AA63: =IF($Z63>=1,RANK($Z63,$Z53:$Z68),0) -> 0 | AB63: 0 | AD63: 0 | AE63: =IF($AD63>=1,RANK($AD63,$AD53:$AD68),0) -> 0 | AF63: 0 | AI63: 0 | AJ63: 0
B64: 0 | F64: 0 | G64: 0 | H64: 0 | I64: 0 | J64: 0 | K64: 0 | L64: 0 | M64: 0 | O64: 0 | R64: 0 | S64: 0 | T64: 0 | Z64: 0 | AA64: =IF($Z64>=1,RANK($Z64,$Z53:$Z68),0) -> 0 | AB64: 0 | AD64: 0 | AE64: =IF($AD64>=1,RANK($AD64,$AD53:$AD68),0) -> 0 | AF64: 0 | AI64: 0 | AJ64: 0
B65: 0 | F65: 0 | G65: 0 | H65: 0 | I65: 0 | J65: 0 | K65: 0 | L65: 0 | M65: 0 | O65: 0 | R65: 0 | S65: 0 | T65: 0 | Z65: 0 | AA65: =IF($Z65>=1,RANK($Z65,$Z53:$Z68),0) -> 0 | AB65: 0 | AD65: 0 | AE65: =IF($AD65>=1,RANK($AD65,$AD53:$AD68),0) -> 0 | AF65: 0 | AI65: 0 | AJ65: 0
B66: 0 | F66: 0 | G66: 0 | H66: 0 | I66: 0 | J66: 0 | K66: 0 | L66: 0 | M66: 0 | O66: 0 | R66: 0 | S66: 0 | T66: 0 | Z66: 0 | AA66: =IF($Z66>=1,RANK($Z66,$Z53:$Z68),0) -> 0 | AB66: 0 | AD66: 0 | AE66: =IF($AD66>=1,RANK($AD66,$AD53:$AD68),0) -> 0 | AF66: 0 | AI66: 0 | AJ66: 0
B67: 0 | F67: 0 | G67: 0 | H67: 0 | I67: 0 | J67: 0 | K67: 0 | L67: 0 | M67: 0 | O67: 0 | R67: 0 | S67: 0 | T67: 0 | Z67: 0 | AA67: =IF($Z67>=1,RANK($Z67,$Z53:$Z68),0) -> 0 | AB67: 0 | AD67: 0 | AE67: =IF($AD67>=1,RANK($AD67,$AD53:$AD68),0) -> 0 | AF67: 0 | AI67: 0 | AJ67: 0
B68: 0 | F68: 0 | G68: 0 | H68: 0 | I68: 0 | J68: 0 | K68: 0 | L68: 0 | M68: 0 | O68: 0 | R68: 0 | S68: 0 | T68: 0 | Z68: 0 | AA68: =IF($Z68>=1,RANK($Z68,$Z53:$Z68),0) -> 0 | AB68: 0 | AC68: =SUM(AB53:AB68) -> 0 | AD68: 0 | AE68: =IF($AD68>=1,RANK($AD68,$AD53:$AD68),0) -> 0 | AF68: 0 | AG68: =SUM(AF53:AF68) -> 0 | AI68: 0 | AJ68: 0
B69: 0 | F69: 0 | G69: 0 | H69: 0 | I69: 0 | J69: 0 | K69: 0 | L69: 0 | M69: 0 | N69: =INDEX(RelayPoints,A84) ->  | O69: =+G69+I69+K69+M69 -> 0 | P69: =+AC84+AG84+N69 ->  | Q69: =IF(AB69+AF69>0,"*","") ->  | R69: 0 | S69: 0 | T69: 0 | Z69: 0 | AA69: =IF($Z69>=1,RANK($Z69,$Z69:$Z84),0) -> 0 | AB69: =IF(AA69<=MaxS,INT(Z69),0) -> 0 | AD69: 0 | AE69: =IF($AD69>=1,RANK($AD69,$AD69:$AD84),0) -> 0 | AF69: =IF(AE69<=MaxS,INT(AD69),0) -> 0 | AI69: 0 | AJ69: 0
B70: 0 | F70: 0 | G70: 0 | H70: 0 | I70: 0 | J70: 0 | K70: 0 | L70: 0 | M70: 0 | O70: =+G70+I70+K70+M70 -> 0 | Q70: =IF(AB70+AF70>0,"*","") ->  | R70: 0 | S70: 0 | T70: 0 | Z70: 0 | AA70: =IF($Z70>=1,RANK($Z70,$Z69:$Z84),0) -> 0 | AB70: 0 | AD70: 0 | AE70: =IF($AD70>=1,RANK($AD70,$AD69:$AD84),0) -> 0 | AF70: 0 | AI70: 0 | AJ70: 0
B71: 0 | F71: 0 | G71: 0 | H71: 0 | I71: 0 | J71: 0 | K71: 0 | L71: 0 | M71: 0 | O71: 0 | R71: 0 | S71: 0 | T71: 0 | Z71: 0 | AA71: =IF($Z71>=1,RANK($Z71,$Z69:$Z84),0) -> 0 | AB71: 0 | AD71: 0 | AE71: =IF($AD71>=1,RANK($AD71,$AD69:$AD84),0) -> 0 | AF71: 0 | AI71: 0 | AJ71: 0
B72: 0 | F72: 0 | G72: 0 | H72: 0 | I72: 0 | J72: 0 | K72: 0 | L72: 0 | M72: 0 | O72: 0 | R72: 0 | S72: 0 | T72: 0 | Z72: 0 | AA72: =IF($Z72>=1,RANK($Z72,$Z69:$Z84),0) -> 0 | AB72: 0 | AD72: 0 | AE72: =IF($AD72>=1,RANK($AD72,$AD69:$AD84),0) -> 0 | AF72: 0 | AI72: 0 | AJ72: 0
B73: 0 | F73: 0 | G73: 0 | H73: 0 | I73: 0 | J73: 0 | K73: 0 | L73: 0 | M73: 0 | O73: 0 | R73: 0 | S73: 0 | T73: 0 | Z73: 0 | AA73: =IF($Z73>=1,RANK($Z73,$Z69:$Z84),0) -> 0 | AB73: 0 | AD73: 0 | AE73: =IF($AD73>=1,RANK($AD73,$AD69:$AD84),0) -> 0 | AF73: 0 | AI73: 0 | AJ73: 0
B74: 0 | F74: 0 | G74: 0 | H74: 0 | I74: 0 | J74: 0 | K74: 0 | L74: 0 | M74: 0 | O74: 0 | R74: 0 | S74: 0 | T74: 0 | Z74: 0 | AA74: =IF($Z74>=1,RANK($Z74,$Z69:$Z84),0) -> 0 | AB74: 0 | AD74: 0 | AE74: =IF($AD74>=1,RANK($AD74,$AD69:$AD84),0) -> 0 | AF74: 0 | AI74: 0 | AJ74: 0
B75: =IF(OR(ISNA(MATCH(C75&"",AthleteNumbers,0)),ISBLANK(C75)),0,MATCH(C75&"",AthleteNumbers,0)) -> 0 | F75: 0 | G75: 0 | H75: 0 | I75: 0 | J75: 0 | K75: 0 | L75: 0 | M75: 0 | O75: =+G75+I75+K75+M75 -> 0 | Q75: =IF(AB75+AF75>0,"*","") ->  | R75: 0 | S75: 0 | T75: =IF($O75>0,RANK(O75,AthletePoints),0) -> 0 | V75: =IF(O75>=40,IF(X75="M",VLOOKUP(O75,UKABoysAwards,2),IF(X75="F",VLOOKUP(O75,UKAGirlsAwards,2),"")),"") ->  | Z75: 0 | AA75: =IF($Z75>=1,RANK($Z75,$Z69:$Z84),0) -> 0 | AB75: =IF(AA75<=MaxS,INT(Z75),0) -> 0 | AD75: 0 | AE75: =IF($AD75>=1,RANK($AD75,$AD69:$AD84),0) -> 0 | AF75: =IF(AE75<=MaxS,INT(AD75),0) -> 0 | AI75: 0 | AJ75: 0
B76: =IF(OR(ISNA(MATCH(C76&"",AthleteNumbers,0)),ISBLANK(C76)),0,MATCH(C76&"",AthleteNumbers,0)) -> 0 | F76: 0 | G76: 0 | H76: 0 | I76: 0 | J76: 0 | K76: 0 | L76: 0 | M76: 0 | O76: =+G76+I76+K76+M76 -> 0 | Q76: =IF(AB76+AF76>0,"*","") ->  | R76: 0 | S76: 0 | T76: =IF($O76>0,RANK(O76,AthletePoints),0) -> 0 | V76: =IF(O76>=40,IF(X76="M",VLOOKUP(O76,UKABoysAwards,2),IF(X76="F",VLOOKUP(O76,UKAGirlsAwards,2),"")),"") ->  | Z76: 0 | AA76: =IF($Z76>=1,RANK($Z76,$Z69:$Z84),0) -> 0 | AB76: =IF(AA76<=MaxS,INT(Z76),0) -> 0 | AD76: 0 | AE76: =IF($AD76>=1,RANK($AD76,$AD69:$AD84),0) -> 0 | AF76: =IF(AE76<=MaxS,INT(AD76),0) -> 0 | AI76: 0 | AJ76: 0
B77: 0 | F77: 0 | G77: 0 | H77: 0 | I77: 0 | J77: 0 | K77: 0 | L77: 0 | M77: 0 | O77: 0 | R77: 0 | S77: 0 | T77: 0 | Z77: 0 | AA77: =IF($Z77>=1,RANK($Z77,$Z69:$Z84),0) -> 0 | AB77: 0 | AD77: 0 | AE77: =IF($AD77>=1,RANK($AD77,$AD69:$AD84),0) -> 0 | AF77: 0 | AI77: 0 | AJ77: 0
B78: 0 | F78: 0 | G78: 0 | H78: 0 | I78: 0 | J78: 0 | K78: 0 | L78: 0 | M78: 0 | O78: 0 | R78: 0 | S78: 0 | T78: 0 | Z78: 0 | AA78: =IF($Z78>=1,RANK($Z78,$Z69:$Z84),0) -> 0 | AB78: 0 | AD78: 0 | AE78: =IF($AD78>=1,RANK($AD78,$AD69:$AD84),0) -> 0 | AF78: 0 | AI78: 0 | AJ78: 0
B79: =IF(OR(ISNA(MATCH(C79&"",AthleteNumbers,0)),ISBLANK(C79)),0,MATCH(C79&"",AthleteNumbers,0)) -> 0 | D79: =IF($B79>0,INDEX(DB,$B79,8),"") ->  | E79: =IF($B79>0,INDEX(DB,$B79,3),"") ->  | F79: =IF($B79>0,INDEX(DB,$B79,13),0) -> 0 | G79: =IF($B79>0,INDEX(DB,$B79,17),0) -> 0 | H79: =IF($B79>0,INDEX(DB,$B79,15),0) -> 0 | I79: =IF($B79>0,INDEX(DB,$B79,19),0) -> 0 | J79: =IF($B79>0,INDEX(DB,$B79,14),0) -> 0 | K79: =IF($B79>0,INDEX(DB,$B79,18),0) -> 0 | L79: =IF($B79>0,INDEX(DB,$B79,16),0) -> 0 | M79: =IF($B79>0,INDEX(DB,$B79,20),0) -> 0 | O79: 0 | R79: =IF($AI79>0,RANK($AI79,BoysPoints),0) -> 0 | S79: =IF($AJ79>0,RANK($AJ79,GirlsPoints),0) -> 0 | T79: =IF($O79>0,RANK(O79,AthletePoints),0) -> 0 | V79: =IF(O79>=40,IF(X79="M",VLOOKUP(O79,UKABoysAwards,2),IF(X79="F",VLOOKUP(O79,UKAGirlsAwards,2),"")),"") ->  | X79: =INDEX(DB,$B79,4) ->  | Z79: =IF($X79="M",$O79+(ROW()/10000),0) -> 0 | AA79: =IF($Z79>=1,RANK($Z79,$Z69:$Z84),0) -> 0 | AB79: 0 | AD79: =IF($X79="F",$O79+(ROW()/10000),0) -> 0 | AE79: =IF($AD79>=1,RANK($AD79,$AD69:$AD84),0) -> 0 | AF79: 0 | AI79: 0 | AJ79: 0
B80: 0 | F80: 0 | G80: 0 | H80: 0 | I80: 0 | J80: 0 | K80: 0 | L80: 0 | M80: 0 | O80: 0 | R80: 0 | S80: 0 | T80: 0 | Z80: 0 | AA80: =IF($Z80>=1,RANK($Z80,$Z69:$Z84),0) -> 0 | AB80: 0 | AD80: 0 | AE80: =IF($AD80>=1,RANK($AD80,$AD69:$AD84),0) -> 0 | AF80: 0 | AI80: =IF($X80="M",$O80,0) -> 0 | AJ80: =IF($X80="F",$O80,0) -> 0
B81: 0 | F81: 0 | G81: 0 | H81: 0 | I81: 0 | J81: 0 | K81: 0 | L81: 0 | M81: 0 | O81: 0 | R81: 0 | S81: 0 | T81: 0 | Z81: 0 | AA81: =IF($Z81>=1,RANK($Z81,$Z69:$Z84),0) -> 0 | AB81: 0 | AD81: 0 | AE81: =IF($AD81>=1,RANK($AD81,$AD69:$AD84),0) -> 0 | AF81: 0 | AI81: 0 | AJ81: 0
B82: 0 | F82: 0 | G82: 0 | H82: 0 | I82: 0 | J82: 0 | K82: 0 | L82: 0 | M82: 0 | O82: 0 | R82: 0 | S82: 0 | T82: 0 | Z82: 0 | AA82: =IF($Z82>=1,RANK($Z82,$Z69:$Z84),0) -> 0 | AB82: 0 | AD82: 0 | AE82: =IF($AD82>=1,RANK($AD82,$AD69:$AD84),0) -> 0 | AF82: 0 | AI82: 0 | AJ82: 0
B83: 0 | F83: 0 | G83: 0 | H83: 0 | I83: 0 | J83: 0 | K83: 0 | L83: 0 | M83: 0 | O83: 0 | R83: 0 | S83: 0 | T83: 0 | Z83: 0 | AA83: =IF($Z83>=1,RANK($Z83,$Z69:$Z84),0) -> 0 | AB83: 0 | AD83: 0 | AE83: =IF($AD83>=1,RANK($AD83,$AD69:$AD84),0) -> 0 | AF83: 0 | AI83: 0 | AJ83: 0
B84: 0 | F84: 0 | G84: 0 | H84: 0 | I84: 0 | J84: 0 | K84: 0 | L84: 0 | M84: 0 | O84: 0 | R84: 0 | S84: 0 | T84: 0 | Z84: 0 | AA84: =IF($Z84>=1,RANK($Z84,$Z69:$Z84),0) -> 0 | AB84: 0 | AC84: =SUM(AB69:AB84) -> 0 | AD84: 0 | AE84: =IF($AD84>=1,RANK($AD84,$AD69:$AD84),0) -> 0 | AF84: 0 | AG84: =SUM(AF69:AF84) -> 0 | AI84: 0 | AJ84: 0
B85: 0 | F85: 0 | G85: 0 | H85: 0 | I85: 0 | J85: 0 | K85: 0 | L85: 0 | M85: 0 | N85: =INDEX(RelayPoints,A100) ->  | O85: =+G85+I85+K85+M85 -> 0 | P85: =+AC100+AG100+N85 ->  | Q85: =IF(AB85+AF85>0,"*","") ->  | R85: 0 | S85: 0 | T85: 0 | Z85: 0 | AA85: =IF($Z85>=1,RANK($Z85,$Z85:$Z100),0) -> 0 | AB85: =IF(AA85<=MaxS,INT(Z85),0) -> 0 | AD85: 0 | AE85: =IF($AD85>=1,RANK($AD85,$AD85:$AD100),0) -> 0 | AF85: =IF(AE85<=MaxS,INT(AD85),0) -> 0 | AI85: 0 | AJ85: 0
B86: 0 | F86: 0 | G86: 0 | H86: 0 | I86: 0 | J86: 0 | K86: 0 | L86: 0 | M86: 0 | O86: =+G86+I86+K86+M86 -> 0 | Q86: =IF(AB86+AF86>0,"*","") ->  | R86: 0 | S86: 0 | T86: 0 | Z86: 0 | AA86: =IF($Z86>=1,RANK($Z86,$Z85:$Z100),0) -> 0 | AB86: 0 | AD86: 0 | AE86: =IF($AD86>=1,RANK($AD86,$AD85:$AD100),0) -> 0 | AF86: 0 | AI86: 0 | AJ86: 0
B87: 0 | F87: 0 | G87: 0 | H87: 0 | I87: 0 | J87: 0 | K87: 0 | L87: 0 | M87: 0 | O87: 0 | R87: 0 | S87: 0 | T87: 0 | Z87: 0 | AA87: =IF($Z87>=1,RANK($Z87,$Z85:$Z100),0) -> 0 | AB87: 0 | AD87: 0 | AE87: =IF($AD87>=1,RANK($AD87,$AD85:$AD100),0) -> 0 | AF87: 0 | AI87: 0 | AJ87: 0
B88: 0 | F88: 0 | G88: 0 | H88: 0 | I88: 0 | J88: 0 | K88: 0 | L88: 0 | M88: 0 | O88: 0 | R88: 0 | S88: 0 | T88: 0 | Z88: 0 | AA88: =IF($Z88>=1,RANK($Z88,$Z85:$Z100),0) -> 0 | AB88: 0 | AD88: 0 | AE88: =IF($AD88>=1,RANK($AD88,$AD85:$AD100),0) -> 0 | AF88: 0 | AI88: 0 | AJ88: 0
B89: =IF(OR(ISNA(MATCH(C89&"",AthleteNumbers,0)),ISBLANK(C89)),0,MATCH(C89&"",AthleteNumbers,0)) -> 0 | F89: 0 | G89: 0 | H89: 0 | I89: 0 | J89: 0 | K89: 0 | L89: 0 | M89: 0 | O89: =+G89+I89+K89+M89 -> 0 | Q89: =IF(AB89+AF89>0,"*","") ->  | R89: 0 | S89: 0 | T89: =IF($O89>0,RANK(O89,AthletePoints),0) -> 0 | V89: =IF(O89>=40,IF(X89="M",VLOOKUP(O89,UKABoysAwards,2),IF(X89="F",VLOOKUP(O89,UKAGirlsAwards,2),"")),"") ->  | Z89: 0 | AA89: =IF($Z89>=1,RANK($Z89,$Z85:$Z100),0) -> 0 | AB89: =IF(AA89<=MaxS,INT(Z89),0) -> 0 | AD89: 0 | AE89: =IF($AD89>=1,RANK($AD89,$AD85:$AD100),0) -> 0 | AF89: =IF(AE89<=MaxS,INT(AD89),0) -> 0 | AI89: 0 | AJ89: 0
B90: =IF(OR(ISNA(MATCH(C90&"",AthleteNumbers,0)),ISBLANK(C90)),0,MATCH(C90&"",AthleteNumbers,0)) -> 0 | F90: 0 | G90: 0 | H90: 0 | I90: 0 | J90: 0 | K90: 0 | L90: 0 | M90: 0 | O90: =+G90+I90+K90+M90 -> 0 | Q90: =IF(AB90+AF90>0,"*","") ->  | R90: 0 | S90: 0 | T90: =IF($O90>0,RANK(O90,AthletePoints),0) -> 0 | V90: =IF(O90>=40,IF(X90="M",VLOOKUP(O90,UKABoysAwards,2),IF(X90="F",VLOOKUP(O90,UKAGirlsAwards,2),"")),"") ->  | Z90: 0 | AA90: =IF($Z90>=1,RANK($Z90,$Z85:$Z100),0) -> 0 | AB90: =IF(AA90<=MaxS,INT(Z90),0) -> 0 | AD90: 0 | AE90: =IF($AD90>=1,RANK($AD90,$AD85:$AD100),0) -> 0 | AF90: =IF(AE90<=MaxS,INT(AD90),0) -> 0 | AI90: 0 | AJ90: 0
B91: 0 | F91: 0 | G91: 0 | H91: 0 | I91: 0 | J91: 0 | K91: 0 | L91: 0 | M91: 0 | O91: 0 | R91: 0 | S91: 0 | T91: 0 | Z91: 0 | AA91: =IF($Z91>=1,RANK($Z91,$Z85:$Z100),0) -> 0 | AB91: 0 | AD91: 0 | AE91: =IF($AD91>=1,RANK($AD91,$AD85:$AD100),0) -> 0 | AF91: 0 | AI91: 0 | AJ91: 0
B92: 0 | F92: 0 | G92: 0 | H92: 0 | I92: 0 | J92: 0 | K92: 0 | L92: 0 | M92: 0 | O92: 0 | R92: 0 | S92: 0 | T92: 0 | Z92: 0 | AA92: =IF($Z92>=1,RANK($Z92,$Z85:$Z100),0) -> 0 | AB92: 0 | AD92: 0 | AE92: =IF($AD92>=1,RANK($AD92,$AD85:$AD100),0) -> 0 | AF92: 0 | AI92: 0 | AJ92: 0
B93: 0 | F93: 0 | G93: 0 | H93: 0 | I93: 0 | J93: 0 | K93: 0 | L93: 0 | M93: 0 | O93: 0 | R93: 0 | S93: 0 | T93: 0 | Z93: 0 | AA93: =IF($Z93>=1,RANK($Z93,$Z85:$Z100),0) -> 0 | AB93: 0 | AD93: 0 | AE93: =IF($AD93>=1,RANK($AD93,$AD85:$AD100),0) -> 0 | AF93: 0 | AI93: 0 | AJ93: 0
B94: 0 | F94: 0 | G94: 0 | H94: 0 | I94: 0 | J94: 0 | K94: 0 | L94: 0 | M94: 0 | O94: 0 | R94: 0 | S94: 0 | T94: 0 | Z94: 0 | AA94: =IF($Z94>=1,RANK($Z94,$Z85:$Z100),0) -> 0 | AB94: 0 | AD94: 0 | AE94: =IF($AD94>=1,RANK($AD94,$AD85:$AD100),0) -> 0 | AF94: 0 | AI94: 0 | AJ94: 0
B95: 0 | F95: 0 | G95: 0 | H95: 0 | I95: 0 | J95: 0 | K95: 0 | L95: 0 | M95: 0 | O95: 0 | R95: 0 | S95: 0 | T95: 0 | Z95: 0 | AA95: =IF($Z95>=1,RANK($Z95,$Z85:$Z100),0) -> 0 | AB95: 0 | AD95: 0 | AE95: =IF($AD95>=1,RANK($AD95,$AD85:$AD100),0) -> 0 | AF95: 0 | AI95: 0 | AJ95: 0
B96: 0 | F96: 0 | G96: 0 | H96: 0 | I96: 0 | J96: 0 | K96: 0 | L96: 0 | M96: 0 | O96: 0 | R96: 0 | S96: 0 | T96: 0 | Z96: 0 | AA96: =IF($Z96>=1,RANK($Z96,$Z85:$Z100),0) -> 0 | AB96: 0 | AD96: 0 | AE96: =IF($AD96>=1,RANK($AD96,$AD85:$AD100),0) -> 0 | AF96: 0 | AI96: 0 | AJ96: 0
B97: 0 | F97: 0 | G97: 0 | H97: 0 | I97: 0 | J97: 0 | K97: 0 | L97: 0 | M97: 0 | O97: 0 | R97: 0 | S97: 0 | T97: 0 | Z97: 0 | AA97: =IF($Z97>=1,RANK($Z97,$Z85:$Z100),0) -> 0 | AB97: 0 | AD97: 0 | AE97: =IF($AD97>=1,RANK($AD97,$AD85:$AD100),0) -> 0 | AF97: 0 | AI97: 0 | AJ97: 0
B98: 0 | F98: 0 | G98: 0 | H98: 0 | I98: 0 | J98: 0 | K98: 0 | L98: 0 | M98: 0 | O98: 0 | R98: 0 | S98: 0 | T98: 0 | Z98: 0 | AA98: =IF($Z98>=1,RANK($Z98,$Z85:$Z100),0) -> 0 | AB98: 0 | AD98: 0 | AE98: =IF($AD98>=1,RANK($AD98,$AD85:$AD100),0) -> 0 | AF98: 0 | AI98: 0 | AJ98: 0
B99: 0 | F99: 0 | G99: 0 | H99: 0 | I99: 0 | J99: 0 | K99: 0 | L99: 0 | M99: 0 | O99: 0 | R99: 0 | S99: 0 | T99: 0 | Z99: 0 | AA99: =IF($Z99>=1,RANK($Z99,$Z85:$Z100),0) -> 0 | AB99: 0 | AD99: 0 | AE99: =IF($AD99>=1,RANK($AD99,$AD85:$AD100),0) -> 0 | AF99: 0 | AI99: 0 | AJ99: 0
B100: 0 | F100: 0 | G100: 0 | H100: 0 | I100: 0 | J100: 0 | K100: 0 | L100: 0 | M100: 0 | O100: 0 | R100: 0 | S100: 0 | T100: 0 | Z100: 0 | AA100: =IF($Z100>=1,RANK($Z100,$Z85:$Z100),0) -> 0 | AB100: 0 | AC100: =SUM(AB85:AB100) -> 0 | AD100: 0 | AE100: =IF($AD100>=1,RANK($AD100,$AD85:$AD100),0) -> 0 | AF100: 0 | AG100: =SUM(AF85:AF100) -> 0 | AI100: 0 | AJ100: 0
B101: 0 | F101: 0 | G101: 0 | H101: 0 | I101: 0 | J101: 0 | K101: 0 | L101: 0 | M101: 0 | N101: =INDEX(RelayPoints,A116) ->  | O101: =+G101+I101+K101+M101 -> 0 | P101: =+AC116+AG116+N101 ->  | Q101: =IF(AB101+AF101>0,"*","") ->  | R101: 0 | S101: 0 | T101: 0 | Z101: 0 | AA101: =IF($Z101>=1,RANK($Z101,$Z101:$Z116),0) -> 0 | AB101: =IF(AA101<=MaxS,INT(Z101),0) -> 0 | AD101: 0 | AE101: =IF($AD101>=1,RANK($AD101,$AD101:$AD116),0) -> 0 | AF101: =IF(AE101<=MaxS,INT(AD101),0) -> 0 | AI101: 0 | AJ101: 0
B102: 0 | F102: 0 | G102: 0 | H102: 0 | I102: 0 | J102: 0 | K102: 0 | L102: 0 | M102: 0 | O102: =+G102+I102+K102+M102 -> 0 | Q102: =IF(AB102+AF102>0,"*","") ->  | R102: 0 | S102: 0 | T102: 0 | Z102: 0 | AA102: =IF($Z102>=1,RANK($Z102,$Z101:$Z116),0) -> 0 | AB102: 0 | AD102: 0 | AE102: =IF($AD102>=1,RANK($AD102,$AD101:$AD116),0) -> 0 | AF102: 0 | AI102: 0 | AJ102: 0
B103: 0 | F103: 0 | G103: 0 | H103: 0 | I103: 0 | J103: 0 | K103: 0 | L103: 0 | M103: 0 | O103: 0 | R103: 0 | S103: 0 | T103: 0 | Z103: 0 | AA103: =IF($Z103>=1,RANK($Z103,$Z101:$Z116),0) -> 0 | AB103: 0 | AD103: 0 | AE103: =IF($AD103>=1,RANK($AD103,$AD101:$AD116),0) -> 0 | AF103: 0 | AI103: 0 | AJ103: 0
B104: 0 | F104: 0 | G104: 0 | H104: 0 | I104: 0 | J104: 0 | K104: 0 | L104: 0 | M104: 0 | O104: 0 | R104: 0 | S104: 0 | T104: 0 | Z104: 0 | AA104: =IF($Z104>=1,RANK($Z104,$Z101:$Z116),0) -> 0 | AB104: 0 | AD104: 0 | AE104: =IF($AD104>=1,RANK($AD104,$AD101:$AD116),0) -> 0 | AF104: 0 | AI104: 0 | AJ104: 0
B105: 0 | F105: 0 | G105: 0 | H105: 0 | I105: 0 | J105: 0 | K105: 0 | L105: 0 | M105: 0 | O105: 0 | R105: 0 | S105: 0 | T105: 0 | Z105: 0 | AA105: =IF($Z105>=1,RANK($Z105,$Z101:$Z116),0) -> 0 | AB105: 0 | AD105: 0 | AE105: =IF($AD105>=1,RANK($AD105,$AD101:$AD116),0) -> 0 | AF105: 0 | AI105: 0 | AJ105: 0
B106: =IF(OR(ISNA(MATCH(C106&"",AthleteNumbers,0)),ISBLANK(C106)),0,MATCH(C106&"",AthleteNumbers,0)) -> 0 | F106: 0 | G106: 0 | H106: 0 | I106: 0 | J106: 0 | K106: 0 | L106: 0 | M106: 0 | O106: =+G106+I106+K106+M106 -> 0 | Q106: =IF(AB106+AF106>0,"*","") ->  | R106: 0 | S106: 0 | T106: =IF($O106>0,RANK(O106,AthletePoints),0) -> 0 | V106: =IF(O106>=40,IF(X106="M",VLOOKUP(O106,UKABoysAwards,2),IF(X106="F",VLOOKUP(O106,UKAGirlsAwards,2),"")),"") ->  | Z106: 0 | AA106: =IF($Z106>=1,RANK($Z106,$Z101:$Z116),0) -> 0 | AB106: =IF(AA106<=MaxS,INT(Z106),0) -> 0 | AD106: 0 | AE106: =IF($AD106>=1,RANK($AD106,$AD101:$AD116),0) -> 0 | AF106: =IF(AE106<=MaxS,INT(AD106),0) -> 0 | AI106: 0 | AJ106: 0
B107: =IF(OR(ISNA(MATCH(C107&"",AthleteNumbers,0)),ISBLANK(C107)),0,MATCH(C107&"",AthleteNumbers,0)) -> 0 | F107: 0 | G107: 0 | H107: 0 | I107: 0 | J107: 0 | K107: 0 | L107: 0 | M107: 0 | O107: =+G107+I107+K107+M107 -> 0 | Q107: =IF(AB107+AF107>0,"*","") ->  | R107: 0 | S107: 0 | T107: =IF($O107>0,RANK(O107,AthletePoints),0) -> 0 | V107: =IF(O107>=40,IF(X107="M",VLOOKUP(O107,UKABoysAwards,2),IF(X107="F",VLOOKUP(O107,UKAGirlsAwards,2),"")),"") ->  | Z107: 0 | AA107: =IF($Z107>=1,RANK($Z107,$Z101:$Z116),0) -> 0 | AB107: =IF(AA107<=MaxS,INT(Z107),0) -> 0 | AD107: 0 | AE107: =IF($AD107>=1,RANK($AD107,$AD101:$AD116),0) -> 0 | AF107: =IF(AE107<=MaxS,INT(AD107),0) -> 0 | AI107: 0 | AJ107: 0
B108: 0 | F108: 0 | G108: 0 | H108: 0 | I108: 0 | J108: 0 | K108: 0 | L108: 0 | M108: 0 | O108: 0 | R108: 0 | S108: 0 | T108: 0 | Z108: 0 | AA108: =IF($Z108>=1,RANK($Z108,$Z101:$Z116),0) -> 0 | AB108: 0 | AD108: 0 | AE108: =IF($AD108>=1,RANK($AD108,$AD101:$AD116),0) -> 0 | AF108: 0 | AI108: 0 | AJ108: 0
B109: 0 | F109: 0 | G109: 0 | H109: 0 | I109: 0 | J109: 0 | K109: 0 | L109: 0 | M109: 0 | O109: 0 | R109: 0 | S109: 0 | T109: 0 | Z109: 0 | AA109: =IF($Z109>=1,RANK($Z109,$Z101:$Z116),0) -> 0 | AB109: 0 | AD109: 0 | AE109: =IF($AD109>=1,RANK($AD109,$AD101:$AD116),0) -> 0 | AF109: 0 | AI109: 0 | AJ109: 0
B110: 0 | F110: 0 | G110: 0 | H110: 0 | I110: 0 | J110: 0 | K110: 0 | L110: 0 | M110: 0 | O110: 0 | R110: 0 | S110: 0 | T110: 0 | Z110: 0 | AA110: =IF($Z110>=1,RANK($Z110,$Z101:$Z116),0) -> 0 | AB110: 0 | AD110: 0 | AE110: =IF($AD110>=1,RANK($AD110,$AD101:$AD116),0) -> 0 | AF110: 0 | AI110: 0 | AJ110: 0
B111: 0 | F111: 0 | G111: 0 | H111: 0 | I111: 0 | J111: 0 | K111: 0 | L111: 0 | M111: 0 | O111: 0 | R111: 0 | S111: 0 | T111: 0 | Z111: 0 | AA111: =IF($Z111>=1,RANK($Z111,$Z101:$Z116),0) -> 0 | AB111: 0 | AD111: 0 | AE111: =IF($AD111>=1,RANK($AD111,$AD101:$AD116),0) -> 0 | AF111: 0 | AI111: 0 | AJ111: 0
B112: 0 | F112: 0 | G112: 0 | H112: 0 | I112: 0 | J112: 0 | K112: 0 | L112: 0 | M112: 0 | O112: 0 | R112: 0 | S112: 0 | T112: 0 | Z112: 0 | AA112: =IF($Z112>=1,RANK($Z112,$Z101:$Z116),0) -> 0 | AB112: 0 | AD112: 0 | AE112: =IF($AD112>=1,RANK($AD112,$AD101:$AD116),0) -> 0 | AF112: 0 | AI112: 0 | AJ112: 0
B113: 0 | F113: 0 | G113: 0 | H113: 0 | I113: 0 | J113: 0 | K113: 0 | L113: 0 | M113: 0 | O113: 0 | R113: 0 | S113: 0 | T113: 0 | Z113: 0 | AA113: =IF($Z113>=1,RANK($Z113,$Z101:$Z116),0) -> 0 | AB113: 0 | AD113: 0 | AE113: =IF($AD113>=1,RANK($AD113,$AD101:$AD116),0) -> 0 | AF113: 0 | AI113: 0 | AJ113: 0
B114: 0 | F114: 0 | G114: 0 | H114: 0 | I114: 0 | J114: 0 | K114: 0 | L114: 0 | M114: 0 | O114: 0 | R114: 0 | S114: 0 | T114: 0 | Z114: 0 | AA114: =IF($Z114>=1,RANK($Z114,$Z101:$Z116),0) -> 0 | AB114: 0 | AD114: 0 | AE114: =IF($AD114>=1,RANK($AD114,$AD101:$AD116),0) -> 0 | AF114: 0 | AI114: 0 | AJ114: 0
B115: 0 | F115: 0 | G115: 0 | H115: 0 | I115: 0 | J115: 0 | K115: 0 | L115: 0 | M115: 0 | O115: 0 | R115: 0 | S115: 0 | T115: 0 | Z115: 0 | AA115: =IF($Z115>=1,RANK($Z115,$Z101:$Z116),0) -> 0 | AB115: 0 | AD115: 0 | AE115: =IF($AD115>=1,RANK($AD115,$AD101:$AD116),0) -> 0 | AF115: 0 | AI115: 0 | AJ115: 0
B116: 0 | F116: 0 | G116: 0 | H116: 0 | I116: 0 | J116: 0 | K116: 0 | L116: 0 | M116: 0 | O116: 0 | R116: 0 | S116: 0 | T116: 0 | Z116: 0 | AA116: =IF($Z116>=1,RANK($Z116,$Z101:$Z116),0) -> 0 | AB116: 0 | AC116: =SUM(AB101:AB116) -> 0 | AD116: 0 | AE116: =IF($AD116>=1,RANK($AD116,$AD101:$AD116),0) -> 0 | AF116: 0 | AG116: =SUM(AF101:AF116) -> 0 | AI116: 0 | AJ116: 0
B117: 0 | F117: 0 | G117: 0 | H117: 0 | I117: 0 | J117: 0 | K117: 0 | L117: 0 | M117: 0 | N117: =INDEX(RelayPoints,A132) ->  | O117: =+G117+I117+K117+M117 -> 0 | P117: =+AC132+AG132+N117 ->  | Q117: =IF(AB117+AF117>0,"*","") ->  | R117: 0 | S117: 0 | T117: 0 | Z117: 0 | AA117: =IF($Z117>=1,RANK($Z117,$Z117:$Z132),0) -> 0 | AB117: =IF(AA117<=MaxS,INT(Z117),0) -> 0 | AD117: 0 | AE117: =IF($AD117>=1,RANK($AD117,$AD117:$AD132),0) -> 0 | AF117: =IF(AE117<=MaxS,INT(AD117),0) -> 0 | AI117: 0 | AJ117: 0
B118: 0 | F118: 0 | G118: 0 | H118: 0 | I118: 0 | J118: 0 | K118: 0 | L118: 0 | M118: 0 | O118: =+G118+I118+K118+M118 -> 0 | Q118: =IF(AB118+AF118>0,"*","") ->  | R118: 0 | S118: 0 | T118: 0 | Z118: 0 | AA118: =IF($Z118>=1,RANK($Z118,$Z117:$Z132),0) -> 0 | AB118: 0 | AD118: 0 | AE118: =IF($AD118>=1,RANK($AD118,$AD117:$AD132),0) -> 0 | AF118: 0 | AI118: 0 | AJ118: 0
B119: 0 | F119: 0 | G119: 0 | H119: 0 | I119: 0 | J119: 0 | K119: 0 | L119: 0 | M119: 0 | O119: 0 | R119: 0 | S119: 0 | T119: 0 | Z119: 0 | AA119: =IF($Z119>=1,RANK($Z119,$Z117:$Z132),0) -> 0 | AB119: 0 | AD119: 0 | AE119: =IF($AD119>=1,RANK($AD119,$AD117:$AD132),0) -> 0 | AF119: 0 | AI119: 0 | AJ119: 0
B120: =IF(OR(ISNA(MATCH(C120&"",AthleteNumbers,0)),ISBLANK(C120)),0,MATCH(C120&"",AthleteNumbers,0)) -> 0 | F120: 0 | G120: 0 | H120: 0 | I120: 0 | J120: 0 | K120: 0 | L120: 0 | M120: 0 | O120: =+G120+I120+K120+M120 -> 0 | Q120: =IF(AB120+AF120>0,"*","") ->  | R120: 0 | S120: 0 | T120: =IF($O120>0,RANK(O120,AthletePoints),0) -> 0 | V120: =IF(O120>=40,IF(X120="M",VLOOKUP(O120,UKABoysAwards,2),IF(X120="F",VLOOKUP(O120,UKAGirlsAwards,2),"")),"") ->  | Z120: 0 | AA120: =IF($Z120>=1,RANK($Z120,$Z117:$Z132),0) -> 0 | AB120: =IF(AA120<=MaxS,INT(Z120),0) -> 0 | AD120: 0 | AE120: =IF($AD120>=1,RANK($AD120,$AD117:$AD132),0) -> 0 | AF120: =IF(AE120<=MaxS,INT(AD120),0) -> 0 | AI120: 0 | AJ120: 0
B121: =IF(OR(ISNA(MATCH(C121&"",AthleteNumbers,0)),ISBLANK(C121)),0,MATCH(C121&"",AthleteNumbers,0)) -> 0 | F121: 0 | G121: 0 | H121: 0 | I121: 0 | J121: 0 | K121: 0 | L121: 0 | M121: 0 | O121: =+G121+I121+K121+M121 -> 0 | Q121: =IF(AB121+AF121>0,"*","") ->  | R121: 0 | S121: 0 | T121: =IF($O121>0,RANK(O121,AthletePoints),0) -> 0 | V121: =IF(O121>=40,IF(X121="M",VLOOKUP(O121,UKABoysAwards,2),IF(X121="F",VLOOKUP(O121,UKAGirlsAwards,2),"")),"") ->  | Z121: 0 | AA121: =IF($Z121>=1,RANK($Z121,$Z117:$Z132),0) -> 0 | AB121: =IF(AA121<=MaxS,INT(Z121),0) -> 0 | AD121: 0 | AE121: =IF($AD121>=1,RANK($AD121,$AD117:$AD132),0) -> 0 | AF121: =IF(AE121<=MaxS,INT(AD121),0) -> 0 | AI121: 0 | AJ121: 0
B122: 0 | F122: 0 | G122: 0 | H122: 0 | I122: 0 | J122: 0 | K122: 0 | L122: 0 | M122: 0 | O122: 0 | R122: 0 | S122: 0 | T122: 0 | Z122: 0 | AA122: =IF($Z122>=1,RANK($Z122,$Z117:$Z132),0) -> 0 | AB122: 0 | AD122: 0 | AE122: =IF($AD122>=1,RANK($AD122,$AD117:$AD132),0) -> 0 | AF122: 0 | AI122: 0 | AJ122: 0
B123: 0 | F123: 0 | G123: 0 | H123: 0 | I123: 0 | J123: 0 | K123: 0 | L123: 0 | M123: 0 | O123: 0 | R123: 0 | S123: 0 | T123: 0 | Z123: 0 | AA123: =IF($Z123>=1,RANK($Z123,$Z117:$Z132),0) -> 0 | AB123: 0 | AD123: 0 | AE123: =IF($AD123>=1,RANK($AD123,$AD117:$AD132),0) -> 0 | AF123: 0 | AI123: 0 | AJ123: 0
B124: 0 | F124: 0 | G124: 0 | H124: 0 | I124: 0 | J124: 0 | K124: 0 | L124: 0 | M124: 0 | O124: 0 | R124: 0 | S124: 0 | T124: 0 | Z124: 0 | AA124: =IF($Z124>=1,RANK($Z124,$Z117:$Z132),0) -> 0 | AB124: 0 | AD124: 0 | AE124: =IF($AD124>=1,RANK($AD124,$AD117:$AD132),0) -> 0 | AF124: 0 | AI124: 0 | AJ124: 0
B125: 0 | F125: 0 | G125: 0 | H125: 0 | I125: 0 | J125: 0 | K125: 0 | L125: 0 | M125: 0 | O125: 0 | R125: 0 | S125: 0 | T125: 0 | Z125: 0 | AA125: =IF($Z125>=1,RANK($Z125,$Z117:$Z132),0) -> 0 | AB125: 0 | AD125: 0 | AE125: =IF($AD125>=1,RANK($AD125,$AD117:$AD132),0) -> 0 | AF125: 0 | AI125: 0 | AJ125: 0
B126: 0 | F126: 0 | G126: 0 | H126: 0 | I126: 0 | J126: 0 | K126: 0 | L126: 0 | M126: 0 | O126: 0 | R126: 0 | S126: 0 | T126: 0 | Z126: 0 | AA126: =IF($Z126>=1,RANK($Z126,$Z117:$Z132),0) -> 0 | AB126: 0 | AD126: 0 | AE126: =IF($AD126>=1,RANK($AD126,$AD117:$AD132),0) -> 0 | AF126: 0 | AI126: 0 | AJ126: 0
B127: 0 | F127: 0 | G127: 0 | H127: 0 | I127: 0 | J127: 0 | K127: 0 | L127: 0 | M127: 0 | O127: 0 | R127: 0 | S127: 0 | T127: 0 | Z127: 0 | AA127: =IF($Z127>=1,RANK($Z127,$Z117:$Z132),0) -> 0 | AB127: 0 | AD127: 0 | AE127: =IF($AD127>=1,RANK($AD127,$AD117:$AD132),0) -> 0 | AF127: 0 | AI127: 0 | AJ127: 0
B128: 0 | F128: 0 | G128: 0 | H128: 0 | I128: 0 | J128: 0 | K128: 0 | L128: 0 | M128: 0 | O128: 0 | R128: 0 | S128: 0 | T128: 0 | Z128: 0 | AA128: =IF($Z128>=1,RANK($Z128,$Z117:$Z132),0) -> 0 | AB128: 0 | AD128: 0 | AE128: =IF($AD128>=1,RANK($AD128,$AD117:$AD132),0) -> 0 | AF128: 0 | AI128: 0 | AJ128: 0
B129: 0 | F129: 0 | G129: 0 | H129: 0 | I129: 0 | J129: 0 | K129: 0 | L129: 0 | M129: 0 | O129: 0 | R129: 0 | S129: 0 | T129: 0 | Z129: 0 | AA129: =IF($Z129>=1,RANK($Z129,$Z117:$Z132),0) -> 0 | AB129: 0 | AD129: 0 | AE129: =IF($AD129>=1,RANK($AD129,$AD117:$AD132),0) -> 0 | AF129: 0 | AI129: 0 | AJ129: 0
B130: 0 | F130: 0 | G130: 0 | H130: 0 | I130: 0 | J130: 0 | K130: 0 | L130: 0 | M130: 0 | O130: 0 | R130: 0 | S130: 0 | T130: 0 | Z130: 0 | AA130: =IF($Z130>=1,RANK($Z130,$Z117:$Z132),0) -> 0 | AB130: 0 | AD130: 0 | AE130: =IF($AD130>=1,RANK($AD130,$AD117:$AD132),0) -> 0 | AF130: 0 | AI130: 0 | AJ130: 0
B131: 0 | F131: 0 | G131: 0 | H131: 0 | I131: 0 | J131: 0 | K131: 0 | L131: 0 | M131: 0 | O131: 0 | R131: 0 | S131: 0 | T131: 0 | Z131: 0 | AA131: =IF($Z131>=1,RANK($Z131,$Z117:$Z132),0) -> 0 | AB131: 0 | AD131: 0 | AE131: =IF($AD131>=1,RANK($AD131,$AD117:$AD132),0) -> 0 | AF131: 0 | AI131: 0 | AJ131: 0
B132: 0 | F132: 0 | G132: 0 | H132: 0 | I132: 0 | J132: 0 | K132: 0 | L132: 0 | M132: 0 | O132: 0 | R132: 0 | S132: 0 | T132: 0 | Z132: 0 | AA132: =IF($Z132>=1,RANK($Z132,$Z117:$Z132),0) -> 0 | AB132: 0 | AC132: =SUM(AB117:AB132) -> 0 | AD132: 0 | AE132: =IF($AD132>=1,RANK($AD132,$AD117:$AD132),0) -> 0 | AF132: 0 | AG132: =SUM(AF117:AF132) -> 0 | AI132: 0 | AJ132: 0
B133: 0 | F133: 0 | G133: 0 | H133: 0 | I133: 0 | J133: 0 | K133: 0 | L133: 0 | M133: 0 | N133: =INDEX(RelayPoints,A148) ->  | O133: =+G133+I133+K133+M133 -> 0 | P133: =+AC148+AG148+N133 ->  | Q133: =IF(AB133+AF133>0,"*","") ->  | R133: 0 | S133: 0 | T133: 0 | Z133: 0 | AA133: =IF($Z133>=1,RANK($Z133,$Z133:$Z148),0) -> 0 | AB133: =IF(AA133<=MaxS,INT(Z133),0) -> 0 | AD133: 0 | AE133: =IF($AD133>=1,RANK($AD133,$AD133:$AD148),0) -> 0 | AF133: =IF(AE133<=MaxS,INT(AD133),0) -> 0 | AI133: 0 | AJ133: 0
B134: 0 | F134: 0 | G134: 0 | H134: 0 | I134: 0 | J134: 0 | K134: 0 | L134: 0 | M134: 0 | O134: =+G134+I134+K134+M134 -> 0 | Q134: =IF(AB134+AF134>0,"*","") ->  | R134: 0 | S134: 0 | T134: 0 | Z134: 0 | AA134: =IF($Z134>=1,RANK($Z134,$Z133:$Z148),0) -> 0 | AB134: 0 | AD134: 0 | AE134: =IF($AD134>=1,RANK($AD134,$AD133:$AD148),0) -> 0 | AF134: 0 | AI134: 0 | AJ134: 0
B135: 0 | F135: 0 | G135: 0 | H135: 0 | I135: 0 | J135: 0 | K135: 0 | L135: 0 | M135: 0 | O135: 0 | R135: 0 | S135: 0 | T135: 0 | Z135: 0 | AA135: =IF($Z135>=1,RANK($Z135,$Z133:$Z148),0) -> 0 | AB135: 0 | AD135: 0 | AE135: =IF($AD135>=1,RANK($AD135,$AD133:$AD148),0) -> 0 | AF135: 0 | AI135: 0 | AJ135: 0
B136: 0 | F136: 0 | G136: 0 | H136: 0 | I136: 0 | J136: 0 | K136: 0 | L136: 0 | M136: 0 | O136: 0 | R136: 0 | S136: 0 | T136: 0 | Z136: 0 | AA136: =IF($Z136>=1,RANK($Z136,$Z133:$Z148),0) -> 0 | AB136: 0 | AD136: 0 | AE136: =IF($AD136>=1,RANK($AD136,$AD133:$AD148),0) -> 0 | AF136: 0 | AI136: 0 | AJ136: 0
B137: =IF(OR(ISNA(MATCH(C137&"",AthleteNumbers,0)),ISBLANK(C137)),0,MATCH(C137&"",AthleteNumbers,0)) -> 0 | F137: 0 | G137: 0 | H137: 0 | I137: 0 | J137: 0 | K137: 0 | L137: 0 | M137: 0 | O137: =+G137+I137+K137+M137 -> 0 | Q137: =IF(AB137+AF137>0,"*","") ->  | R137: 0 | S137: 0 | T137: =IF($O137>0,RANK(O137,AthletePoints),0) -> 0 | V137: =IF(O137>=40,IF(X137="M",VLOOKUP(O137,UKABoysAwards,2),IF(X137="F",VLOOKUP(O137,UKAGirlsAwards,2),"")),"") ->  | Z137: 0 | AA137: =IF($Z137>=1,RANK($Z137,$Z133:$Z148),0) -> 0 | AB137: =IF(AA137<=MaxS,INT(Z137),0) -> 0 | AD137: 0 | AE137: =IF($AD137>=1,RANK($AD137,$AD133:$AD148),0) -> 0 | AF137: =IF(AE137<=MaxS,INT(AD137),0) -> 0 | AI137: 0 | AJ137: 0
B138: =IF(OR(ISNA(MATCH(C138&"",AthleteNumbers,0)),ISBLANK(C138)),0,MATCH(C138&"",AthleteNumbers,0)) -> 0 | F138: 0 | G138: 0 | H138: 0 | I138: 0 | J138: 0 | K138: 0 | L138: 0 | M138: 0 | O138: =+G138+I138+K138+M138 -> 0 | Q138: =IF(AB138+AF138>0,"*","") ->  | R138: 0 | S138: 0 | T138: =IF($O138>0,RANK(O138,AthletePoints),0) -> 0 | V138: =IF(O138>=40,IF(X138="M",VLOOKUP(O138,UKABoysAwards,2),IF(X138="F",VLOOKUP(O138,UKAGirlsAwards,2),"")),"") ->  | Z138: 0 | AA138: =IF($Z138>=1,RANK($Z138,$Z133:$Z148),0) -> 0 | AB138: =IF(AA138<=MaxS,INT(Z138),0) -> 0 | AD138: 0 | AE138: =IF($AD138>=1,RANK($AD138,$AD133:$AD148),0) -> 0 | AF138: =IF(AE138<=MaxS,INT(AD138),0) -> 0 | AI138: 0 | AJ138: 0
B139: 0 | F139: 0 | G139: 0 | H139: 0 | I139: 0 | J139: 0 | K139: 0 | L139: 0 | M139: 0 | O139: 0 | R139: 0 | S139: 0 | T139: 0 | Z139: 0 | AA139: =IF($Z139>=1,RANK($Z139,$Z133:$Z148),0) -> 0 | AB139: 0 | AD139: 0 | AE139: =IF($AD139>=1,RANK($AD139,$AD133:$AD148),0) -> 0 | AF139: 0 | AI139: 0 | AJ139: 0
B140: 0 | F140: 0 | G140: 0 | H140: 0 | I140: 0 | J140: 0 | K140: 0 | L140: 0 | M140: 0 | O140: 0 | R140: 0 | S140: 0 | T140: 0 | Z140: 0 | AA140: =IF($Z140>=1,RANK($Z140,$Z133:$Z148),0) -> 0 | AB140: 0 | AD140: 0 | AE140: =IF($AD140>=1,RANK($AD140,$AD133:$AD148),0) -> 0 | AF140: 0 | AI140: 0 | AJ140: 0
B141: 0 | F141: 0 | G141: 0 | H141: 0 | I141: 0 | J141: 0 | K141: 0 | L141: 0 | M141: 0 | O141: 0 | R141: 0 | S141: 0 | T141: 0 | Z141: 0 | AA141: =IF($Z141>=1,RANK($Z141,$Z133:$Z148),0) -> 0 | AB141: 0 | AD141: 0 | AE141: =IF($AD141>=1,RANK($AD141,$AD133:$AD148),0) -> 0 | AF141: 0 | AI141: 0 | AJ141: 0
B142: 0 | F142: 0 | G142: 0 | H142: 0 | I142: 0 | J142: 0 | K142: 0 | L142: 0 | M142: 0 | O142: 0 | R142: 0 | S142: 0 | T142: 0 | Z142: 0 | AA142: =IF($Z142>=1,RANK($Z142,$Z133:$Z148),0) -> 0 | AB142: 0 | AD142: 0 | AE142: =IF($AD142>=1,RANK($AD142,$AD133:$AD148),0) -> 0 | AF142: 0 | AI142: 0 | AJ142: 0
B143: 0 | F143: 0 | G143: 0 | H143: 0 | I143: 0 | J143: 0 | K143: 0 | L143: 0 | M143: 0 | O143: 0 | R143: 0 | S143: 0 | T143: 0 | Z143: 0 | AA143: =IF($Z143>=1,RANK($Z143,$Z133:$Z148),0) -> 0 | AB143: 0 | AD143: 0 | AE143: =IF($AD143>=1,RANK($AD143,$AD133:$AD148),0) -> 0 | AF143: 0 | AI143: 0 | AJ143: 0
B144: 0 | F144: 0 | G144: 0 | H144: 0 | I144: 0 | J144: 0 | K144: 0 | L144: 0 | M144: 0 | O144: 0 | R144: 0 | S144: 0 | T144: 0 | Z144: 0 | AA144: =IF($Z144>=1,RANK($Z144,$Z133:$Z148),0) -> 0 | AB144: 0 | AD144: 0 | AE144: =IF($AD144>=1,RANK($AD144,$AD133:$AD148),0) -> 0 | AF144: 0 | AI144: 0 | AJ144: 0
B145: 0 | F145: 0 | G145: 0 | H145: 0 | I145: 0 | J145: 0 | K145: 0 | L145: 0 | M145: 0 | O145: 0 | R145: 0 | S145: 0 | T145: 0 | Z145: 0 | AA145: =IF($Z145>=1,RANK($Z145,$Z133:$Z148),0) -> 0 | AB145: 0 | AD145: 0 | AE145: =IF($AD145>=1,RANK($AD145,$AD133:$AD148),0) -> 0 | AF145: 0 | AI145: 0 | AJ145: 0
B146: 0 | F146: 0 | G146: 0 | H146: 0 | I146: 0 | J146: 0 | K146: 0 | L146: 0 | M146: 0 | O146: 0 | R146: 0 | S146: 0 | T146: 0 | Z146: 0 | AA146: =IF($Z146>=1,RANK($Z146,$Z133:$Z148),0) -> 0 | AB146: 0 | AD146: 0 | AE146: =IF($AD146>=1,RANK($AD146,$AD133:$AD148),0) -> 0 | AF146: 0 | AI146: 0 | AJ146: 0
B147: 0 | F147: 0 | G147: 0 | H147: 0 | I147: 0 | J147: 0 | K147: 0 | L147: 0 | M147: 0 | O147: 0 | R147: 0 | S147: 0 | T147: 0 | Z147: 0 | AA147: =IF($Z147>=1,RANK($Z147,$Z133:$Z148),0) -> 0 | AB147: 0 | AD147: 0 | AE147: =IF($AD147>=1,RANK($AD147,$AD133:$AD148),0) -> 0 | AF147: 0 | AI147: 0 | AJ147: 0
B148: 0 | F148: 0 | G148: 0 | H148: 0 | I148: 0 | J148: 0 | K148: 0 | L148: 0 | M148: 0 | O148: 0 | R148: 0 | S148: 0 | T148: 0 | Z148: 0 | AA148: =IF($Z148>=1,RANK($Z148,$Z133:$Z148),0) -> 0 | AB148: 0 | AC148: =SUM(AB133:AB148) -> 0 | AD148: 0 | AE148: =IF($AD148>=1,RANK($AD148,$AD133:$AD148),0) -> 0 | AF148: 0 | AG148: =SUM(AF133:AF148) -> 0 | AI148: 0 | AJ148: 0
B149: 0 | F149: 0 | G149: 0 | H149: 0 | I149: 0 | J149: 0 | K149: 0 | L149: 0 | M149: 0 | N149: =INDEX(RelayPoints,A164) ->  | O149: =+G149+I149+K149+M149 -> 0 | P149: =+AC164+AG164+N149 ->  | Q149: =IF(AB149+AF149>0,"*","") ->  | R149: 0 | S149: 0 | T149: 0 | Z149: 0 | AA149: =IF($Z149>=1,RANK($Z149,$Z149:$Z164),0) -> 0 | AB149: =IF(AA149<=MaxS,INT(Z149),0) -> 0 | AD149: 0 | AE149: =IF($AD149>=1,RANK($AD149,$AD149:$AD164),0) -> 0 | AF149: =IF(AE149<=MaxS,INT(AD149),0) -> 0 | AI149: 0 | AJ149: 0
B150: 0 | F150: 0 | G150: 0 | H150: 0 | I150: 0 | J150: 0 | K150: 0 | L150: 0 | M150: 0 | O150: =+G150+I150+K150+M150 -> 0 | Q150: =IF(AB150+AF150>0,"*","") ->  | R150: 0 | S150: 0 | T150: 0 | Z150: 0 | AA150: =IF($Z150>=1,RANK($Z150,$Z149:$Z164),0) -> 0 | AB150: 0 | AD150: 0 | AE150: =IF($AD150>=1,RANK($AD150,$AD149:$AD164),0) -> 0 | AF150: 0 | AI150: 0 | AJ150: 0
B151: =IF(OR(ISNA(MATCH(C151&"",AthleteNumbers,0)),ISBLANK(C151)),0,MATCH(C151&"",AthleteNumbers,0)) -> 0 | D151: =IF($B151>0,INDEX(DB,$B151,8),"") ->  | E151: =IF($B151>0,INDEX(DB,$B151,3),"") ->  | F151: =IF($B151>0,INDEX(DB,$B151,13),0) -> 0 | G151: =IF($B151>0,INDEX(DB,$B151,17),0) -> 0 | H151: =IF($B151>0,INDEX(DB,$B151,15),0) -> 0 | I151: =IF($B151>0,INDEX(DB,$B151,19),0) -> 0 | J151: =IF($B151>0,INDEX(DB,$B151,14),0) -> 0 | K151: =IF($B151>0,INDEX(DB,$B151,18),0) -> 0 | L151: =IF($B151>0,INDEX(DB,$B151,16),0) -> 0 | M151: =IF($B151>0,INDEX(DB,$B151,20),0) -> 0 | O151: 0 | R151: =IF($AI151>0,RANK($AI151,BoysPoints),0) -> 0 | S151: =IF($AJ151>0,RANK($AJ151,GirlsPoints),0) -> 0 | T151: =IF($O151>0,RANK(O151,AthletePoints),0) -> 0 | V151: =IF(O151>=40,IF(X151="M",VLOOKUP(O151,UKABoysAwards,2),IF(X151="F",VLOOKUP(O151,UKAGirlsAwards,2),"")),"") ->  | X151: =INDEX(DB,$B151,4) ->  | Z151: =IF($X151="M",$O151+(ROW()/10000),0) -> 0 | AA151: =IF($Z151>=1,RANK($Z151,$Z149:$Z164),0) -> 0 | AB151: 0 | AD151: =IF($X151="F",$O151+(ROW()/10000),0) -> 0 | AE151: =IF($AD151>=1,RANK($AD151,$AD149:$AD164),0) -> 0 | AF151: 0 | AI151: 0 | AJ151: 0
B152: 0 | F152: 0 | G152: 0 | H152: 0 | I152: 0 | J152: 0 | K152: 0 | L152: 0 | M152: 0 | O152: 0 | R152: 0 | S152: 0 | T152: 0 | Z152: 0 | AA152: =IF($Z152>=1,RANK($Z152,$Z149:$Z164),0) -> 0 | AB152: 0 | AD152: 0 | AE152: =IF($AD152>=1,RANK($AD152,$AD149:$AD164),0) -> 0 | AF152: 0 | AI152: =IF($X152="M",$O152,0) -> 0 | AJ152: =IF($X152="F",$O152,0) -> 0
B153: =IF(OR(ISNA(MATCH(C153&"",AthleteNumbers,0)),ISBLANK(C153)),0,MATCH(C153&"",AthleteNumbers,0)) -> 0 | F153: 0 | G153: 0 | H153: 0 | I153: 0 | J153: 0 | K153: 0 | L153: 0 | M153: 0 | O153: =+G153+I153+K153+M153 -> 0 | Q153: =IF(AB153+AF153>0,"*","") ->  | R153: 0 | S153: 0 | T153: =IF($O153>0,RANK(O153,AthletePoints),0) -> 0 | V153: =IF(O153>=40,IF(X153="M",VLOOKUP(O153,UKABoysAwards,2),IF(X153="F",VLOOKUP(O153,UKAGirlsAwards,2),"")),"") ->  | Z153: 0 | AA153: =IF($Z153>=1,RANK($Z153,$Z149:$Z164),0) -> 0 | AB153: =IF(AA153<=MaxS,INT(Z153),0) -> 0 | AD153: 0 | AE153: =IF($AD153>=1,RANK($AD153,$AD149:$AD164),0) -> 0 | AF153: =IF(AE153<=MaxS,INT(AD153),0) -> 0 | AI153: 0 | AJ153: 0
B154: =IF(OR(ISNA(MATCH(C154&"",AthleteNumbers,0)),ISBLANK(C154)),0,MATCH(C154&"",AthleteNumbers,0)) -> 0 | F154: 0 | G154: 0 | H154: 0 | I154: 0 | J154: 0 | K154: 0 | L154: 0 | M154: 0 | O154: =+G154+I154+K154+M154 -> 0 | Q154: =IF(AB154+AF154>0,"*","") ->  | R154: 0 | S154: 0 | T154: =IF($O154>0,RANK(O154,AthletePoints),0) -> 0 | V154: =IF(O154>=40,IF(X154="M",VLOOKUP(O154,UKABoysAwards,2),IF(X154="F",VLOOKUP(O154,UKAGirlsAwards,2),"")),"") ->  | Z154: 0 | AA154: =IF($Z154>=1,RANK($Z154,$Z149:$Z164),0) -> 0 | AB154: =IF(AA154<=MaxS,INT(Z154),0) -> 0 | AD154: 0 | AE154: =IF($AD154>=1,RANK($AD154,$AD149:$AD164),0) -> 0 | AF154: =IF(AE154<=MaxS,INT(AD154),0) -> 0 | AI154: 0 | AJ154: 0
B155: 0 | F155: 0 | G155: 0 | H155: 0 | I155: 0 | J155: 0 | K155: 0 | L155: 0 | M155: 0 | O155: 0 | R155: 0 | S155: 0 | T155: 0 | Z155: 0 | AA155: =IF($Z155>=1,RANK($Z155,$Z149:$Z164),0) -> 0 | AB155: 0 | AD155: 0 | AE155: =IF($AD155>=1,RANK($AD155,$AD149:$AD164),0) -> 0 | AF155: 0 | AI155: 0 | AJ155: 0
B156: 0 | F156: 0 | G156: 0 | H156: 0 | I156: 0 | J156: 0 | K156: 0 | L156: 0 | M156: 0 | O156: 0 | R156: 0 | S156: 0 | T156: 0 | Z156: 0 | AA156: =IF($Z156>=1,RANK($Z156,$Z149:$Z164),0) -> 0 | AB156: 0 | AD156: 0 | AE156: =IF($AD156>=1,RANK($AD156,$AD149:$AD164),0) -> 0 | AF156: 0 | AI156: 0 | AJ156: 0
B157: 0 | F157: 0 | G157: 0 | H157: 0 | I157: 0 | J157: 0 | K157: 0 | L157: 0 | M157: 0 | O157: 0 | R157: 0 | S157: 0 | T157: 0 | Z157: 0 | AA157: =IF($Z157>=1,RANK($Z157,$Z149:$Z164),0) -> 0 | AB157: 0 | AD157: 0 | AE157: =IF($AD157>=1,RANK($AD157,$AD149:$AD164),0) -> 0 | AF157: 0 | AI157: 0 | AJ157: 0
B158: 0 | F158: 0 | G158: 0 | H158: 0 | I158: 0 | J158: 0 | K158: 0 | L158: 0 | M158: 0 | O158: 0 | R158: 0 | S158: 0 | T158: 0 | Z158: 0 | AA158: =IF($Z158>=1,RANK($Z158,$Z149:$Z164),0) -> 0 | AB158: 0 | AD158: 0 | AE158: =IF($AD158>=1,RANK($AD158,$AD149:$AD164),0) -> 0 | AF158: 0 | AI158: 0 | AJ158: 0
B159: 0 | F159: 0 | G159: 0 | H159: 0 | I159: 0 | J159: 0 | K159: 0 | L159: 0 | M159: 0 | O159: 0 | R159: 0 | S159: 0 | T159: 0 | Z159: 0 | AA159: =IF($Z159>=1,RANK($Z159,$Z149:$Z164),0) -> 0 | AB159: 0 | AD159: 0 | AE159: =IF($AD159>=1,RANK($AD159,$AD149:$AD164),0) -> 0 | AF159: 0 | AI159: 0 | AJ159: 0
B160: 0 | F160: 0 | G160: 0 | H160: 0 | I160: 0 | J160: 0 | K160: 0 | L160: 0 | M160: 0 | O160: 0 | R160: 0 | S160: 0 | T160: 0 | Z160: 0 | AA160: =IF($Z160>=1,RANK($Z160,$Z149:$Z164),0) -> 0 | AB160: 0 | AD160: 0 | AE160: =IF($AD160>=1,RANK($AD160,$AD149:$AD164),0) -> 0 | AF160: 0 | AI160: 0 | AJ160: 0
B161: 0 | F161: 0 | G161: 0 | H161: 0 | I161: 0 | J161: 0 | K161: 0 | L161: 0 | M161: 0 | O161: 0 | R161: 0 | S161: 0 | T161: 0 | Z161: 0 | AA161: =IF($Z161>=1,RANK($Z161,$Z149:$Z164),0) -> 0 | AB161: 0 | AD161: 0 | AE161: =IF($AD161>=1,RANK($AD161,$AD149:$AD164),0) -> 0 | AF161: 0 | AI161: 0 | AJ161: 0
B162: 0 | F162: 0 | G162: 0 | H162: 0 | I162: 0 | J162: 0 | K162: 0 | L162: 0 | M162: 0 | O162: 0 | R162: 0 | S162: 0 | T162: 0 | Z162: 0 | AA162: =IF($Z162>=1,RANK($Z162,$Z149:$Z164),0) -> 0 | AB162: 0 | AD162: 0 | AE162: =IF($AD162>=1,RANK($AD162,$AD149:$AD164),0) -> 0 | AF162: 0 | AI162: 0 | AJ162: 0
B163: 0 | F163: 0 | G163: 0 | H163: 0 | I163: 0 | J163: 0 | K163: 0 | L163: 0 | M163: 0 | O163: 0 | R163: 0 | S163: 0 | T163: 0 | Z163: 0 | AA163: =IF($Z163>=1,RANK($Z163,$Z149:$Z164),0) -> 0 | AB163: 0 | AD163: 0 | AE163: =IF($AD163>=1,RANK($AD163,$AD149:$AD164),0) -> 0 | AF163: 0 | AI163: 0 | AJ163: 0
B164: 0 | F164: 0 | G164: 0 | H164: 0 | I164: 0 | J164: 0 | K164: 0 | L164: 0 | M164: 0 | O164: 0 | R164: 0 | S164: 0 | T164: 0 | Z164: 0 | AA164: =IF($Z164>=1,RANK($Z164,$Z149:$Z164),0) -> 0 | AB164: 0 | AC164: =SUM(AB149:AB164) -> 0 | AD164: 0 | AE164: =IF($AD164>=1,RANK($AD164,$AD149:$AD164),0) -> 0 | AF164: 0 | AG164: =SUM(AF149:AF164) -> 0 | AI164: 0 | AJ164: 0
B165: 0 | F165: 0 | G165: 0 | H165: 0 | I165: 0 | J165: 0 | K165: 0 | L165: 0 | M165: 0 | N165: =INDEX(RelayPoints,A180) ->  | O165: =+G165+I165+K165+M165 -> 0 | P165: =+AC180+AG180+N165 ->  | Q165: =IF(AB165+AF165>0,"*","") ->  | R165: 0 | S165: 0 | T165: 0 | Z165: 0 | AA165: =IF($Z165>=1,RANK($Z165,$Z165:$Z180),0) -> 0 | AB165: =IF(AA165<=MaxS,INT(Z165),0) -> 0 | AD165: 0 | AE165: =IF($AD165>=1,RANK($AD165,$AD165:$AD180),0) -> 0 | AF165: =IF(AE165<=MaxS,INT(AD165),0) -> 0 | AI165: 0 | AJ165: 0
B166: 0 | F166: 0 | G166: 0 | H166: 0 | I166: 0 | J166: 0 | K166: 0 | L166: 0 | M166: 0 | O166: =+G166+I166+K166+M166 -> 0 | Q166: =IF(AB166+AF166>0,"*","") ->  | R166: 0 | S166: 0 | T166: 0 | Z166: 0 | AA166: =IF($Z166>=1,RANK($Z166,$Z165:$Z180),0) -> 0 | AB166: 0 | AD166: 0 | AE166: =IF($AD166>=1,RANK($AD166,$AD165:$AD180),0) -> 0 | AF166: 0 | AI166: 0 | AJ166: 0
B167: 0 | F167: 0 | G167: 0 | H167: 0 | I167: 0 | J167: 0 | K167: 0 | L167: 0 | M167: 0 | O167: 0 | R167: 0 | S167: 0 | T167: 0 | Z167: 0 | AA167: =IF($Z167>=1,RANK($Z167,$Z165:$Z180),0) -> 0 | AB167: 0 | AD167: 0 | AE167: =IF($AD167>=1,RANK($AD167,$AD165:$AD180),0) -> 0 | AF167: 0 | AI167: 0 | AJ167: 0
B168: 0 | F168: 0 | G168: 0 | H168: 0 | I168: 0 | J168: 0 | K168: 0 | L168: 0 | M168: 0 | O168: 0 | R168: 0 | S168: 0 | T168: 0 | Z168: 0 | AA168: =IF($Z168>=1,RANK($Z168,$Z165:$Z180),0) -> 0 | AB168: 0 | AD168: 0 | AE168: =IF($AD168>=1,RANK($AD168,$AD165:$AD180),0) -> 0 | AF168: 0 | AI168: 0 | AJ168: 0
B169: 0 | F169: 0 | G169: 0 | H169: 0 | I169: 0 | J169: 0 | K169: 0 | L169: 0 | M169: 0 | O169: 0 | R169: 0 | S169: 0 | T169: 0 | Z169: 0 | AA169: =IF($Z169>=1,RANK($Z169,$Z165:$Z180),0) -> 0 | AB169: 0 | AD169: 0 | AE169: =IF($AD169>=1,RANK($AD169,$AD165:$AD180),0) -> 0 | AF169: 0 | AI169: 0 | AJ169: 0
B170: =IF(OR(ISNA(MATCH(C170&"",AthleteNumbers,0)),ISBLANK(C170)),0,MATCH(C170&"",AthleteNumbers,0)) -> 0 | F170: 0 | G170: 0 | H170: 0 | I170: 0 | J170: 0 | K170: 0 | L170: 0 | M170: 0 | O170: =+G170+I170+K170+M170 -> 0 | Q170: =IF(AB170+AF170>0,"*","") ->  | R170: 0 | S170: 0 | T170: =IF($O170>0,RANK(O170,AthletePoints),0) -> 0 | V170: =IF(O170>=40,IF(X170="M",VLOOKUP(O170,UKABoysAwards,2),IF(X170="F",VLOOKUP(O170,UKAGirlsAwards,2),"")),"") ->  | Z170: 0 | AA170: =IF($Z170>=1,RANK($Z170,$Z165:$Z180),0) -> 0 | AB170: =IF(AA170<=MaxS,INT(Z170),0) -> 0 | AD170: 0 | AE170: =IF($AD170>=1,RANK($AD170,$AD165:$AD180),0) -> 0 | AF170: =IF(AE170<=MaxS,INT(AD170),0) -> 0 | AI170: 0 | AJ170: 0
B171: =IF(OR(ISNA(MATCH(C171&"",AthleteNumbers,0)),ISBLANK(C171)),0,MATCH(C171&"",AthleteNumbers,0)) -> 0 | F171: 0 | G171: 0 | H171: 0 | I171: 0 | J171: 0 | K171: 0 | L171: 0 | M171: 0 | O171: =+G171+I171+K171+M171 -> 0 | Q171: =IF(AB171+AF171>0,"*","") ->  | R171: 0 | S171: 0 | T171: =IF($O171>0,RANK(O171,AthletePoints),0) -> 0 | V171: =IF(O171>=40,IF(X171="M",VLOOKUP(O171,UKABoysAwards,2),IF(X171="F",VLOOKUP(O171,UKAGirlsAwards,2),"")),"") ->  | Z171: 0 | AA171: =IF($Z171>=1,RANK($Z171,$Z165:$Z180),0) -> 0 | AB171: =IF(AA171<=MaxS,INT(Z171),0) -> 0 | AD171: 0 | AE171: =IF($AD171>=1,RANK($AD171,$AD165:$AD180),0) -> 0 | AF171: =IF(AE171<=MaxS,INT(AD171),0) -> 0 | AI171: 0 | AJ171: 0
B172: 0 | F172: 0 | G172: 0 | H172: 0 | I172: 0 | J172: 0 | K172: 0 | L172: 0 | M172: 0 | O172: 0 | R172: 0 | S172: 0 | T172: 0 | Z172: 0 | AA172: =IF($Z172>=1,RANK($Z172,$Z165:$Z180),0) -> 0 | AB172: 0 | AD172: 0 | AE172: =IF($AD172>=1,RANK($AD172,$AD165:$AD180),0) -> 0 | AF172: 0 | AI172: 0 | AJ172: 0
B173: 0 | F173: 0 | G173: 0 | H173: 0 | I173: 0 | J173: 0 | K173: 0 | L173: 0 | M173: 0 | O173: 0 | R173: 0 | S173: 0 | T173: 0 | Z173: 0 | AA173: =IF($Z173>=1,RANK($Z173,$Z165:$Z180),0) -> 0 | AB173: 0 | AD173: 0 | AE173: =IF($AD173>=1,RANK($AD173,$AD165:$AD180),0) -> 0 | AF173: 0 | AI173: 0 | AJ173: 0
B174: 0 | F174: 0 | G174: 0 | H174: 0 | I174: 0 | J174: 0 | K174: 0 | L174: 0 | M174: 0 | O174: 0 | R174: 0 | S174: 0 | T174: 0 | Z174: 0 | AA174: =IF($Z174>=1,RANK($Z174,$Z165:$Z180),0) -> 0 | AB174: 0 | AD174: 0 | AE174: =IF($AD174>=1,RANK($AD174,$AD165:$AD180),0) -> 0 | AF174: 0 | AI174: 0 | AJ174: 0
B175: 0 | F175: 0 | G175: 0 | H175: 0 | I175: 0 | J175: 0 | K175: 0 | L175: 0 | M175: 0 | O175: 0 | R175: 0 | S175: 0 | T175: 0 | Z175: 0 | AA175: =IF($Z175>=1,RANK($Z175,$Z165:$Z180),0) -> 0 | AB175: 0 | AD175: 0 | AE175: =IF($AD175>=1,RANK($AD175,$AD165:$AD180),0) -> 0 | AF175: 0 | AI175: 0 | AJ175: 0
B176: 0 | F176: 0 | G176: 0 | H176: 0 | I176: 0 | J176: 0 | K176: 0 | L176: 0 | M176: 0 | O176: 0 | R176: 0 | S176: 0 | T176: 0 | Z176: 0 | AA176: =IF($Z176>=1,RANK($Z176,$Z165:$Z180),0) -> 0 | AB176: 0 | AD176: 0 | AE176: =IF($AD176>=1,RANK($AD176,$AD165:$AD180),0) -> 0 | AF176: 0 | AI176: 0 | AJ176: 0
B177: 0 | F177: 0 | G177: 0 | H177: 0 | I177: 0 | J177: 0 | K177: 0 | L177: 0 | M177: 0 | O177: 0 | R177: 0 | S177: 0 | T177: 0 | Z177: 0 | AA177: =IF($Z177>=1,RANK($Z177,$Z165:$Z180),0) -> 0 | AB177: 0 | AD177: 0 | AE177: =IF($AD177>=1,RANK($AD177,$AD165:$AD180),0) -> 0 | AF177: 0 | AI177: 0 | AJ177: 0
B178: 0 | F178: 0 | G178: 0 | H178: 0 | I178: 0 | J178: 0 | K178: 0 | L178: 0 | M178: 0 | O178: 0 | R178: 0 | S178: 0 | T178: 0 | Z178: 0 | AA178: =IF($Z178>=1,RANK($Z178,$Z165:$Z180),0) -> 0 | AB178: 0 | AD178: 0 | AE178: =IF($AD178>=1,RANK($AD178,$AD165:$AD180),0) -> 0 | AF178: 0 | AI178: 0 | AJ178: 0
B179: 0 | F179: 0 | G179: 0 | H179: 0 | I179: 0 | J179: 0 | K179: 0 | L179: 0 | M179: 0 | O179: 0 | R179: 0 | S179: 0 | T179: 0 | Z179: 0 | AA179: =IF($Z179>=1,RANK($Z179,$Z165:$Z180),0) -> 0 | AB179: 0 | AD179: 0 | AE179: =IF($AD179>=1,RANK($AD179,$AD165:$AD180),0) -> 0 | AF179: 0 | AI179: 0 | AJ179: 0
B180: 0 | F180: 0 | G180: 0 | H180: 0 | I180: 0 | J180: 0 | K180: 0 | L180: 0 | M180: 0 | O180: 0 | R180: 0 | S180: 0 | T180: 0 | Z180: 0 | AA180: =IF($Z180>=1,RANK($Z180,$Z165:$Z180),0) -> 0 | AB180: 0 | AC180: =SUM(AB165:AB180) -> 0 | AD180: 0 | AE180: =IF($AD180>=1,RANK($AD180,$AD165:$AD180),0) -> 0 | AF180: 0 | AG180: =SUM(AF165:AF180) -> 0 | AI180: 0 | AJ180: 0
B181: 0 | F181: 0 | G181: 0 | H181: 0 | I181: 0 | J181: 0 | K181: 0 | L181: 0 | M181: 0 | N181: =INDEX(RelayPoints,A196) ->  | O181: =+G181+I181+K181+M181 -> 0 | P181: =+AC196+AG196+N181 ->  | Q181: =IF(AB181+AF181>0,"*","") ->  | R181: 0 | S181: 0 | T181: 0 | Z181: 0 | AA181: =IF($Z181>=1,RANK($Z181,$Z181:$Z196),0) -> 0 | AB181: 0 | AD181: 0 | AE181: =IF($AD181>=1,RANK($AD181,$AD181:$AD196),0) -> 0 | AF181: 0 | AI181: 0 | AJ181: 0
B182: 0 | F182: 0 | G182: 0 | H182: 0 | I182: 0 | J182: 0 | K182: 0 | L182: 0 | M182: 0 | O182: =+G182+I182+K182+M182 -> 0 | Q182: =IF(AB182+AF182>0,"*","") ->  | R182: 0 | S182: 0 | T182: 0 | Z182: 0 | AA182: =IF($Z182>=1,RANK($Z182,$Z181:$Z196),0) -> 0 | AB182: 0 | AD182: 0 | AE182: =IF($AD182>=1,RANK($AD182,$AD181:$AD196),0) -> 0 | AF182: 0 | AI182: 0 | AJ182: 0
B183: 0 | F183: 0 | G183: 0 | H183: 0 | I183: 0 | J183: 0 | K183: 0 | L183: 0 | M183: 0 | O183: 0 | R183: 0 | S183: 0 | T183: 0 | Z183: 0 | AA183: =IF($Z183>=1,RANK($Z183,$Z181:$Z196),0) -> 0 | AB183: 0 | AD183: 0 | AE183: =IF($AD183>=1,RANK($AD183,$AD181:$AD196),0) -> 0 | AF183: 0 | AI183: 0 | AJ183: 0
B184: 0 | F184: 0 | G184: 0 | H184: 0 | I184: 0 | J184: 0 | K184: 0 | L184: 0 | M184: 0 | O184: 0 | R184: 0 | S184: 0 | T184: 0 | Z184: 0 | AA184: =IF($Z184>=1,RANK($Z184,$Z181:$Z196),0) -> 0 | AB184: 0 | AD184: 0 | AE184: =IF($AD184>=1,RANK($AD184,$AD181:$AD196),0) -> 0 | AF184: 0 | AI184: 0 | AJ184: 0
B185: =IF(OR(ISNA(MATCH(C185&"",AthleteNumbers,0)),ISBLANK(C185)),0,MATCH(C185&"",AthleteNumbers,0)) -> 0 | F185: 0 | G185: 0 | H185: 0 | I185: 0 | J185: 0 | K185: 0 | L185: 0 | M185: 0 | O185: =+G185+I185+K185+M185 -> 0 | Q185: =IF(AB185+AF185>0,"*","") ->  | R185: 0 | S185: 0 | T185: =IF($O185>0,RANK(O185,AthletePoints),0) -> 0 | V185: =IF(O185>=40,IF(X185="M",VLOOKUP(O185,UKABoysAwards,2),IF(X185="F",VLOOKUP(O185,UKAGirlsAwards,2),"")),"") ->  | Z185: 0 | AA185: =IF($Z185>=1,RANK($Z185,$Z181:$Z196),0) -> 0 | AB185: =IF(AA185<=MaxS,INT(Z185),0) -> 0 | AD185: 0 | AE185: =IF($AD185>=1,RANK($AD185,$AD181:$AD196),0) -> 0 | AF185: =IF(AE185<=MaxS,INT(AD185),0) -> 0 | AI185: 0 | AJ185: 0
B186: =IF(OR(ISNA(MATCH(C186&"",AthleteNumbers,0)),ISBLANK(C186)),0,MATCH(C186&"",AthleteNumbers,0)) -> 0 | F186: 0 | G186: 0 | H186: 0 | I186: 0 | J186: 0 | K186: 0 | L186: 0 | M186: 0 | O186: =+G186+I186+K186+M186 -> 0 | Q186: =IF(AB186+AF186>0,"*","") ->  | R186: 0 | S186: 0 | T186: =IF($O186>0,RANK(O186,AthletePoints),0) -> 0 | V186: =IF(O186>=40,IF(X186="M",VLOOKUP(O186,UKABoysAwards,2),IF(X186="F",VLOOKUP(O186,UKAGirlsAwards,2),"")),"") ->  | Z186: 0 | AA186: =IF($Z186>=1,RANK($Z186,$Z181:$Z196),0) -> 0 | AB186: =IF(AA186<=MaxS,INT(Z186),0) -> 0 | AD186: 0 | AE186: =IF($AD186>=1,RANK($AD186,$AD181:$AD196),0) -> 0 | AF186: =IF(AE186<=MaxS,INT(AD186),0) -> 0 | AI186: 0 | AJ186: 0
B187: 0 | F187: 0 | G187: 0 | H187: 0 | I187: 0 | J187: 0 | K187: 0 | L187: 0 | M187: 0 | O187: 0 | R187: 0 | S187: 0 | T187: 0 | Z187: 0 | AA187: =IF($Z187>=1,RANK($Z187,$Z181:$Z196),0) -> 0 | AB187: 0 | AD187: 0 | AE187: =IF($AD187>=1,RANK($AD187,$AD181:$AD196),0) -> 0 | AF187: 0 | AI187: 0 | AJ187: 0
B188: 0 | F188: 0 | G188: 0 | H188: 0 | I188: 0 | J188: 0 | K188: 0 | L188: 0 | M188: 0 | O188: 0 | R188: 0 | S188: 0 | T188: 0 | Z188: 0 | AA188: =IF($Z188>=1,RANK($Z188,$Z181:$Z196),0) -> 0 | AB188: 0 | AD188: 0 | AE188: =IF($AD188>=1,RANK($AD188,$AD181:$AD196),0) -> 0 | AF188: 0 | AI188: 0 | AJ188: 0
B189: 0 | F189: 0 | G189: 0 | H189: 0 | I189: 0 | J189: 0 | K189: 0 | L189: 0 | M189: 0 | O189: 0 | R189: 0 | S189: 0 | T189: 0 | Z189: 0 | AA189: =IF($Z189>=1,RANK($Z189,$Z181:$Z196),0) -> 0 | AB189: 0 | AD189: 0 | AE189: =IF($AD189>=1,RANK($AD189,$AD181:$AD196),0) -> 0 | AF189: 0 | AI189: 0 | AJ189: 0
B190: 0 | F190: 0 | G190: 0 | H190: 0 | I190: 0 | J190: 0 | K190: 0 | L190: 0 | M190: 0 | O190: 0 | R190: 0 | S190: 0 | T190: 0 | Z190: 0 | AA190: =IF($Z190>=1,RANK($Z190,$Z181:$Z196),0) -> 0 | AB190: 0 | AD190: 0 | AE190: =IF($AD190>=1,RANK($AD190,$AD181:$AD196),0) -> 0 | AF190: 0 | AI190: 0 | AJ190: 0
B191: 0 | F191: 0 | G191: 0 | H191: 0 | I191: 0 | J191: 0 | K191: 0 | L191: 0 | M191: 0 | O191: 0 | R191: 0 | S191: 0 | T191: 0 | Z191: 0 | AA191: =IF($Z191>=1,RANK($Z191,$Z181:$Z196),0) -> 0 | AB191: 0 | AD191: 0 | AE191: =IF($AD191>=1,RANK($AD191,$AD181:$AD196),0) -> 0 | AF191: 0 | AI191: 0 | AJ191: 0
B192: 0 | F192: 0 | G192: 0 | H192: 0 | I192: 0 | J192: 0 | K192: 0 | L192: 0 | M192: 0 | O192: 0 | R192: 0 | S192: 0 | T192: 0 | Z192: 0 | AA192: =IF($Z192>=1,RANK($Z192,$Z181:$Z196),0) -> 0 | AB192: 0 | AD192: 0 | AE192: =IF($AD192>=1,RANK($AD192,$AD181:$AD196),0) -> 0 | AF192: 0 | AI192: 0 | AJ192: 0
B193: 0 | F193: 0 | G193: 0 | H193: 0 | I193: 0 | J193: 0 | K193: 0 | L193: 0 | M193: 0 | O193: 0 | R193: 0 | S193: 0 | T193: 0 | Z193: 0 | AA193: =IF($Z193>=1,RANK($Z193,$Z181:$Z196),0) -> 0 | AB193: 0 | AD193: 0 | AE193: =IF($AD193>=1,RANK($AD193,$AD181:$AD196),0) -> 0 | AF193: 0 | AI193: 0 | AJ193: 0
B194: 0 | F194: 0 | G194: 0 | H194: 0 | I194: 0 | J194: 0 | K194: 0 | L194: 0 | M194: 0 | O194: 0 | R194: 0 | S194: 0 | T194: 0 | Z194: 0 | AA194: =IF($Z194>=1,RANK($Z194,$Z181:$Z196),0) -> 0 | AB194: 0 | AD194: 0 | AE194: =IF($AD194>=1,RANK($AD194,$AD181:$AD196),0) -> 0 | AF194: 0 | AI194: 0 | AJ194: 0
B195: 0 | F195: 0 | G195: 0 | H195: 0 | I195: 0 | J195: 0 | K195: 0 | L195: 0 | M195: 0 | O195: 0 | R195: 0 | S195: 0 | T195: 0 | Z195: 0 | AA195: =IF($Z195>=1,RANK($Z195,$Z181:$Z196),0) -> 0 | AB195: 0 | AD195: 0 | AE195: =IF($AD195>=1,RANK($AD195,$AD181:$AD196),0) -> 0 | AF195: 0 | AI195: 0 | AJ195: 0
B196: 0 | F196: 0 | G196: 0 | H196: 0 | I196: 0 | J196: 0 | K196: 0 | L196: 0 | M196: 0 | O196: 0 | R196: 0 | S196: 0 | T196: 0 | Z196: 0 | AA196: =IF($Z196>=1,RANK($Z196,$Z181:$Z196),0) -> 0 | AB196: 0 | AC196: =SUM(AB181:AB196) -> 0 | AD196: 0 | AE196: =IF($AD196>=1,RANK($AD196,$AD181:$AD196),0) -> 0 | AF196: 0 | AG196: =SUM(AF181:AF196) -> 0 | AI196: 0 | AJ196: 0
B197: 0 | F197: 0 | G197: 0 | H197: 0 | I197: 0 | J197: 0 | K197: 0 | L197: 0 | M197: 0 | N197: =INDEX(RelayPoints,A212) ->  | O197: =+G197+I197+K197+M197 -> 0 | P197: =+AC212+AG212+N197 ->  | Q197: =IF(AB197+AF197>0,"*","") ->  | R197: 0 | S197: 0 | T197: 0 | Z197: 0 | AA197: =IF($Z197>=1,RANK($Z197,$Z197:$Z212),0) -> 0 | AB197: 0 | AD197: 0 | AE197: =IF($AD197>=1,RANK($AD197,$AD197:$AD212),0) -> 0 | AF197: 0 | AI197: 0 | AJ197: 0
B198: 0 | F198: 0 | G198: 0 | H198: 0 | I198: 0 | J198: 0 | K198: 0 | L198: 0 | M198: 0 | O198: =+G198+I198+K198+M198 -> 0 | Q198: =IF(AB198+AF198>0,"*","") ->  | R198: 0 | S198: 0 | T198: 0 | Z198: 0 | AA198: =IF($Z198>=1,RANK($Z198,$Z197:$Z212),0) -> 0 | AB198: 0 | AD198: 0 | AE198: =IF($AD198>=1,RANK($AD198,$AD197:$AD212),0) -> 0 | AF198: 0 | AI198: 0 | AJ198: 0
B199: 0 | F199: 0 | G199: 0 | H199: 0 | I199: 0 | J199: 0 | K199: 0 | L199: 0 | M199: 0 | O199: 0 | R199: 0 | S199: 0 | T199: 0 | Z199: 0 | AA199: =IF($Z199>=1,RANK($Z199,$Z197:$Z212),0) -> 0 | AB199: 0 | AD199: 0 | AE199: =IF($AD199>=1,RANK($AD199,$AD197:$AD212),0) -> 0 | AF199: 0 | AI199: 0 | AJ199: 0
B200: 0 | F200: 0 | G200: 0 | H200: 0 | I200: 0 | J200: 0 | K200: 0 | L200: 0 | M200: 0 | O200: 0 | R200: 0 | S200: 0 | T200: 0 | Z200: 0 | AA200: =IF($Z200>=1,RANK($Z200,$Z197:$Z212),0) -> 0 | AB200: 0 | AD200: 0 | AE200: =IF($AD200>=1,RANK($AD200,$AD197:$AD212),0) -> 0 | AF200: 0 | AI200: 0 | AJ200: 0
B201: 0 | F201: 0 | G201: 0 | H201: 0 | I201: 0 | J201: 0 | K201: 0 | L201: 0 | M201: 0 | O201: 0 | R201: 0 | S201: 0 | T201: 0 | Z201: 0 | AA201: =IF($Z201>=1,RANK($Z201,$Z197:$Z212),0) -> 0 | AB201: 0 | AD201: 0 | AE201: =IF($AD201>=1,RANK($AD201,$AD197:$AD212),0) -> 0 | AF201: 0 | AI201: 0 | AJ201: 0
... 363 more rows

Sheet DataV9
A1: No. | B1: Name | C1: Team | D1: Gender | E1: DOB | F1: Disability | H1: Dname | I1: AgeGrp | J1: AgeDesc | M1: Sprint | N1: Jump | O1: Run | P1: Throw | Q1: Sprint | R1: Jump | S1: Run | T1: Throw | U1: POINTS | V1: FSPRINT | W1: FJUMP | X1: FRUN | Y1: FTHROW | Z1: LASTCOL | AA1: IDX
A2: =+Declarations!A2&"" -> 3 | B2: =IF(LEN($A2),IF(LEN(Declarations!$B2)>0,Declarations!$B2,"#"&$A2),"") -> Jess Bailey | C2: =IF(LEN(INDEX(DECLARATIONS,$AA2,3))>0,INDEX(DECLARATIONS,$AA2,3),"...") -> Cheltenham and County Harriers | D2: =IF(OR(G2="G",G2="F"),"F",IF(OR(G2="B",G2="M"),"M","")) -> F | E2: =IF(ISNA($AA2),0,INDEX(DECLARATIONS,$AA2,5)) -> 2014-04-02 | F2: =IF(ISNA($AA2),0,INDEX(DECLARATIONS,$AA2,7)) -> 0 | G2: =UPPER(IF(ISNA($AA2),"",INDEX(DECLARATIONS,$AA2,4))) -> F | H2: =IF(AND(A2>0,ISTEXT(B2)),IF(SECNAME="YES",LEFT(B2&" ",FIND(" ",B2&" ")+2)&IF(F2>0," ("&F2&")",""), B2&IF(F2>0," ("&F2&")","")),"#"&$A2) -> Jess Bailey | I2: =IF(LEN($A2)>0,IF(LEN($J2)>0,MATCH(J2,MatchNames,0),EventIndex),0) -> 4 | J2: =IF(LEN($A2)>0,IF(LEN(Declarations!$F2)>0,Declarations!$F2,conftype),"") -> QuadKids Primary | M2: 12.3 | N2: 1.69 | O2: 2.06 | P2: 19.11 | Q2: =IF(ISNA(VLOOKUP($A2,SprintData,4,FALSE)),0,VLOOKUP($A2,SprintData,4,FALSE))+V2 -> 47 | R2: =IF(ISNA(VLOOKUP($A2,JumpData,4,FALSE)),0,VLOOKUP($A2,JumpData,4,FALSE))+W2 -> 43 | S2: =IF(ISNA(VLOOKUP($A2,RunData,4,FALSE)),0,VLOOKUP($A2,RunData,4,FALSE))+X2 -> 64 | T2: =IF(ISNA(VLOOKUP($A2,ThrowData,4,FALSE)),0,VLOOKUP($A2,ThrowData,4,FALSE))+Y2 -> 38 | U2: =+Q2+R2+S2+T2 -> 192 | V2: 47 | W2: 43 | X2: 64 | Y2: 38 | AA2: =ROW()-1 -> 1
A3: =+Declarations!A3&"" -> 5 | B3: =IF(LEN($A3),IF(LEN(Declarations!$B3)>0,Declarations!$B3,"#"&$A3),"") -> Poppy Burtwell | C3: Cheltenham and County Harriers | D3: =IF(OR(G3="G",G3="F"),"F",IF(OR(G3="B",G3="M"),"M","")) -> F | E3: 2013-09-02 | F3: 0 | G3: F | H3: Poppy Burtwell | I3: 4 | J3: =IF(LEN($A3)>0,IF(LEN(Declarations!$F3)>0,Declarations!$F3,conftype),"") -> QuadKids Primary | M3: 14 | N3: 1.44 | O3: 2.43 | P3: 11.26 | Q3: 30 | R3: 31 | S3: 27 | T3: 22 | U3: 110 | V3: 30 | W3: 31 | X3: 27 | Y3: 22 | AA3: =ROW()-1 -> 2
A4: =+Declarations!A4&"" -> 6 | B4: =IF(LEN($A4),IF(LEN(Declarations!$B4)>0,Declarations!$B4,"#"&$A4),"") -> Albie Jack Bussey | C4: Cheltenham and County Harriers | D4: =IF(OR(G4="G",G4="F"),"F",IF(OR(G4="B",G4="M"),"M","")) -> M | E4: 2014-07-10 | F4: 0 | G4: M | H4: Albie Jack Bussey | I4: 4 | J4: =IF(LEN($A4)>0,IF(LEN(Declarations!$F4)>0,Declarations!$F4,conftype),"") -> QuadKids Primary | M4: 12.2 | N4: 1.72 | O4: 2.07 | P4: 20.6 | Q4: 48 | R4: 45 | S4: 63 | T4: 41 | U4: 197 | V4: 48 | W4: 45 | X4: 63 | Y4: 41 | AA4: 3
A5: =+Declarations!A5&"" -> 11 | B5: =IF(LEN($A5),IF(LEN(Declarations!$B5)>0,Declarations!$B5,"#"&$A5),"") -> Molly Elizabeth Creek | C5: Cheltenham and County Harriers | D5: =IF(OR(G5="G",G5="F"),"F",IF(OR(G5="B",G5="M"),"M","")) -> F | E5: 2013-12-19 | F5: 0 | G5: F | H5: Molly Elizabeth Creek | I5: 4 | J5: =IF(LEN($A5)>0,IF(LEN(Declarations!$F5)>0,Declarations!$F5,conftype),"") -> QuadKids Primary | Q5: 0 | R5: 0 | S5: 0 | T5: 0 | U5: 0 | V5: 0 | W5: 0 | X5: 0 | Y5: 0 | AA5: 4
A6: =+Declarations!A6&"" -> 13 | B6: =IF(LEN($A6),IF(LEN(Declarations!$B6)>0,Declarations!$B6,"#"&$A6),"") -> Imogen Edwards | C6: Yate & District AC | D6: =IF(OR(G6="G",G6="F"),"F",IF(OR(G6="B",G6="M"),"M","")) -> F | E6: 2013-11-06 | F6: 0 | G6: =UPPER(IF(ISNA($AA6),"",INDEX(DECLARATIONS,$AA6,4))) -> F | H6: Imogen Edwards | I6: 4 | J6: =IF(LEN($A6)>0,IF(LEN(Declarations!$F6)>0,Declarations!$F6,conftype),"") -> QuadKids Primary | M6: 12.7 | N6: 1.56 | O6: 2.09 | P6: 14.29 | Q6: 43 | R6: 37 | S6: 61 | T6: 28 | U6: 169 | V6: 43 | W6: 37 | X6: 61 | Y6: 28 | AA6: 5
A7: =+Declarations!A7&"" -> 15 | B7: =IF(LEN($A7),IF(LEN(Declarations!$B7)>0,Declarations!$B7,"#"&$A7),"") -> Ezra Frick | C7: Yate & District AC | D7: =IF(OR(G7="G",G7="F"),"F",IF(OR(G7="B",G7="M"),"M","")) -> M | E7: 2015-02-09 | F7: 0 | G7: M | H7: Ezra Frick | I7: 4 | J7: =IF(LEN($A7)>0,IF(LEN(Declarations!$F7)>0,Declarations!$F7,conftype),"") -> QuadKids Primary | Q7: 0 | R7: 0 | S7: 0 | T7: 0 | U7: 0 | V7: 0 | W7: 0 | X7: 0 | Y7: 0 | AA7: 6
A8: =+Declarations!A8&"" -> 16 | B8: =IF(LEN($A8),IF(LEN(Declarations!$B8)>0,Declarations!$B8,"#"&$A8),"") -> Emilia Game | C8: Cheltenham and County Harriers | D8: F | E8: 2014-11-15 | F8: 0 | G8: F | H8: Emilia Game | I8: 4 | J8: =IF(LEN($A8)>0,IF(LEN(Declarations!$F8)>0,Declarations!$F8,conftype),"") -> QuadKids Primary | M8: 14.5 | N8: 1.25 | O8: 2.27 | P8: 8.02 | Q8: 25 | R8: 21 | S8: 43 | T8: 16 | U8: 105 | V8: 25 | W8: 21 | X8: 43 | Y8: 16 | AA8: 7
A9: =+Declarations!A9&"" -> 19 | B9: =IF(LEN($A9),IF(LEN(Declarations!$B9)>0,Declarations!$B9,"#"&$A9),"") -> Charlotte Harvey | C9: Cheltenham and County Harriers | D9: F | E9: 2014-10-22 | F9: 0 | G9: F | H9: Charlotte Harvey | I9: 4 | J9: =IF(LEN($A9)>0,IF(LEN(Declarations!$F9)>0,Declarations!$F9,conftype),"") -> QuadKids Primary | M9: 14.5 | N9: 1.09 | O9: 2.32 | P9: 9.23 | Q9: 25 | R9: 13 | S9: 38 | T9: 18 | U9: 94 | V9: 25 | W9: 13 | X9: 38 | Y9: 18 | AA9: 8
A10: =+Declarations!A10&"" -> 21 | B10: =IF(LEN($A10),IF(LEN(Declarations!$B10)>0,Declarations!$B10,"#"&$A10),"") -> Dylan Jacob Hockin | C10: Cheltenham and County Harriers | D10: M | E10: 2014-03-22 | F10: 0 | G10: M | H10: Dylan Jacob Hockin | I10: 4 | J10: =IF(LEN($A10)>0,IF(LEN(Declarations!$F10)>0,Declarations!$F10,conftype),"") -> QuadKids Primary | M10: 11.4 | N10: 1.67 | O10: 2.22 | P10: 22.31 | Q10: 56 | R10: 42 | S10: 48 | T10: 44 | U10: 190 | V10: 56 | W10: 42 | X10: 48 | Y10: 44 | AA10: 9
A11: =+Declarations!A11&"" -> 24 | B11: =IF(LEN($A11),IF(LEN(Declarations!$B11)>0,Declarations!$B11,"#"&$A11),"") -> Hermione Howard | C11: Cheltenham and County Harriers | D11: F | E11: 2015-03-28 | F11: 0 | G11: F | H11: Hermione Howard | I11: 4 | J11: =IF(LEN($A11)>0,IF(LEN(Declarations!$F11)>0,Declarations!$F11,conftype),"") -> QuadKids Primary | M11: 12.2 | N11: 1.44 | O11: 2.3 | P11: 11.24 | Q11: 48 | R11: 31 | S11: 40 | T11: 22 | U11: 141 | V11: 48 | W11: 31 | X11: 40 | Y11: 22 | AA11: 10
A12: =+Declarations!A12&"" -> 26 | B12: =IF(LEN($A12),IF(LEN(Declarations!$B12)>0,Declarations!$B12,"#"&$A12),"") -> Evalyn Humphries | C12: Yate & District AC | D12: F | E12: 2015-01-13 | F12: 0 | G12: F | H12: Evalyn Humphries | I12: 4 | J12: =IF(LEN($A12)>0,IF(LEN(Declarations!$F12)>0,Declarations!$F12,conftype),"") -> QuadKids Primary | M12: 12.1 | N12: 1.79 | O12: 2.13 | P12: 20.26 | Q12: 49 | R12: 48 | S12: 57 | T12: 40 | U12: 194 | V12: 49 | W12: 48 | X12: 57 | Y12: 40 | AA12: 11
A13: =+Declarations!A13&"" -> 28 | B13: =IF(LEN($A13),IF(LEN(Declarations!$B13)>0,Declarations!$B13,"#"&$A13),"") -> William Peter Stuart Johnson | C13: Cheltenham and County Harriers | D13: M | E13: 2013-10-05 | F13: 0 | G13: M | H13: William Peter Stuart Johnson | I13: 4 | J13: =IF(LEN($A13)>0,IF(LEN(Declarations!$F13)>0,Declarations!$F13,conftype),"") -> QuadKids Primary | M13: 11.8 | N13: 1.81 | O13: 2.04 | P13: 27.07 | Q13: 52 | R13: 49 | S13: 66 | T13: 54 | U13: 221 | V13: 52 | W13: 49 | X13: 66 | Y13: 54 | AA13: 12
A14: =+Declarations!A14&"" -> 29 | B14: =IF(LEN($A14),IF(LEN(Declarations!$B14)>0,Declarations!$B14,"#"&$A14),"") -> Ben Jones | C14: Gloucester AC | D14: M | E14: 2013-09-04 | F14: 0 | G14: M | H14: Ben Jones | I14: 4 | J14: =IF(LEN($A14)>0,IF(LEN(Declarations!$F14)>0,Declarations!$F14,conftype),"") -> QuadKids Primary | M14: 11.7 | N14: 1.65 | O14: 1.56 | P14: 25.02 | Q14: 53 | R14: 41 | S14: 74 | T14: 50 | U14: 218 | V14: 53 | W14: 41 | X14: 74 | Y14: 50 | AA14: 13
A15: =+Declarations!A15&"" -> 30 | B15: =IF(LEN($A15),IF(LEN(Declarations!$B15)>0,Declarations!$B15,"#"&$A15),"") -> Olivia Andrea Lilly Jones | C15: Stroud & District AC | D15: F | E15: 2013-09-27 | F15: 0 | G15: F | H15: Olivia Andrea Lilly Jones | I15: 4 | J15: =IF(LEN($A15)>0,IF(LEN(Declarations!$F15)>0,Declarations!$F15,conftype),"") -> QuadKids Primary | M15: 12.2 | N15: 1.6 | O15: 2.14 | P15: 17.39 | Q15: 48 | R15: 39 | S15: 56 | T15: 34 | U15: 177 | V15: 48 | W15: 39 | X15: 56 | Y15: 34 | AA15: 14
A16: =+Declarations!A16&"" -> 31 | B16: =IF(LEN($A16),IF(LEN(Declarations!$B16)>0,Declarations!$B16,"#"&$A16),"") -> Rhys Callen Jones | C16: Cheltenham and County Harriers | D16: M | E16: 2014-12-10 | F16: 0 | G16: M | H16: Rhys Callen Jones | I16: 4 | J16: =IF(LEN($A16)>0,IF(LEN(Declarations!$F16)>0,Declarations!$F16,conftype),"") -> QuadKids Primary | M16: 12.6 | N16: 1.49 | O16: 2.25 | P16: 18.75 | Q16: 44 | R16: 33 | S16: 45 | T16: 37 | U16: 159 | V16: 44 | W16: 33 | X16: 45 | Y16: 37 | AA16: 15
A17: =+Declarations!A17&"" -> 33 | B17: =IF(LEN($A17),IF(LEN(Declarations!$B17)>0,Declarations!$B17,"#"&$A17),"") -> Arthur Lawson | C17: Cheltenham and County Harriers | D17: M | E17: 2014-11-28 | F17: 0 | G17: M | H17: Arthur Lawson | I17: 4 | J17: =IF(LEN($A17)>0,IF(LEN(Declarations!$F17)>0,Declarations!$F17,conftype),"") -> QuadKids Primary | M17: 12.9 | N17: 1.52 | O17: 2.22 | P17: 27.05 | Q17: 41 | R17: 35 | S17: 48 | T17: 54 | U17: 178 | V17: 41 | W17: 35 | X17: 48 | Y17: 54 | AA17: 16
A18: =+Declarations!A18&"" -> 35 | B18: =IF(LEN($A18),IF(LEN(Declarations!$B18)>0,Declarations!$B18,"#"&$A18),"") -> Edward Lewis | C18: ... | D18: F | E18: 2015-03-14 | F18: 0 | G18: F | H18: Edward Lewis | I18: 4 | J18: =IF(LEN($A18)>0,IF(LEN(Declarations!$F18)>0,Declarations!$F18,conftype),"") -> QuadKids Primary | M18: 13.9 | N18: 1.37 | O18: 2.14 | P18: 17.63 | Q18: 31 | R18: 27 | S18: 56 | T18: 35 | U18: 149 | V18: 31 | W18: 27 | X18: 56 | Y18: 35 | AA18: 17
A19: =+Declarations!A19&"" -> 37 | B19: =IF(LEN($A19),IF(LEN(Declarations!$B19)>0,Declarations!$B19,"#"&$A19),"") -> Poppy Limb | C19: Cheltenham and County Harriers | D19: F | E19: 2014-08-29 | F19: 0 | G19: F | H19: Poppy Limb | I19: 4 | J19: =IF(LEN($A19)>0,IF(LEN(Declarations!$F19)>0,Declarations!$F19,conftype),"") -> QuadKids Primary | M19: 13 | P19: 19.08 | Q19: 40 | R19: 0 | S19: 0 | T19: 38 | U19: 78 | V19: 40 | W19: 0 | X19: 0 | Y19: 38 | AA19: 18
A20: =+Declarations!A20&"" -> 41 | B20: =IF(LEN($A20),IF(LEN(Declarations!$B20)>0,Declarations!$B20,"#"&$A20),"") -> Reuben Mann | C20: Cheltenham and County Harriers | D20: M | E20: 2013-12-05 | F20: 0 | G20: M | H20: Reuben Mann | I20: 4 | J20: =IF(LEN($A20)>0,IF(LEN(Declarations!$F20)>0,Declarations!$F20,conftype),"") -> QuadKids Primary | M20: 11.5 | N20: 1.9 | O20: 2.08 | P20: 22.15 | Q20: 55 | R20: 54 | S20: 62 | T20: 44 | U20: 215 | V20: 55 | W20: 54 | X20: 62 | Y20: 44 | AA20: 19
A21: =+Declarations!A21&"" -> 42 | B21: =IF(LEN($A21),IF(LEN(Declarations!$B21)>0,Declarations!$B21,"#"&$A21),"") -> Eliza Verity Mason | C21: Cheltenham and County Harriers | D21: F | E21: 2014-02-18 | F21: 0 | G21: F | H21: Eliza Verity Mason | I21: 4 | J21: =IF(LEN($A21)>0,IF(LEN(Declarations!$F21)>0,Declarations!$F21,conftype),"") -> QuadKids Primary | P21: 16.82 | Q21: 0 | R21: 0 | S21: 0 | T21: 33 | U21: 33 | V21: 0 | W21: 0 | X21: 0 | Y21: 33 | AA21: 20
A22: =+Declarations!A22&"" -> 47 | B22: =IF(LEN($A22),IF(LEN(Declarations!$B22)>0,Declarations!$B22,"#"&$A22),"") -> Max Papuca | C22: Yate & District AC | D22: M | E22: 2013-09-04 | F22: 0 | G22: M | H22: Max Papuca | I22: 4 | J22: =IF(LEN($A22)>0,IF(LEN(Declarations!$F22)>0,Declarations!$F22,conftype),"") -> QuadKids Primary | M22: 11.4 | N22: 1.94 | O22: 2.04 | P22: 34.49 | Q22: 56 | R22: 56 | S22: 66 | T22: 68 | U22: 246 | V22: 56 | W22: 56 | X22: 66 | Y22: 68 | AA22: 21
A23: =+Declarations!A23&"" -> 49 | B23: =IF(LEN($A23),IF(LEN(Declarations!$B23)>0,Declarations!$B23,"#"&$A23),"") -> Lucy Reeves | C23: Yate & District AC | D23: F | E23: 2013-10-09 | F23: 0 | G23: F | H23: Lucy Reeves | I23: 4 | J23: =IF(LEN($A23)>0,IF(LEN(Declarations!$F23)>0,Declarations!$F23,conftype),"") -> QuadKids Primary | M23: 12.8 | N23: 1.68 | O23: 2.11 | P23: 22.06 | Q23: 42 | R23: 43 | S23: 59 | T23: 44 | U23: 188 | V23: 42 | W23: 43 | X23: 59 | Y23: 44 | AA23: 22
A24: =+Declarations!A24&"" -> 51 | B24: =IF(LEN($A24),IF(LEN(Declarations!$B24)>0,Declarations!$B24,"#"&$A24),"") -> Albert George Rendell | C24: Stroud & District AC | D24: M | E24: 2015-05-03 | F24: 0 | G24: M | H24: Albert George Rendell | I24: 4 | J24: =IF(LEN($A24)>0,IF(LEN(Declarations!$F24)>0,Declarations!$F24,conftype),"") -> QuadKids Primary | O24: 2.12 | Q24: 0 | R24: 0 | S24: 58 | T24: 0 | U24: 58 | V24: 0 | W24: 0 | X24: 58 | Y24: 0 | AA24: 23
A25: =+Declarations!A25&"" -> 53 | B25: =IF(LEN($A25),IF(LEN(Declarations!$B25)>0,Declarations!$B25,"#"&$A25),"") -> Amelia Robinson | C25: Stroud & District AC | D25: F | E25: 2014-11-14 | F25: 0 | G25: F | H25: Amelia Robinson | I25: 4 | J25: =IF(LEN($A25)>0,IF(LEN(Declarations!$F25)>0,Declarations!$F25,conftype),"") -> QuadKids Primary | M25: 14.4 | N25: 1.13 | O25: 2.19 | P25: 13.9 | Q25: 26 | R25: 15 | S25: 51 | T25: 27 | U25: 119 | V25: 26 | W25: 15 | X25: 51 | Y25: 27 | AA25: 24
A26: =+Declarations!A26&"" -> 54 | B26: =IF(LEN($A26),IF(LEN(Declarations!$B26)>0,Declarations!$B26,"#"&$A26),"") -> Laurence Andrew Rowett | C26: Cheltenham and County Harriers | D26: M | E26: 2014-10-16 | F26: 0 | G26: M | H26: Laurence Andrew Rowett | I26: 4 | J26: =IF(LEN($A26)>0,IF(LEN(Declarations!$F26)>0,Declarations!$F26,conftype),"") -> QuadKids Primary | M26: 14.1 | N26: 1.46 | O26: 2.19 | P26: 22.73 | Q26: 29 | R26: 32 | S26: 51 | T26: 45 | U26: 157 | V26: 29 | W26: 32 | X26: 51 | Y26: 45 | AA26: 25
A27: =+Declarations!A27&"" -> 55 | B27: =IF(LEN($A27),IF(LEN(Declarations!$B27)>0,Declarations!$B27,"#"&$A27),"") -> Alfie Edward Seymour | C27: Stroud & District AC | D27: M | E27: 2013-09-24 | F27: 0 | G27: M | H27: Alfie Edward Seymour | I27: 4 | J27: =IF(LEN($A27)>0,IF(LEN(Declarations!$F27)>0,Declarations!$F27,conftype),"") -> QuadKids Primary | M27: 13.6 | N27: 1.41 | O27: 2.34 | P27: 17.4 | Q27: 34 | R27: 29 | S27: 36 | T27: 34 | U27: 133 | V27: 34 | W27: 29 | X27: 36 | Y27: 34 | AA27: 26
A28: =+Declarations!A28&"" -> 57 | B28: =IF(LEN($A28),IF(LEN(Declarations!$B28)>0,Declarations!$B28,"#"&$A28),"") -> Henry Ronald Simpson | C28: ... | D28: M | E28: 2013-12-01 | F28: 0 | G28: M | H28: Henry Ronald Simpson | I28: 4 | J28: =IF(LEN($A28)>0,IF(LEN(Declarations!$F28)>0,Declarations!$F28,conftype),"") -> QuadKids Primary | M28: 11.8 | N28: 1.77 | O28: 2.07 | P28: 22.89 | Q28: 52 | R28: 47 | S28: 63 | T28: 45 | U28: 207 | V28: 52 | W28: 47 | X28: 63 | Y28: 45 | AA28: 27
A29: =+Declarations!A29&"" -> 59 | B29: =IF(LEN($A29),IF(LEN(Declarations!$B29)>0,Declarations!$B29,"#"&$A29),"") -> Natalee May Souch | C29: Yate & District AC | D29: F | E29: 2014-01-18 | F29: 0 | G29: F | H29: Natalee May Souch | I29: 4 | J29: =IF(LEN($A29)>0,IF(LEN(Declarations!$F29)>0,Declarations!$F29,conftype),"") -> QuadKids Primary | M29: 12.5 | N29: 1.78 | O29: 2.19 | P29: 20.08 | Q29: 45 | R29: 48 | S29: 51 | T29: 40 | U29: 184 | V29: 45 | W29: 48 | X29: 51 | Y29: 40 | AA29: 28
A30: =+Declarations!A30&"" -> 60 | B30: =IF(LEN($A30),IF(LEN(Declarations!$B30)>0,Declarations!$B30,"#"&$A30),"") -> Lola Southernwood | C30: ... | D30: F | E30: 2015-02-21 | F30: 0 | G30: F | H30: Lola Southernwood | I30: 4 | J30: =IF(LEN($A30)>0,IF(LEN(Declarations!$F30)>0,Declarations!$F30,conftype),"") -> QuadKids Primary | M30: 13.7 | N30: 1.72 | O30: 2.29 | P30: 15.39 | Q30: 33 | R30: 45 | S30: 41 | T30: 30 | U30: 149 | V30: 33 | W30: 45 | X30: 41 | Y30: 30 | AA30: 29
A31: =+Declarations!A31&"" -> 63 | B31: =IF(LEN($A31),IF(LEN(Declarations!$B31)>0,Declarations!$B31,"#"&$A31),"") -> Allegra Flora Spicer | C31: Cheltenham and County Harriers | D31: F | E31: 2013-10-17 | F31: 0 | G31: F | H31: Allegra Flora Spicer | I31: 4 | J31: =IF(LEN($A31)>0,IF(LEN(Declarations!$F31)>0,Declarations!$F31,conftype),"") -> QuadKids Primary | M31: 13.4 | Q31: 36 | R31: 0 | S31: 0 | T31: 0 | U31: 36 | V31: 36 | W31: 0 | X31: 0 | Y31: 0 | AA31: 30
A32: =+Declarations!A32&"" -> 68 | B32: =IF(LEN($A32),IF(LEN(Declarations!$B32)>0,Declarations!$B32,"#"&$A32),"") -> Annabelle Weldon | C32: Cheltenham and County Harriers | D32: F | E32: 2014-05-30 | F32: 0 | G32: F | H32: Annabelle Weldon | I32: 4 | J32: =IF(LEN($A32)>0,IF(LEN(Declarations!$F32)>0,Declarations!$F32,conftype),"") -> QuadKids Primary | M32: 12.4 | N32: 1.77 | O32: 2.36 | P32: 21.7 | Q32: 46 | R32: 47 | S32: 34 | T32: 43 | U32: 170 | V32: 46 | W32: 47 | X32: 34 | Y32: 43 | AA32: 31
A33: =+Declarations!A33&"" -> 72 | B33: =IF(LEN($A33),IF(LEN(Declarations!$B33)>0,Declarations!$B33,"#"&$A33),"") -> Tayla Florence Williams | C33: Carmarthen & District Harriers | D33: F | E33: 2014-03-14 | F33: 0 | G33: F | H33: Tayla Florence Williams | I33: 4 | J33: =IF(LEN($A33)>0,IF(LEN(Declarations!$F33)>0,Declarations!$F33,conftype),"") -> QuadKids Primary | M33: 14 | N33: 1.4 | O33: 2.3 | P33: 13.09 | Q33: 30 | R33: 29 | S33: 40 | T33: 26 | U33: 125 | V33: 30 | W33: 29 | X33: 40 | Y33: 26 | AA33: 32
A34: =+Declarations!A34&"" -> 73 | B34: =IF(LEN($A34),IF(LEN(Declarations!$B34)>0,Declarations!$B34,"#"&$A34),"") -> Bethan Frances Wilson | C34: Cheltenham and County Harriers | D34: F | E34: 2015-01-02 | F34: 0 | G34: F | H34: Bethan Frances Wilson | I34: 4 | J34: =IF(LEN($A34)>0,IF(LEN(Declarations!$F34)>0,Declarations!$F34,conftype),"") -> QuadKids Primary | M34: 13.6 | N34: 1.39 | O34: 2.29 | P34: 6.38 | Q34: 34 | R34: 28 | S34: 41 | T34: 12 | U34: 115 | V34: 34 | W34: 28 | X34: 41 | Y34: 12 | AA34: 33
A35: =+Declarations!A35&"" -> 74 | B35: =IF(LEN($A35),IF(LEN(Declarations!$B35)>0,Declarations!$B35,"#"&$A35),"") -> Isla Wright | C35: Cirencester AC | D35: F | E35: 2014-02-15 | F35: 0 | G35: F | H35: Isla Wright | I35: 4 | J35: =IF(LEN($A35)>0,IF(LEN(Declarations!$F35)>0,Declarations!$F35,conftype),"") -> QuadKids Primary | M35: 12.5 | Q35: 45 | R35: 0 | S35: 0 | T35: 0 | U35: 45 | V35: 45 | W35: 0 | X35: 0 | Y35: 0 | AA35: 34
A36: =+Declarations!A36&"" -> 76 | B36: =IF(LEN($A36),IF(LEN(Declarations!$B36)>0,Declarations!$B36,"#"&$A36),"") -> Joshua Young | C36: Cheltenham and County Harriers | D36: M | E36: 2014-09-21 | F36: 0 | G36: M | H36: Joshua Young | I36: 4 | J36: =IF(LEN($A36)>0,IF(LEN(Declarations!$F36)>0,Declarations!$F36,conftype),"") -> QuadKids Primary | M36: 13.6 | N36: 1.44 | O36: 2.16 | P36: 12.8 | Q36: 34 | R36: 31 | S36: 54 | T36: 25 | U36: 144 | V36: 34 | W36: 31 | X36: 54 | Y36: 25 | AA36: 35
A37: =+Declarations!A37&"" -> 77 | B37: =IF(LEN($A37),IF(LEN(Declarations!$B37)>0,Declarations!$B37,"#"&$A37),"") -> Piero Zanca | C37: Cheltenham and County Harriers | D37: M | E37: 2014-11-30 | F37: 0 | G37: M | H37: Piero Zanca | I37: 4 | J37: =IF(LEN($A37)>0,IF(LEN(Declarations!$F37)>0,Declarations!$F37,conftype),"") -> QuadKids Primary | M37: 12.7 | N37: 1.39 | O37: 2.11 | P37: 20.4 | Q37: 43 | R37: 28 | S37: 59 | T37: 40 | U37: 170 | V37: 43 | W37: 28 | X37: 59 | Y37: 40 | AA37: 36
A38: =+Declarations!A38&"" ->  | B38: =IF(LEN($A38),IF(LEN(Declarations!$B38)>0,Declarations!$B38,"#"&$A38),"") ->  | C38: ... | E38: 00:00:00 | F38: 0 | I38: 0 | J38: =IF(LEN($A38)>0,IF(LEN(Declarations!$F38)>0,Declarations!$F38,conftype),"") ->  | M38: =IF(ISNA(VLOOKUP($A38,SprintData,2,FALSE)),0,VLOOKUP($A38,SprintData,2,FALSE)) -> 0 | N38: =IF(ISNA(VLOOKUP($A38,JumpData,2,FALSE)),0,VLOOKUP($A38,JumpData,2,FALSE)) -> 0 | O38: =IF(ISNA(VLOOKUP($A38,RunData,2,FALSE)),0,VLOOKUP($A38,RunData,2,FALSE)) -> 0 | P38: =IF(ISNA(VLOOKUP($A38,ThrowData,2,FALSE)),0,VLOOKUP($A38,ThrowData,2,FALSE)) -> 0 | Q38: 0 | R38: 0 | S38: 0 | T38: 0 | U38: 0 | V38: =IF(AND($F38>0,NOT(M38),Flexing),FlexPC,0) -> 0 | W38: =IF(AND($F38>0,NOT(N38),Flexing),FlexPC,0) -> 0 | X38: =IF(AND($F38>0,NOT(O38),Flexing),FlexPC,0) -> 0 | Y38: =IF(AND($F38>0,NOT(P38),Flexing),FlexPC,0) -> 0 | AA38: 37
A39: =+Declarations!A39&"" ->  | B39: =IF(LEN($A39),IF(LEN(Declarations!$B39)>0,Declarations!$B39,"#"&$A39),"") ->  | C39: ... | E39: 00:00:00 | F39: 0 | I39: 0 | J39: =IF(LEN($A39)>0,IF(LEN(Declarations!$F39)>0,Declarations!$F39,conftype),"") ->  | M39: 0 | N39: 0 | O39: 0 | P39: 0 | Q39: 0 | R39: 0 | S39: 0 | T39: 0 | U39: 0 | V39: 0 | W39: 0 | X39: 0 | Y39: 0 | AA39: 38
A40: =+Declarations!A40&"" ->  | B40: =IF(LEN($A40),IF(LEN(Declarations!$B40)>0,Declarations!$B40,"#"&$A40),"") ->  | C40: ... | E40: 00:00:00 | F40: 0 | I40: 0 | J40: =IF(LEN($A40)>0,IF(LEN(Declarations!$F40)>0,Declarations!$F40,conftype),"") ->  | M40: 0 | N40: 0 | O40: 0 | P40: 0 | Q40: 0 | R40: 0 | S40: 0 | T40: 0 | U40: 0 | V40: 0 | W40: 0 | X40: 0 | Y40: 0 | AA40: 39
A41: =+Declarations!A41&"" ->  | B41: =IF(LEN($A41),IF(LEN(Declarations!$B41)>0,Declarations!$B41,"#"&$A41),"") ->  | C41: ... | E41: 00:00:00 | F41: 0 | I41: 0 | J41: =IF(LEN($A41)>0,IF(LEN(Declarations!$F41)>0,Declarations!$F41,conftype),"") ->  | M41: 0 | N41: 0 | O41: 0 | P41: 0 | Q41: 0 | R41: 0 | S41: 0 | T41: 0 | U41: 0 | V41: 0 | W41: 0 | X41: 0 | Y41: 0 | AA41: 40
A42: =+Declarations!A42&"" ->  | B42: =IF(LEN($A42),IF(LEN(Declarations!$B42)>0,Declarations!$B42,"#"&$A42),"") ->  | C42: ... | E42: 00:00:00 | F42: 0 | I42: 0 | J42: =IF(LEN($A42)>0,IF(LEN(Declarations!$F42)>0,Declarations!$F42,conftype),"") ->  | M42: 0 | N42: 0 | O42: 0 | P42: 0 | Q42: 0 | R42: 0 | S42: 0 | T42: 0 | U42: 0 | V42: 0 | W42: 0 | X42: 0 | Y42: 0 | AA42: 41
A43: =+Declarations!A43&"" ->  | B43: =IF(LEN($A43),IF(LEN(Declarations!$B43)>0,Declarations!$B43,"#"&$A43),"") ->  | C43: ... | E43: 00:00:00 | F43: 0 | I43: 0 | J43: =IF(LEN($A43)>0,IF(LEN(Declarations!$F43)>0,Declarations!$F43,conftype),"") ->  | M43: 0 | N43: 0 | O43: 0 | P43: 0 | Q43: 0 | R43: 0 | S43: 0 | T43: 0 | U43: 0 | V43: 0 | W43: 0 | X43: 0 | Y43: 0 | AA43: 42
A44: =+Declarations!A44&"" ->  | B44: =IF(LEN($A44),IF(LEN(Declarations!$B44)>0,Declarations!$B44,"#"&$A44),"") ->  | C44: ... | E44: 00:00:00 | F44: 0 | I44: 0 | J44: =IF(LEN($A44)>0,IF(LEN(Declarations!$F44)>0,Declarations!$F44,conftype),"") ->  | M44: 0 | N44: 0 | O44: 0 | P44: 0 | Q44: 0 | R44: 0 | S44: 0 | T44: 0 | U44: 0 | V44: 0 | W44: 0 | X44: 0 | Y44: 0 | AA44: 43
A45: =+Declarations!A45&"" ->  | B45: =IF(LEN($A45),IF(LEN(Declarations!$B45)>0,Declarations!$B45,"#"&$A45),"") ->  | C45: ... | E45: 00:00:00 | F45: 0 | I45: 0 | J45: =IF(LEN($A45)>0,IF(LEN(Declarations!$F45)>0,Declarations!$F45,conftype),"") ->  | M45: 0 | N45: 0 | O45: 0 | P45: 0 | Q45: 0 | R45: 0 | S45: 0 | T45: 0 | U45: 0 | V45: 0 | W45: 0 | X45: 0 | Y45: 0 | AA45: 44
A46: =+Declarations!A46&"" ->  | B46: =IF(LEN($A46),IF(LEN(Declarations!$B46)>0,Declarations!$B46,"#"&$A46),"") ->  | C46: ... | E46: 00:00:00 | F46: 0 | I46: 0 | J46: =IF(LEN($A46)>0,IF(LEN(Declarations!$F46)>0,Declarations!$F46,conftype),"") ->  | M46: 0 | N46: 0 | O46: 0 | P46: 0 | Q46: 0 | R46: 0 | S46: 0 | T46: 0 | U46: 0 | V46: 0 | W46: 0 | X46: 0 | Y46: 0 | AA46: 45
A47: =+Declarations!A47&"" ->  | B47: =IF(LEN($A47),IF(LEN(Declarations!$B47)>0,Declarations!$B47,"#"&$A47),"") ->  | C47: ... | E47: 00:00:00 | F47: 0 | I47: 0 | J47: =IF(LEN($A47)>0,IF(LEN(Declarations!$F47)>0,Declarations!$F47,conftype),"") ->  | M47: =IF(ISNA(VLOOKUP($A47,SprintData,2,FALSE)),0,VLOOKUP($A47,SprintData,2,FALSE)) -> 0 | N47: 0 | O47: 0 | P47: 0 | Q47: 0 | R47: 0 | S47: 0 | T47: 0 | U47: 0 | V47: 0 | W47: 0 | X47: 0 | Y47: 0 | AA47: 46
A48: =+Declarations!A48&"" ->  | B48: =IF(LEN($A48),IF(LEN(Declarations!$B48)>0,Declarations!$B48,"#"&$A48),"") ->  | C48: ... | E48: 00:00:00 | F48: 0 | I48: 0 | J48: =IF(LEN($A48)>0,IF(LEN(Declarations!$F48)>0,Declarations!$F48,conftype),"") ->  | M48: 0 | N48: 0 | O48: 0 | P48: 0 | Q48: 0 | R48: 0 | S48: 0 | T48: 0 | U48: 0 | V48: 0 | W48: 0 | X48: 0 | Y48: 0 | AA48: 47
A49: =+Declarations!A49&"" ->  | B49: =IF(LEN($A49),IF(LEN(Declarations!$B49)>0,Declarations!$B49,"#"&$A49),"") ->  | C49: ... | E49: 00:00:00 | F49: 0 | I49: 0 | J49: =IF(LEN($A49)>0,IF(LEN(Declarations!$F49)>0,Declarations!$F49,conftype),"") ->  | M49: 0 | N49: 0 | O49: 0 | P49: 0 | Q49: 0 | R49: 0 | S49: 0 | T49: 0 | U49: 0 | V49: 0 | W49: 0 | X49: 0 | Y49: 0 | AA49: 48
A50: =+Declarations!A50&"" ->  | B50: =IF(LEN($A50),IF(LEN(Declarations!$B50)>0,Declarations!$B50,"#"&$A50),"") ->  | C50: ... | E50: 00:00:00 | F50: 0 | I50: 0 | J50: =IF(LEN($A50)>0,IF(LEN(Declarations!$F50)>0,Declarations!$F50,conftype),"") ->  | M50: 0 | N50: 0 | O50: 0 | P50: 0 | Q50: 0 | R50: 0 | S50: 0 | T50: 0 | U50: 0 | V50: 0 | W50: 0 | X50: 0 | Y50: 0 | AA50: 49
A51: =+Declarations!A51&"" ->  | B51: =IF(LEN($A51),IF(LEN(Declarations!$B51)>0,Declarations!$B51,"#"&$A51),"") ->  | C51: ... | E51: 00:00:00 | F51: 0 | I51: 0 | J51: =IF(LEN($A51)>0,IF(LEN(Declarations!$F51)>0,Declarations!$F51,conftype),"") ->  | M51: 0 | N51: 0 | O51: 0 | P51: 0 | Q51: 0 | R51: 0 | S51: 0 | T51: 0 | U51: 0 | V51: 0 | W51: 0 | X51: 0 | Y51: 0 | AA51: 50
A52: =+Declarations!A52&"" ->  | B52: =IF(LEN($A52),IF(LEN(Declarations!$B52)>0,Declarations!$B52,"#"&$A52),"") ->  | C52: ... | E52: 00:00:00 | F52: 0 | I52: 0 | J52: =IF(LEN($A52)>0,IF(LEN(Declarations!$F52)>0,Declarations!$F52,conftype),"") ->  | M52: 0 | N52: 0 | O52: 0 | P52: 0 | Q52: 0 | R52: 0 | S52: 0 | T52: 0 | U52: 0 | V52: 0 | W52: 0 | X52: 0 | Y52: 0 | AA52: 51
A53: =+Declarations!A53&"" ->  | B53: =IF(LEN($A53),IF(LEN(Declarations!$B53)>0,Declarations!$B53,"#"&$A53),"") ->  | C53: ... | E53: 00:00:00 | F53: 0 | I53: 0 | J53: =IF(LEN($A53)>0,IF(LEN(Declarations!$F53)>0,Declarations!$F53,conftype),"") ->  | M53: 0 | N53: 0 | O53: 0 | P53: 0 | Q53: 0 | R53: 0 | S53: 0 | T53: 0 | U53: 0 | V53: 0 | W53: 0 | X53: 0 | Y53: 0 | AA53: 52
A54: =+Declarations!A54&"" ->  | B54: =IF(LEN($A54),IF(LEN(Declarations!$B54)>0,Declarations!$B54,"#"&$A54),"") ->  | C54: ... | E54: 00:00:00 | F54: 0 | I54: 0 | J54: =IF(LEN($A54)>0,IF(LEN(Declarations!$F54)>0,Declarations!$F54,conftype),"") ->  | M54: 0 | N54: 0 | O54: 0 | P54: 0 | Q54: 0 | R54: 0 | S54: 0 | T54: 0 | U54: 0 | V54: 0 | W54: 0 | X54: 0 | Y54: 0 | AA54: 53
A55: =+Declarations!A55&"" ->  | B55: =IF(LEN($A55),IF(LEN(Declarations!$B55)>0,Declarations!$B55,"#"&$A55),"") ->  | C55: ... | E55: 00:00:00 | F55: 0 | I55: 0 | J55: =IF(LEN($A55)>0,IF(LEN(Declarations!$F55)>0,Declarations!$F55,conftype),"") ->  | M55: 0 | N55: 0 | O55: 0 | P55: 0 | Q55: 0 | R55: 0 | S55: 0 | T55: 0 | U55: 0 | V55: 0 | W55: 0 | X55: 0 | Y55: 0 | AA55: 54
A56: =+Declarations!A56&"" ->  | B56: =IF(LEN($A56),IF(LEN(Declarations!$B56)>0,Declarations!$B56,"#"&$A56),"") ->  | C56: ... | E56: 00:00:00 | F56: 0 | I56: 0 | J56: =IF(LEN($A56)>0,IF(LEN(Declarations!$F56)>0,Declarations!$F56,conftype),"") ->  | M56: 0 | N56: 0 | O56: 0 | P56: 0 | Q56: 0 | R56: 0 | S56: 0 | T56: 0 | U56: 0 | V56: 0 | W56: 0 | X56: 0 | Y56: 0 | AA56: 55
A57: =+Declarations!A57&"" ->  | B57: =IF(LEN($A57),IF(LEN(Declarations!$B57)>0,Declarations!$B57,"#"&$A57),"") ->  | C57: ... | E57: 00:00:00 | F57: 0 | I57: 0 | J57: =IF(LEN($A57)>0,IF(LEN(Declarations!$F57)>0,Declarations!$F57,conftype),"") ->  | M57: 0 | N57: 0 | O57: 0 | P57: 0 | Q57: 0 | R57: 0 | S57: 0 | T57: 0 | U57: 0 | V57: 0 | W57: 0 | X57: 0 | Y57: 0 | AA57: 56
A58: =+Declarations!A58&"" ->  | B58: =IF(LEN($A58),IF(LEN(Declarations!$B58)>0,Declarations!$B58,"#"&$A58),"") ->  | C58: ... | E58: 00:00:00 | F58: 0 | I58: 0 | J58: =IF(LEN($A58)>0,IF(LEN(Declarations!$F58)>0,Declarations!$F58,conftype),"") ->  | M58: 0 | N58: 0 | O58: 0 | P58: 0 | Q58: 0 | R58: 0 | S58: 0 | T58: 0 | U58: 0 | V58: 0 | W58: 0 | X58: 0 | Y58: 0 | AA58: 57
A59: =+Declarations!A59&"" ->  | B59: =IF(LEN($A59),IF(LEN(Declarations!$B59)>0,Declarations!$B59,"#"&$A59),"") ->  | C59: ... | E59: 00:00:00 | F59: 0 | I59: 0 | J59: =IF(LEN($A59)>0,IF(LEN(Declarations!$F59)>0,Declarations!$F59,conftype),"") ->  | M59: 0 | N59: 0 | O59: 0 | P59: 0 | Q59: 0 | R59: 0 | S59: 0 | T59: 0 | U59: 0 | V59: 0 | W59: 0 | X59: 0 | Y59: 0 | AA59: 58
A60: =+Declarations!A60&"" ->  | B60: =IF(LEN($A60),IF(LEN(Declarations!$B60)>0,Declarations!$B60,"#"&$A60),"") ->  | C60: ... | E60: 00:00:00 | F60: 0 | I60: 0 | J60: =IF(LEN($A60)>0,IF(LEN(Declarations!$F60)>0,Declarations!$F60,conftype),"") ->  | M60: 0 | N60: 0 | O60: 0 | P60: 0 | Q60: 0 | R60: 0 | S60: 0 | T60: 0 | U60: 0 | V60: 0 | W60: 0 | X60: 0 | Y60: 0 | AA60: 59
A61: =+Declarations!A61&"" ->  | B61: =IF(LEN($A61),IF(LEN(Declarations!$B61)>0,Declarations!$B61,"#"&$A61),"") ->  | C61: ... | E61: 00:00:00 | F61: 0 | I61: 0 | J61: =IF(LEN($A61)>0,IF(LEN(Declarations!$F61)>0,Declarations!$F61,conftype),"") ->  | M61: 0 | N61: 0 | O61: 0 | P61: 0 | Q61: 0 | R61: 0 | S61: 0 | T61: 0 | U61: 0 | V61: 0 | W61: 0 | X61: 0 | Y61: 0 | AA61: 60
A62: =+Declarations!A62&"" ->  | B62: =IF(LEN($A62),IF(LEN(Declarations!$B62)>0,Declarations!$B62,"#"&$A62),"") ->  | C62: ... | E62: 00:00:00 | F62: 0 | I62: 0 | J62: =IF(LEN($A62)>0,IF(LEN(Declarations!$F62)>0,Declarations!$F62,conftype),"") ->  | M62: 0 | N62: 0 | O62: 0 | P62: 0 | Q62: 0 | R62: 0 | S62: 0 | T62: 0 | U62: 0 | V62: 0 | W62: 0 | X62: 0 | Y62: 0 | AA62: 61
A63: =+Declarations!A63&"" ->  | B63: =IF(LEN($A63),IF(LEN(Declarations!$B63)>0,Declarations!$B63,"#"&$A63),"") ->  | C63: ... | E63: 00:00:00 | F63: 0 | I63: 0 | J63: =IF(LEN($A63)>0,IF(LEN(Declarations!$F63)>0,Declarations!$F63,conftype),"") ->  | M63: 0 | N63: 0 | O63: 0 | P63: 0 | Q63: 0 | R63: 0 | S63: 0 | T63: 0 | U63: 0 | V63: 0 | W63: 0 | X63: 0 | Y63: 0 | AA63: 62
A64: =+Declarations!A64&"" ->  | B64: =IF(LEN($A64),IF(LEN(Declarations!$B64)>0,Declarations!$B64,"#"&$A64),"") ->  | C64: ... | E64: 00:00:00 | F64: 0 | I64: 0 | J64: =IF(LEN($A64)>0,IF(LEN(Declarations!$F64)>0,Declarations!$F64,conftype),"") ->  | M64: 0 | N64: 0 | O64: 0 | P64: 0 | Q64: 0 | R64: 0 | S64: 0 | T64: 0 | U64: 0 | V64: 0 | W64: 0 | X64: 0 | Y64: 0 | AA64: 63
A65: =+Declarations!A65&"" ->  | B65: =IF(LEN($A65),IF(LEN(Declarations!$B65)>0,Declarations!$B65,"#"&$A65),"") ->  | C65: ... | E65: 00:00:00 | F65: 0 | I65: 0 | J65: =IF(LEN($A65)>0,IF(LEN(Declarations!$F65)>0,Declarations!$F65,conftype),"") ->  | M65: 0 | N65: 0 | O65: 0 | P65: 0 | Q65: 0 | R65: 0 | S65: 0 | T65: 0 | U65: 0 | V65: 0 | W65: 0 | X65: 0 | Y65: 0 | AA65: 64
A66: =+Declarations!A66&"" ->  | B66: =IF(LEN($A66),IF(LEN(Declarations!$B66)>0,Declarations!$B66,"#"&$A66),"") ->  | C66: =IF(LEN(INDEX(DECLARATIONS,$AA66,3))>0,INDEX(DECLARATIONS,$AA66,3),"...") -> ... | E66: =IF(ISNA($AA66),0,INDEX(DECLARATIONS,$AA66,5)) -> 00:00:00 | F66: =IF(ISNA($AA66),0,INDEX(DECLARATIONS,$AA66,7)) -> 0 | G66: =UPPER(IF(ISNA($AA66),"",INDEX(DECLARATIONS,$AA66,4))) ->  | H66: =IF(AND(A66>0,ISTEXT(B66)),IF(SECNAME="YES",LEFT(B66&" ",FIND(" ",B66&" ")+2)&IF(F66>0," ("&F66&")",""), B66&IF(F66>0," ("&F66&")","")),"#"&$A66) ->  | I66: =IF(LEN($A66)>0,IF(LEN($J66)>0,MATCH(J66,MatchNames,0),EventIndex),0) -> 0 | J66: =IF(LEN($A66)>0,IF(LEN(Declarations!$F66)>0,Declarations!$F66,conftype),"") ->  | M66: 0 | N66: =IF(ISNA(VLOOKUP($A66,JumpData,2,FALSE)),0,VLOOKUP($A66,JumpData,2,FALSE)) -> 0 | O66: =IF(ISNA(VLOOKUP($A66,RunData,2,FALSE)),0,VLOOKUP($A66,RunData,2,FALSE)) -> 0 | P66: =IF(ISNA(VLOOKUP($A66,ThrowData,2,FALSE)),0,VLOOKUP($A66,ThrowData,2,FALSE)) -> 0 | Q66: =IF(ISNA(VLOOKUP($A66,SprintData,4,FALSE)),0,VLOOKUP($A66,SprintData,4,FALSE))+V66 -> 0 | R66: =IF(ISNA(VLOOKUP($A66,JumpData,4,FALSE)),0,VLOOKUP($A66,JumpData,4,FALSE))+W66 -> 0 | S66: =IF(ISNA(VLOOKUP($A66,RunData,4,FALSE)),0,VLOOKUP($A66,RunData,4,FALSE))+X66 -> 0 | T66: =IF(ISNA(VLOOKUP($A66,ThrowData,4,FALSE)),0,VLOOKUP($A66,ThrowData,4,FALSE))+Y66 -> 0 | U66: =+Q66+R66+S66+T66 -> 0 | V66: =IF(AND($F66>0,NOT(M66),Flexing),FlexPC,0) -> 0 | W66: =IF(AND($F66>0,NOT(N66),Flexing),FlexPC,0) -> 0 | X66: =IF(AND($F66>0,NOT(O66),Flexing),FlexPC,0) -> 0 | Y66: =IF(AND($F66>0,NOT(P66),Flexing),FlexPC,0) -> 0 | AA66: 65
A67: =+Declarations!A67&"" ->  | B67: =IF(LEN($A67),IF(LEN(Declarations!$B67)>0,Declarations!$B67,"#"&$A67),"") ->  | C67: ... | E67: 00:00:00 | F67: 0 | I67: 0 | J67: =IF(LEN($A67)>0,IF(LEN(Declarations!$F67)>0,Declarations!$F67,conftype),"") ->  | M67: 0 | N67: 0 | O67: 0 | P67: 0 | Q67: 0 | R67: 0 | S67: 0 | T67: 0 | U67: 0 | V67: 0 | W67: 0 | X67: 0 | Y67: 0 | AA67: =ROW()-1 -> 66
A68: =+Declarations!A68&"" ->  | B68: =IF(LEN($A68),IF(LEN(Declarations!$B68)>0,Declarations!$B68,"#"&$A68),"") ->  | C68: ... | E68: 00:00:00 | F68: 0 | I68: 0 | J68: =IF(LEN($A68)>0,IF(LEN(Declarations!$F68)>0,Declarations!$F68,conftype),"") ->  | M68: 0 | N68: 0 | O68: 0 | P68: 0 | Q68: 0 | R68: 0 | S68: 0 | T68: 0 | U68: 0 | V68: 0 | W68: 0 | X68: 0 | Y68: 0 | AA68: 67
A69: =+Declarations!A69&"" ->  | B69: =IF(LEN($A69),IF(LEN(Declarations!$B69)>0,Declarations!$B69,"#"&$A69),"") ->  | C69: ... | E69: 00:00:00 | F69: 0 | I69: 0 | J69: =IF(LEN($A69)>0,IF(LEN(Declarations!$F69)>0,Declarations!$F69,conftype),"") ->  | M69: 0 | N69: 0 | O69: 0 | P69: 0 | Q69: 0 | R69: 0 | S69: 0 | T69: 0 | U69: 0 | V69: 0 | W69: 0 | X69: 0 | Y69: 0 | AA69: 68
A70: =+Declarations!A70&"" ->  | B70: =IF(LEN($A70),IF(LEN(Declarations!$B70)>0,Declarations!$B70,"#"&$A70),"") ->  | C70: ... | E70: 00:00:00 | F70: 0 | I70: 0 | J70: =IF(LEN($A70)>0,IF(LEN(Declarations!$F70)>0,Declarations!$F70,conftype),"") ->  | M70: 0 | N70: 0 | O70: 0 | P70: 0 | Q70: 0 | R70: 0 | S70: 0 | T70: 0 | U70: 0 | V70: 0 | W70: 0 | X70: 0 | Y70: 0 | AA70: 69
A71: =+Declarations!A71&"" ->  | B71: =IF(LEN($A71),IF(LEN(Declarations!$B71)>0,Declarations!$B71,"#"&$A71),"") ->  | C71: ... | D71: =IF(OR(G71="G",G71="F"),"F",IF(OR(G71="B",G71="M"),"M","")) ->  | E71: 00:00:00 | F71: 0 | I71: 0 | J71: =IF(LEN($A71)>0,IF(LEN(Declarations!$F71)>0,Declarations!$F71,conftype),"") ->  | M71: 0 | N71: 0 | O71: 0 | P71: 0 | Q71: 0 | R71: 0 | S71: 0 | T71: 0 | U71: 0 | V71: 0 | W71: 0 | X71: 0 | Y71: 0 | AA71: 70
A72: =+Declarations!A72&"" ->  | B72: =IF(LEN($A72),IF(LEN(Declarations!$B72)>0,Declarations!$B72,"#"&$A72),"") ->  | C72: ... | E72: 00:00:00 | F72: 0 | I72: 0 | J72: =IF(LEN($A72)>0,IF(LEN(Declarations!$F72)>0,Declarations!$F72,conftype),"") ->  | M72: 0 | N72: 0 | O72: 0 | P72: 0 | Q72: 0 | R72: 0 | S72: 0 | T72: 0 | U72: 0 | V72: 0 | W72: 0 | X72: 0 | Y72: 0 | AA72: 71
A73: =+Declarations!A73&"" ->  | B73: =IF(LEN($A73),IF(LEN(Declarations!$B73)>0,Declarations!$B73,"#"&$A73),"") ->  | C73: ... | E73: 00:00:00 | F73: 0 | I73: 0 | J73: =IF(LEN($A73)>0,IF(LEN(Declarations!$F73)>0,Declarations!$F73,conftype),"") ->  | M73: 0 | N73: 0 | O73: 0 | P73: 0 | Q73: 0 | R73: 0 | S73: 0 | T73: 0 | U73: 0 | V73: 0 | W73: 0 | X73: 0 | Y73: 0 | AA73: 72
A74: =+Declarations!A74&"" ->  | B74: =IF(LEN($A74),IF(LEN(Declarations!$B74)>0,Declarations!$B74,"#"&$A74),"") ->  | C74: ... | E74: 00:00:00 | F74: 0 | I74: 0 | J74: =IF(LEN($A74)>0,IF(LEN(Declarations!$F74)>0,Declarations!$F74,conftype),"") ->  | M74: 0 | N74: 0 | O74: 0 | P74: 0 | Q74: 0 | R74: 0 | S74: 0 | T74: 0 | U74: 0 | V74: 0 | W74: 0 | X74: 0 | Y74: 0 | AA74: 73
A75: =+Declarations!A75&"" ->  | B75: =IF(LEN($A75),IF(LEN(Declarations!$B75)>0,Declarations!$B75,"#"&$A75),"") ->  | C75: ... | E75: 00:00:00 | F75: 0 | I75: 0 | J75: =IF(LEN($A75)>0,IF(LEN(Declarations!$F75)>0,Declarations!$F75,conftype),"") ->  | M75: 0 | N75: 0 | O75: 0 | P75: 0 | Q75: 0 | R75: 0 | S75: 0 | T75: 0 | U75: 0 | V75: 0 | W75: 0 | X75: 0 | Y75: 0 | AA75: 74
A76: =+Declarations!A76&"" ->  | B76: =IF(LEN($A76),IF(LEN(Declarations!$B76)>0,Declarations!$B76,"#"&$A76),"") ->  | C76: ... | E76: 00:00:00 | F76: 0 | I76: 0 | J76: =IF(LEN($A76)>0,IF(LEN(Declarations!$F76)>0,Declarations!$F76,conftype),"") ->  | M76: 0 | N76: 0 | O76: 0 | P76: 0 | Q76: 0 | R76: 0 | S76: 0 | T76: 0 | U76: 0 | V76: 0 | W76: 0 | X76: 0 | Y76: 0 | AA76: 75
A77: =+Declarations!A77&"" ->  | B77: =IF(LEN($A77),IF(LEN(Declarations!$B77)>0,Declarations!$B77,"#"&$A77),"") ->  | C77: ... | E77: 00:00:00 | F77: 0 | I77: 0 | J77: =IF(LEN($A77)>0,IF(LEN(Declarations!$F77)>0,Declarations!$F77,conftype),"") ->  | M77: 0 | N77: 0 | O77: 0 | P77: 0 | Q77: 0 | R77: 0 | S77: 0 | T77: 0 | U77: 0 | V77: 0 | W77: 0 | X77: 0 | Y77: 0 | AA77: 76
A78: =+Declarations!A78&"" ->  | B78: =IF(LEN($A78),IF(LEN(Declarations!$B78)>0,Declarations!$B78,"#"&$A78),"") ->  | C78: ... | E78: 00:00:00 | F78: 0 | I78: 0 | J78: =IF(LEN($A78)>0,IF(LEN(Declarations!$F78)>0,Declarations!$F78,conftype),"") ->  | M78: 0 | N78: 0 | O78: 0 | P78: 0 | Q78: 0 | R78: 0 | S78: 0 | T78: 0 | U78: 0 | V78: 0 | W78: 0 | X78: 0 | Y78: 0 | AA78: 77
A79: =+Declarations!A79&"" ->  | B79: =IF(LEN($A79),IF(LEN(Declarations!$B79)>0,Declarations!$B79,"#"&$A79),"") ->  | C79: ... | E79: 00:00:00 | F79: 0 | I79: 0 | J79: =IF(LEN($A79)>0,IF(LEN(Declarations!$F79)>0,Declarations!$F79,conftype),"") ->  | M79: 0 | N79: 0 | O79: 0 | P79: 0 | Q79: 0 | R79: 0 | S79: 0 | T79: 0 | U79: 0 | V79: 0 | W79: 0 | X79: 0 | Y79: 0 | AA79: 78
A80: =+Declarations!A80&"" ->  | B80: =IF(LEN($A80),IF(LEN(Declarations!$B80)>0,Declarations!$B80,"#"&$A80),"") ->  | C80: ... | E80: 00:00:00 | F80: 0 | I80: 0 | J80: =IF(LEN($A80)>0,IF(LEN(Declarations!$F80)>0,Declarations!$F80,conftype),"") ->  | M80: 0 | N80: 0 | O80: 0 | P80: 0 | Q80: 0 | R80: 0 | S80: 0 | T80: 0 | U80: 0 | V80: 0 | W80: 0 | X80: 0 | Y80: 0 | AA80: 79
A81: =+Declarations!A81&"" ->  | B81: =IF(LEN($A81),IF(LEN(Declarations!$B81)>0,Declarations!$B81,"#"&$A81),"") ->  | C81: ... | E81: 00:00:00 | F81: 0 | I81: 0 | J81: =IF(LEN($A81)>0,IF(LEN(Declarations!$F81)>0,Declarations!$F81,conftype),"") ->  | M81: 0 | N81: 0 | O81: 0 | P81: 0 | Q81: 0 | R81: 0 | S81: 0 | T81: 0 | U81: 0 | V81: 0 | W81: 0 | X81: 0 | Y81: 0 | AA81: 80
A82: =+Declarations!A82&"" ->  | B82: =IF(LEN($A82),IF(LEN(Declarations!$B82)>0,Declarations!$B82,"#"&$A82),"") ->  | C82: ... | E82: 00:00:00 | F82: 0 | I82: 0 | J82: =IF(LEN($A82)>0,IF(LEN(Declarations!$F82)>0,Declarations!$F82,conftype),"") ->  | M82: 0 | N82: 0 | O82: 0 | P82: 0 | Q82: 0 | R82: 0 | S82: 0 | T82: 0 | U82: 0 | V82: 0 | W82: 0 | X82: 0 | Y82: 0 | AA82: 81
A83: =+Declarations!A83&"" ->  | B83: =IF(LEN($A83),IF(LEN(Declarations!$B83)>0,Declarations!$B83,"#"&$A83),"") ->  | C83: ... | E83: 00:00:00 | F83: 0 | I83: 0 | J83: =IF(LEN($A83)>0,IF(LEN(Declarations!$F83)>0,Declarations!$F83,conftype),"") ->  | M83: 0 | N83: 0 | O83: 0 | P83: 0 | Q83: 0 | R83: 0 | S83: 0 | T83: 0 | U83: 0 | V83: 0 | W83: 0 | X83: 0 | Y83: 0 | AA83: 82
A84: =+Declarations!A84&"" ->  | B84: =IF(LEN($A84),IF(LEN(Declarations!$B84)>0,Declarations!$B84,"#"&$A84),"") ->  | C84: ... | E84: 00:00:00 | F84: 0 | I84: 0 | J84: =IF(LEN($A84)>0,IF(LEN(Declarations!$F84)>0,Declarations!$F84,conftype),"") ->  | M84: 0 | N84: 0 | O84: 0 | P84: 0 | Q84: 0 | R84: 0 | S84: 0 | T84: 0 | U84: 0 | V84: 0 | W84: 0 | X84: 0 | Y84: 0 | AA84: 83
A85: =+Declarations!A85&"" ->  | B85: =IF(LEN($A85),IF(LEN(Declarations!$B85)>0,Declarations!$B85,"#"&$A85),"") ->  | C85: ... | E85: 00:00:00 | F85: 0 | I85: 0 | J85: =IF(LEN($A85)>0,IF(LEN(Declarations!$F85)>0,Declarations!$F85,conftype),"") ->  | M85: 0 | N85: 0 | O85: 0 | P85: 0 | Q85: 0 | R85: 0 | S85: 0 | T85: 0 | U85: 0 | V85: 0 | W85: 0 | X85: 0 | Y85: 0 | AA85: 84
A86: =+Declarations!A86&"" ->  | B86: =IF(LEN($A86),IF(LEN(Declarations!$B86)>0,Declarations!$B86,"#"&$A86),"") ->  | C86: ... | E86: 00:00:00 | F86: 0 | I86: 0 | J86: =IF(LEN($A86)>0,IF(LEN(Declarations!$F86)>0,Declarations!$F86,conftype),"") ->  | M86: 0 | N86: 0 | O86: 0 | P86: 0 | Q86: 0 | R86: 0 | S86: 0 | T86: 0 | U86: 0 | V86: 0 | W86: 0 | X86: 0 | Y86: 0 | AA86: 85
A87: =+Declarations!A87&"" ->  | B87: =IF(LEN($A87),IF(LEN(Declarations!$B87)>0,Declarations!$B87,"#"&$A87),"") ->  | C87: ... | E87: 00:00:00 | F87: 0 | I87: 0 | J87: =IF(LEN($A87)>0,IF(LEN(Declarations!$F87)>0,Declarations!$F87,conftype),"") ->  | M87: 0 | N87: 0 | O87: 0 | P87: 0 | Q87: 0 | R87: 0 | S87: 0 | T87: 0 | U87: 0 | V87: 0 | W87: 0 | X87: 0 | Y87: 0 | AA87: 86
A88: =+Declarations!A88&"" ->  | B88: =IF(LEN($A88),IF(LEN(Declarations!$B88)>0,Declarations!$B88,"#"&$A88),"") ->  | C88: ... | E88: 00:00:00 | F88: 0 | I88: 0 | J88: =IF(LEN($A88)>0,IF(LEN(Declarations!$F88)>0,Declarations!$F88,conftype),"") ->  | M88: 0 | N88: 0 | O88: 0 | P88: 0 | Q88: 0 | R88: 0 | S88: 0 | T88: 0 | U88: 0 | V88: 0 | W88: 0 | X88: 0 | Y88: 0 | AA88: 87
A89: =+Declarations!A89&"" ->  | B89: =IF(LEN($A89),IF(LEN(Declarations!$B89)>0,Declarations!$B89,"#"&$A89),"") ->  | C89: ... | E89: 00:00:00 | F89: 0 | I89: 0 | J89: =IF(LEN($A89)>0,IF(LEN(Declarations!$F89)>0,Declarations!$F89,conftype),"") ->  | M89: 0 | N89: 0 | O89: 0 | P89: 0 | Q89: 0 | R89: 0 | S89: 0 | T89: 0 | U89: 0 | V89: 0 | W89: 0 | X89: 0 | Y89: 0 | AA89: 88
A90: =+Declarations!A90&"" ->  | B90: =IF(LEN($A90),IF(LEN(Declarations!$B90)>0,Declarations!$B90,"#"&$A90),"") ->  | C90: ... | E90: 00:00:00 | F90: 0 | I90: 0 | J90: =IF(LEN($A90)>0,IF(LEN(Declarations!$F90)>0,Declarations!$F90,conftype),"") ->  | M90: 0 | N90: 0 | O90: 0 | P90: 0 | Q90: 0 | R90: 0 | S90: 0 | T90: 0 | U90: 0 | V90: 0 | W90: 0 | X90: 0 | Y90: 0 | AA90: 89
A91: =+Declarations!A91&"" ->  | B91: =IF(LEN($A91),IF(LEN(Declarations!$B91)>0,Declarations!$B91,"#"&$A91),"") ->  | C91: ... | E91: 00:00:00 | F91: 0 | I91: 0 | J91: =IF(LEN($A91)>0,IF(LEN(Declarations!$F91)>0,Declarations!$F91,conftype),"") ->  | M91: 0 | N91: 0 | O91: 0 | P91: 0 | Q91: 0 | R91: 0 | S91: 0 | T91: 0 | U91: 0 | V91: 0 | W91: 0 | X91: 0 | Y91: 0 | AA91: 90
A92: =+Declarations!A92&"" ->  | B92: =IF(LEN($A92),IF(LEN(Declarations!$B92)>0,Declarations!$B92,"#"&$A92),"") ->  | C92: ... | E92: 00:00:00 | F92: 0 | I92: 0 | J92: =IF(LEN($A92)>0,IF(LEN(Declarations!$F92)>0,Declarations!$F92,conftype),"") ->  | M92: 0 | N92: 0 | O92: 0 | P92: 0 | Q92: 0 | R92: 0 | S92: 0 | T92: 0 | U92: 0 | V92: 0 | W92: 0 | X92: 0 | Y92: 0 | AA92: 91
A93: =+Declarations!A93&"" ->  | B93: =IF(LEN($A93),IF(LEN(Declarations!$B93)>0,Declarations!$B93,"#"&$A93),"") ->  | C93: ... | E93: 00:00:00 | F93: 0 | I93: 0 | J93: =IF(LEN($A93)>0,IF(LEN(Declarations!$F93)>0,Declarations!$F93,conftype),"") ->  | M93: 0 | N93: 0 | O93: 0 | P93: 0 | Q93: 0 | R93: 0 | S93: 0 | T93: 0 | U93: 0 | V93: 0 | W93: 0 | X93: 0 | Y93: 0 | AA93: 92
A94: =+Declarations!A94&"" ->  | B94: =IF(LEN($A94),IF(LEN(Declarations!$B94)>0,Declarations!$B94,"#"&$A94),"") ->  | C94: ... | E94: 00:00:00 | F94: 0 | I94: 0 | J94: =IF(LEN($A94)>0,IF(LEN(Declarations!$F94)>0,Declarations!$F94,conftype),"") ->  | M94: 0 | N94: 0 | O94: 0 | P94: 0 | Q94: 0 | R94: 0 | S94: 0 | T94: 0 | U94: 0 | V94: 0 | W94: 0 | X94: 0 | Y94: 0 | AA94: 93
A95: =+Declarations!A95&"" ->  | B95: =IF(LEN($A95),IF(LEN(Declarations!$B95)>0,Declarations!$B95,"#"&$A95),"") ->  | C95: ... | E95: 00:00:00 | F95: 0 | I95: 0 | J95: =IF(LEN($A95)>0,IF(LEN(Declarations!$F95)>0,Declarations!$F95,conftype),"") ->  | M95: 0 | N95: 0 | O95: 0 | P95: 0 | Q95: 0 | R95: 0 | S95: 0 | T95: 0 | U95: 0 | V95: 0 | W95: 0 | X95: 0 | Y95: 0 | AA95: 94
A96: =+Declarations!A96&"" ->  | B96: =IF(LEN($A96),IF(LEN(Declarations!$B96)>0,Declarations!$B96,"#"&$A96),"") ->  | C96: ... | E96: 00:00:00 | F96: 0 | I96: 0 | J96: =IF(LEN($A96)>0,IF(LEN(Declarations!$F96)>0,Declarations!$F96,conftype),"") ->  | M96: 0 | N96: 0 | O96: 0 | P96: 0 | Q96: 0 | R96: 0 | S96: 0 | T96: 0 | U96: 0 | V96: 0 | W96: 0 | X96: 0 | Y96: 0 | AA96: 95
A97: =+Declarations!A97&"" ->  | B97: =IF(LEN($A97),IF(LEN(Declarations!$B97)>0,Declarations!$B97,"#"&$A97),"") ->  | C97: ... | E97: 00:00:00 | F97: 0 | I97: 0 | J97: =IF(LEN($A97)>0,IF(LEN(Declarations!$F97)>0,Declarations!$F97,conftype),"") ->  | M97: 0 | N97: 0 | O97: 0 | P97: 0 | Q97: 0 | R97: 0 | S97: 0 | T97: 0 | U97: 0 | V97: 0 | W97: 0 | X97: 0 | Y97: 0 | AA97: 96
A98: =+Declarations!A98&"" ->  | B98: =IF(LEN($A98),IF(LEN(Declarations!$B98)>0,Declarations!$B98,"#"&$A98),"") ->  | C98: ... | E98: 00:00:00 | F98: 0 | I98: 0 | J98: =IF(LEN($A98)>0,IF(LEN(Declarations!$F98)>0,Declarations!$F98,conftype),"") ->  | M98: 0 | N98: 0 | O98: 0 | P98: 0 | Q98: 0 | R98: 0 | S98: 0 | T98: 0 | U98: 0 | V98: 0 | W98: 0 | X98: 0 | Y98: 0 | AA98: 97
A99: =+Declarations!A99&"" ->  | B99: =IF(LEN($A99),IF(LEN(Declarations!$B99)>0,Declarations!$B99,"#"&$A99),"") ->  | C99: ... | E99: 00:00:00 | F99: 0 | I99: 0 | J99: =IF(LEN($A99)>0,IF(LEN(Declarations!$F99)>0,Declarations!$F99,conftype),"") ->  | M99: 0 | N99: 0 | O99: 0 | P99: 0 | Q99: 0 | R99: 0 | S99: 0 | T99: 0 | U99: 0 | V99: 0 | W99: 0 | X99: 0 | Y99: 0 | AA99: 98
A100: =+Declarations!A100&"" ->  | B100: =IF(LEN($A100),IF(LEN(Declarations!$B100)>0,Declarations!$B100,"#"&$A100),"") ->  | C100: ... | E100: 00:00:00 | F100: 0 | I100: 0 | J100: =IF(LEN($A100)>0,IF(LEN(Declarations!$F100)>0,Declarations!$F100,conftype),"") ->  | M100: 0 | N100: 0 | O100: 0 | P100: 0 | Q100: 0 | R100: 0 | S100: 0 | T100: 0 | U100: 0 | V100: 0 | W100: 0 | X100: 0 | Y100: 0 | AA100: 99
A101: =+Declarations!A101&"" ->  | B101: =IF(LEN($A101),IF(LEN(Declarations!$B101)>0,Declarations!$B101,"#"&$A101),"") ->  | C101: ... | E101: 00:00:00 | F101: 0 | I101: 0 | J101: =IF(LEN($A101)>0,IF(LEN(Declarations!$F101)>0,Declarations!$F101,conftype),"") ->  | M101: 0 | N101: 0 | O101: 0 | P101: 0 | Q101: 0 | R101: 0 | S101: 0 | T101: 0 | U101: 0 | V101: 0 | W101: 0 | X101: 0 | Y101: 0 | AA101: 100
A102: =+Declarations!A102&"" ->  | B102: =IF(LEN($A102),IF(LEN(Declarations!$B102)>0,Declarations!$B102,"#"&$A102),"") ->  | C102: ... | E102: 00:00:00 | F102: 0 | I102: 0 | J102: =IF(LEN($A102)>0,IF(LEN(Declarations!$F102)>0,Declarations!$F102,conftype),"") ->  | M102: 0 | N102: 0 | O102: 0 | P102: 0 | Q102: 0 | R102: 0 | S102: 0 | T102: 0 | U102: 0 | V102: 0 | W102: 0 | X102: 0 | Y102: 0 | AA102: 101
A103: =+Declarations!A103&"" ->  | B103: =IF(LEN($A103),IF(LEN(Declarations!$B103)>0,Declarations!$B103,"#"&$A103),"") ->  | C103: ... | E103: 00:00:00 | F103: 0 | I103: 0 | J103: =IF(LEN($A103)>0,IF(LEN(Declarations!$F103)>0,Declarations!$F103,conftype),"") ->  | M103: 0 | N103: 0 | O103: 0 | P103: 0 | Q103: 0 | R103: 0 | S103: 0 | T103: 0 | U103: 0 | V103: 0 | W103: 0 | X103: 0 | Y103: 0 | AA103: 102
A104: =+Declarations!A104&"" ->  | B104: =IF(LEN($A104),IF(LEN(Declarations!$B104)>0,Declarations!$B104,"#"&$A104),"") ->  | C104: ... | E104: 00:00:00 | F104: 0 | I104: 0 | J104: =IF(LEN($A104)>0,IF(LEN(Declarations!$F104)>0,Declarations!$F104,conftype),"") ->  | M104: 0 | N104: 0 | O104: 0 | P104: 0 | Q104: 0 | R104: 0 | S104: 0 | T104: 0 | U104: 0 | V104: 0 | W104: 0 | X104: 0 | Y104: 0 | AA104: 103
A105: =+Declarations!A105&"" ->  | B105: =IF(LEN($A105),IF(LEN(Declarations!$B105)>0,Declarations!$B105,"#"&$A105),"") ->  | C105: ... | E105: 00:00:00 | F105: 0 | I105: 0 | J105: =IF(LEN($A105)>0,IF(LEN(Declarations!$F105)>0,Declarations!$F105,conftype),"") ->  | M105: 0 | N105: 0 | O105: 0 | P105: 0 | Q105: 0 | R105: 0 | S105: 0 | T105: 0 | U105: 0 | V105: 0 | W105: 0 | X105: 0 | Y105: 0 | AA105: 104
A106: =+Declarations!A106&"" ->  | B106: =IF(LEN($A106),IF(LEN(Declarations!$B106)>0,Declarations!$B106,"#"&$A106),"") ->  | C106: ... | E106: 00:00:00 | F106: 0 | I106: 0 | J106: =IF(LEN($A106)>0,IF(LEN(Declarations!$F106)>0,Declarations!$F106,conftype),"") ->  | M106: 0 | N106: 0 | O106: 0 | P106: 0 | Q106: 0 | R106: 0 | S106: 0 | T106: 0 | U106: 0 | V106: 0 | W106: 0 | X106: 0 | Y106: 0 | AA106: 105
A107: =+Declarations!A107&"" ->  | B107: =IF(LEN($A107),IF(LEN(Declarations!$B107)>0,Declarations!$B107,"#"&$A107),"") ->  | C107: ... | E107: 00:00:00 | F107: 0 | I107: 0 | J107: =IF(LEN($A107)>0,IF(LEN(Declarations!$F107)>0,Declarations!$F107,conftype),"") ->  | M107: 0 | N107: 0 | O107: 0 | P107: 0 | Q107: 0 | R107: 0 | S107: 0 | T107: 0 | U107: 0 | V107: 0 | W107: 0 | X107: 0 | Y107: 0 | AA107: 106
A108: =+Declarations!A108&"" ->  | B108: =IF(LEN($A108),IF(LEN(Declarations!$B108)>0,Declarations!$B108,"#"&$A108),"") ->  | C108: ... | E108: 00:00:00 | F108: 0 | I108: 0 | J108: =IF(LEN($A108)>0,IF(LEN(Declarations!$F108)>0,Declarations!$F108,conftype),"") ->  | M108: 0 | N108: 0 | O108: 0 | P108: 0 | Q108: 0 | R108: 0 | S108: 0 | T108: 0 | U108: 0 | V108: 0 | W108: 0 | X108: 0 | Y108: 0 | AA108: 107
A109: =+Declarations!A109&"" ->  | B109: =IF(LEN($A109),IF(LEN(Declarations!$B109)>0,Declarations!$B109,"#"&$A109),"") ->  | C109: ... | E109: 00:00:00 | F109: 0 | I109: 0 | J109: =IF(LEN($A109)>0,IF(LEN(Declarations!$F109)>0,Declarations!$F109,conftype),"") ->  | M109: 0 | N109: 0 | O109: 0 | P109: 0 | Q109: 0 | R109: 0 | S109: 0 | T109: 0 | U109: 0 | V109: 0 | W109: 0 | X109: 0 | Y109: 0 | AA109: 108
A110: =+Declarations!A110&"" ->  | B110: =IF(LEN($A110),IF(LEN(Declarations!$B110)>0,Declarations!$B110,"#"&$A110),"") ->  | C110: ... | E110: 00:00:00 | F110: 0 | I110: 0 | J110: =IF(LEN($A110)>0,IF(LEN(Declarations!$F110)>0,Declarations!$F110,conftype),"") ->  | M110: 0 | N110: 0 | O110: 0 | P110: 0 | Q110: 0 | R110: 0 | S110: 0 | T110: 0 | U110: 0 | V110: 0 | W110: 0 | X110: 0 | Y110: 0 | AA110: 109
A111: =+Declarations!A111&"" ->  | B111: =IF(LEN($A111),IF(LEN(Declarations!$B111)>0,Declarations!$B111,"#"&$A111),"") ->  | C111: ... | E111: 00:00:00 | F111: 0 | I111: 0 | J111: =IF(LEN($A111)>0,IF(LEN(Declarations!$F111)>0,Declarations!$F111,conftype),"") ->  | M111: =IF(ISNA(VLOOKUP($A111,SprintData,2,FALSE)),0,VLOOKUP($A111,SprintData,2,FALSE)) -> 0 | N111: 0 | O111: 0 | P111: 0 | Q111: 0 | R111: 0 | S111: 0 | T111: 0 | U111: 0 | V111: 0 | W111: 0 | X111: 0 | Y111: 0 | AA111: 110
A112: =+Declarations!A112&"" ->  | B112: =IF(LEN($A112),IF(LEN(Declarations!$B112)>0,Declarations!$B112,"#"&$A112),"") ->  | C112: ... | E112: 00:00:00 | F112: 0 | I112: 0 | J112: =IF(LEN($A112)>0,IF(LEN(Declarations!$F112)>0,Declarations!$F112,conftype),"") ->  | M112: 0 | N112: 0 | O112: 0 | P112: 0 | Q112: 0 | R112: 0 | S112: 0 | T112: 0 | U112: 0 | V112: 0 | W112: 0 | X112: 0 | Y112: 0 | AA112: 111
A113: =+Declarations!A113&"" ->  | B113: =IF(LEN($A113),IF(LEN(Declarations!$B113)>0,Declarations!$B113,"#"&$A113),"") ->  | C113: ... | E113: 00:00:00 | F113: 0 | I113: 0 | J113: =IF(LEN($A113)>0,IF(LEN(Declarations!$F113)>0,Declarations!$F113,conftype),"") ->  | M113: 0 | N113: 0 | O113: 0 | P113: 0 | Q113: 0 | R113: 0 | S113: 0 | T113: 0 | U113: 0 | V113: 0 | W113: 0 | X113: 0 | Y113: 0 | AA113: 112
A114: =+Declarations!A114&"" ->  | B114: =IF(LEN($A114),IF(LEN(Declarations!$B114)>0,Declarations!$B114,"#"&$A114),"") ->  | C114: ... | E114: 00:00:00 | F114: 0 | I114: 0 | J114: =IF(LEN($A114)>0,IF(LEN(Declarations!$F114)>0,Declarations!$F114,conftype),"") ->  | M114: 0 | N114: 0 | O114: 0 | P114: 0 | Q114: 0 | R114: 0 | S114: 0 | T114: 0 | U114: 0 | V114: 0 | W114: 0 | X114: 0 | Y114: 0 | AA114: 113
A115: =+Declarations!A115&"" ->  | B115: =IF(LEN($A115),IF(LEN(Declarations!$B115)>0,Declarations!$B115,"#"&$A115),"") ->  | C115: ... | E115: 00:00:00 | F115: 0 | I115: 0 | J115: =IF(LEN($A115)>0,IF(LEN(Declarations!$F115)>0,Declarations!$F115,conftype),"") ->  | M115: 0 | N115: 0 | O115: 0 | P115: 0 | Q115: 0 | R115: 0 | S115: 0 | T115: 0 | U115: 0 | V115: 0 | W115: 0 | X115: 0 | Y115: 0 | AA115: 114
A116: =+Declarations!A116&"" ->  | B116: =IF(LEN($A116),IF(LEN(Declarations!$B116)>0,Declarations!$B116,"#"&$A116),"") ->  | C116: ... | E116: 00:00:00 | F116: 0 | I116: 0 | J116: =IF(LEN($A116)>0,IF(LEN(Declarations!$F116)>0,Declarations!$F116,conftype),"") ->  | M116: 0 | N116: 0 | O116: 0 | P116: 0 | Q116: 0 | R116: 0 | S116: 0 | T116: 0 | U116: 0 | V116: 0 | W116: 0 | X116: 0 | Y116: 0 | AA116: 115
A117: =+Declarations!A117&"" ->  | B117: =IF(LEN($A117),IF(LEN(Declarations!$B117)>0,Declarations!$B117,"#"&$A117),"") ->  | C117: ... | E117: 00:00:00 | F117: 0 | I117: 0 | J117: =IF(LEN($A117)>0,IF(LEN(Declarations!$F117)>0,Declarations!$F117,conftype),"") ->  | M117: 0 | N117: 0 | O117: 0 | P117: 0 | Q117: 0 | R117: 0 | S117: 0 | T117: 0 | U117: 0 | V117: 0 | W117: 0 | X117: 0 | Y117: 0 | AA117: 116
A118: =+Declarations!A118&"" ->  | B118: =IF(LEN($A118),IF(LEN(Declarations!$B118)>0,Declarations!$B118,"#"&$A118),"") ->  | C118: ... | E118: 00:00:00 | F118: 0 | I118: 0 | J118: =IF(LEN($A118)>0,IF(LEN(Declarations!$F118)>0,Declarations!$F118,conftype),"") ->  | M118: 0 | N118: 0 | O118: 0 | P118: 0 | Q118: 0 | R118: 0 | S118: 0 | T118: 0 | U118: 0 | V118: 0 | W118: 0 | X118: 0 | Y118: 0 | AA118: 117
A119: =+Declarations!A119&"" ->  | B119: =IF(LEN($A119),IF(LEN(Declarations!$B119)>0,Declarations!$B119,"#"&$A119),"") ->  | C119: ... | E119: 00:00:00 | F119: 0 | I119: 0 | J119: =IF(LEN($A119)>0,IF(LEN(Declarations!$F119)>0,Declarations!$F119,conftype),"") ->  | M119: 0 | N119: 0 | O119: 0 | P119: 0 | Q119: 0 | R119: 0 | S119: 0 | T119: 0 | U119: 0 | V119: 0 | W119: 0 | X119: 0 | Y119: 0 | AA119: 118
A120: =+Declarations!A120&"" ->  | B120: =IF(LEN($A120),IF(LEN(Declarations!$B120)>0,Declarations!$B120,"#"&$A120),"") ->  | C120: ... | E120: 00:00:00 | F120: 0 | I120: 0 | J120: =IF(LEN($A120)>0,IF(LEN(Declarations!$F120)>0,Declarations!$F120,conftype),"") ->  | M120: 0 | N120: 0 | O120: 0 | P120: 0 | Q120: 0 | R120: 0 | S120: 0 | T120: 0 | U120: 0 | V120: 0 | W120: 0 | X120: 0 | Y120: 0 | AA120: 119
A121: =+Declarations!A121&"" ->  | B121: =IF(LEN($A121),IF(LEN(Declarations!$B121)>0,Declarations!$B121,"#"&$A121),"") ->  | C121: ... | E121: 00:00:00 | F121: 0 | I121: 0 | J121: =IF(LEN($A121)>0,IF(LEN(Declarations!$F121)>0,Declarations!$F121,conftype),"") ->  | M121: 0 | N121: 0 | O121: 0 | P121: 0 | Q121: 0 | R121: 0 | S121: 0 | T121: 0 | U121: 0 | V121: 0 | W121: 0 | X121: 0 | Y121: 0 | AA121: 120
A122: =+Declarations!A122&"" ->  | B122: =IF(LEN($A122),IF(LEN(Declarations!$B122)>0,Declarations!$B122,"#"&$A122),"") ->  | C122: ... | E122: 00:00:00 | F122: 0 | I122: 0 | J122: =IF(LEN($A122)>0,IF(LEN(Declarations!$F122)>0,Declarations!$F122,conftype),"") ->  | M122: 0 | N122: 0 | O122: 0 | P122: 0 | Q122: 0 | R122: 0 | S122: 0 | T122: 0 | U122: 0 | V122: 0 | W122: 0 | X122: 0 | Y122: 0 | AA122: 121
A123: =+Declarations!A123&"" ->  | B123: =IF(LEN($A123),IF(LEN(Declarations!$B123)>0,Declarations!$B123,"#"&$A123),"") ->  | C123: ... | E123: 00:00:00 | F123: 0 | I123: 0 | J123: =IF(LEN($A123)>0,IF(LEN(Declarations!$F123)>0,Declarations!$F123,conftype),"") ->  | M123: 0 | N123: 0 | O123: 0 | P123: 0 | Q123: 0 | R123: 0 | S123: 0 | T123: 0 | U123: 0 | V123: 0 | W123: 0 | X123: 0 | Y123: 0 | AA123: 122
A124: =+Declarations!A124&"" ->  | B124: =IF(LEN($A124),IF(LEN(Declarations!$B124)>0,Declarations!$B124,"#"&$A124),"") ->  | C124: ... | E124: 00:00:00 | F124: 0 | I124: 0 | J124: =IF(LEN($A124)>0,IF(LEN(Declarations!$F124)>0,Declarations!$F124,conftype),"") ->  | M124: 0 | N124: 0 | O124: 0 | P124: 0 | Q124: 0 | R124: 0 | S124: 0 | T124: 0 | U124: 0 | V124: 0 | W124: 0 | X124: 0 | Y124: 0 | AA124: 123
A125: =+Declarations!A125&"" ->  | B125: =IF(LEN($A125),IF(LEN(Declarations!$B125)>0,Declarations!$B125,"#"&$A125),"") ->  | C125: ... | E125: 00:00:00 | F125: 0 | I125: 0 | J125: =IF(LEN($A125)>0,IF(LEN(Declarations!$F125)>0,Declarations!$F125,conftype),"") ->  | M125: 0 | N125: 0 | O125: 0 | P125: 0 | Q125: 0 | R125: 0 | S125: 0 | T125: 0 | U125: 0 | V125: 0 | W125: 0 | X125: 0 | Y125: 0 | AA125: 124
A126: =+Declarations!A126&"" ->  | B126: =IF(LEN($A126),IF(LEN(Declarations!$B126)>0,Declarations!$B126,"#"&$A126),"") ->  | C126: ... | E126: 00:00:00 | F126: 0 | I126: 0 | J126: =IF(LEN($A126)>0,IF(LEN(Declarations!$F126)>0,Declarations!$F126,conftype),"") ->  | M126: 0 | N126: 0 | O126: 0 | P126: 0 | Q126: 0 | R126: 0 | S126: 0 | T126: 0 | U126: 0 | V126: 0 | W126: 0 | X126: 0 | Y126: 0 | AA126: 125
A127: =+Declarations!A127&"" ->  | B127: =IF(LEN($A127),IF(LEN(Declarations!$B127)>0,Declarations!$B127,"#"&$A127),"") ->  | C127: ... | E127: 00:00:00 | F127: 0 | I127: 0 | J127: =IF(LEN($A127)>0,IF(LEN(Declarations!$F127)>0,Declarations!$F127,conftype),"") ->  | M127: 0 | N127: 0 | O127: 0 | P127: 0 | Q127: 0 | R127: 0 | S127: 0 | T127: 0 | U127: 0 | V127: 0 | W127: 0 | X127: 0 | Y127: 0 | AA127: 126
A128: =+Declarations!A128&"" ->  | B128: =IF(LEN($A128),IF(LEN(Declarations!$B128)>0,Declarations!$B128,"#"&$A128),"") ->  | C128: ... | E128: 00:00:00 | F128: 0 | I128: 0 | J128: =IF(LEN($A128)>0,IF(LEN(Declarations!$F128)>0,Declarations!$F128,conftype),"") ->  | M128: 0 | N128: 0 | O128: 0 | P128: 0 | Q128: 0 | R128: 0 | S128: 0 | T128: 0 | U128: 0 | V128: 0 | W128: 0 | X128: 0 | Y128: 0 | AA128: 127
A129: =+Declarations!A129&"" ->  | B129: =IF(LEN($A129),IF(LEN(Declarations!$B129)>0,Declarations!$B129,"#"&$A129),"") ->  | C129: ... | E129: 00:00:00 | F129: 0 | I129: 0 | J129: =IF(LEN($A129)>0,IF(LEN(Declarations!$F129)>0,Declarations!$F129,conftype),"") ->  | M129: 0 | N129: 0 | O129: 0 | P129: 0 | Q129: 0 | R129: 0 | S129: 0 | T129: 0 | U129: 0 | V129: 0 | W129: 0 | X129: 0 | Y129: 0 | AA129: 128
A130: =+Declarations!A130&"" ->  | B130: =IF(LEN($A130),IF(LEN(Declarations!$B130)>0,Declarations!$B130,"#"&$A130),"") ->  | C130: =IF(LEN(INDEX(DECLARATIONS,$AA130,3))>0,INDEX(DECLARATIONS,$AA130,3),"...") -> ... | E130: =IF(ISNA($AA130),0,INDEX(DECLARATIONS,$AA130,5)) -> 00:00:00 | F130: =IF(ISNA($AA130),0,INDEX(DECLARATIONS,$AA130,7)) -> 0 | G130: =UPPER(IF(ISNA($AA130),"",INDEX(DECLARATIONS,$AA130,4))) ->  | H130: =IF(AND(A130>0,ISTEXT(B130)),IF(SECNAME="YES",LEFT(B130&" ",FIND(" ",B130&" ")+2)&IF(F130>0," ("&F130&")",""), B130&IF(F130>0," ("&F130&")","")),"#"&$A130) ->  | I130: =IF(LEN($A130)>0,IF(LEN($J130)>0,MATCH(J130,MatchNames,0),EventIndex),0) -> 0 | J130: =IF(LEN($A130)>0,IF(LEN(Declarations!$F130)>0,Declarations!$F130,conftype),"") ->  | M130: 0 | N130: =IF(ISNA(VLOOKUP($A130,JumpData,2,FALSE)),0,VLOOKUP($A130,JumpData,2,FALSE)) -> 0 | O130: =IF(ISNA(VLOOKUP($A130,RunData,2,FALSE)),0,VLOOKUP($A130,RunData,2,FALSE)) -> 0 | P130: =IF(ISNA(VLOOKUP($A130,ThrowData,2,FALSE)),0,VLOOKUP($A130,ThrowData,2,FALSE)) -> 0 | Q130: =IF(ISNA(VLOOKUP($A130,SprintData,4,FALSE)),0,VLOOKUP($A130,SprintData,4,FALSE))+V130 -> 0 | R130: =IF(ISNA(VLOOKUP($A130,JumpData,4,FALSE)),0,VLOOKUP($A130,JumpData,4,FALSE))+W130 -> 0 | S130: =IF(ISNA(VLOOKUP($A130,RunData,4,FALSE)),0,VLOOKUP($A130,RunData,4,FALSE))+X130 -> 0 | T130: =IF(ISNA(VLOOKUP($A130,ThrowData,4,FALSE)),0,VLOOKUP($A130,ThrowData,4,FALSE))+Y130 -> 0 | U130: =+Q130+R130+S130+T130 -> 0 | V130: =IF(AND($F130>0,NOT(M130),Flexing),FlexPC,0) -> 0 | W130: =IF(AND($F130>0,NOT(N130),Flexing),FlexPC,0) -> 0 | X130: =IF(AND($F130>0,NOT(O130),Flexing),FlexPC,0) -> 0 | Y130: =IF(AND($F130>0,NOT(P130),Flexing),FlexPC,0) -> 0 | AA130: 129
A131: =+Declarations!A131&"" ->  | B131: =IF(LEN($A131),IF(LEN(Declarations!$B131)>0,Declarations!$B131,"#"&$A131),"") ->  | C131: ... | E131: 00:00:00 | F131: 0 | I131: 0 | J131: =IF(LEN($A131)>0,IF(LEN(Declarations!$F131)>0,Declarations!$F131,conftype),"") ->  | M131: 0 | N131: 0 | O131: 0 | P131: 0 | Q131: 0 | R131: 0 | S131: 0 | T131: 0 | U131: 0 | V131: 0 | W131: 0 | X131: 0 | Y131: 0 | AA131: =ROW()-1 -> 130
A132: =+Declarations!A132&"" ->  | B132: =IF(LEN($A132),IF(LEN(Declarations!$B132)>0,Declarations!$B132,"#"&$A132),"") ->  | C132: ... | E132: 00:00:00 | F132: 0 | I132: 0 | J132: =IF(LEN($A132)>0,IF(LEN(Declarations!$F132)>0,Declarations!$F132,conftype),"") ->  | M132: 0 | N132: 0 | O132: 0 | P132: 0 | Q132: 0 | R132: 0 | S132: 0 | T132: 0 | U132: 0 | V132: 0 | W132: 0 | X132: 0 | Y132: 0 | AA132: 131
A133: =+Declarations!A133&"" ->  | B133: =IF(LEN($A133),IF(LEN(Declarations!$B133)>0,Declarations!$B133,"#"&$A133),"") ->  | C133: ... | E133: 00:00:00 | F133: 0 | I133: 0 | J133: =IF(LEN($A133)>0,IF(LEN(Declarations!$F133)>0,Declarations!$F133,conftype),"") ->  | M133: 0 | N133: 0 | O133: 0 | P133: 0 | Q133: 0 | R133: 0 | S133: 0 | T133: 0 | U133: 0 | V133: 0 | W133: 0 | X133: 0 | Y133: 0 | AA133: 132
A134: =+Declarations!A134&"" ->  | B134: =IF(LEN($A134),IF(LEN(Declarations!$B134)>0,Declarations!$B134,"#"&$A134),"") ->  | C134: ... | E134: 00:00:00 | F134: 0 | I134: 0 | J134: =IF(LEN($A134)>0,IF(LEN(Declarations!$F134)>0,Declarations!$F134,conftype),"") ->  | M134: 0 | N134: 0 | O134: 0 | P134: 0 | Q134: 0 | R134: 0 | S134: 0 | T134: 0 | U134: 0 | V134: 0 | W134: 0 | X134: 0 | Y134: 0 | AA134: 133
A135: =+Declarations!A135&"" ->  | B135: =IF(LEN($A135),IF(LEN(Declarations!$B135)>0,Declarations!$B135,"#"&$A135),"") ->  | C135: ... | D135: =IF(OR(G135="G",G135="F"),"F",IF(OR(G135="B",G135="M"),"M","")) ->  | E135: 00:00:00 | F135: 0 | I135: 0 | J135: =IF(LEN($A135)>0,IF(LEN(Declarations!$F135)>0,Declarations!$F135,conftype),"") ->  | M135: 0 | N135: 0 | O135: 0 | P135: 0 | Q135: 0 | R135: 0 | S135: 0 | T135: 0 | U135: 0 | V135: 0 | W135: 0 | X135: 0 | Y135: 0 | AA135: 134
A136: =+Declarations!A136&"" ->  | B136: =IF(LEN($A136),IF(LEN(Declarations!$B136)>0,Declarations!$B136,"#"&$A136),"") ->  | C136: ... | E136: 00:00:00 | F136: 0 | I136: 0 | J136: =IF(LEN($A136)>0,IF(LEN(Declarations!$F136)>0,Declarations!$F136,conftype),"") ->  | M136: 0 | N136: 0 | O136: 0 | P136: 0 | Q136: 0 | R136: 0 | S136: 0 | T136: 0 | U136: 0 | V136: 0 | W136: 0 | X136: 0 | Y136: 0 | AA136: 135
A137: =+Declarations!A137&"" ->  | B137: =IF(LEN($A137),IF(LEN(Declarations!$B137)>0,Declarations!$B137,"#"&$A137),"") ->  | C137: ... | E137: 00:00:00 | F137: 0 | I137: 0 | J137: =IF(LEN($A137)>0,IF(LEN(Declarations!$F137)>0,Declarations!$F137,conftype),"") ->  | M137: 0 | N137: 0 | O137: 0 | P137: 0 | Q137: 0 | R137: 0 | S137: 0 | T137: 0 | U137: 0 | V137: 0 | W137: 0 | X137: 0 | Y137: 0 | AA137: 136
A138: =+Declarations!A138&"" ->  | B138: =IF(LEN($A138),IF(LEN(Declarations!$B138)>0,Declarations!$B138,"#"&$A138),"") ->  | C138: ... | E138: 00:00:00 | F138: 0 | I138: 0 | J138: =IF(LEN($A138)>0,IF(LEN(Declarations!$F138)>0,Declarations!$F138,conftype),"") ->  | M138: 0 | N138: 0 | O138: 0 | P138: 0 | Q138: 0 | R138: 0 | S138: 0 | T138: 0 | U138: 0 | V138: 0 | W138: 0 | X138: 0 | Y138: 0 | AA138: 137
A139: =+Declarations!A139&"" ->  | B139: =IF(LEN($A139),IF(LEN(Declarations!$B139)>0,Declarations!$B139,"#"&$A139),"") ->  | C139: ... | E139: 00:00:00 | F139: 0 | I139: 0 | J139: =IF(LEN($A139)>0,IF(LEN(Declarations!$F139)>0,Declarations!$F139,conftype),"") ->  | M139: 0 | N139: 0 | O139: 0 | P139: 0 | Q139: 0 | R139: 0 | S139: 0 | T139: 0 | U139: 0 | V139: 0 | W139: 0 | X139: 0 | Y139: 0 | AA139: 138
A140: =+Declarations!A140&"" ->  | B140: =IF(LEN($A140),IF(LEN(Declarations!$B140)>0,Declarations!$B140,"#"&$A140),"") ->  | C140: ... | E140: 00:00:00 | F140: 0 | I140: 0 | J140: =IF(LEN($A140)>0,IF(LEN(Declarations!$F140)>0,Declarations!$F140,conftype),"") ->  | M140: 0 | N140: 0 | O140: 0 | P140: 0 | Q140: 0 | R140: 0 | S140: 0 | T140: 0 | U140: 0 | V140: 0 | W140: 0 | X140: 0 | Y140: 0 | AA140: 139
A141: =+Declarations!A141&"" ->  | B141: =IF(LEN($A141),IF(LEN(Declarations!$B141)>0,Declarations!$B141,"#"&$A141),"") ->  | C141: ... | E141: 00:00:00 | F141: 0 | I141: 0 | J141: =IF(LEN($A141)>0,IF(LEN(Declarations!$F141)>0,Declarations!$F141,conftype),"") ->  | M141: 0 | N141: 0 | O141: 0 | P141: 0 | Q141: 0 | R141: 0 | S141: 0 | T141: 0 | U141: 0 | V141: 0 | W141: 0 | X141: 0 | Y141: 0 | AA141: 140
A142: =+Declarations!A142&"" ->  | B142: =IF(LEN($A142),IF(LEN(Declarations!$B142)>0,Declarations!$B142,"#"&$A142),"") ->  | C142: ... | E142: 00:00:00 | F142: 0 | I142: 0 | J142: =IF(LEN($A142)>0,IF(LEN(Declarations!$F142)>0,Declarations!$F142,conftype),"") ->  | M142: 0 | N142: 0 | O142: 0 | P142: 0 | Q142: 0 | R142: 0 | S142: 0 | T142: 0 | U142: 0 | V142: 0 | W142: 0 | X142: 0 | Y142: 0 | AA142: 141
A143: =+Declarations!A143&"" ->  | B143: =IF(LEN($A143),IF(LEN(Declarations!$B143)>0,Declarations!$B143,"#"&$A143),"") ->  | C143: ... | E143: 00:00:00 | F143: 0 | I143: 0 | J143: =IF(LEN($A143)>0,IF(LEN(Declarations!$F143)>0,Declarations!$F143,conftype),"") ->  | M143: 0 | N143: 0 | O143: 0 | P143: 0 | Q143: 0 | R143: 0 | S143: 0 | T143: 0 | U143: 0 | V143: 0 | W143: 0 | X143: 0 | Y143: 0 | AA143: 142
A144: =+Declarations!A144&"" ->  | B144: =IF(LEN($A144),IF(LEN(Declarations!$B144)>0,Declarations!$B144,"#"&$A144),"") ->  | C144: ... | E144: 00:00:00 | F144: 0 | I144: 0 | J144: =IF(LEN($A144)>0,IF(LEN(Declarations!$F144)>0,Declarations!$F144,conftype),"") ->  | M144: 0 | N144: 0 | O144: 0 | P144: 0 | Q144: 0 | R144: 0 | S144: 0 | T144: 0 | U144: 0 | V144: 0 | W144: 0 | X144: 0 | Y144: 0 | AA144: 143
A145: =+Declarations!A145&"" ->  | B145: =IF(LEN($A145),IF(LEN(Declarations!$B145)>0,Declarations!$B145,"#"&$A145),"") ->  | C145: ... | E145: 00:00:00 | F145: 0 | I145: 0 | J145: =IF(LEN($A145)>0,IF(LEN(Declarations!$F145)>0,Declarations!$F145,conftype),"") ->  | M145: 0 | N145: 0 | O145: 0 | P145: 0 | Q145: 0 | R145: 0 | S145: 0 | T145: 0 | U145: 0 | V145: 0 | W145: 0 | X145: 0 | Y145: 0 | AA145: 144
A146: =+Declarations!A146&"" ->  | B146: =IF(LEN($A146),IF(LEN(Declarations!$B146)>0,Declarations!$B146,"#"&$A146),"") ->  | C146: ... | E146: 00:00:00 | F146: 0 | I146: 0 | J146: =IF(LEN($A146)>0,IF(LEN(Declarations!$F146)>0,Declarations!$F146,conftype),"") ->  | M146: 0 | N146: 0 | O146: 0 | P146: 0 | Q146: 0 | R146: 0 | S146: 0 | T146: 0 | U146: 0 | V146: 0 | W146: 0 | X146: 0 | Y146: 0 | AA146: 145
A147: =+Declarations!A147&"" ->  | B147: =IF(LEN($A147),IF(LEN(Declarations!$B147)>0,Declarations!$B147,"#"&$A147),"") ->  | C147: ... | E147: 00:00:00 | F147: 0 | I147: 0 | J147: =IF(LEN($A147)>0,IF(LEN(Declarations!$F147)>0,Declarations!$F147,conftype),"") ->  | M147: 0 | N147: 0 | O147: 0 | P147: 0 | Q147: 0 | R147: 0 | S147: 0 | T147: 0 | U147: 0 | V147: 0 | W147: 0 | X147: 0 | Y147: 0 | AA147: 146
A148: =+Declarations!A148&"" ->  | B148: =IF(LEN($A148),IF(LEN(Declarations!$B148)>0,Declarations!$B148,"#"&$A148),"") ->  | C148: ... | E148: 00:00:00 | F148: 0 | I148: 0 | J148: =IF(LEN($A148)>0,IF(LEN(Declarations!$F148)>0,Declarations!$F148,conftype),"") ->  | M148: 0 | N148: 0 | O148: 0 | P148: 0 | Q148: 0 | R148: 0 | S148: 0 | T148: 0 | U148: 0 | V148: 0 | W148: 0 | X148: 0 | Y148: 0 | AA148: 147
A149: =+Declarations!A149&"" ->  | B149: =IF(LEN($A149),IF(LEN(Declarations!$B149)>0,Declarations!$B149,"#"&$A149),"") ->  | C149: ... | E149: 00:00:00 | F149: 0 | I149: 0 | J149: =IF(LEN($A149)>0,IF(LEN(Declarations!$F149)>0,Declarations!$F149,conftype),"") ->  | M149: 0 | N149: 0 | O149: 0 | P149: 0 | Q149: 0 | R149: 0 | S149: 0 | T149: 0 | U149: 0 | V149: 0 | W149: 0 | X149: 0 | Y149: 0 | AA149: 148
A150: =+Declarations!A150&"" ->  | B150: =IF(LEN($A150),IF(LEN(Declarations!$B150)>0,Declarations!$B150,"#"&$A150),"") ->  | C150: ... | E150: 00:00:00 | F150: 0 | I150: 0 | J150: =IF(LEN($A150)>0,IF(LEN(Declarations!$F150)>0,Declarations!$F150,conftype),"") ->  | M150: 0 | N150: 0 | O150: 0 | P150: 0 | Q150: 0 | R150: 0 | S150: 0 | T150: 0 | U150: 0 | V150: 0 | W150: 0 | X150: 0 | Y150: 0 | AA150: 149
A151: =+Declarations!A151&"" ->  | B151: =IF(LEN($A151),IF(LEN(Declarations!$B151)>0,Declarations!$B151,"#"&$A151),"") ->  | C151: ... | E151: 00:00:00 | F151: 0 | I151: 0 | J151: =IF(LEN($A151)>0,IF(LEN(Declarations!$F151)>0,Declarations!$F151,conftype),"") ->  | M151: 0 | N151: 0 | O151: 0 | P151: 0 | Q151: 0 | R151: 0 | S151: 0 | T151: 0 | U151: 0 | V151: 0 | W151: 0 | X151: 0 | Y151: 0 | AA151: 150
A152: =+Declarations!A152&"" ->  | B152: =IF(LEN($A152),IF(LEN(Declarations!$B152)>0,Declarations!$B152,"#"&$A152),"") ->  | C152: ... | E152: 00:00:00 | F152: 0 | I152: 0 | J152: =IF(LEN($A152)>0,IF(LEN(Declarations!$F152)>0,Declarations!$F152,conftype),"") ->  | M152: 0 | N152: 0 | O152: 0 | P152: 0 | Q152: 0 | R152: 0 | S152: 0 | T152: 0 | U152: 0 | V152: 0 | W152: 0 | X152: 0 | Y152: 0 | AA152: 151
A153: =+Declarations!A153&"" ->  | B153: =IF(LEN($A153),IF(LEN(Declarations!$B153)>0,Declarations!$B153,"#"&$A153),"") ->  | C153: ... | E153: 00:00:00 | F153: 0 | I153: 0 | J153: =IF(LEN($A153)>0,IF(LEN(Declarations!$F153)>0,Declarations!$F153,conftype),"") ->  | M153: 0 | N153: 0 | O153: 0 | P153: 0 | Q153: 0 | R153: 0 | S153: 0 | T153: 0 | U153: 0 | V153: 0 | W153: 0 | X153: 0 | Y153: 0 | AA153: 152
A154: =+Declarations!A154&"" ->  | B154: =IF(LEN($A154),IF(LEN(Declarations!$B154)>0,Declarations!$B154,"#"&$A154),"") ->  | C154: ... | E154: 00:00:00 | F154: 0 | I154: 0 | J154: =IF(LEN($A154)>0,IF(LEN(Declarations!$F154)>0,Declarations!$F154,conftype),"") ->  | M154: 0 | N154: 0 | O154: 0 | P154: 0 | Q154: 0 | R154: 0 | S154: 0 | T154: 0 | U154: 0 | V154: 0 | W154: 0 | X154: 0 | Y154: 0 | AA154: 153
A155: =+Declarations!A155&"" ->  | B155: =IF(LEN($A155),IF(LEN(Declarations!$B155)>0,Declarations!$B155,"#"&$A155),"") ->  | C155: ... | E155: 00:00:00 | F155: 0 | I155: 0 | J155: =IF(LEN($A155)>0,IF(LEN(Declarations!$F155)>0,Declarations!$F155,conftype),"") ->  | M155: 0 | N155: 0 | O155: 0 | P155: 0 | Q155: 0 | R155: 0 | S155: 0 | T155: 0 | U155: 0 | V155: 0 | W155: 0 | X155: 0 | Y155: 0 | AA155: 154
A156: =+Declarations!A156&"" ->  | B156: =IF(LEN($A156),IF(LEN(Declarations!$B156)>0,Declarations!$B156,"#"&$A156),"") ->  | C156: ... | E156: 00:00:00 | F156: 0 | I156: 0 | J156: =IF(LEN($A156)>0,IF(LEN(Declarations!$F156)>0,Declarations!$F156,conftype),"") ->  | M156: 0 | N156: 0 | O156: 0 | P156: 0 | Q156: 0 | R156: 0 | S156: 0 | T156: 0 | U156: 0 | V156: 0 | W156: 0 | X156: 0 | Y156: 0 | AA156: 155
A157: =+Declarations!A157&"" ->  | B157: =IF(LEN($A157),IF(LEN(Declarations!$B157)>0,Declarations!$B157,"#"&$A157),"") ->  | C157: ... | E157: 00:00:00 | F157: 0 | I157: 0 | J157: =IF(LEN($A157)>0,IF(LEN(Declarations!$F157)>0,Declarations!$F157,conftype),"") ->  | M157: 0 | N157: 0 | O157: 0 | P157: 0 | Q157: 0 | R157: 0 | S157: 0 | T157: 0 | U157: 0 | V157: 0 | W157: 0 | X157: 0 | Y157: 0 | AA157: 156
A158: =+Declarations!A158&"" ->  | B158: =IF(LEN($A158),IF(LEN(Declarations!$B158)>0,Declarations!$B158,"#"&$A158),"") ->  | C158: ... | E158: 00:00:00 | F158: 0 | I158: 0 | J158: =IF(LEN($A158)>0,IF(LEN(Declarations!$F158)>0,Declarations!$F158,conftype),"") ->  | M158: 0 | N158: 0 | O158: 0 | P158: 0 | Q158: 0 | R158: 0 | S158: 0 | T158: 0 | U158: 0 | V158: 0 | W158: 0 | X158: 0 | Y158: 0 | AA158: 157
A159: =+Declarations!A159&"" ->  | B159: =IF(LEN($A159),IF(LEN(Declarations!$B159)>0,Declarations!$B159,"#"&$A159),"") ->  | C159: ... | E159: 00:00:00 | F159: 0 | I159: 0 | J159: =IF(LEN($A159)>0,IF(LEN(Declarations!$F159)>0,Declarations!$F159,conftype),"") ->  | M159: 0 | N159: 0 | O159: 0 | P159: 0 | Q159: 0 | R159: 0 | S159: 0 | T159: 0 | U159: 0 | V159: 0 | W159: 0 | X159: 0 | Y159: 0 | AA159: 158
A160: =+Declarations!A160&"" ->  | B160: =IF(LEN($A160),IF(LEN(Declarations!$B160)>0,Declarations!$B160,"#"&$A160),"") ->  | C160: ... | E160: 00:00:00 | F160: 0 | I160: 0 | J160: =IF(LEN($A160)>0,IF(LEN(Declarations!$F160)>0,Declarations!$F160,conftype),"") ->  | M160: 0 | N160: 0 | O160: 0 | P160: 0 | Q160: 0 | R160: 0 | S160: 0 | T160: 0 | U160: 0 | V160: 0 | W160: 0 | X160: 0 | Y160: 0 | AA160: 159
A161: =+Declarations!A161&"" ->  | B161: =IF(LEN($A161),IF(LEN(Declarations!$B161)>0,Declarations!$B161,"#"&$A161),"") ->  | C161: ... | E161: 00:00:00 | F161: 0 | I161: 0 | J161: =IF(LEN($A161)>0,IF(LEN(Declarations!$F161)>0,Declarations!$F161,conftype),"") ->  | M161: 0 | N161: 0 | O161: 0 | P161: 0 | Q161: 0 | R161: 0 | S161: 0 | T161: 0 | U161: 0 | V161: 0 | W161: 0 | X161: 0 | Y161: 0 | AA161: 160
A162: =+Declarations!A162&"" ->  | B162: =IF(LEN($A162),IF(LEN(Declarations!$B162)>0,Declarations!$B162,"#"&$A162),"") ->  | C162: ... | E162: 00:00:00 | F162: 0 | I162: 0 | J162: =IF(LEN($A162)>0,IF(LEN(Declarations!$F162)>0,Declarations!$F162,conftype),"") ->  | M162: 0 | N162: 0 | O162: 0 | P162: 0 | Q162: 0 | R162: 0 | S162: 0 | T162: 0 | U162: 0 | V162: 0 | W162: 0 | X162: 0 | Y162: 0 | AA162: 161
A163: =+Declarations!A163&"" ->  | B163: =IF(LEN($A163),IF(LEN(Declarations!$B163)>0,Declarations!$B163,"#"&$A163),"") ->  | C163: ... | E163: 00:00:00 | F163: 0 | I163: 0 | J163: =IF(LEN($A163)>0,IF(LEN(Declarations!$F163)>0,Declarations!$F163,conftype),"") ->  | M163: 0 | N163: 0 | O163: 0 | P163: 0 | Q163: 0 | R163: 0 | S163: 0 | T163: 0 | U163: 0 | V163: 0 | W163: 0 | X163: 0 | Y163: 0 | AA163: 162
A164: =+Declarations!A164&"" ->  | B164: =IF(LEN($A164),IF(LEN(Declarations!$B164)>0,Declarations!$B164,"#"&$A164),"") ->  | C164: ... | E164: 00:00:00 | F164: 0 | I164: 0 | J164: =IF(LEN($A164)>0,IF(LEN(Declarations!$F164)>0,Declarations!$F164,conftype),"") ->  | M164: 0 | N164: 0 | O164: 0 | P164: 0 | Q164: 0 | R164: 0 | S164: 0 | T164: 0 | U164: 0 | V164: 0 | W164: 0 | X164: 0 | Y164: 0 | AA164: 163
A165: =+Declarations!A165&"" ->  | B165: =IF(LEN($A165),IF(LEN(Declarations!$B165)>0,Declarations!$B165,"#"&$A165),"") ->  | C165: ... | E165: 00:00:00 | F165: 0 | I165: 0 | J165: =IF(LEN($A165)>0,IF(LEN(Declarations!$F165)>0,Declarations!$F165,conftype),"") ->  | M165: 0 | N165: 0 | O165: 0 | P165: 0 | Q165: 0 | R165: 0 | S165: 0 | T165: 0 | U165: 0 | V165: 0 | W165: 0 | X165: 0 | Y165: 0 | AA165: 164
A166: =+Declarations!A166&"" ->  | B166: =IF(LEN($A166),IF(LEN(Declarations!$B166)>0,Declarations!$B166,"#"&$A166),"") ->  | C166: ... | E166: 00:00:00 | F166: 0 | I166: 0 | J166: =IF(LEN($A166)>0,IF(LEN(Declarations!$F166)>0,Declarations!$F166,conftype),"") ->  | M166: 0 | N166: 0 | O166: 0 | P166: 0 | Q166: 0 | R166: 0 | S166: 0 | T166: 0 | U166: 0 | V166: 0 | W166: 0 | X166: 0 | Y166: 0 | AA166: 165
A167: =+Declarations!A167&"" ->  | B167: =IF(LEN($A167),IF(LEN(Declarations!$B167)>0,Declarations!$B167,"#"&$A167),"") ->  | C167: ... | E167: 00:00:00 | F167: 0 | I167: 0 | J167: =IF(LEN($A167)>0,IF(LEN(Declarations!$F167)>0,Declarations!$F167,conftype),"") ->  | M167: 0 | N167: 0 | O167: 0 | P167: 0 | Q167: 0 | R167: 0 | S167: 0 | T167: 0 | U167: 0 | V167: 0 | W167: 0 | X167: 0 | Y167: 0 | AA167: 166
A168: =+Declarations!A168&"" ->  | B168: =IF(LEN($A168),IF(LEN(Declarations!$B168)>0,Declarations!$B168,"#"&$A168),"") ->  | C168: ... | E168: 00:00:00 | F168: 0 | I168: 0 | J168: =IF(LEN($A168)>0,IF(LEN(Declarations!$F168)>0,Declarations!$F168,conftype),"") ->  | M168: 0 | N168: 0 | O168: 0 | P168: 0 | Q168: 0 | R168: 0 | S168: 0 | T168: 0 | U168: 0 | V168: 0 | W168: 0 | X168: 0 | Y168: 0 | AA168: 167
A169: =+Declarations!A169&"" ->  | B169: =IF(LEN($A169),IF(LEN(Declarations!$B169)>0,Declarations!$B169,"#"&$A169),"") ->  | C169: ... | E169: 00:00:00 | F169: 0 | I169: 0 | J169: =IF(LEN($A169)>0,IF(LEN(Declarations!$F169)>0,Declarations!$F169,conftype),"") ->  | M169: 0 | N169: 0 | O169: 0 | P169: 0 | Q169: 0 | R169: 0 | S169: 0 | T169: 0 | U169: 0 | V169: 0 | W169: 0 | X169: 0 | Y169: 0 | AA169: 168
A170: =+Declarations!A170&"" ->  | B170: =IF(LEN($A170),IF(LEN(Declarations!$B170)>0,Declarations!$B170,"#"&$A170),"") ->  | C170: ... | E170: 00:00:00 | F170: 0 | I170: 0 | J170: =IF(LEN($A170)>0,IF(LEN(Declarations!$F170)>0,Declarations!$F170,conftype),"") ->  | M170: 0 | N170: 0 | O170: 0 | P170: 0 | Q170: 0 | R170: 0 | S170: 0 | T170: 0 | U170: 0 | V170: 0 | W170: 0 | X170: 0 | Y170: 0 | AA170: 169
A171: =+Declarations!A171&"" ->  | B171: =IF(LEN($A171),IF(LEN(Declarations!$B171)>0,Declarations!$B171,"#"&$A171),"") ->  | C171: ... | E171: 00:00:00 | F171: 0 | I171: 0 | J171: =IF(LEN($A171)>0,IF(LEN(Declarations!$F171)>0,Declarations!$F171,conftype),"") ->  | M171: 0 | N171: 0 | O171: 0 | P171: 0 | Q171: 0 | R171: 0 | S171: 0 | T171: 0 | U171: 0 | V171: 0 | W171: 0 | X171: 0 | Y171: 0 | AA171: 170
A172: =+Declarations!A172&"" ->  | B172: =IF(LEN($A172),IF(LEN(Declarations!$B172)>0,Declarations!$B172,"#"&$A172),"") ->  | C172: ... | E172: 00:00:00 | F172: 0 | I172: 0 | J172: =IF(LEN($A172)>0,IF(LEN(Declarations!$F172)>0,Declarations!$F172,conftype),"") ->  | M172: 0 | N172: 0 | O172: 0 | P172: 0 | Q172: 0 | R172: 0 | S172: 0 | T172: 0 | U172: 0 | V172: 0 | W172: 0 | X172: 0 | Y172: 0 | AA172: 171
A173: =+Declarations!A173&"" ->  | B173: =IF(LEN($A173),IF(LEN(Declarations!$B173)>0,Declarations!$B173,"#"&$A173),"") ->  | C173: ... | E173: 00:00:00 | F173: 0 | I173: 0 | J173: =IF(LEN($A173)>0,IF(LEN(Declarations!$F173)>0,Declarations!$F173,conftype),"") ->  | M173: 0 | N173: 0 | O173: 0 | P173: 0 | Q173: 0 | R173: 0 | S173: 0 | T173: 0 | U173: 0 | V173: 0 | W173: 0 | X173: 0 | Y173: 0 | AA173: 172
A174: =+Declarations!A174&"" ->  | B174: =IF(LEN($A174),IF(LEN(Declarations!$B174)>0,Declarations!$B174,"#"&$A174),"") ->  | C174: ... | E174: 00:00:00 | F174: 0 | I174: 0 | J174: =IF(LEN($A174)>0,IF(LEN(Declarations!$F174)>0,Declarations!$F174,conftype),"") ->  | M174: 0 | N174: 0 | O174: 0 | P174: 0 | Q174: 0 | R174: 0 | S174: 0 | T174: 0 | U174: 0 | V174: 0 | W174: 0 | X174: 0 | Y174: 0 | AA174: 173
A175: =+Declarations!A175&"" ->  | B175: =IF(LEN($A175),IF(LEN(Declarations!$B175)>0,Declarations!$B175,"#"&$A175),"") ->  | C175: ... | E175: 00:00:00 | F175: 0 | I175: 0 | J175: =IF(LEN($A175)>0,IF(LEN(Declarations!$F175)>0,Declarations!$F175,conftype),"") ->  | M175: =IF(ISNA(VLOOKUP($A175,SprintData,2,FALSE)),0,VLOOKUP($A175,SprintData,2,FALSE)) -> 0 | N175: 0 | O175: 0 | P175: 0 | Q175: 0 | R175: 0 | S175: 0 | T175: 0 | U175: 0 | V175: 0 | W175: 0 | X175: 0 | Y175: 0 | AA175: 174
A176: =+Declarations!A176&"" ->  | B176: =IF(LEN($A176),IF(LEN(Declarations!$B176)>0,Declarations!$B176,"#"&$A176),"") ->  | C176: ... | E176: 00:00:00 | F176: 0 | I176: 0 | J176: =IF(LEN($A176)>0,IF(LEN(Declarations!$F176)>0,Declarations!$F176,conftype),"") ->  | M176: 0 | N176: 0 | O176: 0 | P176: 0 | Q176: 0 | R176: 0 | S176: 0 | T176: 0 | U176: 0 | V176: 0 | W176: 0 | X176: 0 | Y176: 0 | AA176: 175
A177: =+Declarations!A177&"" ->  | B177: =IF(LEN($A177),IF(LEN(Declarations!$B177)>0,Declarations!$B177,"#"&$A177),"") ->  | C177: ... | E177: 00:00:00 | F177: 0 | I177: 0 | J177: =IF(LEN($A177)>0,IF(LEN(Declarations!$F177)>0,Declarations!$F177,conftype),"") ->  | M177: 0 | N177: 0 | O177: 0 | P177: 0 | Q177: 0 | R177: 0 | S177: 0 | T177: 0 | U177: 0 | V177: 0 | W177: 0 | X177: 0 | Y177: 0 | AA177: 176
A178: =+Declarations!A178&"" ->  | B178: =IF(LEN($A178),IF(LEN(Declarations!$B178)>0,Declarations!$B178,"#"&$A178),"") ->  | C178: ... | E178: 00:00:00 | F178: 0 | I178: 0 | J178: =IF(LEN($A178)>0,IF(LEN(Declarations!$F178)>0,Declarations!$F178,conftype),"") ->  | M178: 0 | N178: 0 | O178: 0 | P178: 0 | Q178: 0 | R178: 0 | S178: 0 | T178: 0 | U178: 0 | V178: 0 | W178: 0 | X178: 0 | Y178: 0 | AA178: 177
A179: =+Declarations!A179&"" ->  | B179: =IF(LEN($A179),IF(LEN(Declarations!$B179)>0,Declarations!$B179,"#"&$A179),"") ->  | C179: ... | E179: 00:00:00 | F179: 0 | I179: 0 | J179: =IF(LEN($A179)>0,IF(LEN(Declarations!$F179)>0,Declarations!$F179,conftype),"") ->  | M179: 0 | N179: 0 | O179: 0 | P179: 0 | Q179: 0 | R179: 0 | S179: 0 | T179: 0 | U179: 0 | V179: 0 | W179: 0 | X179: 0 | Y179: 0 | AA179: 178
A180: =+Declarations!A180&"" ->  | B180: =IF(LEN($A180),IF(LEN(Declarations!$B180)>0,Declarations!$B180,"#"&$A180),"") ->  | C180: ... | E180: 00:00:00 | F180: 0 | I180: 0 | J180: =IF(LEN($A180)>0,IF(LEN(Declarations!$F180)>0,Declarations!$F180,conftype),"") ->  | M180: 0 | N180: 0 | O180: 0 | P180: 0 | Q180: 0 | R180: 0 | S180: 0 | T180: 0 | U180: 0 | V180: 0 | W180: 0 | X180: 0 | Y180: 0 | AA180: 179
A181: =+Declarations!A181&"" ->  | B181: =IF(LEN($A181),IF(LEN(Declarations!$B181)>0,Declarations!$B181,"#"&$A181),"") ->  | C181: ... | E181: 00:00:00 | F181: 0 | I181: 0 | J181: =IF(LEN($A181)>0,IF(LEN(Declarations!$F181)>0,Declarations!$F181,conftype),"") ->  | M181: 0 | N181: 0 | O181: 0 | P181: 0 | Q181: 0 | R181: 0 | S181: 0 | T181: 0 | U181: 0 | V181: 0 | W181: 0 | X181: 0 | Y181: 0 | AA181: 180
A182: =+Declarations!A182&"" ->  | B182: =IF(LEN($A182),IF(LEN(Declarations!$B182)>0,Declarations!$B182,"#"&$A182),"") ->  | C182: ... | E182: 00:00:00 | F182: 0 | I182: 0 | J182: =IF(LEN($A182)>0,IF(LEN(Declarations!$F182)>0,Declarations!$F182,conftype),"") ->  | M182: 0 | N182: 0 | O182: 0 | P182: 0 | Q182: 0 | R182: 0 | S182: 0 | T182: 0 | U182: 0 | V182: 0 | W182: 0 | X182: 0 | Y182: 0 | AA182: 181
A183: =+Declarations!A183&"" ->  | B183: =IF(LEN($A183),IF(LEN(Declarations!$B183)>0,Declarations!$B183,"#"&$A183),"") ->  | C183: ... | E183: 00:00:00 | F183: 0 | I183: 0 | J183: =IF(LEN($A183)>0,IF(LEN(Declarations!$F183)>0,Declarations!$F183,conftype),"") ->  | M183: 0 | N183: 0 | O183: 0 | P183: 0 | Q183: 0 | R183: 0 | S183: 0 | T183: 0 | U183: 0 | V183: 0 | W183: 0 | X183: 0 | Y183: 0 | AA183: 182
A184: =+Declarations!A184&"" ->  | B184: =IF(LEN($A184),IF(LEN(Declarations!$B184)>0,Declarations!$B184,"#"&$A184),"") ->  | C184: ... | E184: 00:00:00 | F184: 0 | I184: 0 | J184: =IF(LEN($A184)>0,IF(LEN(Declarations!$F184)>0,Declarations!$F184,conftype),"") ->  | M184: 0 | N184: 0 | O184: 0 | P184: 0 | Q184: 0 | R184: 0 | S184: 0 | T184: 0 | U184: 0 | V184: 0 | W184: 0 | X184: 0 | Y184: 0 | AA184: 183
A185: =+Declarations!A185&"" ->  | B185: =IF(LEN($A185),IF(LEN(Declarations!$B185)>0,Declarations!$B185,"#"&$A185),"") ->  | C185: ... | E185: 00:00:00 | F185: 0 | I185: 0 | J185: =IF(LEN($A185)>0,IF(LEN(Declarations!$F185)>0,Declarations!$F185,conftype),"") ->  | M185: 0 | N185: 0 | O185: 0 | P185: 0 | Q185: 0 | R185: 0 | S185: 0 | T185: 0 | U185: 0 | V185: 0 | W185: 0 | X185: 0 | Y185: 0 | AA185: 184
A186: =+Declarations!A186&"" ->  | B186: =IF(LEN($A186),IF(LEN(Declarations!$B186)>0,Declarations!$B186,"#"&$A186),"") ->  | C186: ... | E186: 00:00:00 | F186: 0 | I186: 0 | J186: =IF(LEN($A186)>0,IF(LEN(Declarations!$F186)>0,Declarations!$F186,conftype),"") ->  | M186: 0 | N186: 0 | O186: 0 | P186: 0 | Q186: 0 | R186: 0 | S186: 0 | T186: 0 | U186: 0 | V186: 0 | W186: 0 | X186: 0 | Y186: 0 | AA186: 185
A187: =+Declarations!A187&"" ->  | B187: =IF(LEN($A187),IF(LEN(Declarations!$B187)>0,Declarations!$B187,"#"&$A187),"") ->  | C187: ... | E187: 00:00:00 | F187: 0 | I187: 0 | J187: =IF(LEN($A187)>0,IF(LEN(Declarations!$F187)>0,Declarations!$F187,conftype),"") ->  | M187: 0 | N187: 0 | O187: 0 | P187: 0 | Q187: 0 | R187: 0 | S187: 0 | T187: 0 | U187: 0 | V187: 0 | W187: 0 | X187: 0 | Y187: 0 | AA187: 186
A188: =+Declarations!A188&"" ->  | B188: =IF(LEN($A188),IF(LEN(Declarations!$B188)>0,Declarations!$B188,"#"&$A188),"") ->  | C188: ... | E188: 00:00:00 | F188: 0 | I188: 0 | J188: =IF(LEN($A188)>0,IF(LEN(Declarations!$F188)>0,Declarations!$F188,conftype),"") ->  | M188: 0 | N188: 0 | O188: 0 | P188: 0 | Q188: 0 | R188: 0 | S188: 0 | T188: 0 | U188: 0 | V188: 0 | W188: 0 | X188: 0 | Y188: 0 | AA188: 187
A189: =+Declarations!A189&"" ->  | B189: =IF(LEN($A189),IF(LEN(Declarations!$B189)>0,Declarations!$B189,"#"&$A189),"") ->  | C189: ... | E189: 00:00:00 | F189: 0 | I189: 0 | J189: =IF(LEN($A189)>0,IF(LEN(Declarations!$F189)>0,Declarations!$F189,conftype),"") ->  | M189: 0 | N189: 0 | O189: 0 | P189: 0 | Q189: 0 | R189: 0 | S189: 0 | T189: 0 | U189: 0 | V189: 0 | W189: 0 | X189: 0 | Y189: 0 | AA189: 188
A190: =+Declarations!A190&"" ->  | B190: =IF(LEN($A190),IF(LEN(Declarations!$B190)>0,Declarations!$B190,"#"&$A190),"") ->  | C190: ... | E190: 00:00:00 | F190: 0 | I190: 0 | J190: =IF(LEN($A190)>0,IF(LEN(Declarations!$F190)>0,Declarations!$F190,conftype),"") ->  | M190: 0 | N190: 0 | O190: 0 | P190: 0 | Q190: 0 | R190: 0 | S190: 0 | T190: 0 | U190: 0 | V190: 0 | W190: 0 | X190: 0 | Y190: 0 | AA190: 189
A191: =+Declarations!A191&"" ->  | B191: =IF(LEN($A191),IF(LEN(Declarations!$B191)>0,Declarations!$B191,"#"&$A191),"") ->  | C191: ... | E191: 00:00:00 | F191: 0 | I191: 0 | J191: =IF(LEN($A191)>0,IF(LEN(Declarations!$F191)>0,Declarations!$F191,conftype),"") ->  | M191: 0 | N191: 0 | O191: 0 | P191: 0 | Q191: 0 | R191: 0 | S191: 0 | T191: 0 | U191: 0 | V191: 0 | W191: 0 | X191: 0 | Y191: 0 | AA191: 190
A192: =+Declarations!A192&"" ->  | B192: =IF(LEN($A192),IF(LEN(Declarations!$B192)>0,Declarations!$B192,"#"&$A192),"") ->  | C192: ... | E192: 00:00:00 | F192: 0 | I192: 0 | J192: =IF(LEN($A192)>0,IF(LEN(Declarations!$F192)>0,Declarations!$F192,conftype),"") ->  | M192: 0 | N192: 0 | O192: 0 | P192: 0 | Q192: 0 | R192: 0 | S192: 0 | T192: 0 | U192: 0 | V192: 0 | W192: 0 | X192: 0 | Y192: 0 | AA192: 191
A193: =+Declarations!A193&"" ->  | B193: =IF(LEN($A193),IF(LEN(Declarations!$B193)>0,Declarations!$B193,"#"&$A193),"") ->  | C193: ... | E193: 00:00:00 | F193: 0 | I193: 0 | J193: =IF(LEN($A193)>0,IF(LEN(Declarations!$F193)>0,Declarations!$F193,conftype),"") ->  | M193: 0 | N193: 0 | O193: 0 | P193: 0 | Q193: 0 | R193: 0 | S193: 0 | T193: 0 | U193: 0 | V193: 0 | W193: 0 | X193: 0 | Y193: 0 | AA193: 192
A194: =+Declarations!A194&"" ->  | B194: =IF(LEN($A194),IF(LEN(Declarations!$B194)>0,Declarations!$B194,"#"&$A194),"") ->  | C194: =IF(LEN(INDEX(DECLARATIONS,$AA194,3))>0,INDEX(DECLARATIONS,$AA194,3),"...") -> ... | E194: =IF(ISNA($AA194),0,INDEX(DECLARATIONS,$AA194,5)) -> 00:00:00 | F194: =IF(ISNA($AA194),0,INDEX(DECLARATIONS,$AA194,7)) -> 0 | G194: =UPPER(IF(ISNA($AA194),"",INDEX(DECLARATIONS,$AA194,4))) ->  | H194: =IF(AND(A194>0,ISTEXT(B194)),IF(SECNAME="YES",LEFT(B194&" ",FIND(" ",B194&" ")+2)&IF(F194>0," ("&F194&")",""), B194&IF(F194>0," ("&F194&")","")),"#"&$A194) ->  | I194: =IF(LEN($A194)>0,IF(LEN($J194)>0,MATCH(J194,MatchNames,0),EventIndex),0) -> 0 | J194: =IF(LEN($A194)>0,IF(LEN(Declarations!$F194)>0,Declarations!$F194,conftype),"") ->  | M194: 0 | N194: =IF(ISNA(VLOOKUP($A194,JumpData,2,FALSE)),0,VLOOKUP($A194,JumpData,2,FALSE)) -> 0 | O194: =IF(ISNA(VLOOKUP($A194,RunData,2,FALSE)),0,VLOOKUP($A194,RunData,2,FALSE)) -> 0 | P194: =IF(ISNA(VLOOKUP($A194,ThrowData,2,FALSE)),0,VLOOKUP($A194,ThrowData,2,FALSE)) -> 0 | Q194: =IF(ISNA(VLOOKUP($A194,SprintData,4,FALSE)),0,VLOOKUP($A194,SprintData,4,FALSE))+V194 -> 0 | R194: =IF(ISNA(VLOOKUP($A194,JumpData,4,FALSE)),0,VLOOKUP($A194,JumpData,4,FALSE))+W194 -> 0 | S194: =IF(ISNA(VLOOKUP($A194,RunData,4,FALSE)),0,VLOOKUP($A194,RunData,4,FALSE))+X194 -> 0 | T194: =IF(ISNA(VLOOKUP($A194,ThrowData,4,FALSE)),0,VLOOKUP($A194,ThrowData,4,FALSE))+Y194 -> 0 | U194: =+Q194+R194+S194+T194 -> 0 | V194: =IF(AND($F194>0,NOT(M194),Flexing),FlexPC,0) -> 0 | W194: =IF(AND($F194>0,NOT(N194),Flexing),FlexPC,0) -> 0 | X194: =IF(AND($F194>0,NOT(O194),Flexing),FlexPC,0) -> 0 | Y194: =IF(AND($F194>0,NOT(P194),Flexing),FlexPC,0) -> 0 | AA194: 193
A195: =+Declarations!A195&"" ->  | B195: =IF(LEN($A195),IF(LEN(Declarations!$B195)>0,Declarations!$B195,"#"&$A195),"") ->  | C195: ... | E195: 00:00:00 | F195: 0 | I195: 0 | J195: =IF(LEN($A195)>0,IF(LEN(Declarations!$F195)>0,Declarations!$F195,conftype),"") ->  | M195: 0 | N195: 0 | O195: 0 | P195: 0 | Q195: 0 | R195: 0 | S195: 0 | T195: 0 | U195: 0 | V195: 0 | W195: 0 | X195: 0 | Y195: 0 | AA195: =ROW()-1 -> 194
A196: =+Declarations!A196&"" ->  | B196: =IF(LEN($A196),IF(LEN(Declarations!$B196)>0,Declarations!$B196,"#"&$A196),"") ->  | C196: ... | E196: 00:00:00 | F196: 0 | I196: 0 | J196: =IF(LEN($A196)>0,IF(LEN(Declarations!$F196)>0,Declarations!$F196,conftype),"") ->  | M196: 0 | N196: 0 | O196: 0 | P196: 0 | Q196: 0 | R196: 0 | S196: 0 | T196: 0 | U196: 0 | V196: 0 | W196: 0 | X196: 0 | Y196: 0 | AA196: 195
A197: =+Declarations!A197&"" ->  | B197: =IF(LEN($A197),IF(LEN(Declarations!$B197)>0,Declarations!$B197,"#"&$A197),"") ->  | C197: ... | E197: 00:00:00 | F197: 0 | I197: 0 | J197: =IF(LEN($A197)>0,IF(LEN(Declarations!$F197)>0,Declarations!$F197,conftype),"") ->  | M197: 0 | N197: 0 | O197: 0 | P197: 0 | Q197: 0 | R197: 0 | S197: 0 | T197: 0 | U197: 0 | V197: 0 | W197: 0 | X197: 0 | Y197: 0 | AA197: 196
A198: =+Declarations!A198&"" ->  | B198: =IF(LEN($A198),IF(LEN(Declarations!$B198)>0,Declarations!$B198,"#"&$A198),"") ->  | C198: ... | E198: 00:00:00 | F198: 0 | I198: 0 | J198: =IF(LEN($A198)>0,IF(LEN(Declarations!$F198)>0,Declarations!$F198,conftype),"") ->  | M198: 0 | N198: 0 | O198: 0 | P198: 0 | Q198: 0 | R198: 0 | S198: 0 | T198: 0 | U198: 0 | V198: 0 | W198: 0 | X198: 0 | Y198: 0 | AA198: 197
A199: =+Declarations!A199&"" ->  | B199: =IF(LEN($A199),IF(LEN(Declarations!$B199)>0,Declarations!$B199,"#"&$A199),"") ->  | C199: ... | D199: =IF(OR(G199="G",G199="F"),"F",IF(OR(G199="B",G199="M"),"M","")) ->  | E199: 00:00:00 | F199: 0 | I199: 0 | J199: =IF(LEN($A199)>0,IF(LEN(Declarations!$F199)>0,Declarations!$F199,conftype),"") ->  | M199: 0 | N199: 0 | O199: 0 | P199: 0 | Q199: 0 | R199: 0 | S199: 0 | T199: 0 | U199: 0 | V199: 0 | W199: 0 | X199: 0 | Y199: 0 | AA199: 198
A200: =+Declarations!A200&"" ->  | B200: =IF(LEN($A200),IF(LEN(Declarations!$B200)>0,Declarations!$B200,"#"&$A200),"") ->  | C200: ... | E200: 00:00:00 | F200: 0 | I200: 0 | J200: =IF(LEN($A200)>0,IF(LEN(Declarations!$F200)>0,Declarations!$F200,conftype),"") ->  | M200: 0 | N200: 0 | O200: 0 | P200: 0 | Q200: 0 | R200: 0 | S200: 0 | T200: 0 | U200: 0 | V200: 0 | W200: 0 | X200: 0 | Y200: 0 | AA200: 199
... 801 more rows

Sheet ScorngTable
A1: =+Setup!B27 -> QuadKids Primary
A3: Points | B3: =+Setup!B30 -> 75m | E3: =+Setup!C30 -> 600m | F3: =+Setup!D30 -> SLJ | G3: =+Setup!E30 -> Howler | H3: =+Setup!F30 -> Relay | I3: Points
A4: INC | B4: =+Setup!B33 -> 0.1 | E4: =+Setup!C33 -> 0.01 | F4: =+Setup!D33 -> 0.02 | G4: =+Setup!E33 -> 0.5 | H4: =+Setup!F33 -> 0.5 | I4: =+A4 -> INC
A5: MIN | B5: =+Setup!B31 -> 16 | E5: =+Setup!C31 -> 3 | F5: =+Setup!D31 -> 1.02 | G5: =+Setup!E31 -> 5 | H5: =+Setup!F31 -> 94 | I5: =+A5 -> MIN
A6: MAX | B6: =+B97 -> 7 | E6: =+E97 -> 1.3 | F6: =+F97 -> 2.82 | G6: =+G97 -> 50 | H6: =+H97 -> 49 | I6: MAX
A7: =+MinPoints -> 10 | B7: =+B5 -> 16 | E7: =+E5 -> 3 | F7: =+F5 -> 1.02 | G7: =+G5 -> 5 | H7: =+H5 -> 94 | I7: 10
A8: =+A7+1 -> 11 | B8: =+B7-$B$4 -> 15.9 | E8: =IF(MOD(E7-$E$4,1)>0.59,E7-0.41,E7-$E$4) -> 2.59 | F8: =+F7+$F$4 -> 1.04 | G8: =+G7+$G$4 -> 5.5 | H8: =+H7-$H$4 -> 93.5 | I8: 11
A9: =+A8+1 -> 12 | B9: =+B8-$B$4 -> 15.8 | E9: =IF(MOD(E8-$E$4,1)>0.59,E8-0.41,E8-$E$4) -> 2.58 | F9: =+F8+$F$4 -> 1.06 | G9: =+G8+$G$4 -> 6 | H9: =+H8-$H$4 -> 93 | I9: 12
A10: 13 | B10: 15.7 | E10: 2.57 | F10: 1.08 | G10: 6.5 | H10: 92.5 | I10: 13
A11: 14 | B11: 15.6 | E11: 2.56 | F11: 1.1 | G11: 7 | H11: 92 | I11: 14
A12: 15 | B12: 15.5 | E12: 2.55 | F12: 1.12 | G12: 7.5 | H12: 91.5 | I12: 15
A13: 16 | B13: 15.4 | E13: 2.54 | F13: 1.14 | G13: 8 | H13: 91 | I13: 16
A14: 17 | B14: 15.3 | E14: 2.53 | F14: 1.16 | G14: 8.5 | H14: 90.5 | I14: 17
A15: 18 | B15: 15.2 | E15: 2.52 | F15: 1.18 | G15: 9 | H15: 90 | I15: 18
A16: 19 | B16: 15.1 | E16: 2.51 | F16: 1.2 | G16: 9.5 | H16: 89.5 | I16: 19
A17: 20 | B17: 15 | E17: 2.5 | F17: 1.22 | G17: 10 | H17: 89 | I17: 20
A18: 21 | B18: 14.9 | E18: 2.49 | F18: 1.24 | G18: 10.5 | H18: 88.5 | I18: 21
A19: 22 | B19: 14.8 | E19: 2.48 | F19: 1.26 | G19: 11 | H19: 88 | I19: 22
A20: 23 | B20: 14.7 | E20: 2.47 | F20: 1.28 | G20: 11.5 | H20: 87.5 | I20: 23
A21: 24 | B21: 14.6 | E21: 2.46 | F21: 1.3 | G21: 12 | H21: 87 | I21: 24
A22: 25 | B22: 14.5 | E22: 2.45 | F22: 1.32 | G22: 12.5 | H22: 86.5 | I22: 25
A23: 26 | B23: 14.4 | E23: 2.44 | F23: 1.34 | G23: 13 | H23: 86 | I23: 26
A24: 27 | B24: 14.3 | E24: 2.43 | F24: 1.36 | G24: 13.5 | H24: 85.5 | I24: 27
A25: 28 | B25: 14.2 | E25: 2.42 | F25: 1.38 | G25: 14 | H25: 85 | I25: 28
A26: 29 | B26: 14.1 | E26: 2.41 | F26: 1.4 | G26: 14.5 | H26: 84.5 | I26: 29
A27: 30 | B27: 14 | E27: 2.4 | F27: 1.42 | G27: 15 | H27: 84 | I27: 30
A28: 31 | B28: 13.9 | E28: 2.39 | F28: 1.44 | G28: 15.5 | H28: 83.5 | I28: 31
A29: 32 | B29: 13.8 | E29: 2.38 | F29: 1.46 | G29: 16 | H29: 83 | I29: 32
A30: 33 | B30: 13.7 | E30: 2.37 | F30: 1.48 | G30: 16.5 | H30: 82.5 | I30: 33
A31: 34 | B31: 13.6 | E31: 2.36 | F31: 1.5 | G31: 17 | H31: 82 | I31: 34
A32: 35 | B32: 13.5 | E32: 2.35 | F32: 1.52 | G32: 17.5 | H32: 81.5 | I32: 35
A33: 36 | B33: 13.4 | E33: 2.34 | F33: 1.54 | G33: 18 | H33: 81 | I33: 36
A34: 37 | B34: 13.3 | E34: 2.33 | F34: 1.56 | G34: 18.5 | H34: 80.5 | I34: 37
A35: 38 | B35: 13.2 | E35: 2.32 | F35: 1.58 | G35: 19 | H35: 80 | I35: 38
A36: 39 | B36: 13.1 | E36: 2.31 | F36: 1.6 | G36: 19.5 | H36: 79.5 | I36: 39
A37: 40 | B37: 13 | E37: 2.3 | F37: 1.62 | G37: 20 | H37: 79 | I37: 40
A38: 41 | B38: 12.9 | E38: 2.29 | F38: 1.64 | G38: 20.5 | H38: 78.5 | I38: 41
A39: 42 | B39: 12.8 | E39: 2.28 | F39: 1.66 | G39: 21 | H39: 78 | I39: 42
A40: 43 | B40: 12.7 | E40: 2.27 | F40: 1.68 | G40: 21.5 | H40: 77.5 | I40: 43
A41: 44 | B41: 12.6 | E41: 2.26 | F41: 1.7 | G41: 22 | H41: 77 | I41: 44
A42: 45 | B42: 12.5 | E42: 2.25 | F42: 1.72 | G42: 22.5 | H42: 76.5 | I42: 45
A43: 46 | B43: 12.4 | E43: 2.24 | F43: 1.74 | G43: 23 | H43: 76 | I43: 46
A44: 47 | B44: 12.3 | E44: 2.23 | F44: 1.76 | G44: 23.5 | H44: 75.5 | I44: 47
A45: 48 | B45: 12.2 | E45: 2.22 | F45: 1.78 | G45: 24 | H45: 75 | I45: 48
A46: 49 | B46: 12.1 | E46: 2.21 | F46: 1.8 | G46: 24.5 | H46: 74.5 | I46: 49
A47: 50 | B47: 12 | E47: 2.2 | F47: 1.82 | G47: 25 | H47: 74 | I47: 50
A48: 51 | B48: 11.9 | E48: 2.19 | F48: 1.84 | G48: 25.5 | H48: 73.5 | I48: 51
A49: 52 | B49: 11.8 | E49: 2.18 | F49: 1.86 | G49: 26 | H49: 73 | I49: 52
A50: 53 | B50: 11.7 | E50: 2.17 | F50: 1.88 | G50: 26.5 | H50: 72.5 | I50: 53
A51: 54 | B51: 11.6 | E51: 2.16 | F51: 1.9 | G51: 27 | H51: 72 | I51: 54
A52: 55 | B52: 11.5 | E52: 2.15 | F52: 1.92 | G52: 27.5 | H52: 71.5 | I52: 55
A53: 56 | B53: 11.4 | E53: 2.14 | F53: 1.94 | G53: 28 | H53: 71 | I53: 56
A54: 57 | B54: 11.3 | E54: 2.13 | F54: 1.96 | G54: 28.5 | H54: 70.5 | I54: 57
A55: 58 | B55: 11.2 | E55: 2.12 | F55: 1.98 | G55: 29 | H55: 70 | I55: 58
A56: 59 | B56: 11.1 | E56: 2.11 | F56: 2 | G56: 29.5 | H56: 69.5 | I56: 59
A57: 60 | B57: 11 | E57: 2.1 | F57: 2.02 | G57: 30 | H57: 69 | I57: 60
A58: 61 | B58: 10.9 | E58: 2.09 | F58: 2.04 | G58: 30.5 | H58: 68.5 | I58: 61
A59: 62 | B59: 10.8 | E59: 2.08 | F59: 2.06 | G59: 31 | H59: 68 | I59: 62
A60: 63 | B60: 10.7 | E60: 2.07 | F60: 2.08 | G60: 31.5 | H60: 67.5 | I60: 63
A61: 64 | B61: 10.6 | E61: 2.06 | F61: 2.1 | G61: 32 | H61: 67 | I61: 64
A62: 65 | B62: 10.5 | E62: 2.05 | F62: 2.12 | G62: 32.5 | H62: 66.5 | I62: 65
A63: 66 | B63: 10.4 | E63: 2.04 | F63: 2.14 | G63: 33 | H63: 66 | I63: 66
A64: 67 | B64: 10.3 | E64: 2.03 | F64: 2.16 | G64: 33.5 | H64: 65.5 | I64: 67
A65: 68 | B65: 10.2 | E65: 2.02 | F65: 2.18 | G65: 34 | H65: 65 | I65: 68
A66: 69 | B66: 10.1 | E66: 2.01 | F66: 2.2 | G66: 34.5 | H66: 64.5 | I66: 69
A67: 70 | B67: 10 | E67: 2 | F67: 2.22 | G67: 35 | H67: 64 | I67: 70
A68: 71 | B68: 9.9 | E68: 1.59 | F68: 2.24 | G68: 35.5 | H68: 63.5 | I68: 71
A69: 72 | B69: 9.8 | E69: 1.58 | F69: 2.26 | G69: 36 | H69: 63 | I69: =+A69 -> 72
A70: 73 | B70: 9.7 | E70: 1.57 | F70: 2.28 | G70: 36.5 | H70: 62.5 | I70: 73
A71: 74 | B71: 9.6 | E71: 1.56 | F71: 2.3 | G71: 37 | H71: 62 | I71: 74
A72: 75 | B72: 9.5 | E72: 1.55 | F72: 2.32 | G72: 37.5 | H72: 61.5 | I72: 75
A73: =+A72+1 -> 76 | B73: =+B72-$B$4 -> 9.4 | E73: =IF(MOD(E72-$E$4,1)>0.59,E72-0.41,E72-$E$4) -> 1.54 | F73: =+F72+$F$4 -> 2.34 | G73: =+G72+$G$4 -> 38 | H73: =+H72-$H$4 -> 61 | I73: 76
A74: 77 | B74: 9.3 | E74: 1.53 | F74: 2.36 | G74: 38.5 | H74: 60.5 | I74: 77
A75: 78 | B75: 9.2 | E75: 1.52 | F75: 2.38 | G75: 39 | H75: 60 | I75: 78
A76: 79 | B76: 9.1 | E76: 1.51 | F76: 2.4 | G76: 39.5 | H76: 59.5 | I76: 79
A77: 80 | B77: 9 | E77: 1.5 | F77: 2.42 | G77: 40 | H77: 59 | I77: 80
A78: 81 | B78: 8.9 | E78: 1.49 | F78: 2.44 | G78: 40.5 | H78: 58.5 | I78: 81
A79: 82 | B79: 8.8 | E79: 1.48 | F79: 2.46 | G79: 41 | H79: 58 | I79: 82
A80: 83 | B80: 8.7 | E80: 1.47 | F80: 2.48 | G80: 41.5 | H80: 57.5 | I80: 83
A81: 84 | B81: 8.6 | E81: 1.46 | F81: 2.5 | G81: 42 | H81: 57 | I81: 84
A82: 85 | B82: 8.5 | E82: 1.45 | F82: 2.52 | G82: 42.5 | H82: 56.5 | I82: 85
A83: 86 | B83: 8.4 | E83: 1.44 | F83: 2.54 | G83: 43 | H83: 56 | I83: 86
A84: 87 | B84: 8.3 | E84: 1.43 | F84: 2.56 | G84: 43.5 | H84: 55.5 | I84: 87
A85: 88 | B85: 8.2 | E85: 1.42 | F85: 2.58 | G85: 44 | H85: 55 | I85: 88
A86: 89 | B86: 8.1 | E86: 1.41 | F86: 2.6 | G86: 44.5 | H86: 54.5 | I86: 89
A87: 90 | B87: 8 | E87: 1.4 | F87: 2.62 | G87: 45 | H87: 54 | I87: 90
A88: 91 | B88: 7.9 | E88: 1.39 | F88: 2.64 | G88: 45.5 | H88: 53.5 | I88: 91
A89: 92 | B89: 7.8 | E89: 1.38 | F89: 2.66 | G89: 46 | H89: 53 | I89: 92
A90: 93 | B90: 7.7 | E90: 1.37 | F90: 2.68 | G90: 46.5 | H90: 52.5 | I90: 93
A91: 94 | B91: 7.6 | E91: 1.36 | F91: 2.7 | G91: 47 | H91: 52 | I91: 94
A92: 95 | B92: 7.5 | E92: 1.35 | F92: 2.72 | G92: 47.5 | H92: 51.5 | I92: 95
A93: 96 | B93: 7.4 | E93: 1.34 | F93: 2.74 | G93: 48 | H93: 51 | I93: 96
A94: 97 | B94: 7.3 | E94: 1.33 | F94: 2.76 | G94: 48.5 | H94: 50.5 | I94: 97
A95: 98 | B95: 7.2 | E95: 1.32 | F95: 2.78 | G95: 49 | H95: 50 | I95: 98
A96: 99 | B96: 7.1 | E96: 1.31 | F96: 2.8 | G96: 49.5 | H96: 49.5 | I96: 99
A97: 100 | B97: 7 | E97: 1.3 | F97: 2.82 | G97: 50 | H97: 49 | I97: 100

Sheet UKA Awards
A1: UKA Awards
B2: 0 | C2: 1 | D2: 2 | E2: 3 | F2: 4 | I2: =OR(MatchType="QuadKids Secondary",MatchType="QuadKids Club") -> FALSE | J2: =OR(MatchType="QuadKids Secondary",MatchType="QuadKids Club") -> FALSE
A3: Boys | K3: Boys | L3: E1 | O3: E2 | R3: E3 | U3: E4 | X3: Quadrathlon
B4: E1 | C4: E2 | D4: E3 | E4: E4 | G4: Award | L4: S1 | M4: S2 | N4: Inc | O4: S1 | P4: S2 | Q4: Inc | R4: S1 | S4: S2 | T4: Inc | U4: S1 | V4: S2 | W4: Inc | X4: S1 | Y4: S2 | Z4: Inc
B5: =+Setup!B30 -> 75m | C5: =+Setup!C30 -> 600m | D5: =+Setup!D30 -> SLJ | E5: =+Setup!E30 -> Howler | F5: Quadrathlon | K5: Start | L5: 13 | M5: 12 | N5: 0.4 | O5: 00:02:05 | P5: 00:01:55 | Q5: 00:00:04 | R5: 0.75 | S5: 1 | T5: 0.1 | U5: 2.5 | V5: 7.5 | W5: 2 | X5: 40 | Y5: 92 | Z5: 12
A6: Inc | B6: =INDEX(BoysAwards,AwardsIndex,(B$2*3)+3) -> 0.4 | C6: =INDEX(BoysAwards,AwardsIndex,(C$2*3)+3) -> 00:00:04 | D6: =INDEX(BoysAwards,AwardsIndex,(D$2*3)+3) -> 0.08 | E6: =INDEX(BoysAwards,AwardsIndex,(E$2*3)+3) -> 2 | F6: =INDEX(BoysAwards,AwardsIndex,(F$2*3)+3) -> 12 | K6: Primary | L6: 16 | M6: 15 | N6: 0.4 | O6: 00:03:00 | P6: 00:02:50 | Q6: 00:00:04 | R6: 1 | S6: 1.22 | T6: 0.08 | U6: 5 | V6: 10 | W6: 2 | X6: 40 | Y6: 92 | Z6: 12
A7: Step 1 | B7: =INDEX(BoysAwards,AwardsIndex,(B$2*3)+1) -> 16 | C7: =INDEX(BoysAwards,AwardsIndex,(C$2*3)+1) -> 00:03:00 | D7: =INDEX(BoysAwards,AwardsIndex,(D$2*3)+1) -> 1 | E7: =INDEX(BoysAwards,AwardsIndex,(E$2*3)+1) -> 5 | F7: =INDEX(BoysAwards,AwardsIndex,(F$2*3)+1) -> 40 | G7: =IF(F7>0,I7,"") -> Step 1 | I7: Step 1 | K7: Secondary | L7: 19 | M7: 16.5 | N7: 0.5 | O7: 00:03:25 | P7: 00:03:00 | Q7: 00:00:05 | R7: 2 | S7: 3.05 | T7: 0.25 | U7: 6 | V7: 10 | W7: 2 | X7: 40 | Y7: 120 | Z7: 20
A8: Step 2 | B8: =INDEX(BoysAwards,AwardsIndex,(B$2*3)+2) -> 15 | C8: =INDEX(BoysAwards,AwardsIndex,(C$2*3)+2) -> 00:02:50 | D8: =INDEX(BoysAwards,AwardsIndex,(D$2*3)+2) -> 1.22 | E8: =INDEX(BoysAwards,AwardsIndex,(E$2*3)+2) -> 10 | F8: =INDEX(BoysAwards,AwardsIndex,(F$2*3)+2) -> 92 | G8: Step 2 | I8: Step 2 | K8: Pre-Start | L8: 13 | M8: 12 | N8: 0.4 | O8: 00:02:05 | P8: 00:01:55 | Q8: 00:00:04 | R8: 0.75 | S8: 1 | T8: 0.1 | U8: 2.5 | V8: 7.5 | W8: 2 | X8: 40 | Y8: 92 | Z8: 12
A9: Step 3 | B9: =+B8-B$6 -> 14.6 | C9: =+C8-C$6 -> 00:02:46 | D9: =+D8+D$6 -> 1.3 | E9: =+E8+E$6 -> 12 | F9: =+F8+F$6 -> 104 | G9: Step 3 | I9: Step 3
A10: Step 4 | B10: 14.2 | C10: 00:02:42 | D10: 1.38 | E10: 14 | F10: 116 | G10: Step 4 | I10: Step 4 | K10: No awards | L10: 0 | M10: 0 | N10: 0 | O10: 00:00:00 | P10: 00:00:00 | Q10: 00:00:00 | R10: 0 | S10: 0 | T10: 0 | U10: 0 | V10: 0 | W10: 0 | X10: 0 | Y10: 0 | Z10: 0
A11: Step 5 | B11: 13.8 | C11: 00:02:38 | D11: 1.46 | E11: 16 | F11: 128 | G11: Step 5 | I11: Step 5
A12: Step 6 | B12: 13.4 | C12: 00:02:34 | D12: 1.54 | E12: 18 | F12: 140 | G12: Step 6 | I12: Step 6
A13: Step 7 | B13: 13 | C13: 00:02:30 | D13: 1.62 | E13: 20 | F13: 152 | G13: Step 7 | I13: =IF(NineStep,"Bronze","Step 7") -> Step 7
A14: Step 8 | B14: 12.6 | C14: 00:02:26 | D14: 1.7 | E14: 22 | F14: 164 | G14: Step 8 | I14: =IF(NineStep,"Silver","Step 8") -> Step 8
A15: Step 9 | B15: 12.2 | C15: 00:02:22 | D15: 1.78 | E15: 24 | F15: 176 | G15: Step 9 | I15: =IF(NineStep,"Gold","Step 9") -> Step 9
A16: Step 10 | B16: 11.8 | C16: 00:02:18 | D16: 1.86 | E16: 26 | F16: 188 | G16: Step 10 | I16: =IF(NineStep,"Gold","Step 10") -> Step 10
A17: Bronze | B17: 11.4 | C17: 00:02:14 | D17: 1.94 | E17: 28 | F17: 200 | G17: Bronze | I17: =IF(NineStep,"Gold","Bronze") -> Bronze
A18: Silver | B18: 11 | C18: 00:02:10 | D18: 2.02 | E18: 30 | F18: 212 | G18: Silver | I18: =IF(NineStep,"Gold","Silver") -> Silver
A19: Gold | B19: 10.6 | C19: 00:02:06 | D19: 2.1 | E19: 32 | F19: 224 | G19: Gold | I19: Gold
A22: Girls | K22: GIRLS | L22: E1 | O22: E2 | R22: E3 | U22: E4 | X22: Quadrathlon
B23: E1 | C23: E2 | D23: E3 | E23: E4 | F23: Quadrathlon | G23: Award | L23: S1 | M23: S2 | N23: Inc | O23: S1 | P23: S2 | Q23: Inc | R23: S1 | S23: S2 | T23: Inc | U23: S1 | V23: S2 | W23: Inc | X23: S1 | Y23: S2 | Z23: Inc
B24: =+B5 -> 75m | C24: =+C5 -> 600m | D24: =+D5 -> SLJ | E24: =+E5 -> Howler | K24: Start | L24: 13 | M24: 12 | N24: 0.4 | O24: 00:02:05 | P24: 00:02:03 | Q24: 00:00:04 | R24: 0.75 | S24: 1 | T24: 0.1 | U24: 2.5 | V24: 7.5 | W24: 2 | X24: 40 | Y24: 60 | Z24: 12
A25: Inc | B25: =INDEX(GirlsAwards,AwardsIndex,(B$2*3)+3) -> 0.4 | C25: =INDEX(GirlsAwards,AwardsIndex,(C$2*3)+3) -> 00:00:04 | D25: =INDEX(GirlsAwards,AwardsIndex,(D$2*3)+3) -> 0.08 | E25: =INDEX(GirlsAwards,AwardsIndex,(E$2*3)+3) -> 8 | F25: =INDEX(GirlsAwards,AwardsIndex,(F$2*3)+3) -> 12 | K25: Primary | L25: 16 | M25: 15.8 | N25: 0.4 | O25: 00:03:00 | P25: 00:02:58 | Q25: 00:00:04 | R25: 1 | S25: 1.06 | T25: 0.08 | U25: 5 | V25: 6 | W25: 8 | X25: 40 | Y25: 60 | Z25: 12
A26: Step 1 | B26: =INDEX(GirlsAwards,AwardsIndex,(B$2*3)+1) -> 16 | C26: =INDEX(GirlsAwards,AwardsIndex,(C$2*3)+1) -> 00:03:00 | D26: =INDEX(GirlsAwards,AwardsIndex,(D$2*3)+1) -> 1 | E26: =INDEX(GirlsAwards,AwardsIndex,(E$2*3)+1) -> 5 | F26: =INDEX(GirlsAwards,AwardsIndex,(F$2*3)+1) -> 40 | G26: =IF(F26>0,I26,"") -> Step 1 | I26: Step 1 | K26: Secondary | L26: 19 | M26: 17.5 | N26: 0.5 | O26: 00:03:25 | P26: 00:03:10 | Q26: 00:00:05 | R26: 2 | S26: 2.55 | T26: 0.25 | U26: 6 | V26: 10 | W26: 2 | X26: 40 | Y26: 80 | Z26: 20
A27: Step 2 | B27: =INDEX(GirlsAwards,AwardsIndex,(B$2*3)+2) -> 15.8 | C27: =INDEX(GirlsAwards,AwardsIndex,(C$2*3)+2) -> 00:02:58 | D27: =INDEX(GirlsAwards,AwardsIndex,(D$2*3)+2) -> 1.06 | E27: =INDEX(GirlsAwards,AwardsIndex,(E$2*3)+2) -> 6 | F27: =INDEX(GirlsAwards,AwardsIndex,(F$2*3)+2) -> 60 | G27: Step 2 | I27: Step 2 | K27: Pre-Start | L27: 13 | M27: 12 | N27: 0.4 | O27: 00:02:05 | P27: 00:02:03 | Q27: 00:00:04 | R27: 0.75 | S27: 1 | T27: 0.1 | U27: 2.5 | V27: 7.5 | W27: 2 | X27: 40 | Y27: 60 | Z27: 12
A28: Step 3 | B28: =+B27-B$6 -> 15.4 | C28: =+C27-C$6 -> 00:02:54 | D28: =+D27+D$6 -> 1.14 | E28: =+E27+E$6 -> 8 | F28: =+F27+F$6 -> 72 | G28: Step 3 | I28: Step 3
A29: Step 4 | B29: 15 | C29: 00:02:50 | D29: 1.22 | E29: 10 | F29: 84 | G29: Step 4 | I29: Step 4 | K29: No awards | L29: 0 | M29: 0 | N29: 0 | O29: 00:00:00 | P29: 00:00:00 | Q29: 00:00:00 | R29: 0 | S29: 0 | T29: 0 | U29: 0 | V29: 0 | W29: 0 | X29: 0 | Y29: 0 | Z29: 0
A30: Step 5 | B30: 14.6 | C30: 00:02:46 | D30: 1.3 | E30: 12 | F30: 96 | G30: Step 5 | I30: Step 5
A31: Step 6 | B31: 14.2 | C31: 00:02:42 | D31: 1.38 | E31: 14 | F31: 108 | G31: Step 6 | I31: Step 6
A32: Step 7 | B32: 13.8 | C32: 00:02:38 | D32: 1.46 | E32: 16 | F32: 120 | G32: Step 7 | I32: =IF(NineStep,"Bronze","Step 7") -> Step 7
A33: Step 8 | B33: 13.4 | C33: 00:02:34 | D33: 1.54 | E33: 18 | F33: 132 | G33: Step 8 | I33: =IF(NineStep,"Silver","Step 8") -> Step 8
A34: Step 9 | B34: 13 | C34: 00:02:30 | D34: 1.62 | E34: 20 | F34: 144 | G34: Step 9 | I34: =IF(NineStep,"Gold","Step 9") -> Step 9
A35: Step 10 | B35: 12.6 | C35: 00:02:26 | D35: 1.7 | E35: 22 | F35: 156 | G35: Step 10 | I35: =IF(NineStep,"Gold","Step 10") -> Step 10
A36: Bronze | B36: 12.2 | C36: 00:02:22 | D36: 1.78 | E36: 24 | F36: 168 | G36: Bronze | I36: =IF(NineStep,"Gold","Bronze") -> Bronze
A37: Silver | B37: 11.8 | C37: 00:02:18 | D37: 1.86 | E37: 26 | F37: 180 | G37: Silver | I37: =IF(NineStep,"Gold","Silver") -> Silver
A38: Gold | B38: 11.4 | C38: 00:02:14 | D38: 1.94 | E38: 28 | F38: 192 | G38: Gold | I38: Gold
A41: UKA Awards information can be found here
A42: http://www.quadkids.org/awards

Sheet EVENT - SPRNT
A1: ="Event:" -> Event: | C1: SPRINT | F1: =IF(TotalAthletes,COUNTIF(D3:D1002,">0")/TotalAthletes,0) -> 0.8888888889 | J1: EvtIdx | K1: 1 | L1: Min | M1: =+INDEX(ScoreValues,2,$K$1) -> 16 | N1: Inc | O1: =+INDEX(ScoreValues,4,$K$1) -> 0.1 | Q1: Max | R1: =+INDEX(ScoreValues,3,$K$1) -> 7 | T1: DefAgeGrp | U1: =+EventIndex -> 4
A2: Athlete No | B2: Time (ss.s) | C2: Name | D2: Points | F2: Duplicates | G2: CheckPoint | H2: ValidAthlete | I2: AthleteIdx | J2: Dgroup | K2: Seconds | L2: Adjusted | M2: Points | N2: Max | O2: Min | P2: Inc | Q2: AgeGroup | S2: MIN | T2: INC | V2: Inc_Idx | W2: MIN | X2: INC
A3: 3 | B3: 12.3 | C3: =IF(I3>0,INDEX(DB,I3,8),"") -> Jess Bailey | D3: =IF(AND(H3,B3>0,ISNUMBER(B3)),IF(ISERR(M3),0,M3),0) -> 47 | F3: =COUNTIF(A$3:A$1002,A3) -> 1 | G3: =IF(AND(H3,OR(D3<=10,D3>=90)),"CHECK","") ->  | H3: =IF(AND(LEN(A3)>0,LEN(C3)>0,B3<>0),TRUE,FALSE) -> TRUE | I3: =IF(OR(ISBLANK(A3),ISNA(MATCH(A3&"",AthleteNumbers,0))),0,MATCH(A3&"",AthleteNumbers,0)) -> 1 | J3: =IF(I3>0,INDEX(DB,$I3,6),0) -> 0 | K3: =IF(ISNUMBER(B3),ROUND(+B3,1),0) -> 12.3 | L3: =+K3 -> 12.3 | M3: =IF(AND(L3>O3,O3>0),MinPoints,IF(L3<N3,100,+INT((O3-$L3)/P3)+MinPoints)) -> 47 | N3: =+O3-(P3*90) -> 7 | O3: =IF($J3=0,$S3,$W3) -> 16 | P3: =IF($J3=0,$T3,$X3) -> 0.1 | Q3: =IF(I3>0,INDEX(DB,I3,9),EventIndex) -> 4 | S3: =INDEX(MINVALUES,$Q3,$K$1) -> 16 | T3: =INDEX(INCVALUES,$Q3,$K$1) -> 0.1 | V3: =+J3+(4*(INDEX(MatchScoreTable,$Q3,20)-1)) -> 4 | W3: =INDEX(INC_MINVALUES,$V3,$K$1) -> 34 | X3: =INDEX(INC_INCVALUES,$V3,$K$1) -> 0.3
A4: 5 | B4: 14 | C4: Poppy Burtwell | D4: =IF(AND(H4,B4>0,ISNUMBER(B4)),IF(ISERR(M4),0,M4),0) -> 30 | F4: =COUNTIF(A$3:A$1002,A4) -> 1 | G4: =IF(AND(H4,OR(D4<=10,D4>=90)),"CHECK","") ->  | H4: =IF(AND(LEN(A4)>0,LEN(C4)>0,B4<>0),TRUE,FALSE) -> TRUE | I4: 2 | J4: 0 | K4: =IF(ISNUMBER(B4),ROUND(+B4,1),0) -> 14 | L4: =+K4 -> 14 | M4: =IF(AND(L4>O4,O4>0),MinPoints,IF(L4<N4,100,+INT((O4-$L4)/P4)+MinPoints)) -> 30 | N4: =+O4-(P4*90) -> 7 | O4: =IF($J4=0,$S4,$W4) -> 16 | P4: =IF($J4=0,$T4,$X4) -> 0.1 | Q4: 4 | S4: 16 | T4: 0.1 | V4: 4 | W4: 34 | X4: 0.3
A5: 6 | B5: 12.2 | C5: Albie Jack Bussey | D5: 48 | F5: 1 | H5: TRUE | I5: 3 | J5: 0 | K5: 12.2 | L5: 12.2 | M5: 48 | N5: 7 | O5: 16 | P5: 0.1 | Q5: 4 | S5: 16 | T5: 0.1 | V5: 4 | W5: 34 | X5: 0.3
A6: 11 | C6: Molly Elizabeth Creek | D6: 0 | F6: 1 | H6: FALSE | I6: 4 | J6: 0 | K6: 0 | L6: 0 | M6: 100 | N6: 7 | O6: 16 | P6: 0.1 | Q6: 4 | S6: 16 | T6: 0.1 | V6: 4 | W6: 34 | X6: 0.3
A7: 13 | B7: 12.7 | C7: Imogen Edwards | D7: 43 | F7: 1 | H7: TRUE | I7: 5 | J7: 0 | K7: 12.7 | L7: 12.7 | M7: 43 | N7: 7 | O7: 16 | P7: 0.1 | Q7: 4 | S7: 16 | T7: 0.1 | V7: 4 | W7: 34 | X7: 0.3
A8: 15 | C8: Ezra Frick | D8: 0 | F8: 1 | H8: FALSE | I8: 6 | J8: 0 | K8: 0 | L8: 0 | M8: 100 | N8: 7 | O8: 16 | P8: 0.1 | Q8: 4 | S8: 16 | T8: 0.1 | V8: 4 | W8: 34 | X8: 0.3
A9: 16 | B9: 14.5 | C9: Emilia Game | D9: 25 | F9: 1 | H9: TRUE | I9: 7 | J9: 0 | K9: 14.5 | L9: 14.5 | M9: 25 | N9: 7 | O9: 16 | P9: 0.1 | Q9: 4 | S9: 16 | T9: 0.1 | V9: 4 | W9: 34 | X9: 0.3
A10: 19 | B10: 14.5 | C10: Charlotte Harvey | D10: 25 | F10: 1 | H10: TRUE | I10: 8 | J10: 0 | K10: 14.5 | L10: 14.5 | M10: 25 | N10: 7 | O10: 16 | P10: 0.1 | Q10: 4 | S10: 16 | T10: 0.1 | V10: 4 | W10: 34 | X10: 0.3
A11: 21 | B11: 11.4 | C11: Dylan Jacob Hockin | D11: 56 | F11: 1 | H11: TRUE | I11: 9 | J11: 0 | K11: 11.4 | L11: 11.4 | M11: 56 | N11: 7 | O11: 16 | P11: 0.1 | Q11: 4 | S11: 16 | T11: 0.1 | V11: 4 | W11: 34 | X11: 0.3
A12: 24 | B12: 12.2 | C12: Hermione Howard | D12: 48 | F12: 1 | H12: TRUE | I12: 10 | J12: 0 | K12: 12.2 | L12: 12.2 | M12: 48 | N12: 7 | O12: 16 | P12: 0.1 | Q12: 4 | S12: 16 | T12: 0.1 | V12: 4 | W12: 34 | X12: 0.3
A13: 26 | B13: 12.1 | C13: Evalyn Humphries | D13: 49 | F13: 1 | H13: TRUE | I13: 11 | J13: 0 | K13: 12.1 | L13: 12.1 | M13: 49 | N13: 7 | O13: 16 | P13: 0.1 | Q13: 4 | S13: 16 | T13: 0.1 | V13: 4 | W13: 34 | X13: 0.3
A14: 28 | B14: 11.8 | C14: William Peter Stuart Johnson | D14: 52 | F14: 1 | H14: TRUE | I14: 12 | J14: 0 | K14: 11.8 | L14: 11.8 | M14: 52 | N14: 7 | O14: 16 | P14: 0.1 | Q14: 4 | S14: 16 | T14: 0.1 | V14: 4 | W14: 34 | X14: 0.3
A15: 29 | B15: 11.7 | C15: Ben Jones | D15: 53 | F15: 1 | H15: TRUE | I15: 13 | J15: 0 | K15: 11.7 | L15: 11.7 | M15: 53 | N15: 7 | O15: 16 | P15: 0.1 | Q15: 4 | S15: 16 | T15: 0.1 | V15: 4 | W15: 34 | X15: 0.3
A16: 30 | B16: 12.2 | C16: Olivia Andrea Lilly Jones | D16: 48 | F16: 1 | H16: TRUE | I16: 14 | J16: 0 | K16: 12.2 | L16: 12.2 | M16: 48 | N16: 7 | O16: 16 | P16: 0.1 | Q16: 4 | S16: 16 | T16: 0.1 | V16: 4 | W16: 34 | X16: 0.3
A17: 31 | B17: 12.6 | C17: Rhys Callen Jones | D17: 44 | F17: 1 | H17: TRUE | I17: 15 | J17: 0 | K17: 12.6 | L17: 12.6 | M17: 44 | N17: 7 | O17: 16 | P17: 0.1 | Q17: 4 | S17: 16 | T17: 0.1 | V17: 4 | W17: 34 | X17: 0.3
A18: 33 | B18: 12.9 | C18: Arthur Lawson | D18: 41 | F18: 1 | H18: TRUE | I18: 16 | J18: 0 | K18: 12.9 | L18: 12.9 | M18: 41 | N18: 7 | O18: 16 | P18: 0.1 | Q18: 4 | S18: 16 | T18: 0.1 | V18: 4 | W18: 34 | X18: 0.3
A19: 35 | B19: 13.9 | C19: Edward Lewis | D19: 31 | F19: 1 | H19: TRUE | I19: 17 | J19: 0 | K19: 13.9 | L19: 13.9 | M19: 31 | N19: 7 | O19: 16 | P19: 0.1 | Q19: 4 | S19: 16 | T19: 0.1 | V19: 4 | W19: 34 | X19: 0.3
A20: 37 | B20: 13 | C20: Poppy Limb | D20: 40 | F20: 1 | H20: TRUE | I20: 18 | J20: 0 | K20: 13 | L20: 13 | M20: 40 | N20: 7 | O20: 16 | P20: 0.1 | Q20: 4 | S20: 16 | T20: 0.1 | V20: 4 | W20: 34 | X20: 0.3
A21: 41 | B21: 11.5 | C21: Reuben Mann | D21: 55 | F21: 1 | H21: TRUE | I21: 19 | J21: 0 | K21: 11.5 | L21: 11.5 | M21: 55 | N21: 7 | O21: 16 | P21: 0.1 | Q21: 4 | S21: 16 | T21: 0.1 | V21: 4 | W21: 34 | X21: 0.3
A22: 42 | C22: Eliza Verity Mason | D22: 0 | F22: 1 | H22: FALSE | I22: 20 | J22: 0 | K22: 0 | L22: 0 | M22: 100 | N22: 7 | O22: 16 | P22: 0.1 | Q22: 4 | S22: 16 | T22: 0.1 | V22: 4 | W22: 34 | X22: 0.3
A23: 47 | B23: 11.4 | C23: Max Papuca | D23: 56 | F23: 1 | H23: TRUE | I23: 21 | J23: 0 | K23: 11.4 | L23: 11.4 | M23: 56 | N23: 7 | O23: 16 | P23: 0.1 | Q23: 4 | S23: 16 | T23: 0.1 | V23: 4 | W23: 34 | X23: 0.3
A24: 49 | B24: 12.8 | C24: Lucy Reeves | D24: 42 | F24: 1 | H24: TRUE | I24: 22 | J24: 0 | K24: 12.8 | L24: 12.8 | M24: 42 | N24: 7 | O24: 16 | P24: 0.1 | Q24: 4 | S24: 16 | T24: 0.1 | V24: 4 | W24: 34 | X24: 0.3
A25: 51 | C25: Albert George Rendell | D25: 0 | F25: 1 | H25: FALSE | I25: 23 | J25: 0 | K25: 0 | L25: 0 | M25: 100 | N25: 7 | O25: 16 | P25: 0.1 | Q25: 4 | S25: 16 | T25: 0.1 | V25: 4 | W25: 34 | X25: 0.3
A26: 53 | B26: 14.4 | C26: Amelia Robinson | D26: 26 | F26: 1 | H26: TRUE | I26: 24 | J26: 0 | K26: 14.4 | L26: 14.4 | M26: 26 | N26: 7 | O26: 16 | P26: 0.1 | Q26: 4 | S26: 16 | T26: 0.1 | V26: 4 | W26: 34 | X26: 0.3
A27: 54 | B27: 14.1 | C27: Laurence Andrew Rowett | D27: 29 | F27: 1 | H27: TRUE | I27: 25 | J27: 0 | K27: 14.1 | L27: 14.1 | M27: 29 | N27: 7 | O27: 16 | P27: 0.1 | Q27: 4 | S27: 16 | T27: 0.1 | V27: 4 | W27: 34 | X27: 0.3
A28: 55 | B28: 13.6 | C28: Alfie Edward Seymour | D28: 34 | F28: 1 | H28: TRUE | I28: 26 | J28: 0 | K28: 13.6 | L28: 13.6 | M28: 34 | N28: 7 | O28: 16 | P28: 0.1 | Q28: 4 | S28: 16 | T28: 0.1 | V28: 4 | W28: 34 | X28: 0.3
A29: 57 | B29: 11.8 | C29: Henry Ronald Simpson | D29: 52 | F29: 1 | H29: TRUE | I29: 27 | J29: 0 | K29: 11.8 | L29: 11.8 | M29: 52 | N29: 7 | O29: 16 | P29: 0.1 | Q29: 4 | S29: 16 | T29: 0.1 | V29: 4 | W29: 34 | X29: 0.3
A30: 59 | B30: 12.5 | C30: Natalee May Souch | D30: 45 | F30: 1 | H30: TRUE | I30: 28 | J30: 0 | K30: 12.5 | L30: 12.5 | M30: 45 | N30: 7 | O30: 16 | P30: 0.1 | Q30: 4 | S30: 16 | T30: 0.1 | V30: 4 | W30: 34 | X30: 0.3
A31: 60 | B31: 13.7 | C31: Lola Southernwood | D31: 33 | F31: 1 | H31: TRUE | I31: 29 | J31: 0 | K31: 13.7 | L31: 13.7 | M31: 33 | N31: 7 | O31: 16 | P31: 0.1 | Q31: 4 | S31: 16 | T31: 0.1 | V31: 4 | W31: 34 | X31: 0.3
A32: 63 | B32: 13.4 | C32: Allegra Flora Spicer | D32: 36 | F32: 1 | H32: TRUE | I32: 30 | J32: 0 | K32: 13.4 | L32: 13.4 | M32: 36 | N32: 7 | O32: 16 | P32: 0.1 | Q32: 4 | S32: 16 | T32: 0.1 | V32: 4 | W32: 34 | X32: 0.3
A33: 68 | B33: 12.4 | C33: Annabelle Weldon | D33: 46 | F33: 1 | H33: TRUE | I33: 31 | J33: 0 | K33: 12.4 | L33: 12.4 | M33: 46 | N33: 7 | O33: 16 | P33: 0.1 | Q33: 4 | S33: 16 | T33: 0.1 | V33: 4 | W33: 34 | X33: 0.3
A34: 72 | B34: 14 | C34: Tayla Florence Williams | D34: 30 | F34: 1 | H34: TRUE | I34: 32 | J34: 0 | K34: 14 | L34: 14 | M34: 30 | N34: 7 | O34: 16 | P34: 0.1 | Q34: 4 | S34: 16 | T34: 0.1 | V34: 4 | W34: 34 | X34: 0.3
A35: 73 | B35: 13.6 | C35: Bethan Frances Wilson | D35: 34 | F35: 1 | H35: TRUE | I35: 33 | J35: 0 | K35: 13.6 | L35: 13.6 | M35: 34 | N35: 7 | O35: 16 | P35: 0.1 | Q35: 4 | S35: 16 | T35: 0.1 | V35: 4 | W35: 34 | X35: 0.3
A36: 74 | B36: 12.5 | C36: Isla Wright | D36: 45 | F36: 1 | H36: TRUE | I36: 34 | J36: 0 | K36: 12.5 | L36: 12.5 | M36: 45 | N36: 7 | O36: 16 | P36: 0.1 | Q36: 4 | S36: 16 | T36: 0.1 | V36: 4 | W36: 34 | X36: 0.3
A37: 76 | B37: 13.6 | C37: Joshua Young | D37: 34 | F37: 1 | H37: TRUE | I37: 35 | J37: 0 | K37: 13.6 | L37: 13.6 | M37: 34 | N37: 7 | O37: 16 | P37: 0.1 | Q37: 4 | S37: 16 | T37: 0.1 | V37: 4 | W37: 34 | X37: 0.3
A38: 77 | B38: 12.7 | C38: Piero Zanca | D38: 43 | F38: 1 | H38: TRUE | I38: 36 | J38: 0 | K38: 12.7 | L38: 12.7 | M38: 43 | N38: 7 | O38: 16 | P38: 0.1 | Q38: 4 | S38: 16 | T38: 0.1 | V38: 4 | W38: 34 | X38: 0.3
D39: 0 | F39: 0 | H39: FALSE | I39: 0 | J39: 0 | K39: 0 | L39: 0 | M39: 100 | N39: 7 | O39: 16 | P39: 0.1 | Q39: 4 | S39: 16 | T39: 0.1 | V39: 4 | W39: 34 | X39: 0.3
D40: 0 | F40: 0 | H40: FALSE | I40: 0 | J40: 0 | K40: 0 | L40: 0 | M40: 100 | N40: 7 | O40: 16 | P40: 0.1 | Q40: 4 | S40: 16 | T40: 0.1 | V40: 4 | W40: 34 | X40: 0.3
D41: 0 | F41: 0 | H41: FALSE | I41: 0 | J41: 0 | K41: 0 | L41: 0 | M41: 100 | N41: 7 | O41: 16 | P41: 0.1 | Q41: 4 | S41: 16 | T41: 0.1 | V41: 4 | W41: 34 | X41: 0.3
D42: 0 | F42: 0 | H42: FALSE | I42: 0 | J42: 0 | K42: 0 | L42: 0 | M42: 100 | N42: 7 | O42: 16 | P42: 0.1 | Q42: 4 | S42: 16 | T42: 0.1 | V42: 4 | W42: 34 | X42: 0.3
D43: 0 | F43: 0 | H43: FALSE | I43: 0 | J43: 0 | K43: 0 | L43: 0 | M43: 100 | N43: 7 | O43: 16 | P43: 0.1 | Q43: 4 | S43: 16 | T43: 0.1 | V43: 4 | W43: 34 | X43: 0.3
D44: 0 | F44: 0 | H44: FALSE | I44: 0 | J44: 0 | K44: 0 | L44: 0 | M44: 100 | N44: 7 | O44: 16 | P44: 0.1 | Q44: 4 | S44: 16 | T44: 0.1 | V44: 4 | W44: 34 | X44: 0.3
D45: 0 | F45: 0 | H45: FALSE | I45: 0 | J45: 0 | K45: 0 | L45: 0 | M45: 100 | N45: 7 | O45: 16 | P45: 0.1 | Q45: 4 | S45: 16 | T45: 0.1 | V45: 4 | W45: 34 | X45: 0.3
D46: 0 | F46: 0 | H46: FALSE | I46: 0 | J46: 0 | K46: 0 | L46: 0 | M46: 100 | N46: 7 | O46: 16 | P46: 0.1 | Q46: 4 | S46: 16 | T46: 0.1 | V46: 4 | W46: 34 | X46: 0.3
D47: 0 | F47: 0 | H47: FALSE | I47: 0 | J47: 0 | K47: 0 | L47: 0 | M47: 100 | N47: 7 | O47: 16 | P47: 0.1 | Q47: 4 | S47: 16 | T47: 0.1 | V47: 4 | W47: 34 | X47: 0.3
D48: 0 | F48: 0 | H48: FALSE | I48: 0 | J48: 0 | K48: 0 | L48: 0 | M48: 100 | N48: 7 | O48: 16 | P48: 0.1 | Q48: 4 | S48: 16 | T48: 0.1 | V48: 4 | W48: 34 | X48: 0.3
D49: 0 | F49: 0 | H49: FALSE | I49: 0 | J49: 0 | K49: 0 | L49: 0 | M49: 100 | N49: 7 | O49: 16 | P49: 0.1 | Q49: 4 | S49: 16 | T49: 0.1 | V49: 4 | W49: 34 | X49: 0.3
D50: 0 | F50: 0 | H50: FALSE | I50: 0 | J50: 0 | K50: 0 | L50: 0 | M50: 100 | N50: 7 | O50: 16 | P50: 0.1 | Q50: 4 | S50: 16 | T50: 0.1 | V50: 4 | W50: 34 | X50: 0.3
D51: 0 | F51: 0 | H51: FALSE | I51: 0 | J51: 0 | K51: 0 | L51: 0 | M51: 100 | N51: 7 | O51: 16 | P51: 0.1 | Q51: 4 | S51: 16 | T51: 0.1 | V51: 4 | W51: 34 | X51: 0.3
D52: 0 | F52: 0 | H52: FALSE | I52: 0 | J52: 0 | K52: 0 | L52: 0 | M52: 100 | N52: 7 | O52: 16 | P52: 0.1 | Q52: 4 | S52: 16 | T52: 0.1 | V52: 4 | W52: 34 | X52: 0.3
D53: 0 | F53: 0 | H53: FALSE | I53: 0 | J53: 0 | K53: 0 | L53: 0 | M53: 100 | N53: 7 | O53: 16 | P53: 0.1 | Q53: 4 | S53: 16 | T53: 0.1 | V53: 4 | W53: 34 | X53: 0.3
D54: 0 | F54: 0 | H54: FALSE | I54: 0 | J54: 0 | K54: 0 | L54: 0 | M54: 100 | N54: 7 | O54: 16 | P54: 0.1 | Q54: 4 | S54: 16 | T54: 0.1 | V54: 4 | W54: 34 | X54: 0.3
D55: 0 | F55: 0 | H55: FALSE | I55: 0 | J55: 0 | K55: 0 | L55: 0 | M55: 100 | N55: 7 | O55: 16 | P55: 0.1 | Q55: 4 | S55: 16 | T55: 0.1 | V55: 4 | W55: 34 | X55: 0.3
D56: 0 | F56: 0 | H56: FALSE | I56: 0 | J56: 0 | K56: 0 | L56: 0 | M56: 100 | N56: 7 | O56: 16 | P56: 0.1 | Q56: 4 | S56: 16 | T56: 0.1 | V56: 4 | W56: 34 | X56: 0.3
D57: 0 | F57: 0 | H57: FALSE | I57: 0 | J57: 0 | K57: 0 | L57: 0 | M57: 100 | N57: 7 | O57: 16 | P57: 0.1 | Q57: 4 | S57: 16 | T57: 0.1 | V57: 4 | W57: 34 | X57: 0.3
D58: 0 | F58: 0 | H58: FALSE | I58: 0 | J58: 0 | K58: 0 | L58: 0 | M58: 100 | N58: 7 | O58: 16 | P58: 0.1 | Q58: 4 | S58: 16 | T58: 0.1 | V58: 4 | W58: 34 | X58: 0.3
D59: 0 | F59: 0 | H59: FALSE | I59: 0 | J59: 0 | K59: 0 | L59: 0 | M59: 100 | N59: 7 | O59: 16 | P59: 0.1 | Q59: 4 | S59: 16 | T59: 0.1 | V59: 4 | W59: 34 | X59: 0.3
D60: 0 | F60: 0 | H60: FALSE | I60: 0 | J60: 0 | K60: 0 | L60: 0 | M60: 100 | N60: 7 | O60: 16 | P60: 0.1 | Q60: 4 | S60: 16 | T60: 0.1 | V60: 4 | W60: 34 | X60: 0.3
D61: 0 | F61: 0 | H61: FALSE | I61: 0 | J61: 0 | K61: 0 | L61: 0 | M61: 100 | N61: 7 | O61: 16 | P61: 0.1 | Q61: 4 | S61: 16 | T61: 0.1 | V61: 4 | W61: 34 | X61: 0.3
D62: 0 | F62: 0 | H62: FALSE | I62: 0 | J62: 0 | K62: 0 | L62: 0 | M62: 100 | N62: 7 | O62: 16 | P62: 0.1 | Q62: 4 | S62: 16 | T62: 0.1 | V62: 4 | W62: 34 | X62: 0.3
D63: 0 | F63: 0 | H63: FALSE | I63: 0 | J63: 0 | K63: 0 | L63: 0 | M63: 100 | N63: 7 | O63: 16 | P63: 0.1 | Q63: 4 | S63: 16 | T63: 0.1 | V63: 4 | W63: 34 | X63: 0.3
D64: 0 | F64: 0 | H64: FALSE | I64: 0 | J64: 0 | K64: 0 | L64: 0 | M64: 100 | N64: 7 | O64: 16 | P64: 0.1 | Q64: 4 | S64: 16 | T64: 0.1 | V64: 4 | W64: 34 | X64: 0.3
D65: 0 | F65: 0 | H65: FALSE | I65: 0 | J65: 0 | K65: 0 | L65: 0 | M65: 100 | N65: 7 | O65: 16 | P65: 0.1 | Q65: 4 | S65: 16 | T65: 0.1 | V65: 4 | W65: 34 | X65: 0.3
D66: 0 | F66: 0 | H66: FALSE | I66: 0 | J66: 0 | K66: 0 | L66: 0 | M66: 100 | N66: 7 | O66: 16 | P66: 0.1 | Q66: 4 | S66: 16 | T66: 0.1 | V66: 4 | W66: 34 | X66: 0.3
C67: =IF(I67>0,INDEX(DB,I67,8),"") ->  | D67: 0 | F67: 0 | H67: FALSE | I67: =IF(OR(ISBLANK(A67),ISNA(MATCH(A67&"",AthleteNumbers,0))),0,MATCH(A67&"",AthleteNumbers,0)) -> 0 | J67: =IF(I67>0,INDEX(DB,$I67,6),0) -> 0 | K67: 0 | L67: 0 | M67: 100 | N67: 7 | O67: 16 | P67: 0.1 | Q67: =IF(I67>0,INDEX(DB,I67,9),EventIndex) -> 4 | S67: =INDEX(MINVALUES,$Q67,$K$1) -> 16 | T67: =INDEX(INCVALUES,$Q67,$K$1) -> 0.1 | V67: =+J67+(4*(INDEX(MatchScoreTable,$Q67,20)-1)) -> 4 | W67: =INDEX(INC_MINVALUES,$V67,$K$1) -> 34 | X67: =INDEX(INC_INCVALUES,$V67,$K$1) -> 0.3
D68: =IF(AND(H68,B68>0,ISNUMBER(B68)),IF(ISERR(M68),0,M68),0) -> 0 | F68: =COUNTIF(A$3:A$1002,A68) -> 0 | G68: =IF(AND(H68,OR(D68<=10,D68>=90)),"CHECK","") ->  | H68: =IF(AND(LEN(A68)>0,LEN(C68)>0,B68<>0),TRUE,FALSE) -> FALSE | I68: 0 | J68: 0 | K68: =IF(ISNUMBER(B68),ROUND(+B68,1),0) -> 0 | L68: =+K68 -> 0 | M68: =IF(AND(L68>O68,O68>0),MinPoints,IF(L68<N68,100,+INT((O68-$L68)/P68)+MinPoints)) -> 100 | N68: =+O68-(P68*90) -> 7 | O68: =IF($J68=0,$S68,$W68) -> 16 | P68: =IF($J68=0,$T68,$X68) -> 0.1 | Q68: 4 | S68: 16 | T68: 0.1 | V68: 4 | W68: 34 | X68: 0.3
D69: 0 | F69: 0 | H69: FALSE | I69: 0 | J69: 0 | K69: 0 | L69: 0 | M69: 100 | N69: 7 | O69: 16 | P69: 0.1 | Q69: 4 | S69: 16 | T69: 0.1 | V69: 4 | W69: 34 | X69: 0.3
D70: 0 | F70: 0 | H70: FALSE | I70: 0 | J70: 0 | K70: 0 | L70: 0 | M70: 100 | N70: 7 | O70: 16 | P70: 0.1 | Q70: 4 | S70: 16 | T70: 0.1 | V70: 4 | W70: 34 | X70: 0.3
D71: 0 | F71: 0 | H71: FALSE | I71: 0 | J71: 0 | K71: 0 | L71: 0 | M71: 100 | N71: 7 | O71: 16 | P71: 0.1 | Q71: 4 | S71: 16 | T71: 0.1 | V71: 4 | W71: 34 | X71: 0.3
D72: 0 | F72: 0 | H72: FALSE | I72: 0 | J72: 0 | K72: 0 | L72: 0 | M72: 100 | N72: 7 | O72: 16 | P72: 0.1 | Q72: 4 | S72: 16 | T72: 0.1 | V72: 4 | W72: 34 | X72: 0.3
D73: 0 | F73: 0 | H73: FALSE | I73: 0 | J73: 0 | K73: 0 | L73: 0 | M73: 100 | N73: 7 | O73: 16 | P73: 0.1 | Q73: 4 | S73: 16 | T73: 0.1 | V73: 4 | W73: 34 | X73: 0.3
D74: 0 | F74: 0 | H74: FALSE | I74: 0 | J74: 0 | K74: 0 | L74: 0 | M74: 100 | N74: 7 | O74: 16 | P74: 0.1 | Q74: 4 | S74: 16 | T74: 0.1 | V74: 4 | W74: 34 | X74: 0.3
D75: 0 | F75: 0 | H75: FALSE | I75: 0 | J75: 0 | K75: 0 | L75: 0 | M75: 100 | N75: 7 | O75: 16 | P75: 0.1 | Q75: 4 | S75: 16 | T75: 0.1 | V75: 4 | W75: 34 | X75: 0.3
D76: 0 | F76: 0 | H76: FALSE | I76: 0 | J76: 0 | K76: 0 | L76: 0 | M76: 100 | N76: 7 | O76: 16 | P76: 0.1 | Q76: 4 | S76: 16 | T76: 0.1 | V76: 4 | W76: 34 | X76: 0.3
D77: 0 | F77: 0 | H77: FALSE | I77: 0 | J77: 0 | K77: 0 | L77: 0 | M77: 100 | N77: 7 | O77: 16 | P77: 0.1 | Q77: 4 | S77: 16 | T77: 0.1 | V77: 4 | W77: 34 | X77: 0.3
D78: 0 | F78: 0 | H78: FALSE | I78: 0 | J78: 0 | K78: 0 | L78: 0 | M78: 100 | N78: 7 | O78: 16 | P78: 0.1 | Q78: 4 | S78: 16 | T78: 0.1 | V78: 4 | W78: 34 | X78: 0.3
D79: 0 | F79: 0 | H79: FALSE | I79: 0 | J79: 0 | K79: 0 | L79: 0 | M79: 100 | N79: 7 | O79: 16 | P79: 0.1 | Q79: 4 | S79: 16 | T79: 0.1 | V79: 4 | W79: 34 | X79: 0.3
D80: 0 | F80: 0 | H80: FALSE | I80: 0 | J80: 0 | K80: 0 | L80: 0 | M80: 100 | N80: 7 | O80: 16 | P80: 0.1 | Q80: 4 | S80: 16 | T80: 0.1 | V80: 4 | W80: 34 | X80: 0.3
D81: 0 | F81: 0 | H81: FALSE | I81: 0 | J81: 0 | K81: 0 | L81: 0 | M81: 100 | N81: 7 | O81: 16 | P81: 0.1 | Q81: 4 | S81: 16 | T81: 0.1 | V81: 4 | W81: 34 | X81: 0.3
D82: 0 | F82: 0 | H82: FALSE | I82: 0 | J82: 0 | K82: 0 | L82: 0 | M82: 100 | N82: 7 | O82: 16 | P82: 0.1 | Q82: 4 | S82: 16 | T82: 0.1 | V82: 4 | W82: 34 | X82: 0.3
D83: 0 | F83: 0 | H83: FALSE | I83: 0 | J83: 0 | K83: 0 | L83: 0 | M83: 100 | N83: 7 | O83: 16 | P83: 0.1 | Q83: 4 | S83: 16 | T83: 0.1 | V83: 4 | W83: 34 | X83: 0.3
D84: 0 | F84: 0 | H84: FALSE | I84: 0 | J84: 0 | K84: 0 | L84: 0 | M84: 100 | N84: 7 | O84: 16 | P84: 0.1 | Q84: 4 | S84: 16 | T84: 0.1 | V84: 4 | W84: 34 | X84: 0.3
D85: 0 | F85: 0 | H85: FALSE | I85: 0 | J85: 0 | K85: 0 | L85: 0 | M85: 100 | N85: 7 | O85: 16 | P85: 0.1 | Q85: 4 | S85: 16 | T85: 0.1 | V85: 4 | W85: 34 | X85: 0.3
D86: 0 | F86: 0 | H86: FALSE | I86: 0 | J86: 0 | K86: 0 | L86: 0 | M86: 100 | N86: 7 | O86: 16 | P86: 0.1 | Q86: 4 | S86: 16 | T86: 0.1 | V86: 4 | W86: 34 | X86: 0.3
D87: 0 | F87: 0 | H87: FALSE | I87: 0 | J87: 0 | K87: 0 | L87: 0 | M87: 100 | N87: 7 | O87: 16 | P87: 0.1 | Q87: 4 | S87: 16 | T87: 0.1 | V87: 4 | W87: 34 | X87: 0.3
D88: 0 | F88: 0 | H88: FALSE | I88: 0 | J88: 0 | K88: 0 | L88: 0 | M88: 100 | N88: 7 | O88: 16 | P88: 0.1 | Q88: 4 | S88: 16 | T88: 0.1 | V88: 4 | W88: 34 | X88: 0.3
D89: 0 | F89: 0 | H89: FALSE | I89: 0 | J89: 0 | K89: 0 | L89: 0 | M89: 100 | N89: 7 | O89: 16 | P89: 0.1 | Q89: 4 | S89: 16 | T89: 0.1 | V89: 4 | W89: 34 | X89: 0.3
D90: 0 | F90: 0 | H90: FALSE | I90: 0 | J90: 0 | K90: 0 | L90: 0 | M90: 100 | N90: 7 | O90: 16 | P90: 0.1 | Q90: 4 | S90: 16 | T90: 0.1 | V90: 4 | W90: 34 | X90: 0.3
D91: 0 | F91: 0 | H91: FALSE | I91: 0 | J91: 0 | K91: 0 | L91: 0 | M91: 100 | N91: 7 | O91: 16 | P91: 0.1 | Q91: 4 | S91: 16 | T91: 0.1 | V91: 4 | W91: 34 | X91: 0.3
D92: 0 | F92: 0 | H92: FALSE | I92: 0 | J92: 0 | K92: 0 | L92: 0 | M92: 100 | N92: 7 | O92: 16 | P92: 0.1 | Q92: 4 | S92: 16 | T92: 0.1 | V92: 4 | W92: 34 | X92: 0.3
D93: 0 | F93: 0 | H93: FALSE | I93: 0 | J93: 0 | K93: 0 | L93: 0 | M93: 100 | N93: 7 | O93: 16 | P93: 0.1 | Q93: 4 | S93: 16 | T93: 0.1 | V93: 4 | W93: 34 | X93: 0.3
D94: 0 | F94: 0 | H94: FALSE | I94: 0 | J94: 0 | K94: 0 | L94: 0 | M94: 100 | N94: 7 | O94: 16 | P94: 0.1 | Q94: 4 | S94: 16 | T94: 0.1 | V94: 4 | W94: 34 | X94: 0.3
D95: 0 | F95: 0 | H95: FALSE | I95: 0 | J95: 0 | K95: 0 | L95: 0 | M95: 100 | N95: 7 | O95: 16 | P95: 0.1 | Q95: 4 | S95: 16 | T95: 0.1 | V95: 4 | W95: 34 | X95: 0.3
D96: 0 | F96: 0 | H96: FALSE | I96: 0 | J96: 0 | K96: 0 | L96: 0 | M96: 100 | N96: 7 | O96: 16 | P96: 0.1 | Q96: 4 | S96: 16 | T96: 0.1 | V96: 4 | W96: 34 | X96: 0.3
D97: 0 | F97: 0 | H97: FALSE | I97: 0 | J97: 0 | K97: 0 | L97: 0 | M97: 100 | N97: 7 | O97: 16 | P97: 0.1 | Q97: 4 | S97: 16 | T97: 0.1 | V97: 4 | W97: 34 | X97: 0.3
D98: 0 | F98: 0 | H98: FALSE | I98: 0 | J98: 0 | K98: 0 | L98: 0 | M98: 100 | N98: 7 | O98: 16 | P98: 0.1 | Q98: 4 | S98: 16 | T98: 0.1 | V98: 4 | W98: 34 | X98: 0.3
D99: 0 | F99: 0 | H99: FALSE | I99: 0 | J99: 0 | K99: 0 | L99: 0 | M99: 100 | N99: 7 | O99: 16 | P99: 0.1 | Q99: 4 | S99: 16 | T99: 0.1 | V99: 4 | W99: 34 | X99: 0.3
D100: 0 | F100: 0 | H100: FALSE | I100: 0 | J100: 0 | K100: 0 | L100: 0 | M100: 100 | N100: 7 | O100: 16 | P100: 0.1 | Q100: 4 | S100: 16 | T100: 0.1 | V100: 4 | W100: 34 | X100: 0.3
D101: 0 | F101: 0 | H101: FALSE | I101: 0 | J101: 0 | K101: 0 | L101: 0 | M101: 100 | N101: 7 | O101: 16 | P101: 0.1 | Q101: 4 | S101: 16 | T101: 0.1 | V101: 4 | W101: 34 | X101: 0.3
D102: 0 | F102: 0 | H102: FALSE | I102: 0 | J102: 0 | K102: 0 | L102: 0 | M102: 100 | N102: 7 | O102: 16 | P102: 0.1 | Q102: 4 | S102: 16 | T102: 0.1 | V102: 4 | W102: 34 | X102: 0.3
D103: 0 | F103: 0 | H103: FALSE | I103: 0 | J103: 0 | K103: 0 | L103: 0 | M103: 100 | N103: 7 | O103: 16 | P103: 0.1 | Q103: 4 | S103: 16 | T103: 0.1 | V103: 4 | W103: 34 | X103: 0.3
D104: 0 | F104: 0 | H104: FALSE | I104: 0 | J104: 0 | K104: 0 | L104: 0 | M104: 100 | N104: 7 | O104: 16 | P104: 0.1 | Q104: 4 | S104: 16 | T104: 0.1 | V104: 4 | W104: 34 | X104: 0.3
D105: 0 | F105: 0 | H105: FALSE | I105: 0 | J105: 0 | K105: 0 | L105: 0 | M105: 100 | N105: 7 | O105: 16 | P105: 0.1 | Q105: 4 | S105: 16 | T105: 0.1 | V105: 4 | W105: 34 | X105: 0.3
D106: 0 | F106: 0 | H106: FALSE | I106: 0 | J106: 0 | K106: 0 | L106: 0 | M106: 100 | N106: 7 | O106: 16 | P106: 0.1 | Q106: 4 | S106: 16 | T106: 0.1 | V106: 4 | W106: 34 | X106: 0.3
D107: 0 | F107: 0 | H107: FALSE | I107: 0 | J107: 0 | K107: 0 | L107: 0 | M107: 100 | N107: 7 | O107: 16 | P107: 0.1 | Q107: 4 | S107: 16 | T107: 0.1 | V107: 4 | W107: 34 | X107: 0.3
D108: 0 | F108: 0 | H108: FALSE | I108: 0 | J108: 0 | K108: 0 | L108: 0 | M108: 100 | N108: 7 | O108: 16 | P108: 0.1 | Q108: 4 | S108: 16 | T108: 0.1 | V108: 4 | W108: 34 | X108: 0.3
D109: 0 | F109: 0 | H109: FALSE | I109: 0 | J109: 0 | K109: 0 | L109: 0 | M109: 100 | N109: 7 | O109: 16 | P109: 0.1 | Q109: 4 | S109: 16 | T109: 0.1 | V109: 4 | W109: 34 | X109: 0.3
D110: 0 | F110: 0 | H110: FALSE | I110: 0 | J110: 0 | K110: 0 | L110: 0 | M110: 100 | N110: 7 | O110: 16 | P110: 0.1 | Q110: 4 | S110: 16 | T110: 0.1 | V110: 4 | W110: 34 | X110: 0.3
D111: 0 | F111: 0 | H111: FALSE | I111: 0 | J111: 0 | K111: 0 | L111: 0 | M111: 100 | N111: 7 | O111: 16 | P111: 0.1 | Q111: 4 | S111: 16 | T111: 0.1 | V111: 4 | W111: 34 | X111: 0.3
D112: 0 | F112: 0 | H112: FALSE | I112: 0 | J112: 0 | K112: 0 | L112: 0 | M112: 100 | N112: 7 | O112: 16 | P112: 0.1 | Q112: 4 | S112: 16 | T112: 0.1 | V112: 4 | W112: 34 | X112: 0.3
D113: 0 | F113: 0 | H113: FALSE | I113: 0 | J113: 0 | K113: 0 | L113: 0 | M113: 100 | N113: 7 | O113: 16 | P113: 0.1 | Q113: 4 | S113: 16 | T113: 0.1 | V113: 4 | W113: 34 | X113: 0.3
D114: 0 | F114: 0 | H114: FALSE | I114: 0 | J114: 0 | K114: 0 | L114: 0 | M114: 100 | N114: 7 | O114: 16 | P114: 0.1 | Q114: 4 | S114: 16 | T114: 0.1 | V114: 4 | W114: 34 | X114: 0.3
D115: 0 | F115: 0 | H115: FALSE | I115: 0 | J115: 0 | K115: 0 | L115: 0 | M115: 100 | N115: 7 | O115: 16 | P115: 0.1 | Q115: 4 | S115: 16 | T115: 0.1 | V115: 4 | W115: 34 | X115: 0.3
D116: 0 | F116: 0 | H116: FALSE | I116: 0 | J116: 0 | K116: 0 | L116: 0 | M116: 100 | N116: 7 | O116: 16 | P116: 0.1 | Q116: 4 | S116: 16 | T116: 0.1 | V116: 4 | W116: 34 | X116: 0.3
D117: 0 | F117: 0 | H117: FALSE | I117: 0 | J117: 0 | K117: 0 | L117: 0 | M117: 100 | N117: 7 | O117: 16 | P117: 0.1 | Q117: 4 | S117: 16 | T117: 0.1 | V117: 4 | W117: 34 | X117: 0.3
D118: 0 | F118: 0 | H118: FALSE | I118: 0 | J118: 0 | K118: 0 | L118: 0 | M118: 100 | N118: 7 | O118: 16 | P118: 0.1 | Q118: 4 | S118: 16 | T118: 0.1 | V118: 4 | W118: 34 | X118: 0.3
D119: 0 | F119: 0 | H119: FALSE | I119: 0 | J119: 0 | K119: 0 | L119: 0 | M119: 100 | N119: 7 | O119: 16 | P119: 0.1 | Q119: 4 | S119: 16 | T119: 0.1 | V119: 4 | W119: 34 | X119: 0.3
D120: 0 | F120: 0 | H120: FALSE | I120: 0 | J120: 0 | K120: 0 | L120: 0 | M120: 100 | N120: 7 | O120: 16 | P120: 0.1 | Q120: 4 | S120: 16 | T120: 0.1 | V120: 4 | W120: 34 | X120: 0.3
D121: 0 | F121: 0 | H121: FALSE | I121: 0 | J121: 0 | K121: 0 | L121: 0 | M121: 100 | N121: 7 | O121: 16 | P121: 0.1 | Q121: 4 | S121: 16 | T121: 0.1 | V121: 4 | W121: 34 | X121: 0.3
D122: 0 | F122: 0 | H122: FALSE | I122: 0 | J122: 0 | K122: 0 | L122: 0 | M122: 100 | N122: 7 | O122: 16 | P122: 0.1 | Q122: 4 | S122: 16 | T122: 0.1 | V122: 4 | W122: 34 | X122: 0.3
D123: 0 | F123: 0 | H123: FALSE | I123: 0 | J123: 0 | K123: 0 | L123: 0 | M123: 100 | N123: 7 | O123: 16 | P123: 0.1 | Q123: 4 | S123: 16 | T123: 0.1 | V123: 4 | W123: 34 | X123: 0.3
D124: 0 | F124: 0 | H124: FALSE | I124: 0 | J124: 0 | K124: 0 | L124: 0 | M124: 100 | N124: 7 | O124: 16 | P124: 0.1 | Q124: 4 | S124: 16 | T124: 0.1 | V124: 4 | W124: 34 | X124: 0.3
D125: 0 | F125: 0 | H125: FALSE | I125: 0 | J125: 0 | K125: 0 | L125: 0 | M125: 100 | N125: 7 | O125: 16 | P125: 0.1 | Q125: 4 | S125: 16 | T125: 0.1 | V125: 4 | W125: 34 | X125: 0.3
D126: 0 | F126: 0 | H126: FALSE | I126: 0 | J126: 0 | K126: 0 | L126: 0 | M126: 100 | N126: 7 | O126: 16 | P126: 0.1 | Q126: 4 | S126: 16 | T126: 0.1 | V126: 4 | W126: 34 | X126: 0.3
D127: 0 | F127: 0 | H127: FALSE | I127: 0 | J127: 0 | K127: 0 | L127: 0 | M127: 100 | N127: 7 | O127: 16 | P127: 0.1 | Q127: 4 | S127: 16 | T127: 0.1 | V127: 4 | W127: 34 | X127: 0.3
D128: 0 | F128: 0 | H128: FALSE | I128: 0 | J128: 0 | K128: 0 | L128: 0 | M128: 100 | N128: 7 | O128: 16 | P128: 0.1 | Q128: 4 | S128: 16 | T128: 0.1 | V128: 4 | W128: 34 | X128: 0.3
D129: 0 | F129: 0 | H129: FALSE | I129: 0 | J129: 0 | K129: 0 | L129: 0 | M129: 100 | N129: 7 | O129: 16 | P129: 0.1 | Q129: 4 | S129: 16 | T129: 0.1 | V129: 4 | W129: 34 | X129: 0.3
D130: 0 | F130: 0 | H130: FALSE | I130: 0 | J130: 0 | K130: 0 | L130: 0 | M130: 100 | N130: 7 | O130: 16 | P130: 0.1 | Q130: 4 | S130: 16 | T130: 0.1 | V130: 4 | W130: 34 | X130: 0.3
C131: =IF(I131>0,INDEX(DB,I131,8),"") ->  | D131: 0 | F131: 0 | H131: FALSE | I131: =IF(OR(ISBLANK(A131),ISNA(MATCH(A131&"",AthleteNumbers,0))),0,MATCH(A131&"",AthleteNumbers,0)) -> 0 | J131: =IF(I131>0,INDEX(DB,$I131,6),0) -> 0 | K131: 0 | L131: 0 | M131: 100 | N131: 7 | O131: 16 | P131: 0.1 | Q131: =IF(I131>0,INDEX(DB,I131,9),EventIndex) -> 4 | S131: =INDEX(MINVALUES,$Q131,$K$1) -> 16 | T131: =INDEX(INCVALUES,$Q131,$K$1) -> 0.1 | V131: =+J131+(4*(INDEX(MatchScoreTable,$Q131,20)-1)) -> 4 | W131: =INDEX(INC_MINVALUES,$V131,$K$1) -> 34 | X131: =INDEX(INC_INCVALUES,$V131,$K$1) -> 0.3
D132: =IF(AND(H132,B132>0,ISNUMBER(B132)),IF(ISERR(M132),0,M132),0) -> 0 | F132: =COUNTIF(A$3:A$1002,A132) -> 0 | G132: =IF(AND(H132,OR(D132<=10,D132>=90)),"CHECK","") ->  | H132: =IF(AND(LEN(A132)>0,LEN(C132)>0,B132<>0),TRUE,FALSE) -> FALSE | I132: 0 | J132: 0 | K132: =IF(ISNUMBER(B132),ROUND(+B132,1),0) -> 0 | L132: =+K132 -> 0 | M132: =IF(AND(L132>O132,O132>0),MinPoints,IF(L132<N132,100,+INT((O132-$L132)/P132)+MinPoints)) -> 100 | N132: =+O132-(P132*90) -> 7 | O132: =IF($J132=0,$S132,$W132) -> 16 | P132: =IF($J132=0,$T132,$X132) -> 0.1 | Q132: 4 | S132: 16 | T132: 0.1 | V132: 4 | W132: 34 | X132: 0.3
D133: 0 | F133: 0 | H133: FALSE | I133: 0 | J133: 0 | K133: 0 | L133: 0 | M133: 100 | N133: 7 | O133: 16 | P133: 0.1 | Q133: 4 | S133: 16 | T133: 0.1 | V133: 4 | W133: 34 | X133: 0.3
D134: 0 | F134: 0 | H134: FALSE | I134: 0 | J134: 0 | K134: 0 | L134: 0 | M134: 100 | N134: 7 | O134: 16 | P134: 0.1 | Q134: 4 | S134: 16 | T134: 0.1 | V134: 4 | W134: 34 | X134: 0.3
D135: 0 | F135: 0 | H135: FALSE | I135: 0 | J135: 0 | K135: 0 | L135: 0 | M135: 100 | N135: 7 | O135: 16 | P135: 0.1 | Q135: 4 | S135: 16 | T135: 0.1 | V135: 4 | W135: 34 | X135: 0.3
D136: 0 | F136: 0 | H136: FALSE | I136: 0 | J136: 0 | K136: 0 | L136: 0 | M136: 100 | N136: 7 | O136: 16 | P136: 0.1 | Q136: 4 | S136: 16 | T136: 0.1 | V136: 4 | W136: 34 | X136: 0.3
D137: 0 | F137: 0 | H137: FALSE | I137: 0 | J137: 0 | K137: 0 | L137: 0 | M137: 100 | N137: 7 | O137: 16 | P137: 0.1 | Q137: 4 | S137: 16 | T137: 0.1 | V137: 4 | W137: 34 | X137: 0.3
D138: 0 | F138: 0 | H138: FALSE | I138: 0 | J138: 0 | K138: 0 | L138: 0 | M138: 100 | N138: 7 | O138: 16 | P138: 0.1 | Q138: 4 | S138: 16 | T138: 0.1 | V138: 4 | W138: 34 | X138: 0.3
D139: 0 | F139: 0 | H139: FALSE | I139: 0 | J139: 0 | K139: 0 | L139: 0 | M139: 100 | N139: 7 | O139: 16 | P139: 0.1 | Q139: 4 | S139: 16 | T139: 0.1 | V139: 4 | W139: 34 | X139: 0.3
D140: 0 | F140: 0 | H140: FALSE | I140: 0 | J140: 0 | K140: 0 | L140: 0 | M140: 100 | N140: 7 | O140: 16 | P140: 0.1 | Q140: 4 | S140: 16 | T140: 0.1 | V140: 4 | W140: 34 | X140: 0.3
D141: 0 | F141: 0 | H141: FALSE | I141: 0 | J141: 0 | K141: 0 | L141: 0 | M141: 100 | N141: 7 | O141: 16 | P141: 0.1 | Q141: 4 | S141: 16 | T141: 0.1 | V141: 4 | W141: 34 | X141: 0.3
D142: 0 | F142: 0 | H142: FALSE | I142: 0 | J142: 0 | K142: 0 | L142: 0 | M142: 100 | N142: 7 | O142: 16 | P142: 0.1 | Q142: 4 | S142: 16 | T142: 0.1 | V142: 4 | W142: 34 | X142: 0.3
D143: 0 | F143: 0 | H143: FALSE | I143: 0 | J143: 0 | K143: 0 | L143: 0 | M143: 100 | N143: 7 | O143: 16 | P143: 0.1 | Q143: 4 | S143: 16 | T143: 0.1 | V143: 4 | W143: 34 | X143: 0.3
D144: 0 | F144: 0 | H144: FALSE | I144: 0 | J144: 0 | K144: 0 | L144: 0 | M144: 100 | N144: 7 | O144: 16 | P144: 0.1 | Q144: 4 | S144: 16 | T144: 0.1 | V144: 4 | W144: 34 | X144: 0.3
D145: 0 | F145: 0 | H145: FALSE | I145: 0 | J145: 0 | K145: 0 | L145: 0 | M145: 100 | N145: 7 | O145: 16 | P145: 0.1 | Q145: 4 | S145: 16 | T145: 0.1 | V145: 4 | W145: 34 | X145: 0.3
D146: 0 | F146: 0 | H146: FALSE | I146: 0 | J146: 0 | K146: 0 | L146: 0 | M146: 100 | N146: 7 | O146: 16 | P146: 0.1 | Q146: 4 | S146: 16 | T146: 0.1 | V146: 4 | W146: 34 | X146: 0.3
D147: 0 | F147: 0 | H147: FALSE | I147: 0 | J147: 0 | K147: 0 | L147: 0 | M147: 100 | N147: 7 | O147: 16 | P147: 0.1 | Q147: 4 | S147: 16 | T147: 0.1 | V147: 4 | W147: 34 | X147: 0.3
D148: 0 | F148: 0 | H148: FALSE | I148: 0 | J148: 0 | K148: 0 | L148: 0 | M148: 100 | N148: 7 | O148: 16 | P148: 0.1 | Q148: 4 | S148: 16 | T148: 0.1 | V148: 4 | W148: 34 | X148: 0.3
D149: 0 | F149: 0 | H149: FALSE | I149: 0 | J149: 0 | K149: 0 | L149: 0 | M149: 100 | N149: 7 | O149: 16 | P149: 0.1 | Q149: 4 | S149: 16 | T149: 0.1 | V149: 4 | W149: 34 | X149: 0.3
D150: 0 | F150: 0 | H150: FALSE | I150: 0 | J150: 0 | K150: 0 | L150: 0 | M150: 100 | N150: 7 | O150: 16 | P150: 0.1 | Q150: 4 | S150: 16 | T150: 0.1 | V150: 4 | W150: 34 | X150: 0.3
D151: 0 | F151: 0 | H151: FALSE | I151: 0 | J151: 0 | K151: 0 | L151: 0 | M151: 100 | N151: 7 | O151: 16 | P151: 0.1 | Q151: 4 | S151: 16 | T151: 0.1 | V151: 4 | W151: 34 | X151: 0.3
D152: 0 | F152: 0 | H152: FALSE | I152: 0 | J152: 0 | K152: 0 | L152: 0 | M152: 100 | N152: 7 | O152: 16 | P152: 0.1 | Q152: 4 | S152: 16 | T152: 0.1 | V152: 4 | W152: 34 | X152: 0.3
D153: 0 | F153: 0 | H153: FALSE | I153: 0 | J153: 0 | K153: 0 | L153: 0 | M153: 100 | N153: 7 | O153: 16 | P153: 0.1 | Q153: 4 | S153: 16 | T153: 0.1 | V153: 4 | W153: 34 | X153: 0.3
D154: 0 | F154: 0 | H154: FALSE | I154: 0 | J154: 0 | K154: 0 | L154: 0 | M154: 100 | N154: 7 | O154: 16 | P154: 0.1 | Q154: 4 | S154: 16 | T154: 0.1 | V154: 4 | W154: 34 | X154: 0.3
D155: 0 | F155: 0 | H155: FALSE | I155: 0 | J155: 0 | K155: 0 | L155: 0 | M155: 100 | N155: 7 | O155: 16 | P155: 0.1 | Q155: 4 | S155: 16 | T155: 0.1 | V155: 4 | W155: 34 | X155: 0.3
D156: 0 | F156: 0 | H156: FALSE | I156: 0 | J156: 0 | K156: 0 | L156: 0 | M156: 100 | N156: 7 | O156: 16 | P156: 0.1 | Q156: 4 | S156: 16 | T156: 0.1 | V156: 4 | W156: 34 | X156: 0.3
D157: 0 | F157: 0 | H157: FALSE | I157: 0 | J157: 0 | K157: 0 | L157: 0 | M157: 100 | N157: 7 | O157: 16 | P157: 0.1 | Q157: 4 | S157: 16 | T157: 0.1 | V157: 4 | W157: 34 | X157: 0.3
D158: 0 | F158: 0 | H158: FALSE | I158: 0 | J158: 0 | K158: 0 | L158: 0 | M158: 100 | N158: 7 | O158: 16 | P158: 0.1 | Q158: 4 | S158: 16 | T158: 0.1 | V158: 4 | W158: 34 | X158: 0.3
D159: 0 | F159: 0 | H159: FALSE | I159: 0 | J159: 0 | K159: 0 | L159: 0 | M159: 100 | N159: 7 | O159: 16 | P159: 0.1 | Q159: 4 | S159: 16 | T159: 0.1 | V159: 4 | W159: 34 | X159: 0.3
D160: 0 | F160: 0 | H160: FALSE | I160: 0 | J160: 0 | K160: 0 | L160: 0 | M160: 100 | N160: 7 | O160: 16 | P160: 0.1 | Q160: 4 | S160: 16 | T160: 0.1 | V160: 4 | W160: 34 | X160: 0.3
D161: 0 | F161: 0 | H161: FALSE | I161: 0 | J161: 0 | K161: 0 | L161: 0 | M161: 100 | N161: 7 | O161: 16 | P161: 0.1 | Q161: 4 | S161: 16 | T161: 0.1 | V161: 4 | W161: 34 | X161: 0.3
D162: 0 | F162: 0 | H162: FALSE | I162: 0 | J162: 0 | K162: 0 | L162: 0 | M162: 100 | N162: 7 | O162: 16 | P162: 0.1 | Q162: 4 | S162: 16 | T162: 0.1 | V162: 4 | W162: 34 | X162: 0.3
D163: 0 | F163: 0 | H163: FALSE | I163: 0 | J163: 0 | K163: 0 | L163: 0 | M163: 100 | N163: 7 | O163: 16 | P163: 0.1 | Q163: 4 | S163: 16 | T163: 0.1 | V163: 4 | W163: 34 | X163: 0.3
D164: 0 | F164: 0 | H164: FALSE | I164: 0 | J164: 0 | K164: 0 | L164: 0 | M164: 100 | N164: 7 | O164: 16 | P164: 0.1 | Q164: 4 | S164: 16 | T164: 0.1 | V164: 4 | W164: 34 | X164: 0.3
D165: 0 | F165: 0 | H165: FALSE | I165: 0 | J165: 0 | K165: 0 | L165: 0 | M165: 100 | N165: 7 | O165: 16 | P165: 0.1 | Q165: 4 | S165: 16 | T165: 0.1 | V165: 4 | W165: 34 | X165: 0.3
D166: 0 | F166: 0 | H166: FALSE | I166: 0 | J166: 0 | K166: 0 | L166: 0 | M166: 100 | N166: 7 | O166: 16 | P166: 0.1 | Q166: 4 | S166: 16 | T166: 0.1 | V166: 4 | W166: 34 | X166: 0.3
D167: 0 | F167: 0 | H167: FALSE | I167: 0 | J167: 0 | K167: 0 | L167: 0 | M167: 100 | N167: 7 | O167: 16 | P167: 0.1 | Q167: 4 | S167: 16 | T167: 0.1 | V167: 4 | W167: 34 | X167: 0.3
D168: 0 | F168: 0 | H168: FALSE | I168: 0 | J168: 0 | K168: 0 | L168: 0 | M168: 100 | N168: 7 | O168: 16 | P168: 0.1 | Q168: 4 | S168: 16 | T168: 0.1 | V168: 4 | W168: 34 | X168: 0.3
D169: 0 | F169: 0 | H169: FALSE | I169: 0 | J169: 0 | K169: 0 | L169: 0 | M169: 100 | N169: 7 | O169: 16 | P169: 0.1 | Q169: 4 | S169: 16 | T169: 0.1 | V169: 4 | W169: 34 | X169: 0.3
D170: 0 | F170: 0 | H170: FALSE | I170: 0 | J170: 0 | K170: 0 | L170: 0 | M170: 100 | N170: 7 | O170: 16 | P170: 0.1 | Q170: 4 | S170: 16 | T170: 0.1 | V170: 4 | W170: 34 | X170: 0.3
D171: 0 | F171: 0 | H171: FALSE | I171: 0 | J171: 0 | K171: 0 | L171: 0 | M171: 100 | N171: 7 | O171: 16 | P171: 0.1 | Q171: 4 | S171: 16 | T171: 0.1 | V171: 4 | W171: 34 | X171: 0.3
D172: 0 | F172: 0 | H172: FALSE | I172: 0 | J172: 0 | K172: 0 | L172: 0 | M172: 100 | N172: 7 | O172: 16 | P172: 0.1 | Q172: 4 | S172: 16 | T172: 0.1 | V172: 4 | W172: 34 | X172: 0.3
D173: 0 | F173: 0 | H173: FALSE | I173: 0 | J173: 0 | K173: 0 | L173: 0 | M173: 100 | N173: 7 | O173: 16 | P173: 0.1 | Q173: 4 | S173: 16 | T173: 0.1 | V173: 4 | W173: 34 | X173: 0.3
D174: 0 | F174: 0 | H174: FALSE | I174: 0 | J174: 0 | K174: 0 | L174: 0 | M174: 100 | N174: 7 | O174: 16 | P174: 0.1 | Q174: 4 | S174: 16 | T174: 0.1 | V174: 4 | W174: 34 | X174: 0.3
D175: 0 | F175: 0 | H175: FALSE | I175: 0 | J175: 0 | K175: 0 | L175: 0 | M175: 100 | N175: 7 | O175: 16 | P175: 0.1 | Q175: 4 | S175: 16 | T175: 0.1 | V175: 4 | W175: 34 | X175: 0.3
D176: 0 | F176: 0 | H176: FALSE | I176: 0 | J176: 0 | K176: 0 | L176: 0 | M176: 100 | N176: 7 | O176: 16 | P176: 0.1 | Q176: 4 | S176: 16 | T176: 0.1 | V176: 4 | W176: 34 | X176: 0.3
D177: 0 | F177: 0 | H177: FALSE | I177: 0 | J177: 0 | K177: 0 | L177: 0 | M177: 100 | N177: 7 | O177: 16 | P177: 0.1 | Q177: 4 | S177: 16 | T177: 0.1 | V177: 4 | W177: 34 | X177: 0.3
D178: 0 | F178: 0 | H178: FALSE | I178: 0 | J178: 0 | K178: 0 | L178: 0 | M178: 100 | N178: 7 | O178: 16 | P178: 0.1 | Q178: 4 | S178: 16 | T178: 0.1 | V178: 4 | W178: 34 | X178: 0.3
D179: 0 | F179: 0 | H179: FALSE | I179: 0 | J179: 0 | K179: 0 | L179: 0 | M179: 100 | N179: 7 | O179: 16 | P179: 0.1 | Q179: 4 | S179: 16 | T179: 0.1 | V179: 4 | W179: 34 | X179: 0.3
D180: 0 | F180: 0 | H180: FALSE | I180: 0 | J180: 0 | K180: 0 | L180: 0 | M180: 100 | N180: 7 | O180: 16 | P180: 0.1 | Q180: 4 | S180: 16 | T180: 0.1 | V180: 4 | W180: 34 | X180: 0.3
D181: 0 | F181: 0 | H181: FALSE | I181: 0 | J181: 0 | K181: 0 | L181: 0 | M181: 100 | N181: 7 | O181: 16 | P181: 0.1 | Q181: 4 | S181: 16 | T181: 0.1 | V181: 4 | W181: 34 | X181: 0.3
D182: 0 | F182: 0 | H182: FALSE | I182: 0 | J182: 0 | K182: 0 | L182: 0 | M182: 100 | N182: 7 | O182: 16 | P182: 0.1 | Q182: 4 | S182: 16 | T182: 0.1 | V182: 4 | W182: 34 | X182: 0.3
D183: 0 | F183: 0 | H183: FALSE | I183: 0 | J183: 0 | K183: 0 | L183: 0 | M183: 100 | N183: 7 | O183: 16 | P183: 0.1 | Q183: 4 | S183: 16 | T183: 0.1 | V183: 4 | W183: 34 | X183: 0.3
D184: 0 | F184: 0 | H184: FALSE | I184: 0 | J184: 0 | K184: 0 | L184: 0 | M184: 100 | N184: 7 | O184: 16 | P184: 0.1 | Q184: 4 | S184: 16 | T184: 0.1 | V184: 4 | W184: 34 | X184: 0.3
D185: 0 | F185: 0 | H185: FALSE | I185: 0 | J185: 0 | K185: 0 | L185: 0 | M185: 100 | N185: 7 | O185: 16 | P185: 0.1 | Q185: 4 | S185: 16 | T185: 0.1 | V185: 4 | W185: 34 | X185: 0.3
D186: 0 | F186: 0 | H186: FALSE | I186: 0 | J186: 0 | K186: 0 | L186: 0 | M186: 100 | N186: 7 | O186: 16 | P186: 0.1 | Q186: 4 | S186: 16 | T186: 0.1 | V186: 4 | W186: 34 | X186: 0.3
D187: 0 | F187: 0 | H187: FALSE | I187: 0 | J187: 0 | K187: 0 | L187: 0 | M187: 100 | N187: 7 | O187: 16 | P187: 0.1 | Q187: 4 | S187: 16 | T187: 0.1 | V187: 4 | W187: 34 | X187: 0.3
D188: 0 | F188: 0 | H188: FALSE | I188: 0 | J188: 0 | K188: 0 | L188: 0 | M188: 100 | N188: 7 | O188: 16 | P188: 0.1 | Q188: 4 | S188: 16 | T188: 0.1 | V188: 4 | W188: 34 | X188: 0.3
D189: 0 | F189: 0 | H189: FALSE | I189: 0 | J189: 0 | K189: 0 | L189: 0 | M189: 100 | N189: 7 | O189: 16 | P189: 0.1 | Q189: 4 | S189: 16 | T189: 0.1 | V189: 4 | W189: 34 | X189: 0.3
D190: 0 | F190: 0 | H190: FALSE | I190: 0 | J190: 0 | K190: 0 | L190: 0 | M190: 100 | N190: 7 | O190: 16 | P190: 0.1 | Q190: 4 | S190: 16 | T190: 0.1 | V190: 4 | W190: 34 | X190: 0.3
D191: 0 | F191: 0 | H191: FALSE | I191: 0 | J191: 0 | K191: 0 | L191: 0 | M191: 100 | N191: 7 | O191: 16 | P191: 0.1 | Q191: 4 | S191: 16 | T191: 0.1 | V191: 4 | W191: 34 | X191: 0.3
D192: 0 | F192: 0 | H192: FALSE | I192: 0 | J192: 0 | K192: 0 | L192: 0 | M192: 100 | N192: 7 | O192: 16 | P192: 0.1 | Q192: 4 | S192: 16 | T192: 0.1 | V192: 4 | W192: 34 | X192: 0.3
D193: 0 | F193: 0 | H193: FALSE | I193: 0 | J193: 0 | K193: 0 | L193: 0 | M193: 100 | N193: 7 | O193: 16 | P193: 0.1 | Q193: 4 | S193: 16 | T193: 0.1 | V193: 4 | W193: 34 | X193: 0.3
D194: 0 | F194: 0 | H194: FALSE | I194: 0 | J194: 0 | K194: 0 | L194: 0 | M194: 100 | N194: 7 | O194: 16 | P194: 0.1 | Q194: 4 | S194: 16 | T194: 0.1 | V194: 4 | W194: 34 | X194: 0.3
C195: =IF(I195>0,INDEX(DB,I195,8),"") ->  | D195: 0 | F195: 0 | H195: FALSE | I195: =IF(OR(ISBLANK(A195),ISNA(MATCH(A195&"",AthleteNumbers,0))),0,MATCH(A195&"",AthleteNumbers,0)) -> 0 | J195: =IF(I195>0,INDEX(DB,$I195,6),0) -> 0 | K195: 0 | L195: 0 | M195: 100 | N195: 7 | O195: 16 | P195: 0.1 | Q195: =IF(I195>0,INDEX(DB,I195,9),EventIndex) -> 4 | S195: =INDEX(MINVALUES,$Q195,$K$1) -> 16 | T195: =INDEX(INCVALUES,$Q195,$K$1) -> 0.1 | V195: =+J195+(4*(INDEX(MatchScoreTable,$Q195,20)-1)) -> 4 | W195: =INDEX(INC_MINVALUES,$V195,$K$1) -> 34 | X195: =INDEX(INC_INCVALUES,$V195,$K$1) -> 0.3
D196: =IF(AND(H196,B196>0,ISNUMBER(B196)),IF(ISERR(M196),0,M196),0) -> 0 | F196: =COUNTIF(A$3:A$1002,A196) -> 0 | G196: =IF(AND(H196,OR(D196<=10,D196>=90)),"CHECK","") ->  | H196: =IF(AND(LEN(A196)>0,LEN(C196)>0,B196<>0),TRUE,FALSE) -> FALSE | I196: 0 | J196: 0 | K196: =IF(ISNUMBER(B196),ROUND(+B196,1),0) -> 0 | L196: =+K196 -> 0 | M196: =IF(AND(L196>O196,O196>0),MinPoints,IF(L196<N196,100,+INT((O196-$L196)/P196)+MinPoints)) -> 100 | N196: =+O196-(P196*90) -> 7 | O196: =IF($J196=0,$S196,$W196) -> 16 | P196: =IF($J196=0,$T196,$X196) -> 0.1 | Q196: 4 | S196: 16 | T196: 0.1 | V196: 4 | W196: 34 | X196: 0.3
D197: 0 | F197: 0 | H197: FALSE | I197: 0 | J197: 0 | K197: 0 | L197: 0 | M197: 100 | N197: 7 | O197: 16 | P197: 0.1 | Q197: 4 | S197: 16 | T197: 0.1 | V197: 4 | W197: 34 | X197: 0.3
D198: 0 | F198: 0 | H198: FALSE | I198: 0 | J198: 0 | K198: 0 | L198: 0 | M198: 100 | N198: 7 | O198: 16 | P198: 0.1 | Q198: 4 | S198: 16 | T198: 0.1 | V198: 4 | W198: 34 | X198: 0.3
D199: 0 | F199: 0 | H199: FALSE | I199: 0 | J199: 0 | K199: 0 | L199: 0 | M199: 100 | N199: 7 | O199: 16 | P199: 0.1 | Q199: 4 | S199: 16 | T199: 0.1 | V199: 4 | W199: 34 | X199: 0.3
D200: 0 | F200: 0 | H200: FALSE | I200: 0 | J200: 0 | K200: 0 | L200: 0 | M200: 100 | N200: 7 | O200: 16 | P200: 0.1 | Q200: 4 | S200: 16 | T200: 0.1 | V200: 4 | W200: 34 | X200: 0.3
... 802 more rows

Sheet EVENT - RUN
A1: ="Event:" -> Event: | C1: RUN | F1: =IF(TotalAthletes,COUNTIF(D3:D1002,">0")/TotalAthletes,0) -> 0.8333333333 | J1: EvtIdx | K1: 2 | L1: Min | M1: =INT(INDEX(ScoreValues,2,$K$1))*60+(MOD(INDEX(ScoreValues,2,$K$1),1)*100) -> 180 | N1: Inc | O1: =INDEX(ScoreValues,4,$K$1)*100 -> 1 | Q1: Max | R1: =INT(INDEX(ScoreValues,3,$K$1))*60+(MOD(INDEX(ScoreValues,3,$K$1),1)*100) -> 90 | T1: DefAgeGrp | U1: =+EventIndex -> 4
A2: Athlete No | B2: Time (m.ss) | C2: Name | D2: Points | F2: Duplicates | G2: CheckPoint | H2: ValidAthlete | I2: AthleteIdx | J2: Dgroup | K2: Seconds | L2: Adjusted | M2: Points | N2: Max | O2: Min | P2: Inc | Q2: AgeGroup | S2: MIN | T2: INC | V2: Inc_Idx | W2: MIN | X2: INC
A3: 3 | B3: 2.06 | C3: =IF(I3>0,INDEX(DB,I3,8),"") -> Jess Bailey | D3: =IF(AND(H3,B3<>0,ISNUMBER(B3)),IF(ISERR(M3),0,M3),0) -> 64 | F3: =COUNTIF(A$3:A$1002,A3) -> 1 | G3: =IF(AND(H3,OR(D3<=10,D3>=90)),"CHECK","") ->  | H3: =IF(AND(I3>0,LEN(C3)>0,B3<>0),TRUE,FALSE) -> TRUE | I3: =IF(OR(ISBLANK(A3),ISNA(MATCH(A3&"",AthleteNumbers,0))),0,MATCH(A3&"",AthleteNumbers,0)) -> 1 | J3: =IF(I3>0,INDEX(DB,$I3,6),0) -> 0 | K3: =IF(ISNUMBER(B3),ROUND(+B3,2),0) -> 2.06 | L3: =(INT(K3)*60)+(MOD(K3,1)*100) -> 126 | M3: =IF(AND(L3>O3,O3>0),MinPoints,IF(AND(L3<N3,O3>0),100,+INT((O3-$L3)/P3)+MinPoints)) -> 64 | N3: =+O3-(P3*90) -> 90 | O3: =IF($J3=0,$S3,$W3) -> 180 | P3: =IF($J3=0,$T3,$X3) -> 1 | Q3: =IF(I3>0,INDEX(DB,I3,9),EventIndex) -> 4 | S3: =(INT(INDEX(MINVALUES,$Q3,$K$1))*60)+(MOD(INDEX(MINVALUES,$Q3,$K$1),1)*100) -> 180 | T3: =(INDEX(INCVALUES,$Q3,$K$1)*100) -> 1 | V3: =+J3+(4*(INDEX(MatchScoreTable,$Q3,20)-1)) -> 4 | W3: =INDEX(INC_MINVALUES,$V3,$K$1) -> 480 | X3: =INDEX(INC_INCVALUES,$V3,$K$1) -> 4
A4: 5 | B4: 2.43 | C4: Poppy Burtwell | D4: =IF(AND(H4,B4<>0,ISNUMBER(B4)),IF(ISERR(M4),0,M4),0) -> 27 | F4: =COUNTIF(A$3:A$1002,A4) -> 1 | G4: =IF(AND(H4,OR(D4<=10,D4>=90)),"CHECK","") ->  | H4: =IF(AND(I4>0,LEN(C4)>0,B4<>0),TRUE,FALSE) -> TRUE | I4: 2 | J4: 0 | K4: =IF(ISNUMBER(B4),ROUND(+B4,2),0) -> 2.43 | L4: =(INT(K4)*60)+(MOD(K4,1)*100) -> 163 | M4: 27 | N4: =+O4-(P4*90) -> 90 | O4: =IF($J4=0,$S4,$W4) -> 180 | P4: =IF($J4=0,$T4,$X4) -> 1 | Q4: 4 | S4: 180 | T4: 1 | V4: 4 | W4: 480 | X4: 4
A5: 6 | B5: 2.07 | C5: Albie Jack Bussey | D5: 63 | F5: 1 | H5: TRUE | I5: 3 | J5: 0 | K5: 2.07 | L5: 127 | M5: 63 | N5: 90 | O5: 180 | P5: 1 | Q5: 4 | S5: 180 | T5: 1 | V5: 4 | W5: 480 | X5: 4
A6: 11 | C6: Molly Elizabeth Creek | D6: 0 | F6: 1 | H6: FALSE | I6: 4 | J6: 0 | K6: 0 | L6: 0 | M6: 100 | N6: 90 | O6: 180 | P6: 1 | Q6: 4 | S6: 180 | T6: 1 | V6: 4 | W6: 480 | X6: 4
A7: 13 | B7: 2.09 | C7: Imogen Edwards | D7: 61 | F7: 1 | H7: TRUE | I7: 5 | J7: 0 | K7: 2.09 | L7: 129 | M7: 61 | N7: 90 | O7: 180 | P7: 1 | Q7: 4 | S7: 180 | T7: 1 | V7: 4 | W7: 480 | X7: 4
A8: 15 | C8: Ezra Frick | D8: 0 | F8: 1 | H8: FALSE | I8: 6 | J8: 0 | K8: 0 | L8: 0 | M8: 100 | N8: 90 | O8: 180 | P8: 1 | Q8: 4 | S8: 180 | T8: 1 | V8: 4 | W8: 480 | X8: 4
A9: 16 | B9: 2.27 | C9: Emilia Game | D9: 43 | F9: 1 | H9: TRUE | I9: 7 | J9: 0 | K9: 2.27 | L9: 147 | M9: 43 | N9: 90 | O9: 180 | P9: 1 | Q9: 4 | S9: 180 | T9: 1 | V9: 4 | W9: 480 | X9: 4
A10: 19 | B10: 2.32 | C10: Charlotte Harvey | D10: 38 | F10: 1 | H10: TRUE | I10: 8 | J10: 0 | K10: 2.32 | L10: 152 | M10: 38 | N10: 90 | O10: 180 | P10: 1 | Q10: 4 | S10: 180 | T10: 1 | V10: 4 | W10: 480 | X10: 4
A11: 21 | B11: 2.22 | C11: Dylan Jacob Hockin | D11: 48 | F11: 1 | H11: TRUE | I11: 9 | J11: 0 | K11: 2.22 | L11: 142 | M11: 48 | N11: 90 | O11: 180 | P11: 1 | Q11: 4 | S11: 180 | T11: 1 | V11: 4 | W11: 480 | X11: 4
A12: 24 | B12: 2.3 | C12: Hermione Howard | D12: 40 | F12: 1 | H12: TRUE | I12: 10 | J12: 0 | K12: 2.3 | L12: 150 | M12: 40 | N12: 90 | O12: 180 | P12: 1 | Q12: 4 | S12: 180 | T12: 1 | V12: 4 | W12: 480 | X12: 4
A13: 26 | B13: 2.13 | C13: Evalyn Humphries | D13: 57 | F13: 1 | H13: TRUE | I13: 11 | J13: 0 | K13: 2.13 | L13: 133 | M13: 57 | N13: 90 | O13: 180 | P13: 1 | Q13: 4 | S13: 180 | T13: 1 | V13: 4 | W13: 480 | X13: 4
A14: 28 | B14: 2.04 | C14: William Peter Stuart Johnson | D14: 66 | F14: 1 | H14: TRUE | I14: 12 | J14: 0 | K14: 2.04 | L14: 124 | M14: 66 | N14: 90 | O14: 180 | P14: 1 | Q14: 4 | S14: 180 | T14: 1 | V14: 4 | W14: 480 | X14: 4
A15: 29 | B15: 1.56 | C15: Ben Jones | D15: 74 | F15: 1 | H15: TRUE | I15: 13 | J15: 0 | K15: 1.56 | L15: 116 | M15: 74 | N15: 90 | O15: 180 | P15: 1 | Q15: 4 | S15: 180 | T15: 1 | V15: 4 | W15: 480 | X15: 4
A16: 30 | B16: 2.14 | C16: Olivia Andrea Lilly Jones | D16: 56 | F16: 1 | H16: TRUE | I16: 14 | J16: 0 | K16: 2.14 | L16: 134 | M16: 56 | N16: 90 | O16: 180 | P16: 1 | Q16: 4 | S16: 180 | T16: 1 | V16: 4 | W16: 480 | X16: 4
A17: 31 | B17: 2.25 | C17: Rhys Callen Jones | D17: 45 | F17: 1 | H17: TRUE | I17: 15 | J17: 0 | K17: 2.25 | L17: 145 | M17: 45 | N17: 90 | O17: 180 | P17: 1 | Q17: 4 | S17: 180 | T17: 1 | V17: 4 | W17: 480 | X17: 4
A18: 33 | B18: 2.22 | C18: Arthur Lawson | D18: 48 | F18: 1 | H18: TRUE | I18: 16 | J18: 0 | K18: 2.22 | L18: 142 | M18: 48 | N18: 90 | O18: 180 | P18: 1 | Q18: 4 | S18: 180 | T18: 1 | V18: 4 | W18: 480 | X18: 4
A19: 35 | B19: 2.14 | C19: Edward Lewis | D19: 56 | F19: 1 | H19: TRUE | I19: 17 | J19: 0 | K19: 2.14 | L19: 134 | M19: 56 | N19: 90 | O19: 180 | P19: 1 | Q19: 4 | S19: 180 | T19: 1 | V19: 4 | W19: 480 | X19: 4
A20: 37 | C20: Poppy Limb | D20: 0 | F20: 1 | H20: FALSE | I20: 18 | J20: 0 | K20: 0 | L20: 0 | M20: 100 | N20: 90 | O20: 180 | P20: 1 | Q20: 4 | S20: 180 | T20: 1 | V20: 4 | W20: 480 | X20: 4
A21: 41 | B21: 2.08 | C21: Reuben Mann | D21: 62 | F21: 1 | H21: TRUE | I21: 19 | J21: 0 | K21: 2.08 | L21: 128 | M21: 62 | N21: 90 | O21: 180 | P21: 1 | Q21: 4 | S21: 180 | T21: 1 | V21: 4 | W21: 480 | X21: 4
A22: 42 | C22: Eliza Verity Mason | D22: 0 | F22: 1 | H22: FALSE | I22: 20 | J22: 0 | K22: 0 | L22: 0 | M22: 100 | N22: 90 | O22: 180 | P22: 1 | Q22: 4 | S22: 180 | T22: 1 | V22: 4 | W22: 480 | X22: 4
A23: 47 | B23: 2.04 | C23: Max Papuca | D23: 66 | F23: 1 | H23: TRUE | I23: 21 | J23: 0 | K23: 2.04 | L23: 124 | M23: 66 | N23: 90 | O23: 180 | P23: 1 | Q23: 4 | S23: 180 | T23: 1 | V23: 4 | W23: 480 | X23: 4
A24: 49 | B24: 2.11 | C24: Lucy Reeves | D24: 59 | F24: 1 | H24: TRUE | I24: 22 | J24: 0 | K24: 2.11 | L24: 131 | M24: 59 | N24: 90 | O24: 180 | P24: 1 | Q24: 4 | S24: 180 | T24: 1 | V24: 4 | W24: 480 | X24: 4
A25: 51 | B25: 2.12 | C25: Albert George Rendell | D25: 58 | F25: 1 | H25: TRUE | I25: 23 | J25: 0 | K25: 2.12 | L25: 132 | M25: 58 | N25: 90 | O25: 180 | P25: 1 | Q25: 4 | S25: 180 | T25: 1 | V25: 4 | W25: 480 | X25: 4
A26: 53 | B26: 2.19 | C26: Amelia Robinson | D26: 51 | F26: 1 | H26: TRUE | I26: 24 | J26: 0 | K26: 2.19 | L26: 139 | M26: 51 | N26: 90 | O26: 180 | P26: 1 | Q26: 4 | S26: 180 | T26: 1 | V26: 4 | W26: 480 | X26: 4
A27: 54 | B27: 2.19 | C27: Laurence Andrew Rowett | D27: 51 | F27: 1 | H27: TRUE | I27: 25 | J27: 0 | K27: 2.19 | L27: 139 | M27: 51 | N27: 90 | O27: 180 | P27: 1 | Q27: 4 | S27: 180 | T27: 1 | V27: 4 | W27: 480 | X27: 4
A28: 55 | B28: 2.34 | C28: Alfie Edward Seymour | D28: 36 | F28: 1 | H28: TRUE | I28: 26 | J28: 0 | K28: 2.34 | L28: 154 | M28: 36 | N28: 90 | O28: 180 | P28: 1 | Q28: 4 | S28: 180 | T28: 1 | V28: 4 | W28: 480 | X28: 4
A29: 57 | B29: 2.07 | C29: Henry Ronald Simpson | D29: 63 | F29: 1 | H29: TRUE | I29: 27 | J29: 0 | K29: 2.07 | L29: 127 | M29: 63 | N29: 90 | O29: 180 | P29: 1 | Q29: 4 | S29: 180 | T29: 1 | V29: 4 | W29: 480 | X29: 4
A30: 59 | B30: 2.19 | C30: Natalee May Souch | D30: 51 | F30: 1 | H30: TRUE | I30: 28 | J30: 0 | K30: 2.19 | L30: 139 | M30: 51 | N30: 90 | O30: 180 | P30: 1 | Q30: 4 | S30: 180 | T30: 1 | V30: 4 | W30: 480 | X30: 4
A31: 60 | B31: 2.29 | C31: Lola Southernwood | D31: 41 | F31: 1 | H31: TRUE | I31: 29 | J31: 0 | K31: 2.29 | L31: 149 | M31: 41 | N31: 90 | O31: 180 | P31: 1 | Q31: 4 | S31: 180 | T31: 1 | V31: 4 | W31: 480 | X31: 4
A32: 63 | C32: Allegra Flora Spicer | D32: 0 | F32: 1 | H32: FALSE | I32: 30 | J32: 0 | K32: 0 | L32: 0 | M32: 100 | N32: 90 | O32: 180 | P32: 1 | Q32: 4 | S32: 180 | T32: 1 | V32: 4 | W32: 480 | X32: 4
A33: 68 | B33: 2.36 | C33: Annabelle Weldon | D33: 34 | F33: 1 | H33: TRUE | I33: 31 | J33: 0 | K33: 2.36 | L33: 156 | M33: 34 | N33: 90 | O33: 180 | P33: 1 | Q33: 4 | S33: 180 | T33: 1 | V33: 4 | W33: 480 | X33: 4
A34: 72 | B34: 2.3 | C34: Tayla Florence Williams | D34: 40 | F34: 1 | H34: TRUE | I34: 32 | J34: 0 | K34: 2.3 | L34: 150 | M34: 40 | N34: 90 | O34: 180 | P34: 1 | Q34: 4 | S34: 180 | T34: 1 | V34: 4 | W34: 480 | X34: 4
A35: 73 | B35: 2.29 | C35: Bethan Frances Wilson | D35: 41 | F35: 1 | H35: TRUE | I35: 33 | J35: 0 | K35: 2.29 | L35: 149 | M35: 41 | N35: 90 | O35: 180 | P35: 1 | Q35: 4 | S35: 180 | T35: 1 | V35: 4 | W35: 480 | X35: 4
A36: 74 | C36: Isla Wright | D36: 0 | F36: 1 | H36: FALSE | I36: 34 | J36: 0 | K36: 0 | L36: 0 | M36: 100 | N36: 90 | O36: 180 | P36: 1 | Q36: 4 | S36: 180 | T36: 1 | V36: 4 | W36: 480 | X36: 4
A37: 76 | B37: 2.16 | C37: Joshua Young | D37: 54 | F37: 1 | H37: TRUE | I37: 35 | J37: 0 | K37: 2.16 | L37: 136 | M37: 54 | N37: 90 | O37: 180 | P37: 1 | Q37: 4 | S37: 180 | T37: 1 | V37: 4 | W37: 480 | X37: 4
A38: 77 | B38: 2.11 | C38: Piero Zanca | D38: 59 | F38: 1 | H38: TRUE | I38: 36 | J38: 0 | K38: 2.11 | L38: 131 | M38: 59 | N38: 90 | O38: 180 | P38: 1 | Q38: 4 | S38: 180 | T38: 1 | V38: 4 | W38: 480 | X38: 4
D39: 0 | F39: 0 | H39: FALSE | I39: 0 | J39: 0 | K39: 0 | L39: 0 | M39: 100 | N39: 90 | O39: 180 | P39: 1 | Q39: 4 | S39: 180 | T39: 1 | V39: 4 | W39: 480 | X39: 4
D40: 0 | F40: 0 | H40: FALSE | I40: 0 | J40: 0 | K40: 0 | L40: 0 | M40: 100 | N40: 90 | O40: 180 | P40: 1 | Q40: 4 | S40: 180 | T40: 1 | V40: 4 | W40: 480 | X40: 4
D41: 0 | F41: 0 | H41: FALSE | I41: 0 | J41: 0 | K41: 0 | L41: 0 | M41: 100 | N41: 90 | O41: 180 | P41: 1 | Q41: 4 | S41: 180 | T41: 1 | V41: 4 | W41: 480 | X41: 4
D42: 0 | F42: 0 | H42: FALSE | I42: 0 | J42: 0 | K42: 0 | L42: 0 | M42: 100 | N42: 90 | O42: 180 | P42: 1 | Q42: 4 | S42: 180 | T42: 1 | V42: 4 | W42: 480 | X42: 4
D43: 0 | F43: 0 | H43: FALSE | I43: 0 | J43: 0 | K43: 0 | L43: 0 | M43: 100 | N43: 90 | O43: 180 | P43: 1 | Q43: 4 | S43: 180 | T43: 1 | V43: 4 | W43: 480 | X43: 4
D44: 0 | F44: 0 | H44: FALSE | I44: 0 | J44: 0 | K44: 0 | L44: 0 | M44: 100 | N44: 90 | O44: 180 | P44: 1 | Q44: 4 | S44: 180 | T44: 1 | V44: 4 | W44: 480 | X44: 4
D45: 0 | F45: 0 | H45: FALSE | I45: 0 | J45: 0 | K45: 0 | L45: 0 | M45: 100 | N45: 90 | O45: 180 | P45: 1 | Q45: 4 | S45: 180 | T45: 1 | V45: 4 | W45: 480 | X45: 4
D46: 0 | F46: 0 | H46: FALSE | I46: 0 | J46: 0 | K46: 0 | L46: 0 | M46: 100 | N46: 90 | O46: 180 | P46: 1 | Q46: 4 | S46: 180 | T46: 1 | V46: 4 | W46: 480 | X46: 4
D47: 0 | F47: 0 | H47: FALSE | I47: 0 | J47: 0 | K47: 0 | L47: 0 | M47: 100 | N47: 90 | O47: 180 | P47: 1 | Q47: 4 | S47: 180 | T47: 1 | V47: 4 | W47: 480 | X47: 4
D48: 0 | F48: 0 | H48: FALSE | I48: 0 | J48: 0 | K48: 0 | L48: 0 | M48: 100 | N48: 90 | O48: 180 | P48: 1 | Q48: 4 | S48: 180 | T48: 1 | V48: 4 | W48: 480 | X48: 4
D49: 0 | F49: 0 | H49: FALSE | I49: 0 | J49: 0 | K49: 0 | L49: 0 | M49: 100 | N49: 90 | O49: 180 | P49: 1 | Q49: 4 | S49: 180 | T49: 1 | V49: 4 | W49: 480 | X49: 4
D50: 0 | F50: 0 | H50: FALSE | I50: 0 | J50: 0 | K50: 0 | L50: 0 | M50: 100 | N50: 90 | O50: 180 | P50: 1 | Q50: 4 | S50: 180 | T50: 1 | V50: 4 | W50: 480 | X50: 4
D51: 0 | F51: 0 | H51: FALSE | I51: 0 | J51: 0 | K51: 0 | L51: 0 | M51: 100 | N51: 90 | O51: 180 | P51: 1 | Q51: 4 | S51: 180 | T51: 1 | V51: 4 | W51: 480 | X51: 4
D52: 0 | F52: 0 | H52: FALSE | I52: 0 | J52: 0 | K52: 0 | L52: 0 | M52: 100 | N52: 90 | O52: 180 | P52: 1 | Q52: 4 | S52: 180 | T52: 1 | V52: 4 | W52: 480 | X52: 4
D53: 0 | F53: 0 | H53: FALSE | I53: 0 | J53: 0 | K53: 0 | L53: 0 | M53: 100 | N53: 90 | O53: 180 | P53: 1 | Q53: 4 | S53: 180 | T53: 1 | V53: 4 | W53: 480 | X53: 4
D54: 0 | F54: 0 | H54: FALSE | I54: 0 | J54: 0 | K54: 0 | L54: 0 | M54: 100 | N54: 90 | O54: 180 | P54: 1 | Q54: 4 | S54: 180 | T54: 1 | V54: 4 | W54: 480 | X54: 4
D55: 0 | F55: 0 | H55: FALSE | I55: 0 | J55: 0 | K55: 0 | L55: 0 | M55: 100 | N55: 90 | O55: 180 | P55: 1 | Q55: 4 | S55: 180 | T55: 1 | V55: 4 | W55: 480 | X55: 4
D56: 0 | F56: 0 | H56: FALSE | I56: 0 | J56: 0 | K56: 0 | L56: 0 | M56: 100 | N56: 90 | O56: 180 | P56: 1 | Q56: 4 | S56: 180 | T56: 1 | V56: 4 | W56: 480 | X56: 4
D57: 0 | F57: 0 | H57: FALSE | I57: 0 | J57: 0 | K57: 0 | L57: 0 | M57: 100 | N57: 90 | O57: 180 | P57: 1 | Q57: 4 | S57: 180 | T57: 1 | V57: 4 | W57: 480 | X57: 4
D58: 0 | F58: 0 | H58: FALSE | I58: 0 | J58: 0 | K58: 0 | L58: 0 | M58: 100 | N58: 90 | O58: 180 | P58: 1 | Q58: 4 | S58: 180 | T58: 1 | V58: 4 | W58: 480 | X58: 4
D59: 0 | F59: 0 | H59: FALSE | I59: 0 | J59: 0 | K59: 0 | L59: 0 | M59: 100 | N59: 90 | O59: 180 | P59: 1 | Q59: 4 | S59: 180 | T59: 1 | V59: 4 | W59: 480 | X59: 4
D60: 0 | F60: 0 | H60: FALSE | I60: 0 | J60: 0 | K60: 0 | L60: 0 | M60: 100 | N60: 90 | O60: 180 | P60: 1 | Q60: 4 | S60: 180 | T60: 1 | V60: 4 | W60: 480 | X60: 4
D61: 0 | F61: 0 | H61: FALSE | I61: 0 | J61: 0 | K61: 0 | L61: 0 | M61: 100 | N61: 90 | O61: 180 | P61: 1 | Q61: 4 | S61: 180 | T61: 1 | V61: 4 | W61: 480 | X61: 4
D62: 0 | F62: 0 | H62: FALSE | I62: 0 | J62: 0 | K62: 0 | L62: 0 | M62: 100 | N62: 90 | O62: 180 | P62: 1 | Q62: 4 | S62: 180 | T62: 1 | V62: 4 | W62: 480 | X62: 4
D63: 0 | F63: 0 | H63: FALSE | I63: 0 | J63: 0 | K63: 0 | L63: 0 | M63: 100 | N63: 90 | O63: 180 | P63: 1 | Q63: 4 | S63: 180 | T63: 1 | V63: 4 | W63: 480 | X63: 4
D64: 0 | F64: 0 | H64: FALSE | I64: 0 | J64: 0 | K64: 0 | L64: 0 | M64: 100 | N64: 90 | O64: 180 | P64: 1 | Q64: 4 | S64: 180 | T64: 1 | V64: 4 | W64: 480 | X64: 4
D65: 0 | F65: 0 | H65: FALSE | I65: 0 | J65: 0 | K65: 0 | L65: 0 | M65: 100 | N65: 90 | O65: 180 | P65: 1 | Q65: 4 | S65: 180 | T65: 1 | V65: 4 | W65: 480 | X65: 4
D66: 0 | F66: 0 | H66: FALSE | I66: 0 | J66: 0 | K66: 0 | L66: 0 | M66: 100 | N66: 90 | O66: 180 | P66: 1 | Q66: 4 | S66: 180 | T66: 1 | V66: 4 | W66: 480 | X66: 4
C67: =IF(I67>0,INDEX(DB,I67,8),"") ->  | D67: 0 | F67: 0 | H67: FALSE | I67: =IF(OR(ISBLANK(A67),ISNA(MATCH(A67&"",AthleteNumbers,0))),0,MATCH(A67&"",AthleteNumbers,0)) -> 0 | J67: =IF(I67>0,INDEX(DB,$I67,6),0) -> 0 | K67: 0 | L67: 0 | M67: =IF(AND(L67>O67,O67>0),MinPoints,IF(AND(L67<N67,O67>0),100,+INT((O67-$L67)/P67)+MinPoints)) -> 100 | N67: 90 | O67: 180 | P67: 1 | Q67: =IF(I67>0,INDEX(DB,I67,9),EventIndex) -> 4 | S67: =(INT(INDEX(MINVALUES,$Q67,$K$1))*60)+(MOD(INDEX(MINVALUES,$Q67,$K$1),1)*100) -> 180 | T67: =(INDEX(INCVALUES,$Q67,$K$1)*100) -> 1 | V67: =+J67+(4*(INDEX(MatchScoreTable,$Q67,20)-1)) -> 4 | W67: =INDEX(INC_MINVALUES,$V67,$K$1) -> 480 | X67: =INDEX(INC_INCVALUES,$V67,$K$1) -> 4
D68: =IF(AND(H68,B68<>0,ISNUMBER(B68)),IF(ISERR(M68),0,M68),0) -> 0 | F68: =COUNTIF(A$3:A$1002,A68) -> 0 | G68: =IF(AND(H68,OR(D68<=10,D68>=90)),"CHECK","") ->  | H68: =IF(AND(I68>0,LEN(C68)>0,B68<>0),TRUE,FALSE) -> FALSE | I68: 0 | J68: 0 | K68: =IF(ISNUMBER(B68),ROUND(+B68,2),0) -> 0 | L68: =(INT(K68)*60)+(MOD(K68,1)*100) -> 0 | M68: 100 | N68: =+O68-(P68*90) -> 90 | O68: =IF($J68=0,$S68,$W68) -> 180 | P68: =IF($J68=0,$T68,$X68) -> 1 | Q68: 4 | S68: 180 | T68: 1 | V68: 4 | W68: 480 | X68: 4
D69: 0 | F69: 0 | H69: FALSE | I69: 0 | J69: 0 | K69: 0 | L69: 0 | M69: 100 | N69: 90 | O69: 180 | P69: 1 | Q69: 4 | S69: 180 | T69: 1 | V69: 4 | W69: 480 | X69: 4
D70: 0 | F70: 0 | H70: FALSE | I70: 0 | J70: 0 | K70: 0 | L70: 0 | M70: 100 | N70: 90 | O70: 180 | P70: 1 | Q70: 4 | S70: 180 | T70: 1 | V70: 4 | W70: 480 | X70: 4
D71: 0 | F71: 0 | H71: FALSE | I71: 0 | J71: 0 | K71: 0 | L71: 0 | M71: 100 | N71: 90 | O71: 180 | P71: 1 | Q71: 4 | S71: 180 | T71: 1 | V71: 4 | W71: 480 | X71: 4
D72: 0 | F72: 0 | H72: FALSE | I72: 0 | J72: 0 | K72: 0 | L72: 0 | M72: 100 | N72: 90 | O72: 180 | P72: 1 | Q72: 4 | S72: 180 | T72: 1 | V72: 4 | W72: 480 | X72: 4
D73: 0 | F73: 0 | H73: FALSE | I73: 0 | J73: 0 | K73: 0 | L73: 0 | M73: 100 | N73: 90 | O73: 180 | P73: 1 | Q73: 4 | S73: 180 | T73: 1 | V73: 4 | W73: 480 | X73: 4
D74: 0 | F74: 0 | H74: FALSE | I74: 0 | J74: 0 | K74: 0 | L74: 0 | M74: 100 | N74: 90 | O74: 180 | P74: 1 | Q74: 4 | S74: 180 | T74: 1 | V74: 4 | W74: 480 | X74: 4
D75: 0 | F75: 0 | H75: FALSE | I75: 0 | J75: 0 | K75: 0 | L75: 0 | M75: 100 | N75: 90 | O75: 180 | P75: 1 | Q75: 4 | S75: 180 | T75: 1 | V75: 4 | W75: 480 | X75: 4
D76: 0 | F76: 0 | H76: FALSE | I76: 0 | J76: 0 | K76: 0 | L76: 0 | M76: 100 | N76: 90 | O76: 180 | P76: 1 | Q76: 4 | S76: 180 | T76: 1 | V76: 4 | W76: 480 | X76: 4
D77: 0 | F77: 0 | H77: FALSE | I77: 0 | J77: 0 | K77: 0 | L77: 0 | M77: 100 | N77: 90 | O77: 180 | P77: 1 | Q77: 4 | S77: 180 | T77: 1 | V77: 4 | W77: 480 | X77: 4
D78: 0 | F78: 0 | H78: FALSE | I78: 0 | J78: 0 | K78: 0 | L78: 0 | M78: 100 | N78: 90 | O78: 180 | P78: 1 | Q78: 4 | S78: 180 | T78: 1 | V78: 4 | W78: 480 | X78: 4
D79: 0 | F79: 0 | H79: FALSE | I79: 0 | J79: 0 | K79: 0 | L79: 0 | M79: 100 | N79: 90 | O79: 180 | P79: 1 | Q79: 4 | S79: 180 | T79: 1 | V79: 4 | W79: 480 | X79: 4
D80: 0 | F80: 0 | H80: FALSE | I80: 0 | J80: 0 | K80: 0 | L80: 0 | M80: 100 | N80: 90 | O80: 180 | P80: 1 | Q80: 4 | S80: 180 | T80: 1 | V80: 4 | W80: 480 | X80: 4
D81: 0 | F81: 0 | H81: FALSE | I81: 0 | J81: 0 | K81: 0 | L81: 0 | M81: 100 | N81: 90 | O81: 180 | P81: 1 | Q81: 4 | S81: 180 | T81: 1 | V81: 4 | W81: 480 | X81: 4
D82: 0 | F82: 0 | H82: FALSE | I82: 0 | J82: 0 | K82: 0 | L82: 0 | M82: 100 | N82: 90 | O82: 180 | P82: 1 | Q82: 4 | S82: 180 | T82: 1 | V82: 4 | W82: 480 | X82: 4
D83: 0 | F83: 0 | H83: FALSE | I83: 0 | J83: 0 | K83: 0 | L83: 0 | M83: 100 | N83: 90 | O83: 180 | P83: 1 | Q83: 4 | S83: 180 | T83: 1 | V83: 4 | W83: 480 | X83: 4
D84: 0 | F84: 0 | H84: FALSE | I84: 0 | J84: 0 | K84: 0 | L84: 0 | M84: 100 | N84: 90 | O84: 180 | P84: 1 | Q84: 4 | S84: 180 | T84: 1 | V84: 4 | W84: 480 | X84: 4
D85: 0 | F85: 0 | H85: FALSE | I85: 0 | J85: 0 | K85: 0 | L85: 0 | M85: 100 | N85: 90 | O85: 180 | P85: 1 | Q85: 4 | S85: 180 | T85: 1 | V85: 4 | W85: 480 | X85: 4
D86: 0 | F86: 0 | H86: FALSE | I86: 0 | J86: 0 | K86: 0 | L86: 0 | M86: 100 | N86: 90 | O86: 180 | P86: 1 | Q86: 4 | S86: 180 | T86: 1 | V86: 4 | W86: 480 | X86: 4
D87: 0 | F87: 0 | H87: FALSE | I87: 0 | J87: 0 | K87: 0 | L87: 0 | M87: 100 | N87: 90 | O87: 180 | P87: 1 | Q87: 4 | S87: 180 | T87: 1 | V87: 4 | W87: 480 | X87: 4
D88: 0 | F88: 0 | H88: FALSE | I88: 0 | J88: 0 | K88: 0 | L88: 0 | M88: 100 | N88: 90 | O88: 180 | P88: 1 | Q88: 4 | S88: 180 | T88: 1 | V88: 4 | W88: 480 | X88: 4
D89: 0 | F89: 0 | H89: FALSE | I89: 0 | J89: 0 | K89: 0 | L89: 0 | M89: 100 | N89: 90 | O89: 180 | P89: 1 | Q89: 4 | S89: 180 | T89: 1 | V89: 4 | W89: 480 | X89: 4
D90: 0 | F90: 0 | H90: FALSE | I90: 0 | J90: 0 | K90: 0 | L90: 0 | M90: 100 | N90: 90 | O90: 180 | P90: 1 | Q90: 4 | S90: 180 | T90: 1 | V90: 4 | W90: 480 | X90: 4
D91: 0 | F91: 0 | H91: FALSE | I91: 0 | J91: 0 | K91: 0 | L91: 0 | M91: 100 | N91: 90 | O91: 180 | P91: 1 | Q91: 4 | S91: 180 | T91: 1 | V91: 4 | W91: 480 | X91: 4
D92: 0 | F92: 0 | H92: FALSE | I92: 0 | J92: 0 | K92: 0 | L92: 0 | M92: 100 | N92: 90 | O92: 180 | P92: 1 | Q92: 4 | S92: 180 | T92: 1 | V92: 4 | W92: 480 | X92: 4
D93: 0 | F93: 0 | H93: FALSE | I93: 0 | J93: 0 | K93: 0 | L93: 0 | M93: 100 | N93: 90 | O93: 180 | P93: 1 | Q93: 4 | S93: 180 | T93: 1 | V93: 4 | W93: 480 | X93: 4
D94: 0 | F94: 0 | H94: FALSE | I94: 0 | J94: 0 | K94: 0 | L94: 0 | M94: 100 | N94: 90 | O94: 180 | P94: 1 | Q94: 4 | S94: 180 | T94: 1 | V94: 4 | W94: 480 | X94: 4
D95: 0 | F95: 0 | H95: FALSE | I95: 0 | J95: 0 | K95: 0 | L95: 0 | M95: 100 | N95: 90 | O95: 180 | P95: 1 | Q95: 4 | S95: 180 | T95: 1 | V95: 4 | W95: 480 | X95: 4
D96: 0 | F96: 0 | H96: FALSE | I96: 0 | J96: 0 | K96: 0 | L96: 0 | M96: 100 | N96: 90 | O96: 180 | P96: 1 | Q96: 4 | S96: 180 | T96: 1 | V96: 4 | W96: 480 | X96: 4
D97: 0 | F97: 0 | H97: FALSE | I97: 0 | J97: 0 | K97: 0 | L97: 0 | M97: 100 | N97: 90 | O97: 180 | P97: 1 | Q97: 4 | S97: 180 | T97: 1 | V97: 4 | W97: 480 | X97: 4
D98: 0 | F98: 0 | H98: FALSE | I98: 0 | J98: 0 | K98: 0 | L98: 0 | M98: 100 | N98: 90 | O98: 180 | P98: 1 | Q98: 4 | S98: 180 | T98: 1 | V98: 4 | W98: 480 | X98: 4
D99: 0 | F99: 0 | H99: FALSE | I99: 0 | J99: 0 | K99: 0 | L99: 0 | M99: 100 | N99: 90 | O99: 180 | P99: 1 | Q99: 4 | S99: 180 | T99: 1 | V99: 4 | W99: 480 | X99: 4
D100: 0 | F100: 0 | H100: FALSE | I100: 0 | J100: 0 | K100: 0 | L100: 0 | M100: 100 | N100: 90 | O100: 180 | P100: 1 | Q100: 4 | S100: 180 | T100: 1 | V100: 4 | W100: 480 | X100: 4
D101: 0 | F101: 0 | H101: FALSE | I101: 0 | J101: 0 | K101: 0 | L101: 0 | M101: 100 | N101: 90 | O101: 180 | P101: 1 | Q101: 4 | S101: 180 | T101: 1 | V101: 4 | W101: 480 | X101: 4
D102: 0 | F102: 0 | H102: FALSE | I102: 0 | J102: 0 | K102: 0 | L102: 0 | M102: 100 | N102: 90 | O102: 180 | P102: 1 | Q102: 4 | S102: 180 | T102: 1 | V102: 4 | W102: 480 | X102: 4
D103: 0 | F103: 0 | H103: FALSE | I103: 0 | J103: 0 | K103: 0 | L103: 0 | M103: 100 | N103: 90 | O103: 180 | P103: 1 | Q103: 4 | S103: 180 | T103: 1 | V103: 4 | W103: 480 | X103: 4
D104: 0 | F104: 0 | H104: FALSE | I104: 0 | J104: 0 | K104: 0 | L104: 0 | M104: 100 | N104: 90 | O104: 180 | P104: 1 | Q104: 4 | S104: 180 | T104: 1 | V104: 4 | W104: 480 | X104: 4
D105: 0 | F105: 0 | H105: FALSE | I105: 0 | J105: 0 | K105: 0 | L105: 0 | M105: 100 | N105: 90 | O105: 180 | P105: 1 | Q105: 4 | S105: 180 | T105: 1 | V105: 4 | W105: 480 | X105: 4
D106: 0 | F106: 0 | H106: FALSE | I106: 0 | J106: 0 | K106: 0 | L106: 0 | M106: 100 | N106: 90 | O106: 180 | P106: 1 | Q106: 4 | S106: 180 | T106: 1 | V106: 4 | W106: 480 | X106: 4
D107: 0 | F107: 0 | H107: FALSE | I107: 0 | J107: 0 | K107: 0 | L107: 0 | M107: 100 | N107: 90 | O107: 180 | P107: 1 | Q107: 4 | S107: 180 | T107: 1 | V107: 4 | W107: 480 | X107: 4
D108: 0 | F108: 0 | H108: FALSE | I108: 0 | J108: 0 | K108: 0 | L108: 0 | M108: 100 | N108: 90 | O108: 180 | P108: 1 | Q108: 4 | S108: 180 | T108: 1 | V108: 4 | W108: 480 | X108: 4
D109: 0 | F109: 0 | H109: FALSE | I109: 0 | J109: 0 | K109: 0 | L109: 0 | M109: 100 | N109: 90 | O109: 180 | P109: 1 | Q109: 4 | S109: 180 | T109: 1 | V109: 4 | W109: 480 | X109: 4
D110: 0 | F110: 0 | H110: FALSE | I110: 0 | J110: 0 | K110: 0 | L110: 0 | M110: 100 | N110: 90 | O110: 180 | P110: 1 | Q110: 4 | S110: 180 | T110: 1 | V110: 4 | W110: 480 | X110: 4
D111: 0 | F111: 0 | H111: FALSE | I111: 0 | J111: 0 | K111: 0 | L111: 0 | M111: 100 | N111: 90 | O111: 180 | P111: 1 | Q111: 4 | S111: 180 | T111: 1 | V111: 4 | W111: 480 | X111: 4
D112: 0 | F112: 0 | H112: FALSE | I112: 0 | J112: 0 | K112: 0 | L112: 0 | M112: 100 | N112: 90 | O112: 180 | P112: 1 | Q112: 4 | S112: 180 | T112: 1 | V112: 4 | W112: 480 | X112: 4
D113: 0 | F113: 0 | H113: FALSE | I113: 0 | J113: 0 | K113: 0 | L113: 0 | M113: 100 | N113: 90 | O113: 180 | P113: 1 | Q113: 4 | S113: 180 | T113: 1 | V113: 4 | W113: 480 | X113: 4
D114: 0 | F114: 0 | H114: FALSE | I114: 0 | J114: 0 | K114: 0 | L114: 0 | M114: 100 | N114: 90 | O114: 180 | P114: 1 | Q114: 4 | S114: 180 | T114: 1 | V114: 4 | W114: 480 | X114: 4
D115: 0 | F115: 0 | H115: FALSE | I115: 0 | J115: 0 | K115: 0 | L115: 0 | M115: 100 | N115: 90 | O115: 180 | P115: 1 | Q115: 4 | S115: 180 | T115: 1 | V115: 4 | W115: 480 | X115: 4
D116: 0 | F116: 0 | H116: FALSE | I116: 0 | J116: 0 | K116: 0 | L116: 0 | M116: 100 | N116: 90 | O116: 180 | P116: 1 | Q116: 4 | S116: 180 | T116: 1 | V116: 4 | W116: 480 | X116: 4
D117: 0 | F117: 0 | H117: FALSE | I117: 0 | J117: 0 | K117: 0 | L117: 0 | M117: 100 | N117: 90 | O117: 180 | P117: 1 | Q117: 4 | S117: 180 | T117: 1 | V117: 4 | W117: 480 | X117: 4
D118: 0 | F118: 0 | H118: FALSE | I118: 0 | J118: 0 | K118: 0 | L118: 0 | M118: 100 | N118: 90 | O118: 180 | P118: 1 | Q118: 4 | S118: 180 | T118: 1 | V118: 4 | W118: 480 | X118: 4
D119: 0 | F119: 0 | H119: FALSE | I119: 0 | J119: 0 | K119: 0 | L119: 0 | M119: 100 | N119: 90 | O119: 180 | P119: 1 | Q119: 4 | S119: 180 | T119: 1 | V119: 4 | W119: 480 | X119: 4
D120: 0 | F120: 0 | H120: FALSE | I120: 0 | J120: 0 | K120: 0 | L120: 0 | M120: 100 | N120: 90 | O120: 180 | P120: 1 | Q120: 4 | S120: 180 | T120: 1 | V120: 4 | W120: 480 | X120: 4
D121: 0 | F121: 0 | H121: FALSE | I121: 0 | J121: 0 | K121: 0 | L121: 0 | M121: 100 | N121: 90 | O121: 180 | P121: 1 | Q121: 4 | S121: 180 | T121: 1 | V121: 4 | W121: 480 | X121: 4
D122: 0 | F122: 0 | H122: FALSE | I122: 0 | J122: 0 | K122: 0 | L122: 0 | M122: 100 | N122: 90 | O122: 180 | P122: 1 | Q122: 4 | S122: 180 | T122: 1 | V122: 4 | W122: 480 | X122: 4
D123: 0 | F123: 0 | H123: FALSE | I123: 0 | J123: 0 | K123: 0 | L123: 0 | M123: 100 | N123: 90 | O123: 180 | P123: 1 | Q123: 4 | S123: 180 | T123: 1 | V123: 4 | W123: 480 | X123: 4
D124: 0 | F124: 0 | H124: FALSE | I124: 0 | J124: 0 | K124: 0 | L124: 0 | M124: 100 | N124: 90 | O124: 180 | P124: 1 | Q124: 4 | S124: 180 | T124: 1 | V124: 4 | W124: 480 | X124: 4
D125: 0 | F125: 0 | H125: FALSE | I125: 0 | J125: 0 | K125: 0 | L125: 0 | M125: 100 | N125: 90 | O125: 180 | P125: 1 | Q125: 4 | S125: 180 | T125: 1 | V125: 4 | W125: 480 | X125: 4
D126: 0 | F126: 0 | H126: FALSE | I126: 0 | J126: 0 | K126: 0 | L126: 0 | M126: 100 | N126: 90 | O126: 180 | P126: 1 | Q126: 4 | S126: 180 | T126: 1 | V126: 4 | W126: 480 | X126: 4
D127: 0 | F127: 0 | H127: FALSE | I127: 0 | J127: 0 | K127: 0 | L127: 0 | M127: 100 | N127: 90 | O127: 180 | P127: 1 | Q127: 4 | S127: 180 | T127: 1 | V127: 4 | W127: 480 | X127: 4
D128: 0 | F128: 0 | H128: FALSE | I128: 0 | J128: 0 | K128: 0 | L128: 0 | M128: 100 | N128: 90 | O128: 180 | P128: 1 | Q128: 4 | S128: 180 | T128: 1 | V128: 4 | W128: 480 | X128: 4
D129: 0 | F129: 0 | H129: FALSE | I129: 0 | J129: 0 | K129: 0 | L129: 0 | M129: 100 | N129: 90 | O129: 180 | P129: 1 | Q129: 4 | S129: 180 | T129: 1 | V129: 4 | W129: 480 | X129: 4
D130: 0 | F130: 0 | H130: FALSE | I130: 0 | J130: 0 | K130: 0 | L130: 0 | M130: 100 | N130: 90 | O130: 180 | P130: 1 | Q130: 4 | S130: 180 | T130: 1 | V130: 4 | W130: 480 | X130: 4
C131: =IF(I131>0,INDEX(DB,I131,8),"") ->  | D131: 0 | F131: 0 | H131: FALSE | I131: =IF(OR(ISBLANK(A131),ISNA(MATCH(A131&"",AthleteNumbers,0))),0,MATCH(A131&"",AthleteNumbers,0)) -> 0 | J131: =IF(I131>0,INDEX(DB,$I131,6),0) -> 0 | K131: 0 | L131: 0 | M131: =IF(AND(L131>O131,O131>0),MinPoints,IF(AND(L131<N131,O131>0),100,+INT((O131-$L131)/P131)+MinPoints)) -> 100 | N131: 90 | O131: 180 | P131: 1 | Q131: =IF(I131>0,INDEX(DB,I131,9),EventIndex) -> 4 | S131: =(INT(INDEX(MINVALUES,$Q131,$K$1))*60)+(MOD(INDEX(MINVALUES,$Q131,$K$1),1)*100) -> 180 | T131: =(INDEX(INCVALUES,$Q131,$K$1)*100) -> 1 | V131: =+J131+(4*(INDEX(MatchScoreTable,$Q131,20)-1)) -> 4 | W131: =INDEX(INC_MINVALUES,$V131,$K$1) -> 480 | X131: =INDEX(INC_INCVALUES,$V131,$K$1) -> 4
D132: =IF(AND(H132,B132<>0,ISNUMBER(B132)),IF(ISERR(M132),0,M132),0) -> 0 | F132: =COUNTIF(A$3:A$1002,A132) -> 0 | G132: =IF(AND(H132,OR(D132<=10,D132>=90)),"CHECK","") ->  | H132: =IF(AND(I132>0,LEN(C132)>0,B132<>0),TRUE,FALSE) -> FALSE | I132: 0 | J132: 0 | K132: =IF(ISNUMBER(B132),ROUND(+B132,2),0) -> 0 | L132: =(INT(K132)*60)+(MOD(K132,1)*100) -> 0 | M132: 100 | N132: =+O132-(P132*90) -> 90 | O132: =IF($J132=0,$S132,$W132) -> 180 | P132: =IF($J132=0,$T132,$X132) -> 1 | Q132: 4 | S132: 180 | T132: 1 | V132: 4 | W132: 480 | X132: 4
D133: 0 | F133: 0 | H133: FALSE | I133: 0 | J133: 0 | K133: 0 | L133: 0 | M133: 100 | N133: 90 | O133: 180 | P133: 1 | Q133: 4 | S133: 180 | T133: 1 | V133: 4 | W133: 480 | X133: 4
D134: 0 | F134: 0 | H134: FALSE | I134: 0 | J134: 0 | K134: 0 | L134: 0 | M134: 100 | N134: 90 | O134: 180 | P134: 1 | Q134: 4 | S134: 180 | T134: 1 | V134: 4 | W134: 480 | X134: 4
D135: 0 | F135: 0 | H135: FALSE | I135: 0 | J135: 0 | K135: 0 | L135: 0 | M135: 100 | N135: 90 | O135: 180 | P135: 1 | Q135: 4 | S135: 180 | T135: 1 | V135: 4 | W135: 480 | X135: 4
D136: 0 | F136: 0 | H136: FALSE | I136: 0 | J136: 0 | K136: 0 | L136: 0 | M136: 100 | N136: 90 | O136: 180 | P136: 1 | Q136: 4 | S136: 180 | T136: 1 | V136: 4 | W136: 480 | X136: 4
D137: 0 | F137: 0 | H137: FALSE | I137: 0 | J137: 0 | K137: 0 | L137: 0 | M137: 100 | N137: 90 | O137: 180 | P137: 1 | Q137: 4 | S137: 180 | T137: 1 | V137: 4 | W137: 480 | X137: 4
D138: 0 | F138: 0 | H138: FALSE | I138: 0 | J138: 0 | K138: 0 | L138: 0 | M138: 100 | N138: 90 | O138: 180 | P138: 1 | Q138: 4 | S138: 180 | T138: 1 | V138: 4 | W138: 480 | X138: 4
D139: 0 | F139: 0 | H139: FALSE | I139: 0 | J139: 0 | K139: 0 | L139: 0 | M139: 100 | N139: 90 | O139: 180 | P139: 1 | Q139: 4 | S139: 180 | T139: 1 | V139: 4 | W139: 480 | X139: 4
D140: 0 | F140: 0 | H140: FALSE | I140: 0 | J140: 0 | K140: 0 | L140: 0 | M140: 100 | N140: 90 | O140: 180 | P140: 1 | Q140: 4 | S140: 180 | T140: 1 | V140: 4 | W140: 480 | X140: 4
D141: 0 | F141: 0 | H141: FALSE | I141: 0 | J141: 0 | K141: 0 | L141: 0 | M141: 100 | N141: 90 | O141: 180 | P141: 1 | Q141: 4 | S141: 180 | T141: 1 | V141: 4 | W141: 480 | X141: 4
D142: 0 | F142: 0 | H142: FALSE | I142: 0 | J142: 0 | K142: 0 | L142: 0 | M142: 100 | N142: 90 | O142: 180 | P142: 1 | Q142: 4 | S142: 180 | T142: 1 | V142: 4 | W142: 480 | X142: 4
D143: 0 | F143: 0 | H143: FALSE | I143: 0 | J143: 0 | K143: 0 | L143: 0 | M143: 100 | N143: 90 | O143: 180 | P143: 1 | Q143: 4 | S143: 180 | T143: 1 | V143: 4 | W143: 480 | X143: 4
D144: 0 | F144: 0 | H144: FALSE | I144: 0 | J144: 0 | K144: 0 | L144: 0 | M144: 100 | N144: 90 | O144: 180 | P144: 1 | Q144: 4 | S144: 180 | T144: 1 | V144: 4 | W144: 480 | X144: 4
D145: 0 | F145: 0 | H145: FALSE | I145: 0 | J145: 0 | K145: 0 | L145: 0 | M145: 100 | N145: 90 | O145: 180 | P145: 1 | Q145: 4 | S145: 180 | T145: 1 | V145: 4 | W145: 480 | X145: 4
D146: 0 | F146: 0 | H146: FALSE | I146: 0 | J146: 0 | K146: 0 | L146: 0 | M146: 100 | N146: 90 | O146: 180 | P146: 1 | Q146: 4 | S146: 180 | T146: 1 | V146: 4 | W146: 480 | X146: 4
D147: 0 | F147: 0 | H147: FALSE | I147: 0 | J147: 0 | K147: 0 | L147: 0 | M147: 100 | N147: 90 | O147: 180 | P147: 1 | Q147: 4 | S147: 180 | T147: 1 | V147: 4 | W147: 480 | X147: 4
D148: 0 | F148: 0 | H148: FALSE | I148: 0 | J148: 0 | K148: 0 | L148: 0 | M148: 100 | N148: 90 | O148: 180 | P148: 1 | Q148: 4 | S148: 180 | T148: 1 | V148: 4 | W148: 480 | X148: 4
D149: 0 | F149: 0 | H149: FALSE | I149: 0 | J149: 0 | K149: 0 | L149: 0 | M149: 100 | N149: 90 | O149: 180 | P149: 1 | Q149: 4 | S149: 180 | T149: 1 | V149: 4 | W149: 480 | X149: 4
D150: 0 | F150: 0 | H150: FALSE | I150: 0 | J150: 0 | K150: 0 | L150: 0 | M150: 100 | N150: 90 | O150: 180 | P150: 1 | Q150: 4 | S150: 180 | T150: 1 | V150: 4 | W150: 480 | X150: 4
D151: 0 | F151: 0 | H151: FALSE | I151: 0 | J151: 0 | K151: 0 | L151: 0 | M151: 100 | N151: 90 | O151: 180 | P151: 1 | Q151: 4 | S151: 180 | T151: 1 | V151: 4 | W151: 480 | X151: 4
D152: 0 | F152: 0 | H152: FALSE | I152: 0 | J152: 0 | K152: 0 | L152: 0 | M152: 100 | N152: 90 | O152: 180 | P152: 1 | Q152: 4 | S152: 180 | T152: 1 | V152: 4 | W152: 480 | X152: 4
D153: 0 | F153: 0 | H153: FALSE | I153: 0 | J153: 0 | K153: 0 | L153: 0 | M153: 100 | N153: 90 | O153: 180 | P153: 1 | Q153: 4 | S153: 180 | T153: 1 | V153: 4 | W153: 480 | X153: 4
D154: 0 | F154: 0 | H154: FALSE | I154: 0 | J154: 0 | K154: 0 | L154: 0 | M154: 100 | N154: 90 | O154: 180 | P154: 1 | Q154: 4 | S154: 180 | T154: 1 | V154: 4 | W154: 480 | X154: 4
D155: 0 | F155: 0 | H155: FALSE | I155: 0 | J155: 0 | K155: 0 | L155: 0 | M155: 100 | N155: 90 | O155: 180 | P155: 1 | Q155: 4 | S155: 180 | T155: 1 | V155: 4 | W155: 480 | X155: 4
D156: 0 | F156: 0 | H156: FALSE | I156: 0 | J156: 0 | K156: 0 | L156: 0 | M156: 100 | N156: 90 | O156: 180 | P156: 1 | Q156: 4 | S156: 180 | T156: 1 | V156: 4 | W156: 480 | X156: 4
D157: 0 | F157: 0 | H157: FALSE | I157: 0 | J157: 0 | K157: 0 | L157: 0 | M157: 100 | N157: 90 | O157: 180 | P157: 1 | Q157: 4 | S157: 180 | T157: 1 | V157: 4 | W157: 480 | X157: 4
D158: 0 | F158: 0 | H158: FALSE | I158: 0 | J158: 0 | K158: 0 | L158: 0 | M158: 100 | N158: 90 | O158: 180 | P158: 1 | Q158: 4 | S158: 180 | T158: 1 | V158: 4 | W158: 480 | X158: 4
D159: 0 | F159: 0 | H159: FALSE | I159: 0 | J159: 0 | K159: 0 | L159: 0 | M159: 100 | N159: 90 | O159: 180 | P159: 1 | Q159: 4 | S159: 180 | T159: 1 | V159: 4 | W159: 480 | X159: 4
D160: 0 | F160: 0 | H160: FALSE | I160: 0 | J160: 0 | K160: 0 | L160: 0 | M160: 100 | N160: 90 | O160: 180 | P160: 1 | Q160: 4 | S160: 180 | T160: 1 | V160: 4 | W160: 480 | X160: 4
D161: 0 | F161: 0 | H161: FALSE | I161: 0 | J161: 0 | K161: 0 | L161: 0 | M161: 100 | N161: 90 | O161: 180 | P161: 1 | Q161: 4 | S161: 180 | T161: 1 | V161: 4 | W161: 480 | X161: 4
D162: 0 | F162: 0 | H162: FALSE | I162: 0 | J162: 0 | K162: 0 | L162: 0 | M162: 100 | N162: 90 | O162: 180 | P162: 1 | Q162: 4 | S162: 180 | T162: 1 | V162: 4 | W162: 480 | X162: 4
D163: 0 | F163: 0 | H163: FALSE | I163: 0 | J163: 0 | K163: 0 | L163: 0 | M163: 100 | N163: 90 | O163: 180 | P163: 1 | Q163: 4 | S163: 180 | T163: 1 | V163: 4 | W163: 480 | X163: 4
D164: 0 | F164: 0 | H164: FALSE | I164: 0 | J164: 0 | K164: 0 | L164: 0 | M164: 100 | N164: 90 | O164: 180 | P164: 1 | Q164: 4 | S164: 180 | T164: 1 | V164: 4 | W164: 480 | X164: 4
D165: 0 | F165: 0 | H165: FALSE | I165: 0 | J165: 0 | K165: 0 | L165: 0 | M165: 100 | N165: 90 | O165: 180 | P165: 1 | Q165: 4 | S165: 180 | T165: 1 | V165: 4 | W165: 480 | X165: 4
D166: 0 | F166: 0 | H166: FALSE | I166: 0 | J166: 0 | K166: 0 | L166: 0 | M166: 100 | N166: 90 | O166: 180 | P166: 1 | Q166: 4 | S166: 180 | T166: 1 | V166: 4 | W166: 480 | X166: 4
D167: 0 | F167: 0 | H167: FALSE | I167: 0 | J167: 0 | K167: 0 | L167: 0 | M167: 100 | N167: 90 | O167: 180 | P167: 1 | Q167: 4 | S167: 180 | T167: 1 | V167: 4 | W167: 480 | X167: 4
D168: 0 | F168: 0 | H168: FALSE | I168: 0 | J168: 0 | K168: 0 | L168: 0 | M168: 100 | N168: 90 | O168: 180 | P168: 1 | Q168: 4 | S168: 180 | T168: 1 | V168: 4 | W168: 480 | X168: 4
D169: 0 | F169: 0 | H169: FALSE | I169: 0 | J169: 0 | K169: 0 | L169: 0 | M169: 100 | N169: 90 | O169: 180 | P169: 1 | Q169: 4 | S169: 180 | T169: 1 | V169: 4 | W169: 480 | X169: 4
D170: 0 | F170: 0 | H170: FALSE | I170: 0 | J170: 0 | K170: 0 | L170: 0 | M170: 100 | N170: 90 | O170: 180 | P170: 1 | Q170: 4 | S170: 180 | T170: 1 | V170: 4 | W170: 480 | X170: 4
D171: 0 | F171: 0 | H171: FALSE | I171: 0 | J171: 0 | K171: 0 | L171: 0 | M171: 100 | N171: 90 | O171: 180 | P171: 1 | Q171: 4 | S171: 180 | T171: 1 | V171: 4 | W171: 480 | X171: 4
D172: 0 | F172: 0 | H172: FALSE | I172: 0 | J172: 0 | K172: 0 | L172: 0 | M172: 100 | N172: 90 | O172: 180 | P172: 1 | Q172: 4 | S172: 180 | T172: 1 | V172: 4 | W172: 480 | X172: 4
D173: 0 | F173: 0 | H173: FALSE | I173: 0 | J173: 0 | K173: 0 | L173: 0 | M173: 100 | N173: 90 | O173: 180 | P173: 1 | Q173: 4 | S173: 180 | T173: 1 | V173: 4 | W173: 480 | X173: 4
D174: 0 | F174: 0 | H174: FALSE | I174: 0 | J174: 0 | K174: 0 | L174: 0 | M174: 100 | N174: 90 | O174: 180 | P174: 1 | Q174: 4 | S174: 180 | T174: 1 | V174: 4 | W174: 480 | X174: 4
D175: 0 | F175: 0 | H175: FALSE | I175: 0 | J175: 0 | K175: 0 | L175: 0 | M175: 100 | N175: 90 | O175: 180 | P175: 1 | Q175: 4 | S175: 180 | T175: 1 | V175: 4 | W175: 480 | X175: 4
D176: 0 | F176: 0 | H176: FALSE | I176: 0 | J176: 0 | K176: 0 | L176: 0 | M176: 100 | N176: 90 | O176: 180 | P176: 1 | Q176: 4 | S176: 180 | T176: 1 | V176: 4 | W176: 480 | X176: 4
D177: 0 | F177: 0 | H177: FALSE | I177: 0 | J177: 0 | K177: 0 | L177: 0 | M177: 100 | N177: 90 | O177: 180 | P177: 1 | Q177: 4 | S177: 180 | T177: 1 | V177: 4 | W177: 480 | X177: 4
D178: 0 | F178: 0 | H178: FALSE | I178: 0 | J178: 0 | K178: 0 | L178: 0 | M178: 100 | N178: 90 | O178: 180 | P178: 1 | Q178: 4 | S178: 180 | T178: 1 | V178: 4 | W178: 480 | X178: 4
D179: 0 | F179: 0 | H179: FALSE | I179: 0 | J179: 0 | K179: 0 | L179: 0 | M179: 100 | N179: 90 | O179: 180 | P179: 1 | Q179: 4 | S179: 180 | T179: 1 | V179: 4 | W179: 480 | X179: 4
D180: 0 | F180: 0 | H180: FALSE | I180: 0 | J180: 0 | K180: 0 | L180: 0 | M180: 100 | N180: 90 | O180: 180 | P180: 1 | Q180: 4 | S180: 180 | T180: 1 | V180: 4 | W180: 480 | X180: 4
D181: 0 | F181: 0 | H181: FALSE | I181: 0 | J181: 0 | K181: 0 | L181: 0 | M181: 100 | N181: 90 | O181: 180 | P181: 1 | Q181: 4 | S181: 180 | T181: 1 | V181: 4 | W181: 480 | X181: 4
D182: 0 | F182: 0 | H182: FALSE | I182: 0 | J182: 0 | K182: 0 | L182: 0 | M182: 100 | N182: 90 | O182: 180 | P182: 1 | Q182: 4 | S182: 180 | T182: 1 | V182: 4 | W182: 480 | X182: 4
D183: 0 | F183: 0 | H183: FALSE | I183: 0 | J183: 0 | K183: 0 | L183: 0 | M183: 100 | N183: 90 | O183: 180 | P183: 1 | Q183: 4 | S183: 180 | T183: 1 | V183: 4 | W183: 480 | X183: 4
D184: 0 | F184: 0 | H184: FALSE | I184: 0 | J184: 0 | K184: 0 | L184: 0 | M184: 100 | N184: 90 | O184: 180 | P184: 1 | Q184: 4 | S184: 180 | T184: 1 | V184: 4 | W184: 480 | X184: 4
D185: 0 | F185: 0 | H185: FALSE | I185: 0 | J185: 0 | K185: 0 | L185: 0 | M185: 100 | N185: 90 | O185: 180 | P185: 1 | Q185: 4 | S185: 180 | T185: 1 | V185: 4 | W185: 480 | X185: 4
D186: 0 | F186: 0 | H186: FALSE | I186: 0 | J186: 0 | K186: 0 | L186: 0 | M186: 100 | N186: 90 | O186: 180 | P186: 1 | Q186: 4 | S186: 180 | T186: 1 | V186: 4 | W186: 480 | X186: 4
D187: 0 | F187: 0 | H187: FALSE | I187: 0 | J187: 0 | K187: 0 | L187: 0 | M187: 100 | N187: 90 | O187: 180 | P187: 1 | Q187: 4 | S187: 180 | T187: 1 | V187: 4 | W187: 480 | X187: 4
D188: 0 | F188: 0 | H188: FALSE | I188: 0 | J188: 0 | K188: 0 | L188: 0 | M188: 100 | N188: 90 | O188: 180 | P188: 1 | Q188: 4 | S188: 180 | T188: 1 | V188: 4 | W188: 480 | X188: 4
D189: 0 | F189: 0 | H189: FALSE | I189: 0 | J189: 0 | K189: 0 | L189: 0 | M189: 100 | N189: 90 | O189: 180 | P189: 1 | Q189: 4 | S189: 180 | T189: 1 | V189: 4 | W189: 480 | X189: 4
D190: 0 | F190: 0 | H190: FALSE | I190: 0 | J190: 0 | K190: 0 | L190: 0 | M190: 100 | N190: 90 | O190: 180 | P190: 1 | Q190: 4 | S190: 180 | T190: 1 | V190: 4 | W190: 480 | X190: 4
D191: 0 | F191: 0 | H191: FALSE | I191: 0 | J191: 0 | K191: 0 | L191: 0 | M191: 100 | N191: 90 | O191: 180 | P191: 1 | Q191: 4 | S191: 180 | T191: 1 | V191: 4 | W191: 480 | X191: 4
D192: 0 | F192: 0 | H192: FALSE | I192: 0 | J192: 0 | K192: 0 | L192: 0 | M192: 100 | N192: 90 | O192: 180 | P192: 1 | Q192: 4 | S192: 180 | T192: 1 | V192: 4 | W192: 480 | X192: 4
D193: 0 | F193: 0 | H193: FALSE | I193: 0 | J193: 0 | K193: 0 | L193: 0 | M193: 100 | N193: 90 | O193: 180 | P193: 1 | Q193: 4 | S193: 180 | T193: 1 | V193: 4 | W193: 480 | X193: 4
D194: 0 | F194: 0 | H194: FALSE | I194: 0 | J194: 0 | K194: 0 | L194: 0 | M194: 100 | N194: 90 | O194: 180 | P194: 1 | Q194: 4 | S194: 180 | T194: 1 | V194: 4 | W194: 480 | X194: 4
C195: =IF(I195>0,INDEX(DB,I195,8),"") ->  | D195: 0 | F195: 0 | H195: FALSE | I195: =IF(OR(ISBLANK(A195),ISNA(MATCH(A195&"",AthleteNumbers,0))),0,MATCH(A195&"",AthleteNumbers,0)) -> 0 | J195: =IF(I195>0,INDEX(DB,$I195,6),0) -> 0 | K195: 0 | L195: 0 | M195: =IF(AND(L195>O195,O195>0),MinPoints,IF(AND(L195<N195,O195>0),100,+INT((O195-$L195)/P195)+MinPoints)) -> 100 | N195: 90 | O195: 180 | P195: 1 | Q195: =IF(I195>0,INDEX(DB,I195,9),EventIndex) -> 4 | S195: =(INT(INDEX(MINVALUES,$Q195,$K$1))*60)+(MOD(INDEX(MINVALUES,$Q195,$K$1),1)*100) -> 180 | T195: =(INDEX(INCVALUES,$Q195,$K$1)*100) -> 1 | V195: =+J195+(4*(INDEX(MatchScoreTable,$Q195,20)-1)) -> 4 | W195: =INDEX(INC_MINVALUES,$V195,$K$1) -> 480 | X195: =INDEX(INC_INCVALUES,$V195,$K$1) -> 4
D196: =IF(AND(H196,B196<>0,ISNUMBER(B196)),IF(ISERR(M196),0,M196),0) -> 0 | F196: =COUNTIF(A$3:A$1002,A196) -> 0 | G196: =IF(AND(H196,OR(D196<=10,D196>=90)),"CHECK","") ->  | H196: =IF(AND(I196>0,LEN(C196)>0,B196<>0),TRUE,FALSE) -> FALSE | I196: 0 | J196: 0 | K196: =IF(ISNUMBER(B196),ROUND(+B196,2),0) -> 0 | L196: =(INT(K196)*60)+(MOD(K196,1)*100) -> 0 | M196: 100 | N196: =+O196-(P196*90) -> 90 | O196: =IF($J196=0,$S196,$W196) -> 180 | P196: =IF($J196=0,$T196,$X196) -> 1 | Q196: 4 | S196: 180 | T196: 1 | V196: 4 | W196: 480 | X196: 4
D197: 0 | F197: 0 | H197: FALSE | I197: 0 | J197: 0 | K197: 0 | L197: 0 | M197: 100 | N197: 90 | O197: 180 | P197: 1 | Q197: 4 | S197: 180 | T197: 1 | V197: 4 | W197: 480 | X197: 4
D198: 0 | F198: 0 | H198: FALSE | I198: 0 | J198: 0 | K198: 0 | L198: 0 | M198: 100 | N198: 90 | O198: 180 | P198: 1 | Q198: 4 | S198: 180 | T198: 1 | V198: 4 | W198: 480 | X198: 4
D199: 0 | F199: 0 | H199: FALSE | I199: 0 | J199: 0 | K199: 0 | L199: 0 | M199: 100 | N199: 90 | O199: 180 | P199: 1 | Q199: 4 | S199: 180 | T199: 1 | V199: 4 | W199: 480 | X199: 4
D200: 0 | F200: 0 | H200: FALSE | I200: 0 | J200: 0 | K200: 0 | L200: 0 | M200: 100 | N200: 90 | O200: 180 | P200: 1 | Q200: 4 | S200: 180 | T200: 1 | V200: 4 | W200: 480 | X200: 4
... 802 more rows

Sheet EVENT - JUMP
A1: ="Event:" -> Event: | C1: JUMP | F1: =IF(TotalAthletes,COUNTIF(D3:D1002,">0")/TotalAthletes,0) -> 0.8055555556 | J1: EvtIdx | K1: 3 | L1: Min | M1: =INDEX(ScoreValues,2,$K$1) -> 1.02 | N1: Inc | O1: =INDEX(ScoreValues,4,$K$1) -> 0.02 | Q1: Max | R1: =INDEX(ScoreValues,3,$K$1) -> 2.82 | T1: DefAgeGrp | U1: =+EventIndex -> 4
A2: Athlete No | B2: Distance (m.mm) | C2: Name | D2: Points | F2: Duplicates | G2: CheckPoint | H2: ValidAthlete | I2: AthleteIdx | J2: Dgroup | K2: meters | L2: Adjusted | M2: Points | N2: Max | O2: Min | P2: Inc | Q2: AgeGroup | S2: MIN | T2: INC | V2: Inc_Idx | W2: MIN | X2: INC
A3: 3 | B3: 1.69 | C3: =IF(I3>0,INDEX(DB,I3,8),"") -> Jess Bailey | D3: =IF(AND(H3,B3<>0,ISNUMBER(B3)),IF(ISERR(M3),0,M3),0) -> 43 | F3: =COUNTIF(A$3:A$1002,A3) -> 1 | G3: =IF(AND(H3,OR(D3<=10,D3>=90)),"CHECK","") ->  | H3: =IF(AND(I3>0,LEN(C3)>0,B3<>0),TRUE,FALSE) -> TRUE | I3: =IF(OR(ISBLANK(A3),ISNA(MATCH(A3&"",AthleteNumbers,0))),0,MATCH(A3&"",AthleteNumbers,0)) -> 1 | J3: =IF(I3>0,INDEX(DB,$I3,6),0) -> 0 | K3: =IF(ISNUMBER(B3),ROUND(+B3,2),0) -> 1.69 | L3: =+K3 -> 1.69 | M3: =IF(L3<O3,MinPoints,IF(AND(L3>N3,O3>0),100,+INT(($L3-O3)/P3)+MinPoints)) -> 43 | N3: =+O3+(P3*90) -> 2.82 | O3: =IF($J3=0,$S3,$W3) -> 1.02 | P3: =IF($J3=0,$T3,$X3) -> 0.02 | Q3: =IF(I3>0,INDEX(DB,I3,9),EventIndex) -> 4 | S3: =INDEX(MINVALUES,$Q3,$K$1) -> 1.02 | T3: =INDEX(INCVALUES,$Q3,$K$1) -> 0.02 | V3: =+J3+(4*(INDEX(MatchScoreTable,$Q3,20)-1)) -> 4 | W3: =INDEX(INC_MINVALUES,$V3,$K$1) -> 0.2 | X3: =INDEX(INC_INCVALUES,$V3,$K$1) -> 0.02
A4: 5 | B4: 1.44 | C4: Poppy Burtwell | D4: =IF(AND(H4,B4<>0,ISNUMBER(B4)),IF(ISERR(M4),0,M4),0) -> 31 | F4: =COUNTIF(A$3:A$1002,A4) -> 1 | G4: =IF(AND(H4,OR(D4<=10,D4>=90)),"CHECK","") ->  | H4: =IF(AND(I4>0,LEN(C4)>0,B4<>0),TRUE,FALSE) -> TRUE | I4: 2 | J4: 0 | K4: =IF(ISNUMBER(B4),ROUND(+B4,2),0) -> 1.44 | L4: =+K4 -> 1.44 | M4: =IF(L4<O4,MinPoints,IF(AND(L4>N4,O4>0),100,+INT(($L4-O4)/P4)+MinPoints)) -> 31 | N4: =+O4+(P4*90) -> 2.82 | O4: =IF($J4=0,$S4,$W4) -> 1.02 | P4: =IF($J4=0,$T4,$X4) -> 0.02 | Q4: 4 | S4: 1.02 | T4: 0.02 | V4: 4 | W4: 0.2 | X4: 0.02
A5: 6 | B5: 1.72 | C5: Albie Jack Bussey | D5: 45 | F5: 1 | H5: TRUE | I5: 3 | J5: 0 | K5: 1.72 | L5: 1.72 | M5: 45 | N5: 2.82 | O5: 1.02 | P5: 0.02 | Q5: 4 | S5: 1.02 | T5: 0.02 | V5: 4 | W5: 0.2 | X5: 0.02
A6: 11 | C6: Molly Elizabeth Creek | D6: 0 | F6: 1 | H6: FALSE | I6: 4 | J6: 0 | K6: 0 | L6: 0 | M6: 10 | N6: 2.82 | O6: 1.02 | P6: 0.02 | Q6: 4 | S6: 1.02 | T6: 0.02 | V6: 4 | W6: 0.2 | X6: 0.02
A7: 13 | B7: 1.56 | C7: Imogen Edwards | D7: 37 | F7: 1 | H7: TRUE | I7: 5 | J7: 0 | K7: 1.56 | L7: 1.56 | M7: 37 | N7: 2.82 | O7: 1.02 | P7: 0.02 | Q7: 4 | S7: 1.02 | T7: 0.02 | V7: 4 | W7: 0.2 | X7: 0.02
A8: 15 | C8: Ezra Frick | D8: 0 | F8: 1 | H8: FALSE | I8: 6 | J8: 0 | K8: 0 | L8: 0 | M8: 10 | N8: 2.82 | O8: 1.02 | P8: 0.02 | Q8: 4 | S8: 1.02 | T8: 0.02 | V8: 4 | W8: 0.2 | X8: 0.02
A9: 16 | B9: 1.25 | C9: Emilia Game | D9: 21 | F9: 1 | H9: TRUE | I9: 7 | J9: 0 | K9: 1.25 | L9: 1.25 | M9: 21 | N9: 2.82 | O9: 1.02 | P9: 0.02 | Q9: 4 | S9: 1.02 | T9: 0.02 | V9: 4 | W9: 0.2 | X9: 0.02
A10: 19 | B10: 1.09 | C10: Charlotte Harvey | D10: 13 | F10: 1 | H10: TRUE | I10: 8 | J10: 0 | K10: 1.09 | L10: 1.09 | M10: 13 | N10: 2.82 | O10: 1.02 | P10: 0.02 | Q10: 4 | S10: 1.02 | T10: 0.02 | V10: 4 | W10: 0.2 | X10: 0.02
A11: 21 | B11: 1.67 | C11: Dylan Jacob Hockin | D11: 42 | F11: 1 | H11: TRUE | I11: 9 | J11: 0 | K11: 1.67 | L11: 1.67 | M11: 42 | N11: 2.82 | O11: 1.02 | P11: 0.02 | Q11: 4 | S11: 1.02 | T11: 0.02 | V11: 4 | W11: 0.2 | X11: 0.02
A12: 24 | B12: 1.44 | C12: Hermione Howard | D12: 31 | F12: 1 | H12: TRUE | I12: 10 | J12: 0 | K12: 1.44 | L12: 1.44 | M12: 31 | N12: 2.82 | O12: 1.02 | P12: 0.02 | Q12: 4 | S12: 1.02 | T12: 0.02 | V12: 4 | W12: 0.2 | X12: 0.02
A13: 26 | B13: 1.79 | C13: Evalyn Humphries | D13: 48 | F13: 1 | H13: TRUE | I13: 11 | J13: 0 | K13: 1.79 | L13: 1.79 | M13: 48 | N13: 2.82 | O13: 1.02 | P13: 0.02 | Q13: 4 | S13: 1.02 | T13: 0.02 | V13: 4 | W13: 0.2 | X13: 0.02
A14: 28 | B14: 1.81 | C14: William Peter Stuart Johnson | D14: 49 | F14: 1 | H14: TRUE | I14: 12 | J14: 0 | K14: 1.81 | L14: 1.81 | M14: 49 | N14: 2.82 | O14: 1.02 | P14: 0.02 | Q14: 4 | S14: 1.02 | T14: 0.02 | V14: 4 | W14: 0.2 | X14: 0.02
A15: 29 | B15: 1.65 | C15: Ben Jones | D15: 41 | F15: 1 | H15: TRUE | I15: 13 | J15: 0 | K15: 1.65 | L15: 1.65 | M15: 41 | N15: 2.82 | O15: 1.02 | P15: 0.02 | Q15: 4 | S15: 1.02 | T15: 0.02 | V15: 4 | W15: 0.2 | X15: 0.02
A16: 30 | B16: 1.6 | C16: Olivia Andrea Lilly Jones | D16: 39 | F16: 1 | H16: TRUE | I16: 14 | J16: 0 | K16: 1.6 | L16: 1.6 | M16: 39 | N16: 2.82 | O16: 1.02 | P16: 0.02 | Q16: 4 | S16: 1.02 | T16: 0.02 | V16: 4 | W16: 0.2 | X16: 0.02
A17: 31 | B17: 1.49 | C17: Rhys Callen Jones | D17: 33 | F17: 1 | H17: TRUE | I17: 15 | J17: 0 | K17: 1.49 | L17: 1.49 | M17: 33 | N17: 2.82 | O17: 1.02 | P17: 0.02 | Q17: 4 | S17: 1.02 | T17: 0.02 | V17: 4 | W17: 0.2 | X17: 0.02
A18: 33 | B18: 1.52 | C18: Arthur Lawson | D18: 35 | F18: 1 | H18: TRUE | I18: 16 | J18: 0 | K18: 1.52 | L18: 1.52 | M18: 35 | N18: 2.82 | O18: 1.02 | P18: 0.02 | Q18: 4 | S18: 1.02 | T18: 0.02 | V18: 4 | W18: 0.2 | X18: 0.02
A19: 35 | B19: 1.37 | C19: Edward Lewis | D19: 27 | F19: 1 | H19: TRUE | I19: 17 | J19: 0 | K19: 1.37 | L19: 1.37 | M19: 27 | N19: 2.82 | O19: 1.02 | P19: 0.02 | Q19: 4 | S19: 1.02 | T19: 0.02 | V19: 4 | W19: 0.2 | X19: 0.02
A20: 37 | C20: Poppy Limb | D20: 0 | F20: 1 | H20: FALSE | I20: 18 | J20: 0 | K20: 0 | L20: 0 | M20: 10 | N20: 2.82 | O20: 1.02 | P20: 0.02 | Q20: 4 | S20: 1.02 | T20: 0.02 | V20: 4 | W20: 0.2 | X20: 0.02
A21: 41 | B21: 1.9 | C21: Reuben Mann | D21: 54 | F21: 1 | H21: TRUE | I21: 19 | J21: 0 | K21: 1.9 | L21: 1.9 | M21: 54 | N21: 2.82 | O21: 1.02 | P21: 0.02 | Q21: 4 | S21: 1.02 | T21: 0.02 | V21: 4 | W21: 0.2 | X21: 0.02
A22: 42 | C22: Eliza Verity Mason | D22: 0 | F22: 1 | H22: FALSE | I22: 20 | J22: 0 | K22: 0 | L22: 0 | M22: 10 | N22: 2.82 | O22: 1.02 | P22: 0.02 | Q22: 4 | S22: 1.02 | T22: 0.02 | V22: 4 | W22: 0.2 | X22: 0.02
A23: 47 | B23: 1.94 | C23: Max Papuca | D23: 56 | F23: 1 | H23: TRUE | I23: 21 | J23: 0 | K23: 1.94 | L23: 1.94 | M23: 56 | N23: 2.82 | O23: 1.02 | P23: 0.02 | Q23: 4 | S23: 1.02 | T23: 0.02 | V23: 4 | W23: 0.2 | X23: 0.02
A24: 49 | B24: 1.68 | C24: Lucy Reeves | D24: 43 | F24: 1 | H24: TRUE | I24: 22 | J24: 0 | K24: 1.68 | L24: 1.68 | M24: 43 | N24: 2.82 | O24: 1.02 | P24: 0.02 | Q24: 4 | S24: 1.02 | T24: 0.02 | V24: 4 | W24: 0.2 | X24: 0.02
A25: 51 | C25: Albert George Rendell | D25: 0 | F25: 1 | H25: FALSE | I25: 23 | J25: 0 | K25: 0 | L25: 0 | M25: 10 | N25: 2.82 | O25: 1.02 | P25: 0.02 | Q25: 4 | S25: 1.02 | T25: 0.02 | V25: 4 | W25: 0.2 | X25: 0.02
A26: 53 | B26: 1.13 | C26: Amelia Robinson | D26: 15 | F26: 1 | H26: TRUE | I26: 24 | J26: 0 | K26: 1.13 | L26: 1.13 | M26: 15 | N26: 2.82 | O26: 1.02 | P26: 0.02 | Q26: 4 | S26: 1.02 | T26: 0.02 | V26: 4 | W26: 0.2 | X26: 0.02
A27: 54 | B27: 1.46 | C27: Laurence Andrew Rowett | D27: 32 | F27: 1 | H27: TRUE | I27: 25 | J27: 0 | K27: 1.46 | L27: 1.46 | M27: 32 | N27: 2.82 | O27: 1.02 | P27: 0.02 | Q27: 4 | S27: 1.02 | T27: 0.02 | V27: 4 | W27: 0.2 | X27: 0.02
A28: 55 | B28: 1.41 | C28: Alfie Edward Seymour | D28: 29 | F28: 1 | H28: TRUE | I28: 26 | J28: 0 | K28: 1.41 | L28: 1.41 | M28: 29 | N28: 2.82 | O28: 1.02 | P28: 0.02 | Q28: 4 | S28: 1.02 | T28: 0.02 | V28: 4 | W28: 0.2 | X28: 0.02
A29: 57 | B29: 1.77 | C29: Henry Ronald Simpson | D29: 47 | F29: 1 | H29: TRUE | I29: 27 | J29: 0 | K29: 1.77 | L29: 1.77 | M29: 47 | N29: 2.82 | O29: 1.02 | P29: 0.02 | Q29: 4 | S29: 1.02 | T29: 0.02 | V29: 4 | W29: 0.2 | X29: 0.02
A30: 59 | B30: 1.78 | C30: Natalee May Souch | D30: 48 | F30: 1 | H30: TRUE | I30: 28 | J30: 0 | K30: 1.78 | L30: 1.78 | M30: 48 | N30: 2.82 | O30: 1.02 | P30: 0.02 | Q30: 4 | S30: 1.02 | T30: 0.02 | V30: 4 | W30: 0.2 | X30: 0.02
A31: 60 | B31: 1.72 | C31: Lola Southernwood | D31: 45 | F31: 1 | H31: TRUE | I31: 29 | J31: 0 | K31: 1.72 | L31: 1.72 | M31: 45 | N31: 2.82 | O31: 1.02 | P31: 0.02 | Q31: 4 | S31: 1.02 | T31: 0.02 | V31: 4 | W31: 0.2 | X31: 0.02
A32: 63 | C32: Allegra Flora Spicer | D32: 0 | F32: 1 | H32: FALSE | I32: 30 | J32: 0 | K32: 0 | L32: 0 | M32: 10 | N32: 2.82 | O32: 1.02 | P32: 0.02 | Q32: 4 | S32: 1.02 | T32: 0.02 | V32: 4 | W32: 0.2 | X32: 0.02
A33: 68 | B33: 1.77 | C33: Annabelle Weldon | D33: 47 | F33: 1 | H33: TRUE | I33: 31 | J33: 0 | K33: 1.77 | L33: 1.77 | M33: 47 | N33: 2.82 | O33: 1.02 | P33: 0.02 | Q33: 4 | S33: 1.02 | T33: 0.02 | V33: 4 | W33: 0.2 | X33: 0.02
A34: 72 | B34: 1.4 | C34: Tayla Florence Williams | D34: 29 | F34: 1 | H34: TRUE | I34: 32 | J34: 0 | K34: 1.4 | L34: 1.4 | M34: 29 | N34: 2.82 | O34: 1.02 | P34: 0.02 | Q34: 4 | S34: 1.02 | T34: 0.02 | V34: 4 | W34: 0.2 | X34: 0.02
A35: 73 | B35: 1.39 | C35: Bethan Frances Wilson | D35: 28 | F35: 1 | H35: TRUE | I35: 33 | J35: 0 | K35: 1.39 | L35: 1.39 | M35: 28 | N35: 2.82 | O35: 1.02 | P35: 0.02 | Q35: 4 | S35: 1.02 | T35: 0.02 | V35: 4 | W35: 0.2 | X35: 0.02
A36: 74 | C36: Isla Wright | D36: 0 | F36: 1 | H36: FALSE | I36: 34 | J36: 0 | K36: 0 | L36: 0 | M36: 10 | N36: 2.82 | O36: 1.02 | P36: 0.02 | Q36: 4 | S36: 1.02 | T36: 0.02 | V36: 4 | W36: 0.2 | X36: 0.02
A37: 76 | B37: 1.44 | C37: Joshua Young | D37: 31 | F37: 1 | H37: TRUE | I37: 35 | J37: 0 | K37: 1.44 | L37: 1.44 | M37: 31 | N37: 2.82 | O37: 1.02 | P37: 0.02 | Q37: 4 | S37: 1.02 | T37: 0.02 | V37: 4 | W37: 0.2 | X37: 0.02
A38: 77 | B38: 1.39 | C38: Piero Zanca | D38: 28 | F38: 1 | H38: TRUE | I38: 36 | J38: 0 | K38: 1.39 | L38: 1.39 | M38: 28 | N38: 2.82 | O38: 1.02 | P38: 0.02 | Q38: 4 | S38: 1.02 | T38: 0.02 | V38: 4 | W38: 0.2 | X38: 0.02
D39: 0 | F39: 0 | H39: FALSE | I39: 0 | J39: 0 | K39: 0 | L39: 0 | M39: 10 | N39: 2.82 | O39: 1.02 | P39: 0.02 | Q39: 4 | S39: 1.02 | T39: 0.02 | V39: 4 | W39: 0.2 | X39: 0.02
D40: 0 | F40: 0 | H40: FALSE | I40: 0 | J40: 0 | K40: 0 | L40: 0 | M40: 10 | N40: 2.82 | O40: 1.02 | P40: 0.02 | Q40: 4 | S40: 1.02 | T40: 0.02 | V40: 4 | W40: 0.2 | X40: 0.02
D41: 0 | F41: 0 | H41: FALSE | I41: 0 | J41: 0 | K41: 0 | L41: 0 | M41: 10 | N41: 2.82 | O41: 1.02 | P41: 0.02 | Q41: 4 | S41: 1.02 | T41: 0.02 | V41: 4 | W41: 0.2 | X41: 0.02
D42: 0 | F42: 0 | H42: FALSE | I42: 0 | J42: 0 | K42: 0 | L42: 0 | M42: 10 | N42: 2.82 | O42: 1.02 | P42: 0.02 | Q42: 4 | S42: 1.02 | T42: 0.02 | V42: 4 | W42: 0.2 | X42: 0.02
D43: 0 | F43: 0 | H43: FALSE | I43: 0 | J43: 0 | K43: 0 | L43: 0 | M43: 10 | N43: 2.82 | O43: 1.02 | P43: 0.02 | Q43: 4 | S43: 1.02 | T43: 0.02 | V43: 4 | W43: 0.2 | X43: 0.02
D44: 0 | F44: 0 | H44: FALSE | I44: 0 | J44: 0 | K44: 0 | L44: 0 | M44: 10 | N44: 2.82 | O44: 1.02 | P44: 0.02 | Q44: 4 | S44: 1.02 | T44: 0.02 | V44: 4 | W44: 0.2 | X44: 0.02
D45: 0 | F45: 0 | H45: FALSE | I45: 0 | J45: 0 | K45: 0 | L45: 0 | M45: 10 | N45: 2.82 | O45: 1.02 | P45: 0.02 | Q45: 4 | S45: 1.02 | T45: 0.02 | V45: 4 | W45: 0.2 | X45: 0.02
D46: 0 | F46: 0 | H46: FALSE | I46: 0 | J46: 0 | K46: 0 | L46: 0 | M46: 10 | N46: 2.82 | O46: 1.02 | P46: 0.02 | Q46: 4 | S46: 1.02 | T46: 0.02 | V46: 4 | W46: 0.2 | X46: 0.02
D47: 0 | F47: 0 | H47: FALSE | I47: 0 | J47: 0 | K47: 0 | L47: 0 | M47: 10 | N47: 2.82 | O47: 1.02 | P47: 0.02 | Q47: 4 | S47: 1.02 | T47: 0.02 | V47: 4 | W47: 0.2 | X47: 0.02
D48: 0 | F48: 0 | H48: FALSE | I48: 0 | J48: 0 | K48: 0 | L48: 0 | M48: 10 | N48: 2.82 | O48: 1.02 | P48: 0.02 | Q48: 4 | S48: 1.02 | T48: 0.02 | V48: 4 | W48: 0.2 | X48: 0.02
D49: 0 | F49: 0 | H49: FALSE | I49: 0 | J49: 0 | K49: 0 | L49: 0 | M49: 10 | N49: 2.82 | O49: 1.02 | P49: 0.02 | Q49: 4 | S49: 1.02 | T49: 0.02 | V49: 4 | W49: 0.2 | X49: 0.02
D50: 0 | F50: 0 | H50: FALSE | I50: 0 | J50: 0 | K50: 0 | L50: 0 | M50: 10 | N50: 2.82 | O50: 1.02 | P50: 0.02 | Q50: 4 | S50: 1.02 | T50: 0.02 | V50: 4 | W50: 0.2 | X50: 0.02
D51: 0 | F51: 0 | H51: FALSE | I51: 0 | J51: 0 | K51: 0 | L51: 0 | M51: 10 | N51: 2.82 | O51: 1.02 | P51: 0.02 | Q51: 4 | S51: 1.02 | T51: 0.02 | V51: 4 | W51: 0.2 | X51: 0.02
D52: 0 | F52: 0 | H52: FALSE | I52: 0 | J52: 0 | K52: 0 | L52: 0 | M52: 10 | N52: 2.82 | O52: 1.02 | P52: 0.02 | Q52: 4 | S52: 1.02 | T52: 0.02 | V52: 4 | W52: 0.2 | X52: 0.02
D53: 0 | F53: 0 | H53: FALSE | I53: 0 | J53: 0 | K53: 0 | L53: 0 | M53: 10 | N53: 2.82 | O53: 1.02 | P53: 0.02 | Q53: 4 | S53: 1.02 | T53: 0.02 | V53: 4 | W53: 0.2 | X53: 0.02
D54: 0 | F54: 0 | H54: FALSE | I54: 0 | J54: 0 | K54: 0 | L54: 0 | M54: 10 | N54: 2.82 | O54: 1.02 | P54: 0.02 | Q54: 4 | S54: 1.02 | T54: 0.02 | V54: 4 | W54: 0.2 | X54: 0.02
D55: 0 | F55: 0 | H55: FALSE | I55: 0 | J55: 0 | K55: 0 | L55: 0 | M55: 10 | N55: 2.82 | O55: 1.02 | P55: 0.02 | Q55: 4 | S55: 1.02 | T55: 0.02 | V55: 4 | W55: 0.2 | X55: 0.02
D56: 0 | F56: 0 | H56: FALSE | I56: 0 | J56: 0 | K56: 0 | L56: 0 | M56: 10 | N56: 2.82 | O56: 1.02 | P56: 0.02 | Q56: 4 | S56: 1.02 | T56: 0.02 | V56: 4 | W56: 0.2 | X56: 0.02
